Workbook

Sheet County Overview
A1: Medicare fee-for-service (FFS) calculations: MA ratebook CY2009
A3: Select State and County from Drop Down menu or enter County Code Directly in Yellow Box | J3: Match
A4: State | D4: County | G4: Enter Code | J4: =(MATCH(G5,ffs2009_data!B:B,0)) -> 
D5: =INDIRECT("ffs2009_data!A"&J4) -> 
A7: FFS1_GME | B7: USPCC | C7: CTYAGA(stnd) | D7: AGA(5yr avg) | E7: NATAGA | F7: AVGGME
A8: =ROUND(B8*C8*(1-0.35*F8),2) ->  | B8: 734.77 | C8: =D8/E8 ->  | D8: =AVERAGE(B12:B16)/G53 ->  | E8: 0.9948368011 | F8: =INDIRECT("ffs2009_data!DD"&J4) -> 
C10: COUNTY PER CAPITA COSTS
A11: Year | B11: Geo Index GEOINYR | C11: Pt A PCC CPCCYRA | D11: Pt B PCC CPCCYRB | E11: Parts A&B CPCCYRAB | F11: Natl PCC NPCCYRAB
A12: 2002 | B12: =E12/F12 ->  | C12: =ROUND(D28/D20/12,2) ->  | D12: =ROUND(D44/D36/12,2) ->  | E12: =C12+D12 ->  | F12: 519.0879228
A13: 2003 | B13: =E13/F13 ->  | C13: =ROUND(D29/D21/12,2) ->  | D13: =ROUND(D45/D37/12,2) ->  | E13: =C13+D13 ->  | F13: 545.9862289
A14: 2004 | B14: =E14/F14 ->  | C14: =ROUND(D30/D22/12,2) ->  | D14: =ROUND(D46/D38/12,2) ->  | E14: =C14+D14 ->  | F14: 583.9473617
A15: 2005 | B15: =E15/F15 ->  | C15: =ROUND(D31/D23/12,2) ->  | D15: =ROUND(D47/D39/12,2) ->  | E15: =C15+D15 ->  | F15: 621.8060329
A16: 2006 | B16: =E16/F16 ->  | C16: =ROUND(D32/D24/12,2) ->  | D16: =ROUND(D48/D40/12,2) ->  | E16: =C16+D16 ->  | F16: 650.7697533
B18: PART A ENROLLEES
A19: Year | B19: Aged AANUMYR | C19: Disabled DANUMYR | D19: Total ADNUMYRA | E19: PT_A_PCT | F19: CTYNUMYR
A20: 2002 | B20: =INDIRECT("ffs2009_data!C"&J4) ->  | C20: =INDIRECT("ffs2009_data!G"&J4) ->  | D20: =B20+C20 ->  | E20: =absplits!H12 -> 0.5439 | F20: =ROUND(E20*D20+E36*D36,0) -> 
A21: 2003 | B21: =INDIRECT("ffs2009_data!K"&J4) ->  | C21: =INDIRECT("ffs2009_data!O"&J4) ->  | D21: =B21+C21 ->  | E21: =absplits!H13 -> 0.5518 | F21: =ROUND(E21*D21+E37*D37,0) -> 
A22: 2004 | B22: =INDIRECT("ffs2009_data!S"&J4) ->  | C22: =INDIRECT("ffs2009_data!W"&J4) ->  | D22: =B22+C22 ->  | E22: =absplits!H15 -> 0.5487 | F22: =ROUND(E22*D22+E38*D38,0) -> 
A23: 2005 | B23: =INDIRECT("ffs2009_data!AA"&J4) ->  | C23: =INDIRECT("ffs2009_data!AE"&J4) ->  | D23: =B23+C23 ->  | E23: =absplits!H16 -> 0.5475 | F23: =ROUND(E23*D23+E39*D39,0) -> 
A24: 2006 | B24: =INDIRECT("ffs2009_data!AI"&J4) ->  | C24: =INDIRECT("ffs2009_data!AM"&J4) ->  | D24: =B24+C24 ->  | E24: =absplits!H17 -> 0.5234 | F24: =ROUND(E24*D24+E40*D40,0) -> 
B26: PART A PAYMENTS
A27: Year | B27: Aged AACOSTYR | C27: Disabled DACOSTYR | D27: Total ADCOSYRA
A28: 2002 | B28: =INDIRECT("ffs2009_data!D"&J4) ->  | C28: =INDIRECT("ffs2009_data!H"&J4) ->  | D28: =B28+C28 -> 
A29: 2003 | B29: =INDIRECT("ffs2009_data!L"&J4) ->  | C29: =INDIRECT("ffs2009_data!P"&J4) ->  | D29: =B29+C29 -> 
A30: 2004 | B30: =INDIRECT("ffs2009_data!T"&J4) ->  | C30: =INDIRECT("ffs2009_data!X"&J4) ->  | D30: =B30+C30 -> 
A31: 2005 | B31: =INDIRECT("ffs2009_data!AB"&J4) ->  | C31: =INDIRECT("ffs2009_data!AF"&J4) ->  | D31: =B31+C31 -> 
A32: 2006 | B32: =INDIRECT("ffs2009_data!AJ"&J4) ->  | C32: =INDIRECT("ffs2009_data!AN"&J4) ->  | D32: =B32+C32 -> 
B34: PART B ENROLLEES
A35: Year | B35: Aged ABNUMYR | C35: Disabled DBNUMYR | D35: Total ADNUMYRB | E35: PT_B_PCT
A36: 2002 | B36: =INDIRECT("ffs2009_data!E"&J4) ->  | C36: =INDIRECT("ffs2009_data!I"&J4) ->  | D36: =B36+C36 ->  | E36: =absplits!I12 -> 0.4561
A37: 2003 | B37: =INDIRECT("ffs2009_data!M"&J4) ->  | C37: =INDIRECT("ffs2009_data!Q"&J4) ->  | D37: =B37+C37 ->  | E37: =absplits!I13 -> 0.4482
A38: 2004 | B38: =INDIRECT("ffs2009_data!U"&J4) ->  | C38: =INDIRECT("ffs2009_data!Y"&J4) ->  | D38: =B38+C38 ->  | E38: =absplits!I15 -> 0.4513
A39: 2005 | B39: =INDIRECT("ffs2009_data!AC"&J4) ->  | C39: =INDIRECT("ffs2009_data!AG"&J4) ->  | D39: =B39+C39 ->  | E39: =absplits!I16 -> 0.4525
A40: 2006 | B40: =INDIRECT("ffs2009_data!Ak"&J4) ->  | C40: =INDIRECT("ffs2009_data!AO"&J4) ->  | D40: =B40+C40 ->  | E40: =absplits!I17 -> 0.4766
B42: PART B PAYMENTS
A43: Year | B43: Aged ABCOSTYR | C43: Disabled DBCOSTYR | D43: Total ADCOSYRB
A44: 2002 | B44: =INDIRECT("ffs2009_data!F"&J4) ->  | C44: =INDIRECT("ffs2009_data!J"&J4) ->  | D44: =B44+C44 -> 
A45: 2003 | B45: =INDIRECT("ffs2009_data!N"&J4) ->  | C45: =INDIRECT("ffs2009_data!R"&J4) ->  | D45: =B45+C45 -> 
A46: 2004 | B46: =INDIRECT("ffs2009_data!V"&J4) ->  | C46: =INDIRECT("ffs2009_data!Z"&J4) ->  | D46: =B46+C46 -> 
A47: 2005 | B47: =INDIRECT("ffs2009_data!AD"&J4) ->  | C47: =INDIRECT("ffs2009_data!AH"&J4) ->  | D47: =B47+C47 -> 
A48: 2006 | B48: =INDIRECT("ffs2009_data!AL"&J4) ->  | C48: =INDIRECT("ffs2009_data!AP"&J4) ->  | D48: =B48+C48 -> 
A50: Average Risk Score For Payment Year
A51: Year | B51: 2002 | C51: 2003 | D51: 2004 | E51: 2005 | F51: 2006 | G51: AVG5SCOR
A52: RISNUMYR | B52: =INDIRECT("ffs2009_data!CS"&J4) ->  | C52: =INDIRECT("ffs2009_data!CT"&J4) ->  | D52: =INDIRECT("ffs2009_data!CU"&J4) ->  | E52: =INDIRECT("ffs2009_data!CV"&J4) ->  | F52: =INDIRECT("ffs2009_data!CW"&J4) -> 
A53: RISCORYR | B53: =INDIRECT("ffs2009_data!CX"&J4) ->  | C53: =INDIRECT("ffs2009_data!CY"&J4) ->  | D53: =INDIRECT("ffs2009_data!CZ"&J4) ->  | E53: =INDIRECT("ffs2009_data!DA"&J4) ->  | F53: =INDIRECT("ffs2009_data!DB"&J4) ->  | G53: =((B52*B53)+(C52*C53)+(D52*D53)+(E52*E53)+(F52*F53))/SUM(B52:F52) -> 

Sheet ffs2009_data
A1: NAME | B1: Code | C1: AANUM02 | D1: AACOST02 | E1: ABNUM02 | F1: ABCOST02 | G1: DANUM02 | H1: DACOST02 | I1: DBNUM02 | J1: DBCOST02 | K1: AANUM03 | L1: AACOST03 | M1: ABNUM03 | N1: ABCOST03 | O1: DANUM03 | P1: DACOST03 | Q1: DBNUM03 | R1: DBCOST03 | S1: AANUM04 | T1: AACOST04 | U1: ABNUM04 | V1: ABCOST04 | W1: DANUM04 | X1: DACOST04 | Y1: DBNUM04 | Z1: DBCOST04 | AA1: AANUM05 | AB1: AACOST05 | AC1: ABNUM05 | AD1: ABCOST05 | AE1: DANUM05 | AF1: DACOST05 | AG1: DBNUM05 | AH1: DBCOST05 | AI1: AANUM06 | AJ1: AACOST06 | AK1: ABNUM06 | AL1: ABCOST06 | AM1: DANUM06 | AN1: DACOST06 | AO1: DBNUM06 | AP1: DBCOST06 | AQ1: CPCC02A | AR1: CPCC02B | AS1: CPCC02AB | AT1: ADCOS02A | AU1: ADCOS02B | AV1: ADNUM02A | AW1: ADNUM02B | AX1: CPCC03A | AY1: CPCC03B | AZ1: CPCC03AB | BA1: ADCOS03A | BB1: ADCOS03B | BC1: ADNUM03A | BD1: ADNUM03B | BE1: CPCC04A | BF1: CPCC04B | BG1: CPCC04AB | BH1: ADCOS04A | BI1: ADCOS04B | BJ1: ADNUM04A | BK1: ADNUM04B | BL1: CPCC05A | BM1: CPCC05B | BN1: CPCC05AB | BO1: ADCOS05A | BP1: ADCOS05B | BQ1: ADNUM05A | BR1: ADNUM05B | BS1: CPCC06A | BT1: CPCC06B | BU1: CPCC06AB | BV1: ADCOS06A | BW1: ADCOS06B | BX1: ADNUM06A | BY1: ADNUM06B | BZ1: CTYNUM02 | CA1: CTYNUM03 | CB1: CTYNUM04 | CC1: CTYNUM05 | CD1: CTYNUM06 | CE1: NPCC02AB | CF1: NPCC03AB | CG1: NPCC04AB | CH1: NPCC05AB | CI1: NPCC06AB | CJ1: GEOIN02 | CK1: GEOIN03 | CL1: GEOIN04 | CM1: GEOIN05 | CN1: GEOIN06 | CO1: AVG5SCOR | CP1: AGA | CQ1: NATAGA | CR1: CTYAGA | CS1: RISNUM02 | CT1: RISNUM03 | CU1: RISNUM04 | CV1: RISNUM05 | CW1: RISNUM06 | CX1: RISCOR02 | CY1: RISCOR03 | CZ1: RISCOR04 | DA1: RISCOR05 | DB1: RISCOR06 | DC1: NAME | DD1: AVGGME | DF1: State
C2: 1 | D2: 2 | E2: 3 | F2: 4 | G2: 5 | H2: 6 | I2: 7 | J2: 8 | K2: 9 | L2: 10 | M2: 11 | N2: 12 | O2: 13 | P2: 14 | Q2: 15 | R2: 16 | S2: 17 | T2: 18 | U2: 19 | V2: 20 | W2: 21 | X2: 22 | Y2: 23 | Z2: 24 | AA2: 25 | AB2: 26 | AC2: 27 | AD2: 28 | AE2: 29 | AF2: 30 | AG2: 31 | AH2: 32 | AI2: 33 | AJ2: 34 | AK2: 35 | AL2: 36 | AM2: 37 | AN2: 38 | AO2: 39 | AP2: 40 | AQ2: 41 | AR2: 42 | AS2: 43 | AT2: 44 | AU2: 45 | AV2: 46 | AW2: 47 | AX2: 48 | AY2: 49 | AZ2: 50 | BA2: 51 | BB2: 52 | BC2: 53 | BD2: 54 | BE2: 55 | BF2: 56 | BG2: 57 | BH2: 58 | BI2: 59 | BJ2: 60 | BK2: 61 | BL2: 62 | BM2: 63 | BN2: 64 | BO2: 65 | BP2: 66 | BQ2: 67 | BR2: 68 | BS2: 69 | BT2: 70 | BU2: 71 | BV2: 72 | BW2: 73 | BX2: 74 | BY2: 75 | BZ2: 76 | CA2: 77 | CB2: 78 | CC2: 79 | CD2: 80 | CE2: 81 | CF2: 82 | CG2: 83 | CH2: 84 | CI2: 85 | CJ2: 86 | CK2: 87 | CL2: 88 | CM2: 89 | CN2: 90 | CO2: 91 | CP2: 92 | CQ2: 93 | CR2: 94 | CS2: 95 | CT2: 96 | CU2: 97 | CV2: 98 | CW2: 99 | CX2: 100 | CY2: 101 | CZ2: 102 | DA2: 103 | DB2: 104 | DC2: 105 | DD2: 106 | DE2: 605.94
C3: 2002 | K3: 2003 | S3: 2004 | AA3: 2005 | AI3: 2006 | AQ3: Combined Aged and Disabled | AX3: Combined Aged and Disabled | BE3: Combined Aged and Disabled | BL3: Combined Aged and Disabled | BS3: Combined Aged and Disabled | CR3: Standardized
A4: County | B4: County | C4: aged parta | E4: aged partb | G4: disabled parta | I4: disabled partb | K4: aged parta | M4: aged partb | O4: disabled parta | Q4: disabled partb | S4: aged parta | U4: aged partb | W4: disabled parta | Y4: disabled partb | AA4: aged parta | AC4: aged partb | AE4: disabled parta | AG4: disabled partb | AI4: aged parta | AK4: aged partb | AM4: disabled parta | AO4: disabled partb | AQ4: 2002 Per Capita Costs | AT4: 2002 Payments and Enrollments | AX4: 2003 Per Capita Costs | BA4: 2003 Payments and Enrollments | BE4: 2004 Per Capita Costs | BH4: 2004 Payments and Enrollments | BL4: 2005 Per Capita Costs | BO4: 2005 Payments and Enrollments | BS4: 2006 Per Capita Costs | BV4: 2006 Payments and Enrollments | BZ4: Parts A&B Average Enrollment | CE4: Parts A&B National Per Capita Cost | CJ4: Standardized Geographic Index | CO4: 5 YR Avg | CP4: 5 YR Avg | CQ4: National | CR4: Geographic | CS4: Risk Score Enrollments | CX4: Average Risk Score
A5: Name | B5: Code | C5: enroll | D5: reimb | E5: enroll | F5: reimb | G5: enroll | H5: reimb | I5: enroll | J5: reimb | K5: enroll | L5: reimb | M5: enroll | N5: reimb | O5: enroll | P5: reimb | Q5: enroll | R5: reimb | S5: enroll | T5: reimb | U5: enroll | V5: reimb | W5: enroll | X5: reimb | Y5: enroll | Z5: reimb | AA5: enroll | AB5: reimb | AC5: enroll | AD5: reimb | AE5: enroll | AF5: reimb | AG5: enroll | AH5: reimb | AI5: enroll | AJ5: reimb | AK5: enroll | AL5: reimb | AM5: enroll | AN5: reimb | AO5: enroll | AP5: reimb | AQ5: Part A | AR5: Part B | AS5: Parts A&B | AT5: Part A | AU5: Part B | AV5: Part A | AW5: Part B | AX5: Part A | AY5: Part B | AZ5: Parts A&B | BA5: Part A | BB5: Part B | BC5: Part A | BD5: Part B | BE5: Part A | BF5: Part B | BG5: Parts A&B | BH5: Part A | BI5: Part B | BJ5: Part A | BK5: Part B | BL5: Part A | BM5: Part B | BN5: Parts A&B | BO5: Part A | BP5: Part B | BQ5: Part A | BR5: Part B | BS5: Part A | BT5: Part B | BU5: Parts A&B | BV5: Part A | BW5: Part B | BX5: Part A | BY5: Part B | BZ5: 2002 | CA5: 2003 | CB5: 2004 | CC5: 2005 | CD5: 2006 | CE5: 2002 | CF5: 2003 | CG5: 2004 | CH5: 2005 | CI5: 2006 | CJ5: 2002 | CK5: 2003 | CL5: 2004 | CM5: 2005 | CN5: 2006 | CO5: Risk Score | CP5: Index | CQ5: Index | CR5: Adjustment | CS5: 2002 | CT5: 2003 | CU5: 2004 | CV5: 2005 | CW5: 2006 | CX5: 2002 | CY5: 2003 | CZ5: 2004 | DA5: 2005 | DB5: 2006 | DE5: 734.77
A6: AUTAUGA | B6: 1000 | C6: 4591 | D6: 14859111 | E6: 4423 | F6: 11762358 | G6: 1084 | H6: 2372401 | I6: 975 | J6: 2110934 | K6: 4742 | L6: 15644275 | M6: 4557 | N6: 13405890 | O6: 1151 | P6: 3228295 | Q6: 1049 | R6: 2564100 | S6: 4862 | T6: 18397646 | U6: 4667 | V6: 15837500 | W6: 1267 | X6: 3518417 | Y6: 1142 | Z6: 3136930 | AA6: 4845 | AB6: 17219161 | AC6: 4630 | AD6: 16969054 | AE6: 1282 | AF6: 3283185 | AG6: 1144 | AH6: 3540847 | AI6: 4684 | AJ6: 18443591 | AK6: 4463 | AL6: 16784189 | AM6: 1208 | AN6: 3623644 | AO6: 1069 | AP6: 3597650 | AQ6: =ROUND((AT6/AV6)/12,2) -> 253.03 | AR6: =ROUND((AU6/AW6)/12,2) -> 214.17 | AS6: =(AQ6+AR6) -> 467.2 | AT6: =D6+H6 -> 17231512 | AU6: =F6+J6 -> 13873292 | AV6: =MAX((C6+G6),1) -> 5675 | AW6: =MAX((E6+I6),1) -> 5398 | AX6: =ROUND((BA6/BC6)/12,2) -> 266.88 | AY6: =ROUND((BB6/BD6)/12,2) -> 237.39 | AZ6: =(AX6+AY6) -> 504.27 | BA6: =L6+P6 -> 18872570 | BB6: =N6+R6 -> 15969990 | BC6: =MAX((K6+O6),1) -> 5893 | BD6: =MAX((M6+Q6),1) -> 5606 | BE6: =ROUND((BH6/BJ6)/12,2) -> 297.98 | BF6: =ROUND((BI6/BK6)/12,2) -> 272.2 | BG6: =(BE6+BF6) -> 570.18 | BH6: =T6+X6 -> 21916063 | BI6: =V6+Z6 -> 18974430 | BJ6: =MAX((S6+W6),1) -> 6129 | BK6: =MAX((U6+Y6),1) -> 5809 | BL6: =ROUND((BO6/BQ6)/12,2) -> 278.85 | BM6: =ROUND((BP6/BR6)/12,2) -> 296.01 | BN6: =(BL6+BM6) -> 574.86 | BO6: =AB6+AF6 -> 20502346 | BP6: =AD6+AH6 -> 20509901 | BQ6: =MAX((AA6+AE6),1) -> 6127 | BR6: =MAX((AC6+AG6),1) -> 5774 | BS6: =ROUND((BV6/BX6)/12,2) -> 312.11 | BT6: =ROUND((BW6/BY6)/12,2) -> 307.03 | BU6: =(BS6+BT6) -> 619.14 | BV6: =AJ6+AN6 -> 22067235 | BW6: =AL6+AP6 -> 20381839 | BX6: =MAX((AI6+AM6),1) -> 5892 | BY6: =MAX((AK6+AO6),1) -> 5532 | BZ6: 5549 | CA6: 5764 | CB6: 5985 | CC6: 5967 | CD6: 5720 | CE6: 519.0879228 | CF6: 545.9862289 | CG6: 583.9473617 | CH6: 621.8060329 | CI6: 650.7697533 | CJ6: =AS6/CE6 -> 0.9000402042 | CK6: =AZ6/CF6 -> 0.9235947233 | CL6: =BG6/CG6 -> 0.9764236254 | CM6: =BN6/CH6 -> 0.9245005188 | CN6: =BU6/CI6 -> 0.9513963993 | CO6: =(SUMPRODUCT(CS6,CX6)+SUMPRODUCT(CT6,CY6)+SUMPRODUCT(CU6,CZ6)+SUMPRODUCT(CV6,DA6)+SUMPRODUCT(CW6,DB6))/SUM(CS6:CW6) -> 0.9286477167 | CP6: =AVERAGE(CJ6,CK6,CL6,CM6,CN6)/CO6 -> 1.007046135 | CQ6: =SUMPRODUCT(CD6:CD3262, CP6:CP3262) / SUM(CD6:CD3262) -> 0.9989351774 | CR6: =CP6/CQ6 -> 1.008119604 | CS6: 5465 | CT6: 5636 | CU6: 5848 | CV6: 5632 | CW6: 5368 | CX6: 0.926909 | CY6: 0.928841 | CZ6: 0.932133 | DA6: 0.93708 | DB6: 0.917571 | DC6: AUTAUGA | DD6: 0.0086 | DE6: =ROUND(($DE$5*CR6*(1-0.35*DD6)),2) -> 738.51 | DF6: ALABAMA
A7: BALDWIN | B7: 1010 | C7: 21826 | D7: 65890421 | E7: 21279 | F7: 55431424 | G7: 3436 | H7: 7778171 | I7: 3150 | J7: 8311864 | K7: 22791 | L7: 73332573 | M7: 22208 | N7: 61448147 | O7: 3741 | P7: 9285351 | Q7: 3426 | R7: 9537665 | S7: 22980 | T7: 79969187 | U7: 22353 | V7: 68267718 | W7: 3950 | X7: 10573657 | Y7: 3593 | Z7: 11360751 | AA7: 22866 | AB7: 79620772 | AC7: 22173 | AD7: 71620928 | AE7: 3960 | AF7: 11498912 | AG7: 3580 | AH7: 11376770 | AI7: 22352 | AJ7: 81822003 | AK7: 21562 | AL7: 73289501 | AM7: 3877 | AN7: 11815435 | AO7: 3474 | AP7: 12216540 | AQ7: 243.02 | AR7: 217.44 | AS7: 460.46 | AT7: 73668592 | AU7: 63743288 | AV7: 25262 | AW7: 24429 | AX7: 259.49 | AY7: 230.77 | AZ7: 490.26 | BA7: 82617924 | BB7: 70985812 | BC7: 26532 | BD7: 25634 | BE7: 280.18 | BF7: 255.75 | BG7: 535.93 | BH7: 90542844 | BI7: 79628469 | BJ7: 26930 | BK7: 25946 | BL7: 283.06 | BM7: 268.57 | BN7: 551.63 | BO7: 91119684 | BP7: 82997698 | BQ7: 26826 | BR7: 25753 | BS7: 297.5 | BT7: 284.61 | BU7: 582.11 | BV7: 93637438 | BW7: 85506041 | BX7: 26229 | BY7: 25036 | BZ7: 24882 | CA7: 26130 | CB7: 26486 | CC7: 26340 | CD7: 25660 | CE7: 519.0879228 | CF7: 545.9862289 | CG7: 583.9473617 | CH7: 621.8060329 | CI7: 650.7697533 | CJ7: 0.8870558913 | CK7: 0.8979347354 | CL7: 0.9177710786 | CM7: 0.8871416018 | CN7: 0.8944945537 | CO7: 0.9460347898 | CP7: =AVERAGE(CJ7,CK7,CL7,CM7,CN7)/CO7 -> 0.9480407928 | CQ7: 0.9948367783 | CR7: 0.9529611424 | CS7: 25019 | CT7: 25890 | CU7: 25818 | CV7: 25216 | CW7: 24577 | CX7: 0.94329 | CY7: 0.955544 | CZ7: 0.94676 | DA7: 0.941753 | DB7: 0.942443 | DC7: BALDWIN | DD7: 0.0094 | DE7: 697.9 | DF7: ALABAMA
A8: BARBOUR | B8: 1020 | C8: 3253 | D8: 10796626 | E8: 3205 | F8: 7747846 | G8: 941 | H8: 2042196 | I8: 876 | J8: 1838905 | K8: 3238 | L8: 11476636 | M8: 3184 | N8: 7978465 | O8: 1027 | P8: 2373414 | Q8: 951 | R8: 1939829 | S8: 3216 | T8: 12075566 | U8: 3160 | V8: 8627245 | W8: 1095 | X8: 2819018 | Y8: 1022 | Z8: 2405323 | AA8: 3211 | AB8: 13257781 | AC8: 3171 | AD8: 8950559 | AE8: 1177 | AF8: 2938955 | AG8: 1093 | AH8: 2991471 | AI8: 2953 | AJ8: 12979435 | AK8: 2907 | AL8: 9086320 | AM8: 1086 | AN8: 3054118 | AO8: 1004 | AP8: 2888142 | AQ8: 255.1 | AR8: 195.76 | AS8: 450.86 | AT8: 12838822 | AU8: 9586751 | AV8: 4194 | AW8: 4081 | AX8: 270.61 | AY8: 199.89 | AZ8: 470.5 | BA8: 13850050 | BB8: 9918294 | BC8: 4265 | BD8: 4135 | BE8: 287.92 | BF8: 219.84 | BG8: 507.76 | BH8: 14894584 | BI8: 11032568 | BJ8: 4311 | BK8: 4182 | BL8: 307.6 | BM8: 233.39 | BN8: 540.99 | BO8: 16196736 | BP8: 11942030 | BQ8: 4388 | BR8: 4264 | BS8: 330.81 | BT8: 255.14 | BU8: 585.95 | BV8: 16033553 | BW8: 11974462 | BX8: 4039 | BY8: 3911 | BZ8: 4142 | CA8: 4207 | CB8: 4253 | CC8: 4332 | CD8: 3978 | CE8: 519.0879228 | CF8: 545.9862289 | CG8: 583.9473617 | CH8: 621.8060329 | CI8: 650.7697533 | CJ8: 0.8685619145 | CK8: 0.8617433464 | CL8: 0.8695304291 | CM8: 0.8700301563 | CN8: 0.9003952582 | CO8: 1.006941784 | CP8: =AVERAGE(CJ8,CK8,CL8,CM8,CN8)/CO8 -> 0.8680265681 | CQ8: 0.9948367783 | CR8: 0.8725316424 | CS8: 3987 | CT8: 4019 | CU8: 4119 | CV8: 4161 | CW8: 3827 | CX8: 1.014823 | CY8: 1.013995 | CZ8: 1.013031 | DA8: 0.984323 | DB8: 1.009363 | DC8: BARBOUR | DD8: 0.0056 | DE8: 639.85 | DF8: ALABAMA
A9: BIBB | B9: 1030 | C9: 2298 | D9: 7818403 | E9: 2245 | F9: 5491850 | G9: 875 | H9: 1828734 | I9: 792 | J9: 1702743 | K9: 2292 | L9: 8575080 | M9: 2238 | N9: 5791222 | O9: 917 | P9: 2239600 | Q9: 833 | R9: 2013887 | S9: 2228 | T9: 9484411 | U9: 2169 | V9: 6682243 | W9: 923 | X9: 2788796 | Y9: 835 | Z9: 2143117 | AA9: 2137 | AB9: 8957922 | AC9: 2076 | AD9: 6863765 | AE9: 936 | AF9: 3198571 | AG9: 840 | AH9: 2453946 | AI9: 2016 | AJ9: 9689248 | AK9: 1941 | AL9: 6745744 | AM9: 891 | AN9: 2555994 | AO9: 786 | AP9: 2306756 | AQ9: 253.37 | AR9: 197.42 | AS9: 450.79 | AT9: 9647137 | AU9: 7194593 | AV9: 3173 | AW9: 3037 | AX9: 280.84 | AY9: 211.8 | AZ9: 492.64 | BA9: 10814680 | BB9: 7805109 | BC9: 3209 | BD9: 3071 | BE9: 324.58 | BF9: 244.82 | BG9: 569.4 | BH9: 12273207 | BI9: 8825360 | BJ9: 3151 | BK9: 3004 | BL9: 329.66 | BM9: 266.28 | BN9: 595.94 | BO9: 12156493 | BP9: 9317711 | BQ9: 3073 | BR9: 2916 | BS9: 351.03 | BT9: 276.63 | BU9: 627.66 | BV9: 12245242 | BW9: 9052500 | BX9: 2907 | BY9: 2727 | BZ9: 3111 | CA9: 3147 | CB9: 3085 | CC9: 3002 | CD9: 2821 | CE9: 519.0879228 | CF9: 545.9862289 | CG9: 583.9473617 | CH9: 621.8060329 | CI9: 650.7697533 | CJ9: 0.8684270626 | CK9: 0.9022938197 | CL9: 0.9750878886 | CM9: 0.9584017659 | CN9: 0.9644885873 | CO9: 0.9661302575 | CP9: =AVERAGE(CJ9,CK9,CL9,CM9,CN9)/CO9 -> 0.9664740521 | CQ9: 0.9948367783 | CR9: 0.9714900707 | CS9: 3012 | CT9: 3039 | CU9: 2964 | CV9: 2838 | CW9: 2733 | CX9: 0.993758 | CY9: 0.962341 | CZ9: 0.971535 | DA9: 0.957081 | DB9: 0.943431 | DC9: BIBB | DD9: 0.0199 | DE9: 708.85 | DF9: ALABAMA
A10: BLOUNT | B10: 1040 | C10: 4280 | D10: 15517945 | E10: 4157 | F10: 10834399 | G10: 980 | H10: 2095163 | I10: 874 | J10: 2163443 | K10: 4341 | L10: 16946231 | M10: 4201 | N10: 11812109 | O10: 1047 | P10: 2538475 | Q10: 925 | R10: 2283951 | S10: 4280 | T10: 19335204 | U10: 4117 | V10: 12567315 | W10: 1107 | X10: 2788782 | Y10: 963 | Z10: 2537180 | AA10: 4253 | AB10: 20343147 | AC10: 4089 | AD10: 12620564 | AE10: 1145 | AF10: 3694908 | AG10: 981 | AH10: 2700445 | AI10: 4053 | AJ10: 19226824 | AK10: 3876 | AL10: 12948188 | AM10: 1120 | AN10: 2943258 | AO10: 950 | AP10: 2720606 | AQ10: 279.04 | AR10: 215.3 | AS10: 494.34 | AT10: 17613108 | AU10: 12997842 | AV10: 5260 | AW10: 5031 | AX10: 301.36 | AY10: 229.16 | AZ10: 530.52 | BA10: 19484706 | BB10: 14096060 | BC10: 5388 | BD10: 5126 | BE10: 342.24 | BF10: 247.78 | BG10: 590.02 | BH10: 22123986 | BI10: 15104495 | BJ10: 5387 | BK10: 5080 | BL10: 371.1 | BM10: 251.82 | BN10: 622.92 | BO10: 24038055 | BP10: 15321009 | BQ10: 5398 | BR10: 5070 | BS10: 357.14 | BT10: 270.56 | BU10: 627.7 | BV10: 22170082 | BW10: 15668794 | BX10: 5173 | BY10: 4826 | BZ10: 5156 | CA10: 5271 | CB10: 5248 | CC10: 5250 | CD10: 5008 | CE10: 519.0879228 | CF10: 545.9862289 | CG10: 583.9473617 | CH10: 621.8060329 | CI10: 650.7697533 | CJ10: 0.9523242177 | CK10: 0.9716728589 | CL10: 1.010399291 | CM10: 1.001791503 | CN10: 0.964550053 | CO10: 0.9770073614 | CP10: =AVERAGE(CJ10,CK10,CL10,CM10,CN10)/CO10 -> 1.003214124 | CQ10: 0.9948367783 | CR10: 1.008420825 | CS10: 5097 | CT10: 5133 | CU10: 5024 | CV10: 4952 | CW10: 4663 | CX10: 0.985522 | CY10: 0.984197 | CZ10: 0.979049 | DA10: 0.970805 | DB10: 0.964173 | DC10: BLOUNT | DD10: 0.0278 | DE10: 733.75 | DF10: ALABAMA
A11: BULLOCK | B11: 1050 | C11: 1413 | D11: 4523180 | E11: 1368 | F11: 3248106 | G11: 451 | H11: 1025522 | I11: 412 | J11: 632364 | K11: 1374 | L11: 4506084 | M11: 1332 | N11: 3455912 | O11: 473 | P11: 868864 | Q11: 431 | R11: 791454 | S11: 1307 | T11: 5460907 | U11: 1270 | V11: 3523083 | W11: 488 | X11: 1152564 | Y11: 443 | Z11: 950399 | AA11: 1234 | AB11: 5735642 | AC11: 1200 | AD11: 3495426 | AE11: 478 | AF11: 1541129 | AG11: 443 | AH11: 1171053 | AI11: 1065 | AJ11: 5285849 | AK11: 1023 | AL11: 3206246 | AM11: 408 | AN11: 743465 | AO11: 368 | AP11: 1156246 | AQ11: 248.06 | AR11: 181.67 | AS11: 429.73 | AT11: 5548702 | AU11: 3880470 | AV11: 1864 | AW11: 1780 | AX11: 242.51 | AY11: 200.76 | AZ11: 443.27 | BA11: 5374948 | BB11: 4247366 | BC11: 1847 | BD11: 1763 | BE11: 307.03 | BF11: 217.62 | BG11: 524.65 | BH11: 6613471 | BI11: 4473482 | BJ11: 1795 | BK11: 1713 | BL11: 354.2 | BM11: 236.68 | BN11: 590.88 | BO11: 7276771 | BP11: 4666479 | BQ11: 1712 | BR11: 1643 | BS11: 341.1 | BT11: 261.35 | BU11: 602.45 | BV11: 6029314 | BW11: 4362492 | BX11: 1473 | BY11: 1391 | BZ11: 1826 | CA11: 1809 | CB11: 1758 | CC11: 1681 | CD11: 1434 | CE11: 519.0879228 | CF11: 545.9862289 | CG11: 583.9473617 | CH11: 621.8060329 | CI11: 650.7697533 | CJ11: 0.827855901 | CK11: 0.8118702936 | CL11: 0.898454269 | CM11: 0.9502641801 | CN11: 0.9257498477 | CO11: 0.9644720326 | CP11: 0.9153597703 | CQ11: 0.9948367783 | CR11: 0.9201105048 | CS11: 1645 | CT11: 1652 | CU11: 1657 | CV11: 1661 | CW11: 1416 | CX11: 1.006938 | CY11: 0.965696 | CZ11: 0.940311 | DA11: 0.948177 | DB11: 0.961098 | DC11: BULLOCK | DD11: 0.0048 | DE11: 674.93 | DF11: ALABAMA
A12: BUTLER | B12: 1060 | C12: 3109 | D12: 13328850 | E12: 3051 | F12: 8812817 | G12: 864 | H12: 2663789 | I12: 812 | J12: 1727921 | K12: 3123 | L12: 14437792 | M12: 3057 | N12: 9250147 | O12: 910 | P12: 3404104 | Q12: 861 | R12: 2087652 | S12: 3080 | T12: 15756866 | U12: 3016 | V12: 9535131 | W12: 954 | X12: 3549331 | Y12: 896 | Z12: 2621472 | AA12: 3024 | AB12: 16757611 | AC12: 2965 | AD12: 9974208 | AE12: 987 | AF12: 4170549 | AG12: 925 | AH12: 2929084 | AI12: 3006 | AJ12: 16833201 | AK12: 2943 | AL12: 10275636 | AM12: 993 | AN12: 4362993 | AO12: 928 | AP12: 2806033 | AQ12: 335.44 | AR12: 227.39 | AS12: 562.83 | AT12: 15992639 | AU12: 10540738 | AV12: 3973 | AW12: 3863 | AX12: 368.66 | AY12: 241.15 | AZ12: 609.81 | BA12: 17841896 | BB12: 11337799 | BC12: 4033 | BD12: 3918 | BE12: 398.82 | BF12: 258.96 | BG12: 657.78 | BH12: 19306197 | BI12: 12156603 | BJ12: 4034 | BK12: 3912 | BL12: 434.81 | BM12: 276.42 | BN12: 711.23 | BO12: 20928160 | BP12: 12903292 | BQ12: 4011 | BR12: 3890 | BS12: 441.7 | BT12: 281.62 | BU12: 723.32 | BV12: 21196194 | BW12: 13081669 | BX12: 3999 | BY12: 3871 | BZ12: 3923 | CA12: 3981 | CB12: 3979 | CC12: 3956 | CD12: 3938 | CE12: 519.0879228 | CF12: 545.9862289 | CG12: 583.9473617 | CH12: 621.8060329 | CI12: 650.7697533 | CJ12: 1.084267183 | CK12: 1.116896302 | CL12: 1.126437147 | CM12: 1.143813283 | CN12: 1.111483741 | CO12: 1.056608129 | CP12: 1.056758414 | CQ12: 0.9948367783 | CR12: 1.062243011 | CS12: 3813 | CT12: 3866 | CU12: 3884 | CV12: 3861 | CW12: 3811 | CX12: 1.065382 | CY12: 1.054348 | CZ12: 1.06917 | DA12: 1.063242 | DB12: 1.030599 | DC12: BUTLER | DD12: 0.0078 | DE12: 778.37 | DF12: ALABAMA
A13: CALHOUN | B13: 1070 | C13: 16101 | D13: 62109225 | E13: 15537 | F13: 42152500 | G13: 4745 | H13: 12799203 | I13: 4271 | J13: 10258832 | K13: 16156 | L13: 64811572 | M13: 15619 | N13: 45183395 | O13: 5070 | P13: 14230938 | Q13: 4538 | R13: 11303669 | S13: 16226 | T13: 68027252 | U13: 15665 | V13: 48799397 | W13: 5390 | X13: 16477157 | Y13: 4828 | Z13: 13452983 | AA13: 16164 | AB13: 76583059 | AC13: 15588 | AD13: 52291832 | AE13: 5527 | AF13: 18182754 | AG13: 4940 | AH13: 14636575 | AI13: 15915 | AJ13: 78536713 | AK13: 15288 | AL13: 53366702 | AM13: 5588 | AN13: 18078343 | AO13: 4971 | AP13: 15444969 | AQ13: 299.45 | AR13: 220.5 | AS13: 519.95 | AT13: 74908428 | AU13: 52411332 | AV13: 20846 | AW13: 19808 | AX13: 310.32 | AY13: 233.53 | AZ13: 543.85 | BA13: 79042510 | BB13: 56487064 | BC13: 21226 | BD13: 20157 | BE13: 325.78 | BF13: 253.14 | BG13: 578.92 | BH13: 84504409 | BI13: 62252380 | BJ13: 21616 | BK13: 20493 | BL13: 364.08 | BM13: 271.7 | BN13: 635.78 | BO13: 94765813 | BP13: 66928407 | BQ13: 21691 | BR13: 20528 | BS13: 374.42 | BT13: 283.05 | BU13: 657.47 | BV13: 96615056 | BW13: 68811671 | BX13: 21503 | BY13: 20259 | BZ13: 20373 | CA13: 20747 | CB13: 21109 | CC13: 21165 | CD13: 20910 | CE13: 519.0879228 | CF13: 545.9862289 | CG13: 583.9473617 | CH13: 621.8060329 | CI13: 650.7697533 | CJ13: 1.001660754 | CK13: 0.9960873941 | CL13: 0.9913907279 | CM13: 1.022473193 | CN13: 1.010295879 | CO13: 1.017219803 | CP13: 0.987379116 | CQ13: 0.9948367783 | CR13: 0.9925036323 | CS13: 19519 | CT13: 20071 | CU13: 20400 | CV13: 20326 | CW13: 20050 | CX13: 1.01456 | CY13: 1.028641 | CZ13: 1.019953 | DA13: 1.012999 | DB13: 1.009874 | DC13: CALHOUN | DD13: 0.0163 | DE13: 725.1 | DF13: ALABAMA
A14: CHAMBERS | B14: 1080 | C14: 5492 | D14: 18553630 | E14: 5365 | F14: 12255042 | G14: 1304 | H14: 3085819 | I14: 1197 | J14: 2295070 | K14: 5394 | L14: 17981016 | M14: 5263 | N14: 12805040 | O14: 1424 | P14: 3566852 | Q14: 1305 | R14: 2898649 | S14: 5351 | T14: 21078925 | U14: 5222 | V14: 14002686 | W14: 1534 | X14: 3836566 | Y14: 1414 | Z14: 3624687 | AA14: 5349 | AB14: 21879490 | AC14: 5240 | AD14: 14365085 | AE14: 1638 | AF14: 4883523 | AG14: 1507 | AH14: 3890702 | AI14: 5270 | AJ14: 22542579 | AK14: 5157 | AL14: 15386614 | AM14: 1660 | AN14: 4515517 | AO14: 1529 | AP14: 4299251 | AQ14: 265.35 | AR14: 184.78 | AS14: 450.13 | AT14: 21639449 | AU14: 14550112 | AV14: 6796 | AW14: 6562 | AX14: 263.37 | AY14: 199.24 | AZ14: 462.61 | BA14: 21547868 | BB14: 15703689 | BC14: 6818 | BD14: 6568 | BE14: 301.57 | BF14: 221.36 | BG14: 522.93 | BH14: 24915491 | BI14: 17627373 | BJ14: 6885 | BK14: 6636 | BL14: 319.2 | BM14: 225.48 | BN14: 544.68 | BO14: 26763013 | BP14: 18255787 | BQ14: 6987 | BR14: 6747 | BS14: 325.37 | BT14: 245.36 | BU14: 570.73 | BV14: 27058096 | BW14: 19685865 | BX14: 6930 | BY14: 6686 | BZ14: 6689 | CA14: 6706 | CB14: 6773 | CC14: 6878 | CD14: 6814 | CE14: 519.0879228 | CF14: 545.9862289 | CG14: 583.9473617 | CH14: 621.8060329 | CI14: 650.7697533 | CJ14: 0.8671556017 | CK14: 0.8472924325 | CL14: 0.895508798 | CM14: 0.8759644828 | CN14: 0.8770075701 | CO14: 1.066920231 | CP14: 0.8178547484 | CQ14: 0.9948367783 | CR14: 0.82209943 | CS14: 6385 | CT14: 6471 | CU14: 6567 | CV14: 6649 | CW14: 6638 | CX14: 1.074588 | CY14: 1.064891 | CZ14: 1.060049 | DA14: 1.067437 | DB14: 1.067803 | DC14: CHAMBERS | DD14: 0.0058 | DE14: 602.83 | DF14: ALABAMA
A15: CHEROKEE | B15: 1090 | C15: 3011 | D15: 10691106 | E15: 2965 | F15: 7458019 | G15: 783 | H15: 2093356 | I15: 716 | J15: 1680489 | K15: 3088 | L15: 9478707 | M15: 3041 | N15: 7926134 | O15: 828 | P15: 2261295 | Q15: 767 | R15: 1882880 | S15: 3131 | T15: 11264443 | U15: 3080 | V15: 8572531 | W15: 898 | X15: 2310603 | Y15: 829 | Z15: 2006862 | AA15: 3261 | AB15: 11523953 | AC15: 3206 | AD15: 8959779 | AE15: 985 | AF15: 3106664 | AG15: 903 | AH15: 2476071 | AI15: 3277 | AJ15: 13525900 | AK15: 3213 | AL15: 9775806 | AM15: 1002 | AN15: 2630946 | AO15: 916 | AP15: 2557805 | AQ15: 280.8 | AR15: 206.88 | AS15: 487.68 | AT15: 12784462 | AU15: 9138508 | AV15: 3794 | AW15: 3681 | AX15: 249.83 | AY15: 214.66 | AZ15: 464.49 | BA15: 11740002 | BB15: 9809014 | BC15: 3916 | BD15: 3808 | BE15: 280.78 | BF15: 225.53 | BG15: 506.31 | BH15: 13575046 | BI15: 10579393 | BJ15: 4029 | BK15: 3909 | BL15: 287.15 | BM15: 231.93 | BN15: 519.08 | BO15: 14630617 | BP15: 11435850 | BQ15: 4246 | BR15: 4109 | BS15: 314.65 | BT15: 248.92 | BU15: 563.57 | BV15: 16156846 | BW15: 12333611 | BX15: 4279 | BY15: 4129 | BZ15: 3742 | CA15: 3868 | CB15: 3975 | CC15: 4184 | CD15: 4208 | CE15: 519.0879228 | CF15: 545.9862289 | CG15: 583.9473617 | CH15: 621.8060329 | CI15: 650.7697533 | CJ15: 0.9394940213 | CK15: 0.8507357428 | CL15: 0.8670473286 | CM15: 0.8347940878 | CN15: 0.8660052149 | CO15: 0.9374136789 | CP15: 0.9298085772 | CQ15: 0.9948367783 | CR15: 0.9346343013 | CS15: 3695 | CT15: 3811 | CU15: 3880 | CV15: 4016 | CW15: 4100 | CX15: 0.922753 | CY15: 0.911673 | CZ15: 0.936677 | DA15: 0.948773 | DB15: 0.964123 | DC15: CHEROKEE | DD15: 0.012 | DE15: 683.86 | DF15: ALABAMA
A16: CHILTON | B16: 1100 | C16: 4035 | D16: 17001154 | E16: 3926 | F16: 12521444 | G16: 1042 | H16: 3338287 | I16: 939 | J16: 2642747 | K16: 4030 | L16: 17189006 | M16: 3921 | N16: 13148825 | O16: 1120 | P16: 4038399 | Q16: 997 | R16: 3048742 | S16: 3801 | T16: 17402208 | U16: 3676 | V16: 12846351 | W16: 1109 | X16: 3273519 | Y16: 988 | Z16: 2836614 | AA16: 3643 | AB16: 18243545 | AC16: 3530 | AD16: 13082189 | AE16: 1082 | AF16: 3202307 | AG16: 956 | AH16: 3066551 | AI16: 3530 | AJ16: 18597336 | AK16: 3419 | AL16: 13112521 | AM16: 1045 | AN16: 4647538 | AO16: 913 | AP16: 3412500 | AQ16: 333.85 | AR16: 259.75 | AS16: 593.6 | AT16: 20339441 | AU16: 15164191 | AV16: 5077 | AW16: 4865 | AX16: 343.49 | AY16: 274.46 | AZ16: 617.95 | BA16: 21227405 | BB16: 16197567 | BC16: 5150 | BD16: 4918 | BE16: 350.91 | BF16: 280.21 | BG16: 631.12 | BH16: 20675727 | BI16: 15682965 | BJ16: 4910 | BK16: 4664 | BL16: 378.23 | BM16: 299.98 | BN16: 678.21 | BO16: 21445852 | BP16: 16148740 | BQ16: 4725 | BR16: 4486 | BS16: 423.4 | BT16: 317.89 | BU16: 741.29 | BV16: 23244874 | BW16: 16525021 | BX16: 4575 | BY16: 4332 | BZ16: 4980 | CA16: 5046 | CB16: 4799 | CC16: 4617 | CD16: 4459 | CE16: 519.0879228 | CF16: 545.9862289 | CG16: 583.9473617 | CH16: 621.8060329 | CI16: 650.7697533 | CJ16: 1.143544232 | CK16: 1.131805103 | CL16: 1.080782347 | CM16: 1.090709907 | CN16: 1.139097194 | CO16: 1.0180928 | CP16: 1.097333913 | CQ16: 0.9948367783 | CR16: 1.103029097 | CS16: 4879 | CT16: 4919 | CU16: 4591 | CV16: 4411 | CW16: 4206 | CX16: 1.026669 | CY16: 1.016918 | CZ16: 1.022534 | DA16: 1.012109 | DB16: 1.010946 | DC16: CHILTON | DD16: 0.0098 | DE16: 807.69 | DF16: ALABAMA
A17: CHOCTAW | B17: 1110 | C17: 2086 | D17: 7387358 | E17: 2079 | F17: 5560820 | G17: 687 | H17: 1177400 | I17: 655 | J17: 1284074 | K17: 2113 | L17: 9085264 | M17: 2100 | N17: 5836293 | O17: 756 | P17: 1755825 | Q17: 718 | R17: 1574586 | S17: 2108 | T17: 9393595 | U17: 2086 | V17: 5761786 | W17: 810 | X17: 2008696 | Y17: 772 | Z17: 1942369 | AA17: 2126 | AB17: 9823755 | AC17: 2113 | AD17: 5765098 | AE17: 864 | AF17: 2295048 | AG17: 825 | AH17: 2173293 | AI17: 2145 | AJ17: 10647411 | AK17: 2123 | AL17: 6525877 | AM17: 892 | AN17: 3241190 | AO17: 850 | AP17: 2311397 | AQ17: 257.39 | AR17: 208.63 | AS17: 466.02 | AT17: 8564758 | AU17: 6844894 | AV17: 2773 | AW17: 2734 | AX17: 314.89 | AY17: 219.15 | AZ17: 534.04 | BA17: 10841089 | BB17: 7410879 | BC17: 2869 | BD17: 2818 | BE17: 325.63 | BF17: 224.64 | BG17: 550.27 | BH17: 11402291 | BI17: 7704155 | BJ17: 2918 | BK17: 2858 | BL17: 337.76 | BM17: 225.16 | BN17: 562.92 | BO17: 12118803 | BP17: 7938391 | BQ17: 2990 | BR17: 2938 | BS17: 381.09 | BT17: 247.71 | BU17: 628.8 | BV17: 13888601 | BW17: 8837274 | BX17: 3037 | BY17: 2973 | BZ17: 2755 | CA17: 2846 | CB17: 2891 | CC17: 2966 | CD17: 3006 | CE17: 519.0879228 | CF17: 545.9862289 | CG17: 583.9473617 | CH17: 621.8060329 | CI17: 650.7697533 | CJ17: 0.8977669862 | CK17: 0.978119908 | CL17: 0.9423280865 | CM17: 0.9052983892 | CN17: 0.966240359 | CO17: 0.9700433951 | CP17: 0.9669162746 | CQ17: 0.9948367783 | CR17: 0.9719345884 | CS17: 2665 | CT17: 2776 | CU17: 2827 | CV17: 2889 | CW17: 2936 | CX17: 1.016444 | CY17: 1.007523 | CZ17: 0.955829 | DA17: 0.93802 | DB17: 0.937686 | DC17: CHOCTAW | DD17: 0.009 | DE17: 711.9 | DF17: ALABAMA
A18: CLARKE | B18: 1120 | C18: 3727 | D18: 13199878 | E18: 3672 | F18: 8322975 | G18: 1040 | H18: 2383712 | I18: 968 | J18: 1860113 | K18: 3775 | L18: 14117433 | M18: 3711 | N18: 8986334 | O18: 1064 | P18: 2250898 | Q18: 994 | R18: 1942851 | S18: 3801 | T18: 17398366 | U18: 3729 | V18: 9888099 | W18: 1152 | X18: 2718925 | Y18: 1073 | Z18: 2186644 | AA18: 3869 | AB18: 18141947 | AC18: 3795 | AD18: 10814027 | AE18: 1235 | AF18: 3310760 | AG18: 1149 | AH18: 2607610 | AI18: 3916 | AJ18: 18199990 | AK18: 3817 | AL18: 11311601 | AM18: 1278 | AN18: 4111170 | AO18: 1190 | AP18: 2732191 | AQ18: 272.42 | AR18: 182.89 | AS18: 455.31 | AT18: 15583590 | AU18: 10183088 | AV18: 4767 | AW18: 4640 | AX18: 281.88 | AY18: 193.57 | AZ18: 475.45 | BA18: 16368331 | BB18: 10929185 | BC18: 4839 | BD18: 4705 | BE18: 338.47 | BF18: 209.54 | BG18: 548.01 | BH18: 20117291 | BI18: 12074743 | BJ18: 4953 | BK18: 4802 | BL18: 350.26 | BM18: 226.23 | BN18: 576.49 | BO18: 21452707 | BP18: 13421637 | BQ18: 5104 | BR18: 4944 | BS18: 357.96 | BT18: 233.74 | BU18: 591.7 | BV18: 22311160 | BW18: 14043792 | BX18: 5194 | BY18: 5007 | BZ18: 4709 | CA18: 4779 | CB18: 4885 | CC18: 5032 | CD18: 5105 | CE18: 519.0879228 | CF18: 545.9862289 | CG18: 583.9473617 | CH18: 621.8060329 | CI18: 650.7697533 | CJ18: 0.8771346433 | CK18: 0.8708095091 | CL18: 0.9384578747 | CM18: 0.927121915 | CN18: 0.9092309485 | CO18: 0.957881331 | CP18: 0.9443246766 | CQ18: 0.9948367783 | CR18: 0.9492257395 | CS18: 4512 | CT18: 4640 | CU18: 4755 | CV18: 4852 | CW18: 4924 | CX18: 0.974541 | CY18: 0.997349 | CZ18: 0.962517 | DA18: 0.939822 | DB18: 0.918743 | DC18: CLARKE | DD18: 0.013 | DE18: 694.29 | DF18: ALABAMA
A19: CLAY | B19: 1130 | C19: 2155 | D19: 7567013 | E19: 2113 | F19: 4822752 | G19: 568 | H19: 1692575 | I19: 533 | J19: 1257027 | K19: 2181 | L19: 7787821 | M19: 2134 | N19: 5187558 | O19: 591 | P19: 1592429 | Q19: 551 | R19: 1228496 | S19: 2200 | T19: 9206764 | U19: 2146 | V19: 5854435 | W19: 618 | X19: 1541266 | Y19: 569 | Z19: 1401882 | AA19: 2181 | AB19: 9974319 | AC19: 2130 | AD19: 6451894 | AE19: 651 | AF19: 2119404 | AG19: 597 | AH19: 1601174 | AI19: 2175 | AJ19: 9921686 | AK19: 2124 | AL19: 6550325 | AM19: 675 | AN19: 2031619 | AO19: 613 | AP19: 1687939 | AQ19: 283.38 | AR19: 191.48 | AS19: 474.86 | AT19: 9259588 | AU19: 6079779 | AV19: 2723 | AW19: 2646 | AX19: 281.99 | AY19: 199.13 | AZ19: 481.12 | BA19: 9380250 | BB19: 6416054 | BC19: 2772 | BD19: 2685 | BE19: 317.84 | BF19: 222.72 | BG19: 540.56 | BH19: 10748030 | BI19: 7256317 | BJ19: 2818 | BK19: 2715 | BL19: 355.87 | BM19: 246.09 | BN19: 601.96 | BO19: 12093723 | BP19: 8053068 | BQ19: 2832 | BR19: 2727 | BS19: 349.51 | BT19: 250.83 | BU19: 600.34 | BV19: 11953305 | BW19: 8238264 | BX19: 2850 | BY19: 2737 | BZ19: 2688 | CA19: 2733 | CB19: 2772 | CC19: 2784 | CD19: 2796 | CE19: 519.0879228 | CF19: 545.9862289 | CG19: 583.9473617 | CH19: 621.8060329 | CI19: 650.7697533 | CJ19: 0.9147968565 | CK19: 0.8811943864 | CL19: 0.9256998754 | CM19: 0.9680832417 | CN19: 0.9225075336 | CO19: 0.9931536842 | CP19: 0.9288153419 | CQ19: 0.9948367783 | CR19: 0.9336359111 | CS19: 2627 | CT19: 2659 | CU19: 2683 | CV19: 2689 | CW19: 2703 | CX19: 0.996972 | CY19: 1.010234 | CZ19: 0.988258 | DA19: 0.987054 | DB19: 0.983568 | DC19: CLAY | DD19: 0.0164 | DE19: 682.07 | DF19: ALABAMA
A20: CLEBURNE | B20: 1140 | C20: 1842 | D20: 6113596 | E20: 1809 | F20: 4612581 | G20: 586 | H20: 1655109 | I20: 554 | J20: 1238240 | K20: 1849 | L20: 6776534 | M20: 1818 | N20: 4657653 | O20: 617 | P20: 1593740 | Q20: 581 | R20: 1439863 | S20: 1881 | T20: 7710352 | U20: 1846 | V20: 5212897 | W20: 641 | X20: 2307445 | Y20: 606 | Z20: 1589547 | AA20: 1892 | AB20: 8368416 | AC20: 1861 | AD20: 5850626 | AE20: 652 | AF20: 2102605 | AG20: 615 | AH20: 1689658 | AI20: 1921 | AJ20: 8270974 | AK20: 1888 | AL20: 6164508 | AM20: 662 | AN20: 2119542 | AO20: 619 | AP20: 1724445 | AQ20: 266.64 | AR20: 206.33 | AS20: 472.97 | AT20: 7768705 | AU20: 5850821 | AV20: 2428 | AW20: 2363 | AX20: 282.86 | AY20: 211.81 | AZ20: 494.67 | BA20: 8370274 | BB20: 6097516 | BC20: 2466 | BD20: 2399 | BE20: 331.01 | BF20: 231.19 | BG20: 562.2 | BH20: 10017797 | BI20: 6802444 | BJ20: 2522 | BK20: 2452 | BL20: 343 | BM20: 253.78 | BN20: 596.78 | BO20: 10471021 | BP20: 7540284 | BQ20: 2544 | BR20: 2476 | BS20: 335.22 | BT20: 262.23 | BU20: 597.45 | BV20: 10390516 | BW20: 7888953 | BX20: 2583 | BY20: 2507 | BZ20: 2398 | CA20: 2436 | CB20: 2490 | CC20: 2513 | CD20: 2547 | CE20: 519.0879228 | CF20: 545.9862289 | CG20: 583.9473617 | CH20: 621.8060329 | CI20: 650.7697533 | CJ20: 0.9111558548 | CK20: 0.9060118622 | CL20: 0.9627580101 | CM20: 0.9597526695 | CN20: 0.9180666388 | CO20: 0.98331439 | CP20: 0.9473562236 | CQ20: 0.9948367783 | CR20: 0.9522730203 | CS20: 2344 | CT20: 2376 | CU20: 2437 | CV20: 2469 | CW20: 2464 | CX20: 1.000528 | CY20: 0.993534 | CZ20: 0.980978 | DA20: 0.969841 | DB20: 0.972896 | DC20: CLEBURNE | DD20: 0.0117 | DE20: 696.84 | DF20: ALABAMA
A21: COFFEE | B21: 1150 | C21: 6006 | D21: 20862072 | E21: 5872 | F21: 13560344 | G21: 1168 | H21: 2960082 | I21: 1077 | J21: 2393351 | K21: 6064 | L21: 20931869 | M21: 5933 | N21: 13621035 | O21: 1315 | P21: 3426058 | Q21: 1221 | R21: 2765628 | S21: 6141 | T21: 24033714 | U21: 6018 | V21: 15367156 | W21: 1425 | X21: 3767990 | Y21: 1315 | Z21: 3121137 | AA21: 6232 | AB21: 23759980 | AC21: 6116 | AD21: 16944271 | AE21: 1507 | AF21: 4287377 | AG21: 1392 | AH21: 3623698 | AI21: 6268 | AJ21: 26333847 | AK21: 6149 | AL21: 18769666 | AM21: 1574 | AN21: 4712615 | AO21: 1458 | AP21: 4288932 | AQ21: 276.72 | AR21: 191.32 | AS21: 468.04 | AT21: 23822154 | AU21: 15953695 | AV21: 7174 | AW21: 6949 | AX21: 275.08 | AY21: 190.88 | AZ21: 465.96 | BA21: 24357927 | BB21: 16386663 | BC21: 7379 | BD21: 7154 | BE21: 306.21 | BF21: 210.1 | BG21: 516.31 | BH21: 27801704 | BI21: 18488293 | BJ21: 7566 | BK21: 7333 | BL21: 302.01 | BM21: 228.29 | BN21: 530.3 | BO21: 28047357 | BP21: 20567969 | BQ21: 7739 | BR21: 7508 | BS21: 329.92 | BT21: 252.6 | BU21: 582.52 | BV21: 31046462 | BW21: 23058598 | BX21: 7842 | BY21: 7607 | BZ21: 7071 | CA21: 7278 | CB21: 7461 | CC21: 7634 | CD21: 7730 | CE21: 519.0879228 | CF21: 545.9862289 | CG21: 583.9473617 | CH21: 621.8060329 | CI21: 650.7697533 | CJ21: 0.9016584271 | CK21: 0.8534281184 | CL21: 0.8841721598 | CM21: 0.8528383 | CN21: 0.8951245768 | CO21: 1.006161954 | CP21: 0.8720706574 | CQ21: 0.9948367783 | CR21: 0.8765967206 | CS21: 6974 | CT21: 7155 | CU21: 7279 | CV21: 7403 | CW21: 7524 | CX21: 1.055082 | CY21: 1.027044 | CZ21: 0.989658 | DA21: 0.978584 | DB21: 0.984061 | DC21: COFFEE | DD21: 0.0042 | DE21: 643.15 | DF21: ALABAMA
A22: COLBERT | B22: 1160 | C22: 8165 | D22: 27149071 | E22: 8056 | F22: 22202766 | G22: 2082 | H22: 5637465 | I22: 1926 | J22: 5060348 | K22: 8207 | L22: 28341106 | M22: 8090 | N22: 23107375 | O22: 2219 | P22: 5603905 | Q22: 2054 | R22: 6015798 | S22: 8284 | T22: 34295233 | U22: 8144 | V22: 26309139 | W22: 2373 | X22: 6514086 | Y22: 2193 | Z22: 7171839 | AA22: 8364 | AB22: 37680847 | AC22: 8230 | AD22: 28724517 | AE22: 2479 | AF22: 7298323 | AG22: 2294 | AH22: 7619726 | AI22: 8492 | AJ22: 38251922 | AK22: 8336 | AL22: 30420491 | AM22: 2568 | AN22: 7490890 | AO22: 2380 | AP22: 8754389 | AQ22: 266.64 | AR22: 227.6 | AS22: 494.24 | AT22: 32786536 | AU22: 27263114 | AV22: 10247 | AW22: 9982 | AX22: 271.32 | AY22: 239.25 | AZ22: 510.57 | BA22: 33945011 | BB22: 29123173 | BC22: 10426 | BD22: 10144 | BE22: 319.11 | BF22: 269.91 | BG22: 589.02 | BH22: 40809319 | BI22: 33480978 | BJ22: 10657 | BK22: 10337 | BL22: 345.69 | BM22: 287.79 | BN22: 633.48 | BO22: 44979170 | BP22: 36344243 | BQ22: 10843 | BR22: 10524 | BS22: 344.66 | BT22: 304.64 | BU22: 649.3 | BV22: 45742812 | BW22: 39174880 | BX22: 11060 | BY22: 10716 | BZ22: 10126 | CA22: 10300 | CB22: 10513 | CC22: 10699 | CD22: 10896 | CE22: 519.0879228 | CF22: 545.9862289 | CG22: 583.9473617 | CH22: 621.8060329 | CI22: 650.7697533 | CJ22: 0.9521315721 | CK22: 0.9351334758 | CL22: 1.008686807 | CM22: 1.018774291 | CN22: 0.9977415157 | CO22: 1.009105817 | CP22: 0.9736278548 | CQ22: 0.9948367783 | CR22: 0.9786810018 | CS22: 9889 | CT22: 10074 | CU22: 10284 | CV22: 10410 | CW22: 10577 | CX22: 1.029568 | CY22: 1.012146 | CZ22: 1.001484 | DA22: 0.999382 | DB22: 1.00406 | DC22: COLBERT | DD22: 0.0095 | DE22: 716.71 | DF22: ALABAMA
A23: CONECUH | B23: 1170 | C23: 1932 | D23: 8437415 | E23: 1890 | F23: 5681142 | G23: 666 | H23: 2217185 | I23: 637 | J23: 1409111 | K23: 1910 | L23: 8678413 | M23: 1866 | N23: 5888296 | O23: 694 | P23: 2206044 | Q23: 660 | R23: 1672845 | S23: 1890 | T23: 9218306 | U23: 1844 | V23: 6018570 | W23: 717 | X23: 2754216 | Y23: 676 | Z23: 1941817 | AA23: 1882 | AB23: 10191835 | AC23: 1843 | AD23: 6329159 | AE23: 733 | AF23: 2817798 | AG23: 689 | AH23: 2189160 | AI23: 1913 | AJ23: 9656128 | AK23: 1860 | AL23: 6382841 | AM23: 775 | AN23: 2664925 | AO23: 729 | AP23: 2317719 | AQ23: 341.76 | AR23: 233.82 | AS23: 575.58 | AT23: 10654600 | AU23: 7090253 | AV23: 2598 | AW23: 2527 | AX23: 348.32 | AY23: 249.44 | AZ23: 597.76 | BA23: 10884457 | BB23: 7561141 | BC23: 2604 | BD23: 2526 | BE23: 382.7 | BF23: 263.24 | BG23: 645.94 | BH23: 11972522 | BI23: 7960387 | BJ23: 2607 | BK23: 2520 | BL23: 414.58 | BM23: 280.36 | BN23: 694.94 | BO23: 13009633 | BP23: 8518319 | BQ23: 2615 | BR23: 2532 | BS23: 381.98 | BT23: 280.05 | BU23: 662.03 | BV23: 12321053 | BW23: 8700560 | BX23: 2688 | BY23: 2589 | BZ23: 2566 | CA23: 2569 | CB23: 2568 | CC23: 2577 | CD23: 2641 | CE23: 519.0879228 | CF23: 545.9862289 | CG23: 583.9473617 | CH23: 621.8060329 | CI23: 650.7697533 | CJ23: 1.108829496 | CK23: 1.094826148 | CL23: 1.106161347 | CM23: 1.117615403 | CN23: 1.017302966 | CO23: 1.008396699 | CP23: 1.079879647 | CQ23: 0.9948367783 | CR23: 1.085484243 | CS23: 2458 | CT23: 2474 | CU23: 2491 | CV23: 2541 | CW23: 2570 | CX23: 1.0227 | CY23: 1.02542 | CZ23: 1.004585 | DA23: 0.993814 | DB23: 0.996442 | DC23: CONECUH | DD23: 0.0064 | DE23: 795.79 | DF23: ALABAMA
A24: COOSA | B24: 1180 | C24: 1537 | D24: 5408673 | E24: 1494 | F24: 3937217 | G24: 572 | H24: 1082368 | I24: 517 | J24: 978579 | K24: 1564 | L24: 6805500 | M24: 1518 | N24: 4159704 | O24: 621 | P24: 1493810 | Q24: 560 | R24: 1318320 | S24: 1540 | T24: 6645075 | U24: 1494 | V24: 5001357 | W24: 663 | X24: 1643042 | Y24: 602 | Z24: 1586551 | AA24: 1521 | AB24: 7799283 | AC24: 1480 | AD24: 5282022 | AE24: 658 | AF24: 1558588 | AG24: 594 | AH24: 1659241 | AI24: 1522 | AJ24: 7779255 | AK24: 1477 | AL24: 5287494 | AM24: 671 | AN24: 1440208 | AO24: 605 | AP24: 1727016 | AQ24: 256.48 | AR24: 203.7 | AS24: 460.18 | AT24: 6491041 | AU24: 4915796 | AV24: 2109 | AW24: 2011 | AX24: 316.53 | AY24: 219.68 | AZ24: 536.21 | BA24: 8299310 | BB24: 5478024 | BC24: 2185 | BD24: 2078 | BE24: 313.52 | BF24: 261.92 | BG24: 575.44 | BH24: 8288117 | BI24: 6587908 | BJ24: 2203 | BK24: 2096 | BL24: 357.88 | BM24: 278.9 | BN24: 636.78 | BO24: 9357871 | BP24: 6941263 | BQ24: 2179 | BR24: 2074 | BS24: 350.34 | BT24: 280.76 | BU24: 631.1 | BV24: 9219463 | BW24: 7014510 | BX24: 2193 | BY24: 2082 | BZ24: 2064 | CA24: 2137 | CB24: 2155 | CC24: 2131 | CD24: 2140 | CE24: 519.0879228 | CF24: 545.9862289 | CG24: 583.9473617 | CH24: 621.8060329 | CI24: 650.7697533 | CJ24: 0.8865164836 | CK24: 0.9820943672 | CL24: 0.9854312867 | CM24: 1.024081412 | CN24: 0.9697746351 | CO24: 0.9932884391 | CP24: 0.9761309995 | CQ24: 0.9948367783 | CR24: 0.9811971379 | CS24: 1994 | CT24: 2048 | CU24: 2075 | CV24: 2069 | CW24: 2057 | CX24: 0.968286 | CY24: 0.995491 | CZ24: 0.991949 | DA24: 1.011253 | DB24: 0.998614 | DC24: COOSA | DD24: 0.0176 | DE24: 716.51 | DF24: ALABAMA
A25: COVINGTON | B25: 1190 | C25: 6389 | D25: 24493734 | E25: 6246 | F25: 15326102 | G25: 1401 | H25: 4265135 | I25: 1304 | J25: 3015054 | K25: 6365 | L25: 27629959 | M25: 6228 | N25: 16832597 | O25: 1468 | P25: 5588677 | Q25: 1372 | R25: 3772985 | S25: 6347 | T25: 29637669 | U25: 6201 | V25: 18436669 | W25: 1539 | X25: 6212551 | Y25: 1439 | Z25: 4456554 | AA25: 6400 | AB25: 30832041 | AC25: 6254 | AD25: 19940943 | AE25: 1650 | AF25: 5856778 | AG25: 1528 | AH25: 4553327 | AI25: 6403 | AJ25: 29519121 | AK25: 6240 | AL25: 21060615 | AM25: 1767 | AN25: 6302453 | AO25: 1621 | AP25: 4736370 | AQ25: 307.65 | AR25: 202.44 | AS25: 510.09 | AT25: 28758869 | AU25: 18341156 | AV25: 7790 | AW25: 7550 | AX25: 353.4 | AY25: 225.94 | AZ25: 579.34 | BA25: 33218636 | BB25: 20605582 | BC25: 7833 | BD25: 7600 | BE25: 378.84 | BF25: 249.71 | BG25: 628.55 | BH25: 35850220 | BI25: 22893223 | BJ25: 7886 | BK25: 7640 | BL25: 379.8 | BM25: 262.3 | BN25: 642.1 | BO25: 36688819 | BP25: 24494270 | BQ25: 8050 | BR25: 7782 | BS25: 365.38 | BT25: 273.47 | BU25: 638.85 | BV25: 35821574 | BW25: 25796985 | BX25: 8170 | BY25: 7861 | BZ25: 7681 | CA25: 7729 | CB25: 7775 | CC25: 7929 | CD25: 8023 | CE25: 519.0879228 | CF25: 545.9862289 | CG25: 583.9473617 | CH25: 621.8060329 | CI25: 650.7697533 | CJ25: 0.9826658984 | CK25: 1.061089034 | CL25: 1.076381265 | CM25: 1.032637134 | CN25: 0.981683609 | CO25: 1.051756414 | CP25: 0.9763585698 | CQ25: 0.9948367783 | CR25: 0.9814258892 | CS25: 7429 | CT25: 7518 | CU25: 7611 | CV25: 7672 | CW25: 7747 | CX25: 1.06792 | CY25: 1.061741 | CZ25: 1.0557 | DA25: 1.050421 | DB25: 1.024015 | DC25: COVINGTON | DD25: 0.0033 | DE25: 720.29 | DF25: ALABAMA
A26: CRENSHAW | B26: 1200 | C26: 2246 | D26: 8130170 | E26: 2199 | F26: 5982128 | G26: 501 | H26: 1262573 | I26: 464 | J26: 1082177 | K26: 2239 | L26: 8364194 | M26: 2194 | N26: 6206743 | O26: 530 | P26: 1634164 | Q26: 495 | R26: 1196839 | S26: 2234 | T26: 9364434 | U26: 2189 | V26: 6450564 | W26: 598 | X26: 2323838 | Y26: 559 | Z26: 1368766 | AA26: 2215 | AB26: 10781423 | AC26: 2170 | AD26: 6863802 | AE26: 619 | AF26: 2054919 | AG26: 586 | AH26: 1510118 | AI26: 2185 | AJ26: 9713139 | AK26: 2147 | AL26: 6772315 | AM26: 611 | AN26: 2281195 | AO26: 574 | AP26: 1482662 | AQ26: 284.94 | AR26: 221.06 | AS26: 506 | AT26: 9392743 | AU26: 7064305 | AV26: 2747 | AW26: 2663 | AX26: 300.9 | AY26: 229.44 | AZ26: 530.34 | BA26: 9998358 | BB26: 7403582 | BC26: 2769 | BD26: 2689 | BE26: 343.93 | BF26: 237.12 | BG26: 581.05 | BH26: 11688272 | BI26: 7819330 | BJ26: 2832 | BK26: 2748 | BL26: 377.45 | BM26: 253.2 | BN26: 630.65 | BO26: 12836342 | BP26: 8373920 | BQ26: 2834 | BR26: 2756 | BS26: 357.48 | BT26: 252.82 | BU26: 610.3 | BV26: 11994334 | BW26: 8254977 | BX26: 2796 | BY26: 2721 | BZ26: 2709 | CA26: 2733 | CB26: 2794 | CC26: 2799 | CD26: 2760 | CE26: 519.0879228 | CF26: 545.9862289 | CG26: 583.9473617 | CH26: 621.8060329 | CI26: 650.7697533 | CJ26: 0.9747866937 | CK26: 0.9713431803 | CL26: 0.995038317 | CM26: 1.014223032 | CN26: 0.9378124858 | CO26: 0.9835666615 | CP26: 0.9949917785 | CQ26: 0.9948367783 | CR26: 1.000155805 | CS26: 2616 | CT26: 2653 | CU26: 2713 | CV26: 2714 | CW26: 2677 | CX26: 1.002066 | CY26: 0.995352 | CZ26: 0.998094 | DA26: 0.964838 | DB26: 0.958074 | DC26: CRENSHAW | DD26: 0.0033 | DE26: 734.04 | DF26: ALABAMA
A27: CULLMAN | B27: 1210 | C27: 10907 | D27: 40082887 | E27: 10699 | F27: 29148919 | G27: 2164 | H27: 5886775 | I27: 1975 | J27: 4771791 | K27: 11057 | L27: 42894646 | M27: 10850 | N27: 33324341 | O27: 2302 | P27: 7689431 | Q27: 2088 | R27: 5966811 | S27: 11250 | T27: 45077842 | U27: 11002 | V27: 35492496 | W27: 2506 | X27: 7668838 | Y27: 2268 | Z27: 6967106 | AA27: 11240 | AB27: 50205312 | AC27: 10974 | AD27: 37607094 | AE27: 2625 | AF27: 8678054 | AG27: 2381 | AH27: 7693758 | AI27: 11062 | AJ27: 50636235 | AK27: 10739 | AL27: 40122924 | AM27: 2703 | AN27: 9394707 | AO27: 2455 | AP27: 8188958 | AQ27: 293.08 | AR27: 223.03 | AS27: 516.11 | AT27: 45969662 | AU27: 33920710 | AV27: 13071 | AW27: 12674 | AX27: 315.54 | AY27: 253.07 | AZ27: 568.61 | BA27: 50584077 | BB27: 39291152 | BC27: 13359 | BD27: 12938 | BE27: 319.54 | BF27: 266.64 | BG27: 586.18 | BH27: 52746680 | BI27: 42459602 | BJ27: 13756 | BK27: 13270 | BL27: 353.91 | BM27: 282.67 | BN27: 636.58 | BO27: 58883366 | BP27: 45300852 | BQ27: 13865 | BR27: 13355 | BS27: 363.43 | BT27: 305.14 | BU27: 668.57 | BV27: 60030942 | BW27: 48311882 | BX27: 13765 | BY27: 13194 | BZ27: 12890 | CA27: 13170 | CB27: 13537 | CC27: 13634 | CD27: 13493 | CE27: 519.0879228 | CF27: 545.9862289 | CG27: 583.9473617 | CH27: 621.8060329 | CI27: 650.7697533 | CJ27: 0.994263163 | CK27: 1.041436523 | CL27: 1.003823355 | CM27: 1.023759768 | CN27: 1.027352603 | CO27: 1.018017666 | CP27: 1.00010748 | CQ27: 0.9948367783 | CR27: 1.005298057 | CS27: 12633 | CT27: 12929 | CU27: 13229 | CV27: 13209 | CW27: 13028 | CX27: 1.01422 | CY27: 1.025073 | CZ27: 1.022582 | DA27: 1.011855 | DB27: 1.016312 | DC27: CULLMAN | DD27: 0.0211 | DE27: 733.21 | DF27: ALABAMA
A28: DALE | B28: 1220 | C28: 7698 | D28: 27036607 | E28: 7535 | F28: 17374421 | G28: 1991 | H28: 4819692 | I28: 1826 | J28: 3969833 | K28: 7801 | L28: 28494177 | M28: 7624 | N28: 18742694 | O28: 2234 | P28: 6216523 | Q28: 2036 | R28: 4967730 | S28: 7799 | T28: 31363057 | U28: 7627 | V28: 21223766 | W28: 2280 | X28: 6811869 | Y28: 2099 | Z28: 5595117 | AA28: 7911 | AB28: 34324034 | AC28: 7729 | AD28: 22328095 | AE28: 2347 | AF28: 6254449 | AG28: 2150 | AH28: 5865581 | AI28: 7840 | AJ28: 33248597 | AK28: 7646 | AL28: 23712070 | AM28: 2338 | AN28: 6145207 | AO28: 2152 | AP28: 6225435 | AQ28: 273.99 | AR28: 190.01 | AS28: 464 | AT28: 31856299 | AU28: 21344254 | AV28: 9689 | AW28: 9361 | AX28: 288.25 | AY28: 204.54 | AZ28: 492.79 | BA28: 34710700 | BB28: 23710424 | BC28: 10035 | BD28: 9660 | BE28: 315.63 | BF28: 229.79 | BG28: 545.42 | BH28: 38174926 | BI28: 26818883 | BJ28: 10079 | BK28: 9726 | BL28: 329.65 | BM28: 237.82 | BN28: 567.47 | BO28: 40578483 | BP28: 28193676 | BQ28: 10258 | BR28: 9879 | BS28: 322.54 | BT28: 254.62 | BU28: 577.16 | BV28: 39393804 | BW28: 29937505 | BX28: 10178 | BY28: 9798 | BZ28: 9539 | CA28: 9867 | CB28: 9920 | CC28: 10087 | CD28: 9997 | CE28: 519.0879228 | CF28: 545.9862289 | CG28: 583.9473617 | CH28: 621.8060329 | CI28: 650.7697533 | CJ28: 0.8938755452 | CK28: 0.9025685519 | CL28: 0.9340225434 | CM28: 0.9126157837 | CN28: 0.8868881768 | CO28: 0.9777566266 | CP28: 0.9266049399 | CQ28: 0.9948367783 | CR28: 0.9314140371 | CS28: 9199 | CT28: 9401 | CU28: 9653 | CV28: 9812 | CW28: 9736 | CX28: 0.989635 | CY28: 0.985617 | CZ28: 0.974167 | DA28: 0.970475 | DB28: 0.969841 | DC28: DALE | DD28: 0.0037 | DE28: 683.49 | DF28: ALABAMA
A29: DALLAS | B29: 1230 | C29: 6249 | D29: 22931609 | E29: 6138 | F29: 15211412 | G29: 2038 | H29: 4993653 | I29: 1916 | J29: 3680598 | K29: 6217 | L29: 23291618 | M29: 6101 | N29: 16215682 | O29: 2156 | P29: 5869652 | Q29: 2014 | R29: 4123810 | S29: 6165 | T29: 28242848 | U29: 6037 | V29: 18141644 | W29: 2296 | X29: 7783091 | Y29: 2165 | Z29: 4869749 | AA29: 6037 | AB29: 28837710 | AC29: 5913 | AD29: 19670633 | AE29: 2415 | AF29: 7188724 | AG29: 2269 | AH29: 5918088 | AI29: 5791 | AJ29: 27787412 | AK29: 5662 | AL29: 20086025 | AM29: 2424 | AN29: 6302258 | AO29: 2263 | AP29: 6077011 | AQ29: 280.81 | AR29: 195.47 | AS29: 476.28 | AT29: 27925262 | AU29: 18892010 | AV29: 8287 | AW29: 8054 | AX29: 290.23 | AY29: 208.87 | AZ29: 499.1 | BA29: 29161270 | BB29: 20339492 | BC29: 8373 | BD29: 8115 | BE29: 354.82 | BF29: 233.8 | BG29: 588.62 | BH29: 36025939 | BI29: 23011393 | BJ29: 8461 | BK29: 8202 | BL29: 355.21 | BM29: 260.62 | BN29: 615.83 | BO29: 36026434 | BP29: 25588721 | BQ29: 8452 | BR29: 8182 | BS29: 345.81 | BT29: 275.11 | BU29: 620.92 | BV29: 34089670 | BW29: 26163036 | BX29: 8215 | BY29: 7925 | BZ29: 8181 | CA29: 8257 | CB29: 8344 | CC29: 8330 | CD29: 8077 | CE29: 519.0879228 | CF29: 545.9862289 | CG29: 583.9473617 | CH29: 621.8060329 | CI29: 650.7697533 | CJ29: 0.9175324239 | CK29: 0.91412562 | CL29: 1.008001814 | CM29: 0.990389233 | CN29: 0.9541316217 | CO29: 1.018904255 | CP29: 0.9390834692 | CQ29: 0.9948367783 | CR29: 0.9439573302 | CS29: 7745 | CT29: 7928 | CU29: 8035 | CV29: 8144 | CW29: 7841 | CX29: 1.001431 | CY29: 1.023714 | CZ29: 1.021272 | DA29: 1.025798 | DB29: 1.021714 | DC29: DALLAS | DD29: 0.0278 | DE29: 686.84 | DF29: ALABAMA
A30: DE KALB | B30: 1240 | C30: 8236 | D30: 28133771 | E30: 8083 | F30: 18322919 | G30: 2099 | H30: 5605439 | I30: 1950 | J30: 4571162 | K30: 8345 | L30: 29655164 | M30: 8194 | N30: 20797577 | O30: 2251 | P30: 6037811 | Q30: 2087 | R30: 5224037 | S30: 8434 | T30: 29766515 | U30: 8254 | V30: 23842371 | W30: 2434 | X30: 6650527 | Y30: 2254 | Z30: 6146817 | AA30: 8553 | AB30: 32890330 | AC30: 8364 | AD30: 26383461 | AE30: 2596 | AF30: 7637583 | AG30: 2395 | AH30: 7424366 | AI30: 8591 | AJ30: 35533026 | AK30: 8387 | AL30: 27444476 | AM30: 2702 | AN30: 8236920 | AO30: 2494 | AP30: 8383883 | AQ30: 272.05 | AR30: 190.16 | AS30: 462.21 | AT30: 33739210 | AU30: 22894081 | AV30: 10335 | AW30: 10033 | AX30: 280.71 | AY30: 210.92 | AZ30: 491.63 | BA30: 35692975 | BB30: 26021614 | BC30: 10596 | BD30: 10281 | BE30: 279.24 | BF30: 237.83 | BG30: 517.07 | BH30: 36417042 | BI30: 29989188 | BJ30: 10868 | BK30: 10508 | BL30: 302.93 | BM30: 261.86 | BN30: 564.79 | BO30: 40527913 | BP30: 33807827 | BQ30: 11149 | BR30: 10759 | BS30: 322.99 | BT30: 274.4 | BU30: 597.39 | BV30: 43769946 | BW30: 35828359 | BX30: 11293 | BY30: 10881 | BZ30: 10197 | CA30: 10455 | CB30: 10706 | CC30: 10973 | CD30: 11097 | CE30: 519.0879228 | CF30: 545.9862289 | CG30: 583.9473617 | CH30: 621.8060329 | CI30: 650.7697533 | CJ30: 0.8904271891 | CK30: 0.9004439562 | CL30: 0.8854736469 | CM30: 0.9083057579 | CN30: 0.9179744403 | CO30: 0.9626567024 | CP30: 0.9354580879 | CQ30: 0.9948367783 | CR30: 0.9403131331 | CS30: 9954 | CT30: 10225 | CU30: 10415 | CV30: 10561 | CW30: 10670 | CX30: 0.976572 | CY30: 0.962875 | CZ30: 0.963734 | DA30: 0.947079 | DB30: 0.963833 | DC30: DE | DD30: 0.0125 | DE30: 687.89 | DF30: ALABAMA
A31: ELMORE | B31: 1250 | C31: 7612 | D31: 25415278 | E31: 7364 | F31: 18999974 | G31: 1955 | H31: 4124445 | I31: 1743 | J31: 3838005 | K31: 7804 | L31: 26353908 | M31: 7544 | N31: 20677628 | O31: 2061 | P31: 5051564 | Q31: 1835 | R31: 4498173 | S31: 7968 | T31: 30492129 | U31: 7678 | V31: 23875255 | W31: 2164 | X31: 6062658 | Y31: 1919 | Z31: 5444654 | AA31: 7724 | AB31: 33308541 | AC31: 7410 | AD31: 24898767 | AE31: 2147 | AF31: 6250402 | AG31: 1901 | AH31: 6229643 | AI31: 7672 | AJ31: 31582742 | AK31: 7321 | AL31: 24622771 | AM31: 2107 | AN31: 6426952 | AO31: 1843 | AP31: 5625172 | AQ31: 257.31 | AR31: 208.98 | AS31: 466.29 | AT31: 29539723 | AU31: 22837979 | AV31: 9567 | AW31: 9107 | AX31: 265.29 | AY31: 223.69 | AZ31: 488.98 | BA31: 31405472 | BB31: 25175801 | BC31: 9865 | BD31: 9379 | BE31: 300.65 | BF31: 254.59 | BG31: 555.24 | BH31: 36554787 | BI31: 29319909 | BJ31: 10132 | BK31: 9597 | BL31: 333.97 | BM31: 278.6 | BN31: 612.57 | BO31: 39558943 | BP31: 31128410 | BQ31: 9871 | BR31: 9311 | BS31: 323.91 | BT31: 275.06 | BU31: 598.97 | BV31: 38009694 | BW31: 30247943 | BX31: 9779 | BY31: 9164 | BZ31: 9357 | CA31: 9647 | CB31: 9891 | CC31: 9618 | CD31: 9486 | CE31: 519.0879228 | CF31: 545.9862289 | CG31: 583.9473617 | CH31: 621.8060329 | CI31: 650.7697533 | CJ31: 0.8982871293 | CK31: 0.8955903539 | CL31: 0.9508391276 | CM31: 0.9851464405 | CN31: 0.9204023343 | CO31: 0.9470481148 | CP31: 0.9820547262 | CQ31: 0.9948367783 | CR31: 0.9871516088 | CS31: 9221 | CT31: 9440 | CU31: 9661 | CV31: 9097 | CW31: 8892 | CX31: 0.955432 | CY31: 0.949066 | CZ31: 0.943701 | DA31: 0.939565 | DB31: 0.947504 | DC31: ELMORE | DD31: 0.0051 | DE31: 724.03 | DF31: ALABAMA
A32: ESCAMBIA | B32: 1260 | C32: 4984 | D32: 18185344 | E32: 4866 | F32: 12547662 | G32: 1299 | H32: 3532729 | I32: 1207 | J32: 2745409 | K32: 5011 | L32: 19044874 | M32: 4887 | N32: 13270902 | O32: 1407 | P32: 4165599 | Q32: 1310 | R32: 3068068 | S32: 5032 | T32: 19569534 | U32: 4883 | V32: 14730448 | W32: 1493 | X32: 4351166 | Y32: 1381 | Z32: 3702589 | AA32: 5020 | AB32: 20637206 | AC32: 4874 | AD32: 15196148 | AE32: 1566 | AF32: 5033653 | AG32: 1452 | AH32: 4111993 | AI32: 5061 | AJ32: 21368091 | AK32: 4907 | AL32: 16947354 | AM32: 1585 | AN32: 4478564 | AO32: 1470 | AP32: 4307382 | AQ32: 288.05 | AR32: 209.85 | AS32: 497.9 | AT32: 21718073 | AU32: 15293071 | AV32: 6283 | AW32: 6073 | AX32: 301.37 | AY32: 219.72 | AZ32: 521.09 | BA32: 23210473 | BB32: 16338970 | BC32: 6418 | BD32: 6197 | BE32: 305.5 | BF32: 245.22 | BG32: 550.72 | BH32: 23920700 | BI32: 18433037 | BJ32: 6525 | BK32: 6264 | BL32: 324.82 | BM32: 254.35 | BN32: 579.17 | BO32: 25670859 | BP32: 19308141 | BQ32: 6586 | BR32: 6326 | BS32: 324.09 | BT32: 277.75 | BU32: 601.84 | BV32: 25846655 | BW32: 21254736 | BX32: 6646 | BY32: 6377 | BZ32: 6187 | CA32: 6319 | CB32: 6407 | CC32: 6468 | CD32: 6518 | CE32: 519.0879228 | CF32: 545.9862289 | CG32: 583.9473617 | CH32: 621.8060329 | CI32: 650.7697533 | CJ32: 0.9591824008 | CK32: 0.9544013611 | CL32: 0.9430987039 | CM32: 0.9314319408 | CN32: 0.9248124963 | CO32: 0.9986752861 | CP32: 0.9438356929 | CQ32: 0.9948367783 | CR32: 0.948734218 | CS32: 5960 | CT32: 6105 | CU32: 6213 | CV32: 6268 | CW32: 6318 | CX32: 1.004465 | CY32: 1.023381 | CZ32: 1.003918 | DA32: 0.982181 | DB32: 0.980549 | DC32: ESCAMBIA | DD32: 0.005 | DE32: 695.88 | DF32: ALABAMA
A33: ETOWAH | B33: 1270 | C33: 15166 | D33: 67417701 | E33: 14717 | F33: 40905537 | G33: 4061 | H33: 13498452 | I33: 3765 | J33: 9869845 | K33: 15104 | L33: 68162321 | M33: 14669 | N33: 43222118 | O33: 4331 | P33: 13157327 | Q33: 4013 | R33: 10816865 | S33: 15008 | T33: 65689886 | U33: 14566 | V33: 44624113 | W33: 4535 | X33: 13414867 | Y33: 4199 | Z33: 11784426 | AA33: 15046 | AB33: 72239423 | AC33: 14642 | AD33: 48411135 | AE33: 4745 | AF33: 14036167 | AG33: 4394 | AH33: 13220524 | AI33: 14708 | AJ33: 74726115 | AK33: 14314 | AL33: 50166997 | AM33: 4774 | AN33: 14991123 | AO33: 4370 | AP33: 13944039 | AQ33: 350.71 | AR33: 228.94 | AS33: 579.65 | AT33: 80916153 | AU33: 50775382 | AV33: 19227 | AW33: 18482 | AX33: 348.68 | AY33: 241.05 | AZ33: 589.73 | BA33: 81319648 | BB33: 54038983 | BC33: 19435 | BD33: 18682 | BE33: 337.31 | BF33: 250.5 | BG33: 587.81 | BH33: 79104753 | BI33: 56408539 | BJ33: 19543 | BK33: 18765 | BL33: 363.28 | BM33: 269.8 | BN33: 633.08 | BO33: 86275590 | BP33: 61631659 | BQ33: 19791 | BR33: 19036 | BS33: 383.76 | BT33: 285.94 | BU33: 669.7 | BV33: 89717238 | BW33: 64111036 | BX33: 19482 | BY33: 18684 | BZ33: 18887 | CA33: 19098 | CB33: 19192 | CC33: 19449 | CD33: 19102 | CE33: 519.0879228 | CF33: 545.9862289 | CG33: 583.9473617 | CH33: 621.8060329 | CI33: 650.7697533 | CJ33: 1.116670172 | CK33: 1.080118818 | CL33: 1.006614703 | CM33: 1.018131003 | CN33: 1.029089008 | CO33: 1.044176567 | CP33: 1.005696521 | CQ33: 0.9948367783 | CR33: 1.010916105 | CS33: 18276 | CT33: 18522 | CU33: 18705 | CV33: 18808 | CW33: 18382 | CX33: 1.04507 | CY33: 1.059909 | CZ33: 1.041317 | DA33: 1.028013 | DB33: 1.046884 | DC33: ETOWAH | DD33: 0.0095 | DE33: 740.32 | DF33: ALABAMA
A34: FAYETTE | B34: 1280 | C34: 2463 | D34: 8696959 | E34: 2429 | F34: 5562070 | G34: 660 | H34: 1168789 | I34: 613 | J34: 1107241 | K34: 2486 | L34: 8157604 | M34: 2453 | N34: 5916693 | O34: 690 | P34: 1541353 | Q34: 646 | R34: 1401642 | S34: 2481 | T34: 9826899 | U34: 2443 | V34: 6647684 | W34: 750 | X34: 2222603 | Y34: 697 | Z34: 1721431 | AA34: 2475 | AB34: 8725727 | AC34: 2435 | AD34: 6836114 | AE34: 821 | AF34: 1918431 | AG34: 755 | AH34: 1852646 | AI34: 2484 | AJ34: 9671012 | AK34: 2434 | AL34: 6730398 | AM34: 869 | AN34: 2246414 | AO34: 801 | AP34: 2107534 | AQ34: 263.26 | AR34: 182.7 | AS34: 445.96 | AT34: 9865748 | AU34: 6669311 | AV34: 3123 | AW34: 3042 | AX34: 254.49 | AY34: 196.79 | AZ34: 451.28 | BA34: 9698957 | BB34: 7318335 | BC34: 3176 | BD34: 3099 | BE34: 310.78 | BF34: 222.11 | BG34: 532.89 | BH34: 12049502 | BI34: 8369115 | BJ34: 3231 | BK34: 3140 | BL34: 269.12 | BM34: 226.98 | BN34: 496.1 | BO34: 10644158 | BP34: 8688760 | BQ34: 3296 | BR34: 3190 | BS34: 296.19 | BT34: 227.66 | BU34: 523.85 | BV34: 11917426 | BW34: 8837932 | BX34: 3353 | BY34: 3235 | BZ34: 3086 | CA34: 3141 | CB34: 3190 | CC34: 3248 | CD34: 3297 | CE34: 519.0879228 | CF34: 545.9862289 | CG34: 583.9473617 | CH34: 621.8060329 | CI34: 650.7697533 | CJ34: 0.8591222805 | CK34: 0.8265409933 | CL34: 0.9125651299 | CM34: 0.7978372254 | CN34: 0.8049698029 | CO34: 1.006775635 | CP34: 0.8345524636 | CQ34: 0.9948367783 | CR34: 0.8388838067 | CS34: 2980 | CT34: 3059 | CU34: 3099 | CV34: 3143 | CW34: 3196 | CX34: 1.00706 | CY34: 1.014539 | CZ34: 1.010754 | DA34: 1.018117 | DB34: 0.984069 | DC34: FAYETTE | DD34: 0.0142 | DE34: 613.32 | DF34: ALABAMA
A35: FRANKLIN | B35: 1290 | C35: 4804 | D35: 16901431 | E35: 4734 | F35: 14315595 | G35: 1209 | H35: 3853492 | I35: 1142 | J35: 3522791 | K35: 4826 | L35: 17703258 | M35: 4745 | N35: 14509997 | O35: 1278 | P35: 3607503 | Q35: 1199 | R35: 3740575 | S35: 4817 | T35: 20566327 | U35: 4731 | V35: 15998759 | W35: 1345 | X35: 4978095 | Y35: 1263 | Z35: 4168477 | AA35: 4831 | AB35: 20881197 | AC35: 4747 | AD35: 16505631 | AE35: 1407 | AF35: 4478617 | AG35: 1322 | AH35: 4185678 | AI35: 4826 | AJ35: 23051032 | AK35: 4730 | AL35: 17581534 | AM35: 1442 | AN35: 4864275 | AO35: 1354 | AP35: 4852406 | AQ35: 287.64 | AR35: 252.98 | AS35: 540.62 | AT35: 20754923 | AU35: 17838386 | AV35: 6013 | AW35: 5876 | AX35: 290.94 | AY35: 255.87 | AZ35: 546.81 | BA35: 21310761 | BB35: 18250572 | BC35: 6104 | BD35: 5944 | BE35: 345.46 | BF35: 280.38 | BG35: 625.84 | BH35: 25544422 | BI35: 20167236 | BJ35: 6162 | BK35: 5994 | BL35: 338.78 | BM35: 284.11 | BN35: 622.89 | BO35: 25359814 | BP35: 20691309 | BQ35: 6238 | BR35: 6069 | BS35: 371.14 | BT35: 307.28 | BU35: 678.42 | BV35: 27915307 | BW35: 22433940 | BX35: 6268 | BY35: 6084 | BZ35: 5951 | CA35: 6032 | CB35: 6086 | CC35: 6162 | CD35: 6180 | CE35: 519.0879228 | CF35: 545.9862289 | CG35: 583.9473617 | CH35: 621.8060329 | CI35: 650.7697533 | CJ35: 1.041480598 | CK35: 1.001508776 | CL35: 1.071740436 | CM35: 1.001743256 | CN35: 1.042488525 | CO35: 0.9899650525 | CP35: 1.042251255 | CQ35: 0.9948367783 | CR35: 1.047660558 | CS35: 5778 | CT35: 5895 | CU35: 5965 | CV35: 6026 | CW35: 6055 | CX35: 0.990481 | CY35: 0.999986 | CZ35: 0.981281 | DA35: 0.992557 | DB35: 0.985692 | DC35: FRANKLIN | DD35: 0.0092 | DE35: 767.31 | DF35: ALABAMA
A36: GENEVA | B36: 1300 | C36: 4123 | D36: 15646628 | E36: 4051 | F36: 9311399 | G36: 993 | H36: 2414603 | I36: 928 | J36: 1977148 | K36: 4170 | L36: 16540355 | M36: 4105 | N36: 10087502 | O36: 1078 | P36: 3170949 | Q36: 1011 | R36: 2302513 | S36: 4189 | T36: 18203739 | U36: 4117 | V36: 11008291 | W36: 1132 | X36: 3404499 | Y36: 1065 | Z36: 2737873 | AA36: 4239 | AB36: 20865355 | AC36: 4168 | AD36: 12449077 | AE36: 1185 | AF36: 3587852 | AG36: 1115 | AH36: 3171163 | AI36: 4215 | AJ36: 20684721 | AK36: 4134 | AL36: 13381339 | AM36: 1220 | AN36: 3390917 | AO36: 1155 | AP36: 3333999 | AQ36: 294.2 | AR36: 188.94 | AS36: 483.14 | AT36: 18061231 | AU36: 11288547 | AV36: 5116 | AW36: 4979 | AX36: 313 | AY36: 201.82 | AZ36: 514.82 | BA36: 19711304 | BB36: 12390015 | BC36: 5248 | BD36: 5116 | BE36: 338.41 | BF36: 221.06 | BG36: 559.47 | BH36: 21608238 | BI36: 13746164 | BJ36: 5321 | BK36: 5182 | BL36: 375.69 | BM36: 246.39 | BN36: 622.08 | BO36: 24453207 | BP36: 15620240 | BQ36: 5424 | BR36: 5283 | BS36: 369.15 | BT36: 263.37 | BU36: 632.52 | BV36: 24075638 | BW36: 16715338 | BX36: 5435 | BY36: 5289 | BZ36: 5054 | CA36: 5189 | CB36: 5258 | CC36: 5360 | CD36: 5365 | CE36: 519.0879228 | CF36: 545.9862289 | CG36: 583.9473617 | CH36: 621.8060329 | CI36: 650.7697533 | CJ36: 0.9307479115 | CK36: 0.9429175549 | CL36: 0.9580829312 | CM36: 1.000440599 | CN36: 0.9719566664 | CO36: 1.024131632 | CP36: 0.9381890987 | CQ36: 0.9948367783 | CR36: 0.9430583179 | CS36: 4931 | CT36: 5078 | CU36: 5162 | CV36: 5194 | CW36: 5238 | CX36: 1.037824 | CY36: 1.044737 | CZ36: 1.031969 | DA36: 1.009275 | DB36: 0.998274 | DC36: GENEVA | DD36: 0.0019 | DE36: 692.47 | DF36: ALABAMA
A37: GREENE | B37: 1310 | C37: 1263 | D37: 4721354 | E37: 1251 | F37: 3273376 | G37: 410 | H37: 1152948 | I37: 382 | J37: 813180 | K37: 1235 | L37: 5475356 | M37: 1217 | N37: 3340229 | O37: 421 | P37: 826550 | Q37: 397 | R37: 762407 | S37: 1236 | T37: 4503001 | U37: 1220 | V37: 3742993 | W37: 459 | X37: 1283366 | Y37: 430 | Z37: 1045017 | AA37: 1243 | AB37: 5379702 | AC37: 1226 | AD37: 4065108 | AE37: 500 | AF37: 1555275 | AG37: 469 | AH37: 1265238 | AI37: 1249 | AJ37: 6365707 | AK37: 1227 | AL37: 4389110 | AM37: 534 | AN37: 1649951 | AO37: 495 | AP37: 1355462 | AQ37: 292.6 | AR37: 208.54 | AS37: 501.14 | AT37: 5874302 | AU37: 4086556 | AV37: 1673 | AW37: 1633 | AX37: 317.12 | AY37: 211.83 | AZ37: 528.95 | BA37: 6301906 | BB37: 4102636 | BC37: 1656 | BD37: 1614 | BE37: 284.48 | BF37: 241.82 | BG37: 526.3 | BH37: 5786367 | BI37: 4788010 | BJ37: 1695 | BK37: 1650 | BL37: 331.56 | BM37: 262.06 | BN37: 593.62 | BO37: 6934977 | BP37: 5330346 | BQ37: 1743 | BR37: 1695 | BS37: 374.63 | BT37: 278 | BU37: 652.63 | BV37: 8015658 | BW37: 5744572 | BX37: 1783 | BY37: 1722 | BZ37: 1655 | CA37: 1637 | CB37: 1675 | CC37: 1721 | CD37: 1754 | CE37: 519.0879228 | CF37: 545.9862289 | CG37: 583.9473617 | CH37: 621.8060329 | CI37: 650.7697533 | CJ37: 0.965424118 | CK37: 0.9687973285 | CL37: 0.9012798661 | CM37: 0.9546706989 | CN37: 1.002858533 | CO37: 0.9946526107 | CP37: 0.9637597072 | CQ37: 0.9948367783 | CR37: 0.9687616383 | CS37: 1579 | CT37: 1588 | CU37: 1622 | CV37: 1669 | CW37: 1690 | CX37: 0.96647 | CY37: 1.008129 | CZ37: 1.002118 | DA37: 0.998696 | DB37: 0.997163 | DC37: GREENE | DD37: 0.0204 | DE37: 706.73 | DF37: ALABAMA
A38: HALE | B38: 1320 | C38: 2312 | D38: 8810423 | E38: 2273 | F38: 6399874 | G38: 727 | H38: 2013095 | I38: 665 | J38: 1680247 | K38: 2321 | L38: 9357182 | M38: 2275 | N38: 6779470 | O38: 797 | P38: 2388586 | Q38: 728 | R38: 1745820 | S38: 2344 | T38: 10354599 | U38: 2290 | V38: 7428123 | W38: 864 | X38: 2603839 | Y38: 799 | Z38: 2082482 | AA38: 2333 | AB38: 11077172 | AC38: 2292 | AD38: 7417778 | AE38: 946 | AF38: 3200344 | AG38: 882 | AH38: 2352207 | AI38: 2356 | AJ38: 10812858 | AK38: 2305 | AL38: 7265418 | AM38: 1004 | AN38: 2616203 | AO38: 928 | AP38: 2448446 | AQ38: 296.79 | AR38: 229.18 | AS38: 525.97 | AT38: 10823518 | AU38: 8080121 | AV38: 3039 | AW38: 2938 | AX38: 313.92 | AY38: 236.58 | AZ38: 550.5 | BA38: 11745768 | BB38: 8525290 | BC38: 3118 | BD38: 3003 | BE38: 336.62 | BF38: 256.57 | BG38: 593.19 | BH38: 12958438 | BI38: 9510605 | BJ38: 3208 | BK38: 3089 | BL38: 362.85 | BM38: 256.51 | BN38: 619.36 | BO38: 14277516 | BP38: 9769985 | BQ38: 3279 | BR38: 3174 | BS38: 333.06 | BT38: 250.38 | BU38: 583.44 | BV38: 13429061 | BW38: 9713864 | BX38: 3360 | BY38: 3233 | BZ38: 2993 | CA38: 3066 | CB38: 3154 | CC38: 3231 | CD38: 3299 | CE38: 519.0879228 | CF38: 545.9862289 | CG38: 583.9473617 | CH38: 621.8060329 | CI38: 650.7697533 | CJ38: 1.013258018 | CK38: 1.008267189 | CL38: 1.015827862 | CM38: 0.9960662445 | CN38: 0.8965382873 | CO38: 0.9685098325 | CP38: 1.018050088 | CQ38: 0.9948367783 | CR38: 1.023333787 | CS38: 2883 | CT38: 2955 | CU38: 3030 | CV38: 3087 | CW38: 3180 | CX38: 0.970344 | CY38: 0.976334 | CZ38: 0.963056 | DA38: 0.966499 | DB38: 0.966725 | DC38: HALE | DD38: 0.0209 | DE38: 746.41 | DF38: ALABAMA
A39: HENRY | B39: 1330 | C39: 2548 | D39: 7475816 | E39: 2497 | F39: 5543961 | G39: 529 | H39: 1300819 | I39: 509 | J39: 1044376 | K39: 2544 | L39: 8776880 | M39: 2491 | N39: 5886120 | O39: 593 | P39: 1501418 | Q39: 559 | R39: 1114150 | S39: 2525 | T39: 8550073 | U39: 2468 | V39: 6578046 | W39: 658 | X39: 1837376 | Y39: 623 | Z39: 1397102 | AA39: 2543 | AB39: 9471833 | AC39: 2489 | AD39: 6959505 | AE39: 685 | AF39: 1979934 | AG39: 644 | AH39: 1698407 | AI39: 2417 | AJ39: 9968347 | AK39: 2341 | AL39: 7232084 | AM39: 709 | AN39: 1851672 | AO39: 656 | AP39: 1770019 | AQ39: 237.69 | AR39: 182.64 | AS39: 420.33 | AT39: 8776635 | AU39: 6588337 | AV39: 3077 | AW39: 3006 | AX39: 273.04 | AY39: 191.26 | AZ39: 464.3 | BA39: 10278298 | BB39: 7000270 | BC39: 3137 | BD39: 3050 | BE39: 271.95 | BF39: 215.01 | BG39: 486.96 | BH39: 10387449 | BI39: 7975148 | BJ39: 3183 | BK39: 3091 | BL39: 295.64 | BM39: 230.29 | BN39: 525.93 | BO39: 11451767 | BP39: 8657912 | BQ39: 3228 | BR39: 3133 | BS39: 315.1 | BT39: 250.31 | BU39: 565.41 | BV39: 11820019 | BW39: 9002103 | BX39: 3126 | BY39: 2997 | BZ39: 3045 | CA39: 3098 | CB39: 3141 | CC39: 3185 | CD39: 3065 | CE39: 519.0879228 | CF39: 545.9862289 | CG39: 583.9473617 | CH39: 621.8060329 | CI39: 650.7697533 | CJ39: 0.8097472154 | CK39: 0.8503877486 | CL39: 0.8339107802 | CM39: 0.8458103849 | CN39: 0.8688326358 | CO39: 0.9609804619 | CP39: 0.875915574 | CQ39: 0.9948367783 | CR39: 0.8804615924 | CS39: 2940 | CT39: 3006 | CU39: 3063 | CV39: 3101 | CW39: 2972 | CX39: 0.984948 | CY39: 0.969601 | CZ39: 0.947599 | DA39: 0.937492 | DB39: 0.966851 | DC39: HENRY | DD39: 0.0017 | DE39: 646.55 | DF39: ALABAMA
A40: HOUSTON | B40: 1340 | C40: 9670 | D40: 30914019 | E40: 9495 | F40: 21025620 | G40: 2147 | H40: 4849929 | I40: 1987 | J40: 4212040 | K40: 9808 | L40: 33192094 | M40: 9612 | N40: 23377561 | O40: 2288 | P40: 5439926 | Q40: 2119 | R40: 4837407 | S40: 10152 | T40: 37043573 | U40: 9916 | V40: 25684624 | W40: 2584 | X40: 6731553 | Y40: 2407 | Z40: 6131790 | AA40: 10438 | AB40: 39272461 | AC40: 10196 | AD40: 28451105 | AE40: 2848 | AF40: 8297583 | AG40: 2649 | AH40: 7535413 | AI40: 10815 | AJ40: 40141212 | AK40: 10518 | AL40: 31222559 | AM40: 3117 | AN40: 9147907 | AO40: 2892 | AP40: 8719169 | AQ40: 252.21 | AR40: 183.17 | AS40: 435.38 | AT40: 35763948 | AU40: 25237660 | AV40: 11817 | AW40: 11482 | AX40: 266.15 | AY40: 200.43 | AZ40: 466.58 | BA40: 38632020 | BB40: 28214968 | BC40: 12096 | BD40: 11731 | BE40: 286.43 | BF40: 215.16 | BG40: 501.59 | BH40: 43775126 | BI40: 31816414 | BJ40: 12736 | BK40: 12323 | BL40: 298.37 | BM40: 233.47 | BN40: 531.84 | BO40: 47570044 | BP40: 35986518 | BQ40: 13286 | BR40: 12845 | BS40: 294.82 | BT40: 248.21 | BU40: 543.03 | BV40: 49289119 | BW40: 39941728 | BX40: 13932 | BY40: 13410 | BZ40: 11664 | CA40: 11932 | CB40: 12550 | CC40: 13086 | CD40: 13683 | CE40: 519.0879228 | CF40: 545.9862289 | CG40: 583.9473617 | CH40: 621.8060329 | CI40: 650.7697533 | CJ40: 0.8387403769 | CK40: 0.8545636781 | CL40: 0.8589644082 | CM40: 0.8553149565 | CN40: 0.8344425925 | CO40: 0.9388404263 | CP40: 0.9036734877 | CQ40: 0.9948367783 | CR40: 0.9083635702 | CS40: 11598 | CT40: 11930 | CU40: 12309 | CV40: 12476 | CW40: 13088 | CX40: 0.929751 | CY40: 0.943607 | CZ40: 0.93547 | DA40: 0.938873 | DB40: 0.945689 | DC40: HOUSTON | DD40: 0.0035 | DE40: 666.62 | DF40: ALABAMA
A41: JACKSON | B41: 1350 | C41: 7508 | D41: 25309880 | E41: 7376 | F41: 18417033 | G41: 1847 | H41: 4480295 | I41: 1718 | J41: 4159468 | K41: 7652 | L41: 27228565 | M41: 7492 | N41: 20912730 | O41: 1923 | P41: 5530614 | Q41: 1774 | R41: 4514827 | S41: 7785 | T41: 30484006 | U41: 7613 | V41: 23728393 | W41: 2030 | X41: 5903330 | Y41: 1868 | Z41: 5230537 | AA41: 7946 | AB41: 31772994 | AC41: 7764 | AD41: 25006305 | AE41: 2136 | AF41: 7059046 | AG41: 1968 | AH41: 6109835 | AI41: 8092 | AJ41: 35323209 | AK41: 7862 | AL41: 26701474 | AM41: 2224 | AN41: 7505526 | AO41: 2051 | AP41: 6455403 | AQ41: 265.37 | AR41: 206.88 | AS41: 472.25 | AT41: 29790175 | AU41: 22576501 | AV41: 9355 | AW41: 9094 | AX41: 285.11 | AY41: 228.68 | AZ41: 513.79 | BA41: 32759179 | BB41: 25427557 | BC41: 9575 | BD41: 9266 | BE41: 308.94 | BF41: 254.53 | BG41: 563.47 | BH41: 36387336 | BI41: 28958930 | BJ41: 9815 | BK41: 9481 | BL41: 320.97 | BM41: 266.44 | BN41: 587.41 | BO41: 38832040 | BP41: 31116140 | BQ41: 10082 | BR41: 9732 | BS41: 345.97 | BT41: 278.73 | BU41: 624.7 | BV41: 42828735 | BW41: 33156877 | BX41: 10316 | BY41: 9913 | BZ41: 9236 | CA41: 9437 | CB41: 9664 | CC41: 9924 | CD41: 10124 | CE41: 519.0879228 | CF41: 545.9862289 | CG41: 583.9473617 | CH41: 621.8060329 | CI41: 650.7697533 | CJ41: 0.9097688065 | CK41: 0.9410310605 | CL41: 0.9649328637 | CM41: 0.9446836617 | CN41: 0.9599401276 | CO41: 0.9742676286 | CP41: 0.9690061297 | CQ41: 0.9948367783 | CR41: 0.9740352898 | CS41: 8984 | CT41: 9199 | CU41: 9458 | CV41: 9586 | CW41: 9770 | CX41: 0.966923 | CY41: 0.977575 | CZ41: 0.979201 | DA41: 0.971554 | DB41: 0.975794 | DC41: JACKSON | DD41: 0.0139 | DE41: 712.21 | DF41: ALABAMA
A42: JEFFERSON | B42: 1360 | C42: 66360 | D42: 256280767 | E42: 63610 | F42: 161802576 | G42: 14953 | H42: 42284601 | I42: 12974 | J42: 27623542 | K42: 65983 | L42: 271711158 | M42: 63078 | N42: 175318829 | O42: 15570 | P42: 43500960 | Q42: 13427 | R42: 31274210 | S42: 64107 | T42: 283489560 | U42: 60992 | V42: 185656363 | W42: 15830 | X42: 47312140 | Y42: 13506 | Z42: 33016223 | AA42: 62687 | AB42: 284315034 | AC42: 59585 | AD42: 191872830 | AE42: 16284 | AF42: 48821461 | AG42: 13777 | AH42: 36320665 | AI42: 60024 | AJ42: 281505559 | AK42: 56733 | AL42: 187349524 | AM42: 16210 | AN42: 54924900 | AO42: 13621 | AP42: 38889191 | AQ42: 305.98 | AR42: 206.12 | AS42: 512.1 | AT42: 298565368 | AU42: 189426118 | AV42: 81313 | AW42: 76584 | AX42: 322.09 | AY42: 225.03 | AZ42: 547.12 | BA42: 315212118 | BB42: 206593039 | BC42: 81553 | BD42: 76505 | BE42: 344.86 | BF42: 244.61 | BG42: 589.47 | BH42: 330801700 | BI42: 218672586 | BJ42: 79937 | BK42: 74498 | BL42: 351.54 | BM42: 259.21 | BN42: 610.75 | BO42: 333136495 | BP42: 228193495 | BQ42: 78971 | BR42: 73362 | BS42: 367.76 | BT42: 267.98 | BU42: 635.74 | BV42: 336430459 | BW42: 226238715 | BX42: 76234 | BY42: 70354 | BZ42: 79156 | CA42: 79290 | CB42: 77482 | CC42: 76433 | CD42: 73432 | CE42: 519.0879228 | CF42: 545.9862289 | CG42: 583.9473617 | CH42: 621.8060329 | CI42: 650.7697533 | CJ42: 0.9865380748 | CK42: 1.002076556 | CL42: 1.009457425 | CM42: 0.9822194828 | CN42: 0.976904653 | CO42: 0.9717322634 | CP42: 1.020280252 | CQ42: 0.9948367783 | CR42: 1.025575526 | CS42: 76408 | CT42: 75700 | CU42: 73770 | CV42: 71602 | CW42: 68627 | CX42: 0.978268 | CY42: 0.975998 | CZ42: 0.976193 | DA42: 0.963136 | DB42: 0.963924 | DC42: JEFFERSON | DD42: 0.0368 | DE42: 743.86 | DF42: ALABAMA
A43: LAMAR | B43: 1370 | C43: 2628 | D43: 8365336 | E43: 2592 | F43: 6407209 | G43: 632 | H43: 1587592 | I43: 587 | J43: 1352331 | K43: 2640 | L43: 9233760 | M43: 2609 | N43: 6472540 | O43: 665 | P43: 1642859 | Q43: 621 | R43: 1414913 | S43: 2650 | T43: 9433496 | U43: 2623 | V43: 7252567 | W43: 698 | X43: 1910013 | Y43: 647 | Z43: 1773920 | AA43: 2653 | AB43: 11237952 | AC43: 2620 | AD43: 7705070 | AE43: 751 | AF43: 2132948 | AG43: 691 | AH43: 1976322 | AI43: 2618 | AJ43: 10467531 | AK43: 2577 | AL43: 7886887 | AM43: 783 | AN43: 2362992 | AO43: 725 | AP43: 2266985 | AQ43: 254.42 | AR43: 203.41 | AS43: 457.83 | AT43: 9952928 | AU43: 7759540 | AV43: 3260 | AW43: 3179 | AX43: 274.25 | AY43: 203.49 | AZ43: 477.74 | BA43: 10876619 | BB43: 7887453 | BC43: 3305 | BD43: 3230 | BE43: 282.35 | BF43: 230.03 | BG43: 512.38 | BH43: 11343509 | BI43: 9026487 | BJ43: 3348 | BK43: 3270 | BL43: 327.33 | BM43: 243.67 | BN43: 571 | BO43: 13370900 | BP43: 9681392 | BQ43: 3404 | BR43: 3311 | BS43: 314.38 | BT43: 256.26 | BU43: 570.64 | BV43: 12830523 | BW43: 10153872 | BX43: 3401 | BY43: 3302 | BZ43: 3223 | CA43: 3271 | CB43: 3313 | CC43: 3362 | CD43: 3354 | CE43: 519.0879228 | CF43: 545.9862289 | CG43: 583.9473617 | CH43: 621.8060329 | CI43: 650.7697533 | CJ43: 0.8819893122 | CK43: 0.8750037541 | CL43: 0.8774421011 | CM43: 0.9182927952 | CN43: 0.8768692723 | CO43: 0.971320606 | CP43: 0.9120772704 | CQ43: 0.9948367783 | CR43: 0.9168109687 | CS43: 3122 | CT43: 3182 | CU43: 3251 | CV43: 3270 | CW43: 3258 | CX43: 0.97393 | CY43: 0.981447 | CZ43: 0.983424 | DA43: 0.959152 | DB43: 0.959066 | DC43: LAMAR | DD43: 0.0147 | DE43: 670.18 | DF43: ALABAMA
A44: LAUDERDALE | B44: 1380 | C44: 12921 | D44: 40874586 | E44: 12716 | F44: 30525183 | G44: 2800 | H44: 6344569 | I44: 2546 | J44: 6142996 | K44: 13132 | L44: 41249455 | M44: 12907 | N44: 32603990 | O44: 2989 | P44: 8284762 | Q44: 2710 | R44: 7651420 | S44: 13335 | T44: 47145734 | U44: 13068 | V44: 37483291 | W44: 3182 | X44: 9170092 | Y44: 2911 | Z44: 8382473 | AA44: 13533 | AB44: 49130768 | AC44: 13246 | AD44: 40085492 | AE44: 3387 | AF44: 9032295 | AG44: 3110 | AH44: 9596909 | AI44: 13781 | AJ44: 53802203 | AK44: 13449 | AL44: 43257263 | AM44: 3549 | AN44: 10029199 | AO44: 3261 | AP44: 10411991 | AQ44: 250.3 | AR44: 200.22 | AS44: 450.52 | AT44: 47219155 | AU44: 36668179 | AV44: 15721 | AW44: 15262 | AX44: 256.05 | AY44: 214.81 | AZ44: 470.86 | BA44: 49534217 | BB44: 40255410 | BC44: 16121 | BD44: 15617 | BE44: 284.13 | BF44: 239.2 | BG44: 523.33 | BH44: 56315826 | BI44: 45865764 | BJ44: 16517 | BK44: 15979 | BL44: 286.46 | BM44: 253.13 | BN44: 539.59 | BO44: 58163063 | BP44: 49682401 | BQ44: 16920 | BR44: 16356 | BS44: 306.94 | BT44: 267.65 | BU44: 574.59 | BV44: 63831402 | BW44: 53669254 | BX44: 17330 | BY44: 16710 | BZ44: 15512 | CA44: 15895 | CB44: 16274 | CC44: 16665 | CD44: 17035 | CE44: 519.0879228 | CF44: 545.9862289 | CG44: 583.9473617 | CH44: 621.8060329 | CI44: 650.7697533 | CJ44: 0.8679069195 | CK44: 0.8624027037 | CL44: 0.8961937913 | CM44: 0.8677786503 | CN44: 0.8829390074 | CO44: 0.9776385749 | CP44: 0.8954681586 | CQ44: 0.9948367783 | CR44: 0.9001156553 | CS44: 15211 | CT44: 15588 | CU44: 15912 | CV44: 16140 | CW44: 16512 | CX44: 0.974518 | CY44: 0.985025 | CZ44: 0.973484 | DA44: 0.980951 | DB44: 0.974306 | DC44: LAUDERDALE | DD44: 0.0093 | DE44: 659.23 | DF44: ALABAMA
A45: LAWRENCE | B45: 1390 | C45: 3456 | D45: 12977110 | E45: 3406 | F45: 9437388 | G45: 919 | H45: 2909941 | I45: 839 | J45: 2339378 | K45: 3500 | L45: 13758094 | M45: 3450 | N45: 10489226 | O45: 1010 | P45: 3035799 | Q45: 912 | R45: 2717173 | S45: 3536 | T45: 15640317 | U45: 3492 | V45: 11757600 | W45: 1086 | X45: 3631837 | Y45: 989 | Z45: 3000120 | AA45: 3588 | AB45: 15629466 | AC45: 3541 | AD45: 12762212 | AE45: 1140 | AF45: 3396892 | AG45: 1043 | AH45: 3567569 | AI45: 3600 | AJ45: 18526935 | AK45: 3540 | AL45: 13113260 | AM45: 1172 | AN45: 4180101 | AO45: 1072 | AP45: 3680105 | AQ45: 302.61 | AR45: 231.19 | AS45: 533.8 | AT45: 15887051 | AU45: 11776766 | AV45: 4375 | AW45: 4245 | AX45: 310.31 | AY45: 252.3 | AZ45: 562.61 | BA45: 16793893 | BB45: 13206399 | BC45: 4510 | BD45: 4362 | BE45: 347.47 | BF45: 274.45 | BG45: 621.92 | BH45: 19272154 | BI45: 14757720 | BJ45: 4622 | BK45: 4481 | BL45: 335.35 | BM45: 296.86 | BN45: 632.21 | BO45: 19026358 | BP45: 16329781 | BQ45: 4728 | BR45: 4584 | BS45: 396.53 | BT45: 303.44 | BU45: 699.97 | BV45: 22707036 | BW45: 16793365 | BX45: 4772 | BY45: 4612 | BZ45: 4316 | CA45: 4444 | CB45: 4558 | CC45: 4663 | CD45: 4696 | CE45: 519.0879228 | CF45: 545.9862289 | CG45: 583.9473617 | CH45: 621.8060329 | CI45: 650.7697533 | CJ45: 1.028342168 | CK45: 1.030447235 | CL45: 1.065027502 | CM45: 1.016731853 | CN45: 1.075603155 | CO45: 1.069663331 | CP45: 0.9752885349 | CQ45: 0.9948367783 | CR45: 0.9803503008 | CS45: 4187 | CT45: 4301 | CU45: 4452 | CV45: 4533 | CW45: 4573 | CX45: 1.074367 | CY45: 1.058443 | CZ45: 1.066689 | DA45: 1.06948 | DB45: 1.078987 | DC45: LAWRENCE | DD45: 0.0111 | DE45: 717.53 | DF45: ALABAMA
A46: LEE | B46: 1400 | C46: 8818 | D46: 27979858 | E46: 8576 | F46: 18528293 | G46: 2131 | H46: 4755250 | I46: 1932 | J46: 3548058 | K46: 8989 | L46: 27878643 | M46: 8711 | N46: 20103492 | O46: 2346 | P46: 5194629 | Q46: 2128 | R46: 4299366 | S46: 9212 | T46: 31821997 | U46: 8901 | V46: 22916535 | W46: 2520 | X46: 6958715 | Y46: 2278 | Z46: 5270123 | AA46: 9542 | AB46: 32424596 | AC46: 9221 | AD46: 24411143 | AE46: 2704 | AF46: 7151909 | AG46: 2447 | AH46: 6028292 | AI46: 9420 | AJ46: 33121694 | AK46: 9051 | AL46: 26381590 | AM46: 2740 | AN46: 8118751 | AO46: 2477 | AP46: 6789995 | AQ46: 249.15 | AR46: 175.08 | AS46: 424.23 | AT46: 32735108 | AU46: 22076351 | AV46: 10949 | AW46: 10508 | AX46: 243.15 | AY46: 187.62 | AZ46: 430.77 | BA46: 33073272 | BB46: 24402858 | BC46: 11335 | BD46: 10839 | BE46: 275.46 | BF46: 210.12 | BG46: 485.58 | BH46: 38780712 | BI46: 28186658 | BJ46: 11732 | BK46: 11179 | BL46: 269.32 | BM46: 217.4 | BN46: 486.72 | BO46: 39576505 | BP46: 30439435 | BQ46: 12246 | BR46: 11668 | BS46: 282.62 | BT46: 239.79 | BU46: 522.41 | BV46: 41240445 | BW46: 33171585 | BX46: 12160 | BY46: 11528 | BZ46: 10748 | CA46: 11113 | CB46: 11482 | CC46: 11984 | CD46: 11859 | CE46: 519.0879228 | CF46: 545.9862289 | CG46: 583.9473617 | CH46: 621.8060329 | CI46: 650.7697533 | CJ46: 0.8172603934 | CK46: 0.7889759433 | CL46: 0.8315475535 | CM46: 0.7827521353 | CN46: 0.8027570387 | CO46: 0.9400091012 | CP46: 0.8560115129 | CQ46: 0.9948367783 | CR46: 0.8604542288 | CS46: 10611 | CT46: 10908 | CU46: 11181 | CV46: 11428 | CW46: 11206 | CX46: 0.954601 | CY46: 0.952423 | CZ46: 0.941874 | DA46: 0.929387 | DB46: 0.92308 | DC46: LEE | DD46: 0.009 | DE46: 630.24 | DF46: ALABAMA
A47: LIMESTONE | B47: 1410 | C47: 6792 | D47: 22511216 | E47: 6603 | F47: 16537990 | G47: 1608 | H47: 4338861 | I47: 1457 | J47: 3796628 | K47: 6968 | L47: 22969888 | M47: 6756 | N47: 18759786 | O47: 1717 | P47: 3988799 | Q47: 1556 | R47: 4207099 | S47: 7146 | T47: 24806418 | U47: 6921 | V47: 21596323 | W47: 1811 | X47: 4799675 | Y47: 1645 | Z47: 4741659 | AA47: 7379 | AB47: 25720659 | AC47: 7155 | AD47: 23036271 | AE47: 1917 | AF47: 5752642 | AG47: 1759 | AH47: 5335466 | AI47: 7408 | AJ47: 26829545 | AK47: 7161 | AL47: 24160240 | AM47: 1935 | AN47: 6033684 | AO47: 1769 | AP47: 5918166 | AQ47: 266.37 | AR47: 210.24 | AS47: 476.61 | AT47: 26850077 | AU47: 20334618 | AV47: 8400 | AW47: 8060 | AX47: 258.67 | AY47: 230.26 | AZ47: 488.93 | BA47: 26958687 | BB47: 22966885 | BC47: 8685 | BD47: 8312 | BE47: 275.45 | BF47: 256.23 | BG47: 531.68 | BH47: 29606093 | BI47: 26337982 | BJ47: 8957 | BK47: 8566 | BL47: 282.14 | BM47: 265.24 | BN47: 547.38 | BO47: 31473301 | BP47: 28371737 | BQ47: 9296 | BR47: 8914 | BS47: 293.12 | BT47: 280.69 | BU47: 573.81 | BV47: 32863229 | BW47: 30078406 | BX47: 9343 | BY47: 8930 | BZ47: 8245 | CA47: 8518 | CB47: 8781 | CC47: 9123 | CD47: 9146 | CE47: 519.0879228 | CF47: 545.9862289 | CG47: 583.9473617 | CH47: 621.8060329 | CI47: 650.7697533 | CJ47: 0.9181681543 | CK47: 0.8954987765 | CL47: 0.9104930253 | CM47: 0.8803066729 | CN47: 0.8817404268 | CO47: 0.9190375063 | CP47: 0.9762837806 | CQ47: 0.9948367783 | CR47: 0.9813507119 | CS47: 8080 | CT47: 8333 | CU47: 8600 | CV47: 8752 | CW47: 8644 | CX47: 0.898539 | CY47: 0.907524 | CZ47: 0.922289 | DA47: 0.932913 | DB47: 0.932014 | DC47: LIMESTONE | DD47: 0.0106 | DE47: 718.39 | DF47: ALABAMA
A48: LOWNDES | B48: 1420 | C48: 1278 | D48: 3994216 | E48: 1239 | F48: 3119323 | G48: 462 | H48: 687079 | I48: 429 | J48: 796083 | K48: 1273 | L48: 4131797 | M48: 1235 | N48: 3664168 | O48: 481 | P48: 850597 | Q48: 448 | R48: 932104 | S48: 1263 | T48: 4536053 | U48: 1223 | V48: 4085462 | W48: 519 | X48: 918428 | Y48: 480 | Z48: 1148710 | AA48: 1132 | AB48: 4598768 | AC48: 1089 | AD48: 4046111 | AE48: 491 | AF48: 1123773 | AG48: 454 | AH48: 1218246 | AI48: 994 | AJ48: 4259838 | AK48: 960 | AL48: 3431618 | AM48: 456 | AN48: 1441543 | AO48: 420 | AP48: 1192861 | AQ48: 224.2 | AR48: 195.61 | AS48: 419.81 | AT48: 4681295 | AU48: 3915406 | AV48: 1740 | AW48: 1668 | AX48: 236.72 | AY48: 227.58 | AZ48: 464.3 | BA48: 4982394 | BB48: 4596272 | BC48: 1754 | BD48: 1683 | BE48: 255.07 | BF48: 256.13 | BG48: 511.2 | BH48: 5454481 | BI48: 5234172 | BJ48: 1782 | BK48: 1703 | BL48: 293.83 | BM48: 284.31 | BN48: 578.14 | BO48: 5722541 | BP48: 5264357 | BQ48: 1623 | BR48: 1543 | BS48: 327.67 | BT48: 279.26 | BU48: 606.93 | BV48: 5701381 | BW48: 4624479 | BX48: 1450 | BY48: 1380 | BZ48: 1707 | CA48: 1722 | CB48: 1746 | CC48: 1587 | CD48: 1417 | CE48: 519.0879228 | CF48: 545.9862289 | CG48: 583.9473617 | CH48: 621.8060329 | CI48: 650.7697533 | CJ48: 0.8087454583 | CK48: 0.8503877486 | CL48: 0.875421371 | CM48: 0.9297754757 | CN48: 0.932634003 | CO48: 0.9503983657 | CP48: 0.9252886401 | CQ48: 0.9948367783 | CR48: 0.9300909056 | CS48: 1626 | CT48: 1659 | CU48: 1699 | CV48: 1498 | CW48: 1402 | CX48: 0.958558 | CY48: 0.947373 | CZ48: 0.947352 | DA48: 0.930786 | DB48: 0.969162 | DC48: LOWNDES | DD48: 0.0065 | DE48: 681.85 | DF48: ALABAMA
A49: MACON | B49: 1430 | C49: 2802 | D49: 8654457 | E49: 2528 | F49: 5427185 | G49: 695 | H49: 1864679 | I49: 626 | J49: 1052372 | K49: 2770 | L49: 9012633 | M49: 2503 | N49: 5705507 | O49: 728 | P49: 1870917 | Q49: 652 | R49: 1246800 | S49: 2761 | T49: 9954160 | U49: 2484 | V49: 6306736 | W49: 774 | X49: 1644307 | Y49: 689 | Z49: 1319423 | AA49: 2576 | AB49: 9461134 | AC49: 2309 | AD49: 5900088 | AE49: 811 | AF49: 1857550 | AG49: 727 | AH49: 1460166 | AI49: 2398 | AJ49: 10878940 | AK49: 2140 | AL49: 6212836 | AM49: 795 | AN49: 2173601 | AO49: 712 | AP49: 1506774 | AQ49: 250.67 | AR49: 171.2 | AS49: 421.87 | AT49: 10519136 | AU49: 6479557 | AV49: 3497 | AW49: 3154 | AX49: 259.28 | AY49: 183.63 | AZ49: 442.91 | BA49: 10883550 | BB49: 6952307 | BC49: 3498 | BD49: 3155 | BE49: 273.42 | BF49: 200.29 | BG49: 473.71 | BH49: 11598467 | BI49: 7626159 | BJ49: 3535 | BK49: 3173 | BL49: 278.48 | BM49: 202.03 | BN49: 480.51 | BO49: 11318684 | BP49: 7360254 | BQ49: 3387 | BR49: 3036 | BS49: 340.66 | BT49: 225.56 | BU49: 566.22 | BV49: 13052541 | BW49: 7719610 | BX49: 3193 | BY49: 2852 | BZ49: 3341 | CA49: 3344 | CB49: 3372 | CC49: 3228 | CD49: 3030 | CE49: 519.0879228 | CF49: 545.9862289 | CG49: 583.9473617 | CH49: 621.8060329 | CI49: 650.7697533 | CJ49: 0.8127139575 | CK49: 0.8112109364 | CL49: 0.8112203788 | CM49: 0.7727650981 | CN49: 0.8700773156 | CO49: 0.9720170898 | CP49: 0.8390773638 | CQ49: 0.9948367783 | CR49: 0.8434321912 | CS49: 3099 | CT49: 3141 | CU49: 3142 | CV49: 2909 | CW49: 2705 | CX49: 0.972167 | CY49: 0.996603 | CZ49: 0.98022 | DA49: 0.955397 | DB49: 0.951642 | DC49: MACON | DD49: 0.0059 | DE49: 618.45 | DF49: ALABAMA
A50: MADISON | B50: 1440 | C50: 30977 | D50: 87479456 | E50: 29308 | F50: 75859313 | G50: 4720 | H50: 13097198 | I50: 4213 | J50: 11172479 | K50: 32133 | L50: 95918363 | M50: 30362 | N50: 87563650 | O50: 5127 | P50: 14247432 | Q50: 4564 | R50: 13269190 | S50: 33148 | T50: 106402646 | U50: 31247 | V50: 99463125 | W50: 5591 | X50: 16912552 | Y50: 4978 | Z50: 16077599 | AA50: 34492 | AB50: 110987718 | AC50: 32513 | AD50: 107033329 | AE50: 6019 | AF50: 17603105 | AG50: 5392 | AH50: 18726859 | AI50: 34538 | AJ50: 118820318 | AK50: 32457 | AL50: 109502732 | AM50: 6107 | AN50: 19707293 | AO50: 5438 | AP50: 19749333 | AQ50: 234.79 | AR50: 216.36 | AS50: 451.15 | AT50: 100576654 | AU50: 87031792 | AV50: 35697 | AW50: 33521 | AX50: 246.39 | AY50: 240.59 | AZ50: 486.98 | BA50: 110165795 | BB50: 100832840 | BC50: 37260 | BD50: 34926 | BE50: 265.27 | BF50: 265.79 | BG50: 531.06 | BH50: 123315198 | BI50: 115540724 | BJ50: 38739 | BK50: 36225 | BL50: 264.52 | BM50: 276.48 | BN50: 541 | BO50: 128590823 | BP50: 125760188 | BQ50: 40511 | BR50: 37905 | BS50: 284.02 | BT50: 284.23 | BU50: 568.25 | BV50: 138527611 | BW50: 129252065 | BX50: 40645 | BY50: 37895 | BZ50: 34705 | CA50: 36214 | CB50: 37604 | CC50: 39332 | CD50: 39334 | CE50: 519.0879228 | CF50: 545.9862289 | CG50: 583.9473617 | CH50: 621.8060329 | CI50: 650.7697533 | CJ50: 0.8691205867 | CK50: 0.8919272579 | CL50: 0.9094312858 | CM50: 0.8700462385 | CN50: 0.8731966985 | CO50: 0.9387243162 | CP50: 0.940365982 | CQ50: 0.9948367783 | CR50: 0.9452464992 | CS50: 33874 | CT50: 34996 | CU50: 36049 | CV50: 36960 | CW50: 37253 | CX50: 0.931872 | CY50: 0.932042 | CZ50: 0.941356 | DA50: 0.939964 | DB50: 0.947456 | DC50: MADISON | DD50: 0.0172 | DE50: 690.36 | DF50: ALABAMA
A51: MARENGO | B51: 1450 | C51: 2764 | D51: 10161676 | E51: 2724 | F51: 6753251 | G51: 761 | H51: 2442882 | I51: 726 | J51: 1512794 | K51: 2757 | L51: 10502961 | M51: 2716 | N51: 6651383 | O51: 817 | P51: 2351389 | Q51: 775 | R51: 1606820 | S51: 2698 | T51: 12171944 | U51: 2652 | V51: 7400862 | W51: 882 | X51: 2690551 | Y51: 832 | Z51: 1924940 | AA51: 2718 | AB51: 12435047 | AC51: 2675 | AD51: 7701629 | AE51: 950 | AF51: 3224127 | AG51: 892 | AH51: 2467589 | AI51: 2729 | AJ51: 14771666 | AK51: 2695 | AL51: 8566486 | AM51: 999 | AN51: 3029281 | AO51: 933 | AP51: 2345881 | AQ51: 297.98 | AR51: 199.66 | AS51: 497.64 | AT51: 12604558 | AU51: 8266045 | AV51: 3525 | AW51: 3450 | AX51: 299.72 | AY51: 197.13 | AZ51: 496.85 | BA51: 12854350 | BB51: 8258203 | BC51: 3574 | BD51: 3491 | BE51: 345.96 | BF51: 223.06 | BG51: 569.02 | BH51: 14862495 | BI51: 9325802 | BJ51: 3580 | BK51: 3484 | BL51: 355.76 | BM51: 237.58 | BN51: 593.34 | BO51: 15659174 | BP51: 10169218 | BQ51: 3668 | BR51: 3567 | BS51: 397.91 | BT51: 250.65 | BU51: 648.56 | BV51: 17800947 | BW51: 10912367 | BX51: 3728 | BY51: 3628 | BZ51: 3491 | CA51: 3537 | CB51: 3537 | CC51: 3622 | CD51: 3680 | CE51: 519.0879228 | CF51: 545.9862289 | CG51: 583.9473617 | CH51: 621.8060329 | CI51: 650.7697533 | CJ51: 0.9586815223 | CK51: 0.9100046369 | CL51: 0.974437145 | CM51: 0.9542203977 | CN51: 0.9966044008 | CO51: 0.9651399198 | CP51: 0.993420333 | CQ51: 0.9948367783 | CR51: 0.9985762033 | CS51: 3347 | CT51: 3409 | CU51: 3436 | CV51: 3489 | CW51: 3568 | CX51: 0.96426 | CY51: 0.974325 | CZ51: 0.944444 | DA51: 0.965964 | DB51: 0.976314 | DC51: MARENGO | DD51: 0.0226 | DE51: 727.92 | DF51: ALABAMA
A52: MARION | B52: 1460 | C52: 4468 | D52: 15676096 | E52: 4402 | F52: 12197060 | G52: 1145 | H52: 3007752 | I52: 1049 | J52: 2707001 | K52: 4520 | L52: 16058473 | M52: 4448 | N52: 12283459 | O52: 1252 | P52: 3271503 | Q52: 1137 | R52: 3141373 | S52: 4561 | T52: 19669371 | U52: 4476 | V52: 13858477 | W52: 1328 | X52: 3901774 | Y52: 1222 | Z52: 3430866 | AA52: 4555 | AB52: 20828055 | AC52: 4477 | AD52: 14888162 | AE52: 1397 | AF52: 3803911 | AG52: 1289 | AH52: 3970922 | AI52: 4515 | AJ52: 22095647 | AK52: 4426 | AL52: 15177009 | AM52: 1413 | AN52: 5226680 | AO52: 1306 | AP52: 4607231 | AQ52: 277.39 | AR52: 227.85 | AS52: 505.24 | AT52: 18683848 | AU52: 14904061 | AV52: 5613 | AW52: 5451 | AX52: 279.08 | AY52: 230.15 | AZ52: 509.23 | BA52: 19329976 | BB52: 15424832 | BC52: 5772 | BD52: 5585 | BE52: 333.55 | BF52: 252.86 | BG52: 586.41 | BH52: 23571145 | BI52: 17289343 | BJ52: 5889 | BK52: 5698 | BL52: 344.87 | BM52: 272.56 | BN52: 617.43 | BO52: 24631966 | BP52: 18859084 | BQ52: 5952 | BR52: 5766 | BS52: 384.09 | BT52: 287.63 | BU52: 671.72 | BV52: 27322327 | BW52: 19784240 | BX52: 5928 | BY52: 5732 | BZ52: 5539 | CA52: 5688 | CB52: 5803 | CC52: 5868 | CD52: 5835 | CE52: 519.0879228 | CF52: 545.9862289 | CG52: 583.9473617 | CH52: 621.8060329 | CI52: 650.7697533 | CJ52: 0.9733225872 | CK52: 0.9326792015 | CL52: 1.004217226 | CM52: 0.9929623827 | CN52: 1.032193025 | CO52: 0.987530832 | CP52: 0.9995382955 | CQ52: 0.9948367783 | CR52: 1.004725918 | CS52: 5438 | CT52: 5590 | CU52: 5688 | CV52: 5713 | CW52: 5673 | CX52: 0.998659 | CY52: 1.00125 | CZ52: 0.970561 | DA52: 0.987634 | DB52: 0.980256 | DC52: MARION | DD52: 0.0216 | DE52: 732.66 | DF52: ALABAMA
A53: MARSHALL | B53: 1470 | C53: 12519 | D53: 44013655 | E53: 12041 | F53: 30467867 | G53: 2833 | H53: 7423882 | I53: 2589 | J53: 6615788 | K53: 12569 | L53: 45131145 | M53: 12090 | N53: 33211153 | O53: 2941 | P53: 8903494 | Q53: 2702 | R53: 8174185 | S53: 12722 | T53: 46416924 | U53: 12229 | V53: 37513910 | W53: 3181 | X53: 9453927 | Y53: 2907 | Z53: 9219884 | AA53: 12922 | AB53: 52574839 | AC53: 12410 | AD53: 41919779 | AE53: 3480 | AF53: 10821986 | AG53: 3181 | AH53: 10393041 | AI53: 13024 | AJ53: 52664731 | AK53: 12474 | AL53: 44808026 | AM53: 3630 | AN53: 10876577 | AO53: 3321 | AP53: 12144282 | AQ53: 279.21 | AR53: 211.23 | AS53: 490.44 | AT53: 51437537 | AU53: 37083655 | AV53: 15352 | AW53: 14630 | AX53: 290.32 | AY53: 233.15 | AZ53: 523.47 | BA53: 54034639 | BB53: 41385338 | BC53: 15510 | BD53: 14792 | BE53: 292.77 | BF53: 257.3 | BG53: 550.07 | BH53: 55870851 | BI53: 46733794 | BJ53: 15903 | BK53: 15136 | BL53: 322.1 | BM53: 279.61 | BN53: 601.71 | BO53: 63396825 | BP53: 52312820 | BQ53: 16402 | BR53: 15591 | BS53: 317.95 | BT53: 300.48 | BU53: 618.43 | BV53: 63541308 | BW53: 56952308 | BX53: 16654 | BY53: 15795 | BZ53: 15023 | CA53: 15188 | CB53: 15557 | CC53: 16035 | CD53: 16245 | CE53: 519.0879228 | CF53: 545.9862289 | CG53: 583.9473617 | CH53: 621.8060329 | CI53: 650.7697533 | CJ53: 0.9448110397 | CK53: 0.9587604454 | CL53: 0.9419855899 | CM53: 0.967681187 | CN53: 0.9503053836 | CO53: 1.015112085 | CP53: 0.9385256497 | CQ53: 0.9948367783 | CR53: 0.9433966156 | CS53: 14517 | CT53: 14781 | CU53: 15119 | CV53: 15328 | CW53: 15625 | CX53: 1.01423 | CY53: 1.012988 | CZ53: 1.022654 | DA53: 1.013777 | DB53: 1.011953 | DC53: MARSHALL | DD53: 0.0141 | DE53: 689.76 | DF53: ALABAMA
A54: MOBILE | B54: 1480 | C54: 35284 | D54: 129922735 | E54: 33996 | F54: 90957591 | G54: 8818 | H54: 24154952 | I54: 7949 | J54: 17727705 | K54: 37499 | L54: 143506698 | M54: 36172 | N54: 104231750 | O54: 9747 | P54: 27132072 | Q54: 8791 | R54: 21874568 | S54: 36874 | T54: 150302147 | U54: 35447 | V54: 110828191 | W54: 10137 | X54: 29822146 | Y54: 9120 | Z54: 23644574 | AA54: 35992 | AB54: 157905134 | AC54: 34554 | AD54: 109971741 | AE54: 10423 | AF54: 32703073 | AG54: 9308 | AH54: 25539915 | AI54: 34369 | AJ54: 156813859 | AK54: 32870 | AL54: 108324721 | AM54: 10265 | AN54: 32732240 | AO54: 9076 | AP54: 25619184 | AQ54: 291.14 | AR54: 215.93 | AS54: 507.07 | AT54: 154077687 | AU54: 108685296 | AV54: 44102 | AW54: 41945 | AX54: 300.98 | AY54: 233.72 | AZ54: 534.7 | BA54: 170638770 | BB54: 126106318 | BC54: 47246 | BD54: 44963 | BE54: 319.29 | BF54: 251.44 | BG54: 570.73 | BH54: 180124293 | BI54: 134472765 | BJ54: 47011 | BK54: 44567 | BL54: 342.22 | BM54: 257.46 | BN54: 599.68 | BO54: 190608207 | BP54: 135511656 | BQ54: 46415 | BR54: 43862 | BS54: 353.89 | BT54: 266.1 | BU54: 619.99 | BV54: 189546099 | BW54: 133943905 | BX54: 44634 | BY54: 41946 | BZ54: 43118 | CA54: 46223 | CB54: 45908 | CC54: 45260 | CD54: 43353 | CE54: 519.0879228 | CF54: 545.9862289 | CG54: 583.9473617 | CH54: 621.8060329 | CI54: 650.7697533 | CJ54: 0.9768480016 | CK54: 0.9793287297 | CL54: 0.9773654912 | CM54: 0.9644165033 | CN54: 0.9527025448 | CO54: 0.9850680707 | CP54: 0.9848377823 | CQ54: 0.9948367783 | CR54: 0.989949109 | CS54: 41630 | CT54: 44867 | CU54: 44066 | CV54: 42619 | CW54: 40943 | CX54: 0.990578 | CY54: 0.99063 | CZ54: 0.989232 | DA54: 0.977574 | DB54: 0.97669 | DC54: MOBILE | DD54: 0.0176 | DE54: 722.9 | DF54: ALABAMA
A55: MONROE | B55: 1490 | C55: 3015 | D55: 11095978 | E55: 2958 | F55: 7442090 | G55: 776 | H55: 1934500 | I55: 705 | J55: 1391467 | K55: 3002 | L55: 11660717 | M55: 2942 | N55: 8327914 | O55: 843 | P55: 1885101 | Q55: 776 | R55: 1938964 | S55: 3017 | T55: 11967100 | U55: 2953 | V55: 8959991 | W55: 875 | X55: 2441220 | Y55: 804 | Z55: 2197691 | AA55: 2986 | AB55: 13380072 | AC55: 2920 | AD55: 9214979 | AE55: 956 | AF55: 2466365 | AG55: 874 | AH55: 2430893 | AI55: 3008 | AJ55: 13262438 | AK55: 2934 | AL55: 9316963 | AM55: 989 | AN55: 2890213 | AO55: 904 | AP55: 3128247 | AQ55: 286.43 | AR55: 200.96 | AS55: 487.39 | AT55: 13030478 | AU55: 8833557 | AV55: 3791 | AW55: 3663 | AX55: 293.58 | AY55: 230.12 | AZ55: 523.7 | BA55: 13545818 | BB55: 10266878 | BC55: 3845 | BD55: 3718 | BE55: 308.5 | BF55: 247.49 | BG55: 555.99 | BH55: 14408320 | BI55: 11157682 | BJ55: 3892 | BK55: 3757 | BL55: 334.99 | BM55: 255.8 | BN55: 590.79 | BO55: 15846437 | BP55: 11645872 | BQ55: 3942 | BR55: 3794 | BS55: 336.77 | BT55: 270.22 | BU55: 606.99 | BV55: 16152651 | BW55: 12445210 | BX55: 3997 | BY55: 3838 | BZ55: 3733 | CA55: 3788 | CB55: 3831 | CC55: 3875 | CD55: 3921 | CE55: 519.0879228 | CF55: 545.9862289 | CG55: 583.9473617 | CH55: 621.8060329 | CI55: 650.7697533 | CJ55: 0.9389353491 | CK55: 0.9591817014 | CL55: 0.95212349 | CM55: 0.9501194404 | CN55: 0.9327262015 | CO55: 0.9489051197 | CP55: 0.9975889231 | CQ55: 0.9948367783 | CR55: 1.002766428 | CS55: 3616 | CT55: 3660 | CU55: 3744 | CV55: 3753 | CW55: 3788 | CX55: 0.95929 | CY55: 0.971332 | CZ55: 0.954212 | DA55: 0.92925 | DB55: 0.931551 | DC55: MONROE | DD55: 0.0057 | DE55: 735.33 | DF55: ALABAMA
A56: MONTGOMERY | B56: 1500 | C56: 25199 | D56: 76513438 | E56: 24019 | F56: 63835415 | G56: 5714 | H56: 12032382 | I56: 5148 | J56: 10974648 | K56: 25078 | L56: 81405256 | M56: 23884 | N56: 68037837 | O56: 6024 | P56: 14227518 | Q56: 5423 | R56: 13398592 | S56: 24833 | T56: 86549265 | U56: 23613 | V56: 72816415 | W56: 6317 | X56: 16491464 | Y56: 5675 | Z56: 15340535 | AA56: 23116 | AB56: 87625221 | AC56: 21931 | AD56: 73861447 | AE56: 6020 | AF56: 15677255 | AG56: 5351 | AH56: 14487235 | AI56: 22044 | AJ56: 89745558 | AK56: 20851 | AL56: 71522600 | AM56: 5778 | AN56: 17901921 | AO56: 5059 | AP56: 14053757 | AQ56: 238.7 | AR56: 213.74 | AS56: 452.44 | AT56: 88545820 | AU56: 74810063 | AV56: 30913 | AW56: 29167 | AX56: 256.23 | AY56: 231.56 | AZ56: 487.79 | BA56: 95632774 | BB56: 81436429 | BC56: 31102 | BD56: 29307 | BE56: 275.66 | BF56: 250.83 | BG56: 526.49 | BH56: 103040729 | BI56: 88156950 | BJ56: 31150 | BK56: 29288 | BL56: 295.46 | BM56: 269.86 | BN56: 565.32 | BO56: 103302476 | BP56: 88348682 | BQ56: 29136 | BR56: 27282 | BS56: 322.43 | BT56: 275.24 | BU56: 597.67 | BV56: 107647479 | BW56: 85576357 | BX56: 27822 | BY56: 25910 | BZ56: 30117 | CA56: 30297 | CB56: 30310 | CC56: 28297 | CD56: 26911 | CE56: 519.0879228 | CF56: 545.9862289 | CG56: 583.9473617 | CH56: 621.8060329 | CI56: 650.7697533 | CJ56: 0.8716057148 | CK56: 0.8934108118 | CL56: 0.9016052379 | CM56: 0.9091581138 | CN56: 0.9184047 | CO56: 0.9413643289 | CP56: 0.9548236406 | CQ56: 0.9948367783 | CR56: 0.9597791934 | CS56: 28649 | CT56: 28941 | CU56: 29307 | CV56: 26737 | CW56: 25608 | CX56: 0.951089 | CY56: 0.954235 | CZ56: 0.943991 | DA56: 0.925356 | DB56: 0.929647 | DC56: MONTGOMERY | DD56: 0.006 | DE56: 703.74 | DF56: ALABAMA
A57: MORGAN | B57: 1510 | C57: 14377 | D57: 49464389 | E57: 13995 | F57: 34585014 | G57: 2984 | H57: 8082202 | I57: 2681 | J57: 7628974 | K57: 14718 | L57: 53306517 | M57: 14301 | N57: 39009558 | O57: 3152 | P57: 8461174 | Q57: 2836 | R57: 9021852 | S57: 15017 | T57: 52564176 | U57: 14531 | V57: 43460900 | W57: 3420 | X57: 9770999 | Y57: 3083 | Z57: 11604408 | AA57: 15414 | AB57: 57949882 | AC57: 14908 | AD57: 47982649 | AE57: 3690 | AF57: 10852274 | AG57: 3349 | AH57: 12605362 | AI57: 15685 | AJ57: 64610698 | AK57: 15134 | AL57: 51827703 | AM57: 3915 | AN57: 11041438 | AO57: 3555 | AP57: 13699309 | AQ57: 276.23 | AR57: 210.95 | AS57: 487.18 | AT57: 57546591 | AU57: 42213988 | AV57: 17361 | AW57: 16676 | AX57: 288.04 | AY57: 233.57 | AZ57: 521.61 | BA57: 61767691 | BB57: 48031410 | BC57: 17870 | BD57: 17137 | BE57: 281.75 | BF57: 260.52 | BG57: 542.27 | BH57: 62335175 | BI57: 55065308 | BJ57: 18437 | BK57: 17614 | BL57: 300.12 | BM57: 276.55 | BN57: 576.67 | BO57: 68802156 | BP57: 60588011 | BQ57: 19104 | BR57: 18257 | BS57: 321.65 | BT57: 292.18 | BU57: 613.83 | BV57: 75652136 | BW57: 65527012 | BX57: 19600 | BY57: 18689 | BZ57: 17049 | CA57: 17541 | CB57: 18066 | CC57: 18721 | CD57: 19166 | CE57: 519.0879228 | CF57: 545.9862289 | CG57: 583.9473617 | CH57: 621.8060329 | CI57: 650.7697533 | CJ57: 0.9385307934 | CK57: 0.955353766 | CL57: 0.9286282216 | CM57: 0.9274113944 | CN57: 0.9432368313 | CO57: 0.9900406979 | CP57: 0.9480743603 | CQ57: 0.9948367783 | CR57: 0.9529948842 | CS57: 16646 | CT57: 17115 | CU57: 17522 | CV57: 17947 | CW57: 18362 | CX57: 0.998602 | CY57: 0.995969 | CZ57: 0.984009 | DA57: 0.983968 | DB57: 0.988445 | DC57: MORGAN | DD57: 0.0122 | DE57: 697.24 | DF57: ALABAMA
A58: PERRY | B58: 1520 | C58: 1516 | D58: 5575316 | E58: 1501 | F58: 4025506 | G58: 435 | H58: 916937 | I58: 401 | J58: 769520 | K58: 1485 | L58: 5453163 | M58: 1458 | N58: 3987822 | O58: 457 | P58: 1032510 | Q58: 422 | R58: 840079 | S58: 1474 | T58: 6011202 | U58: 1442 | V58: 4512211 | W58: 486 | X58: 1579633 | Y58: 444 | Z58: 986259 | AA58: 1479 | AB58: 7368819 | AC58: 1442 | AD58: 4587322 | AE58: 512 | AF58: 1762016 | AG58: 478 | AH58: 1269137 | AI58: 1443 | AJ58: 6847466 | AK58: 1406 | AL58: 5066642 | AM58: 525 | AN58: 1151707 | AO58: 489 | AP58: 1115103 | AQ58: 277.3 | AR58: 210.09 | AS58: 487.39 | AT58: 6492253 | AU58: 4795026 | AV58: 1951 | AW58: 1902 | AX58: 278.31 | AY58: 214 | AZ58: 492.31 | BA58: 6485673 | BB58: 4827901 | BC58: 1942 | BD58: 1880 | BE58: 322.74 | BF58: 242.95 | BG58: 565.69 | BH58: 7590835 | BI58: 5498470 | BJ58: 1960 | BK58: 1886 | BL58: 382.17 | BM58: 254.19 | BN58: 636.36 | BO58: 9130835 | BP58: 5856459 | BQ58: 1991 | BR58: 1920 | BS58: 338.72 | BT58: 271.84 | BU58: 610.56 | BV58: 7999173 | BW58: 6181745 | BX58: 1968 | BY58: 1895 | BZ58: 1929 | CA58: 1914 | CB58: 1927 | CC58: 1959 | CD58: 1933 | CE58: 519.0879228 | CF58: 545.9862289 | CG58: 583.9473617 | CH58: 621.8060329 | CI58: 650.7697533 | CJ58: 0.9389353491 | CK58: 0.9016894089 | CL58: 0.9687345762 | CM58: 1.02340596 | CN58: 0.9382120127 | CO58: 1.043288375 | CP58: 0.914603751 | CQ58: 0.9948367783 | CR58: 0.9193505618 | CS58: 1821 | CT58: 1827 | CU58: 1841 | CV58: 1879 | CW58: 1854 | CX58: 1.022846 | CY58: 1.036522 | CZ58: 1.039423 | DA58: 1.061856 | DB58: 1.055055 | DC58: PERRY | DD58: 0.023 | DE58: 670.07 | DF58: ALABAMA
A59: PICKENS | B59: 1530 | C59: 3067 | D59: 11581983 | E59: 3062 | F59: 8470157 | G59: 831 | H59: 2452068 | I59: 773 | J59: 1575818 | K59: 3046 | L59: 12161371 | M59: 3028 | N59: 8587386 | O59: 889 | P59: 2693738 | Q59: 834 | R59: 1876061 | S59: 3041 | T59: 11999957 | U59: 3014 | V59: 9564898 | W59: 979 | X59: 2881807 | Y59: 918 | Z59: 2137369 | AA59: 3062 | AB59: 13597881 | AC59: 3037 | AD59: 10548768 | AE59: 1055 | AF59: 2937489 | AG59: 985 | AH59: 2623708 | AI59: 3061 | AJ59: 14342678 | AK59: 3027 | AL59: 10663615 | AM59: 1108 | AN59: 3392762 | AO59: 1027 | AP59: 2930106 | AQ59: 300.03 | AR59: 218.3 | AS59: 518.33 | AT59: 14034051 | AU59: 10045975 | AV59: 3898 | AW59: 3835 | AX59: 314.59 | AY59: 225.78 | AZ59: 540.37 | BA59: 14855109 | BB59: 10463447 | BC59: 3935 | BD59: 3862 | BE59: 308.49 | BF59: 248.01 | BG59: 556.5 | BH59: 14881764 | BI59: 11702267 | BJ59: 4020 | BK59: 3932 | BL59: 334.7 | BM59: 272.93 | BN59: 607.63 | BO59: 16535370 | BP59: 13172476 | BQ59: 4117 | BR59: 4022 | BS59: 354.51 | BT59: 279.43 | BU59: 633.94 | BV59: 17735440 | BW59: 13593721 | BX59: 4169 | BY59: 4054 | BZ59: 3869 | CA59: 3902 | CB59: 3980 | CC59: 4074 | CD59: 4114 | CE59: 519.0879228 | CF59: 545.9862289 | CG59: 583.9473617 | CH59: 621.8060329 | CI59: 650.7697533 | CJ59: 0.9985398952 | CK59: 0.989713607 | CL59: 0.9529968564 | CM59: 0.9772018409 | CN59: 0.9741386978 | CO59: 0.9709713067 | CP59: 1.007772498 | CQ59: 0.9948367783 | CR59: 1.013002857 | CS59: 3726 | CT59: 3784 | CU59: 3876 | CV59: 3925 | CW59: 3982 | CX59: 0.977302 | CY59: 0.993372 | CZ59: 0.975081 | DA59: 0.963023 | DB59: 0.947595 | DC59: PICKENS | DD59: 0.0107 | DE59: 741.54 | DF59: ALABAMA
A60: PIKE | B60: 1540 | C60: 3857 | D60: 14473745 | E60: 3773 | F60: 10000484 | G60: 1066 | H60: 2338184 | I60: 1003 | J60: 2245532 | K60: 3892 | L60: 15456708 | M60: 3797 | N60: 10124180 | O60: 1128 | P60: 3655413 | Q60: 1048 | R60: 2617829 | S60: 3894 | T60: 16964628 | U60: 3788 | V60: 11647974 | W60: 1186 | X60: 3819436 | Y60: 1103 | Z60: 2812200 | AA60: 3942 | AB60: 17769267 | AC60: 3835 | AD60: 11729232 | AE60: 1227 | AF60: 3310146 | AG60: 1135 | AH60: 3166502 | AI60: 3718 | AJ60: 16288351 | AK60: 3602 | AL60: 11654339 | AM60: 1162 | AN60: 2986200 | AO60: 1064 | AP60: 2853722 | AQ60: 284.58 | AR60: 213.67 | AS60: 498.25 | AT60: 16811929 | AU60: 12246016 | AV60: 4923 | AW60: 4776 | AX60: 317.27 | AY60: 219.16 | AZ60: 536.43 | BA60: 19112121 | BB60: 12742009 | BC60: 5020 | BD60: 4845 | BE60: 340.95 | BF60: 246.37 | BG60: 587.32 | BH60: 20784064 | BI60: 14460174 | BJ60: 5080 | BK60: 4891 | BL60: 339.84 | BM60: 249.76 | BN60: 589.6 | BO60: 21079413 | BP60: 14895734 | BQ60: 5169 | BR60: 4970 | BS60: 329.14 | BT60: 259.11 | BU60: 588.25 | BV60: 19274551 | BW60: 14508061 | BX60: 4880 | BY60: 4666 | BZ60: 4856 | CA60: 4942 | CB60: 4995 | CC60: 5079 | CD60: 4778 | CE60: 519.0879228 | CF60: 545.9862289 | CG60: 583.9473617 | CH60: 621.8060329 | CI60: 650.7697533 | CJ60: 0.9598566604 | CK60: 0.9824973078 | CL60: 1.005775586 | CM60: 0.9482056603 | CN60: 0.9039295343 | CO60: 0.9838782893 | CP60: 0.9757842613 | CQ60: 0.9948367783 | CR60: 0.9808486001 | CS60: 4735 | CT60: 4777 | CU60: 4844 | CV60: 4870 | CW60: 4541 | CX60: 0.986023 | CY60: 0.998828 | CZ60: 1.001244 | DA60: 0.973832 | DB60: 0.958165 | DC60: PIKE | DD60: 0.0051 | DE60: 719.41 | DF60: ALABAMA
A61: RANDOLPH | B61: 1550 | C61: 3299 | D61: 11008555 | E61: 3250 | F61: 8048839 | G61: 787 | H61: 1955978 | I61: 739 | J61: 1617889 | K61: 3347 | L61: 11426237 | M61: 3288 | N61: 8707194 | O61: 854 | P61: 2574433 | Q61: 801 | R61: 1739116 | S61: 3380 | T61: 13319590 | U61: 3317 | V61: 9499658 | W61: 877 | X61: 2644145 | Y61: 821 | Z61: 1968605 | AA61: 3383 | AB61: 13211639 | AC61: 3328 | AD61: 9389114 | AE61: 913 | AF61: 2258128 | AG61: 851 | AH61: 2202399 | AI61: 3365 | AJ61: 14088656 | AK61: 3309 | AL61: 10414619 | AM61: 960 | AN61: 3030941 | AO61: 890 | AP61: 2672868 | AQ61: 264.41 | AR61: 201.95 | AS61: 466.36 | AT61: 12964533 | AU61: 9666728 | AV61: 4086 | AW61: 3989 | AX61: 277.72 | AY61: 212.89 | AZ61: 490.61 | BA61: 14000670 | BB61: 10446310 | BC61: 4201 | BD61: 4089 | BE61: 312.5 | BF61: 230.95 | BG61: 543.45 | BH61: 15963735 | BI61: 11468263 | BJ61: 4257 | BK61: 4138 | BL61: 300.08 | BM61: 231.15 | BN61: 531.23 | BO61: 15469767 | BP61: 11591513 | BQ61: 4296 | BR61: 4179 | BS61: 329.86 | BT61: 259.73 | BU61: 589.59 | BV61: 17119597 | BW61: 13087487 | BX61: 4325 | BY61: 4199 | BZ61: 4042 | CA61: 4151 | CB61: 4203 | CC61: 4243 | CD61: 4265 | CE61: 519.0879228 | CF61: 545.9862289 | CG61: 583.9473617 | CH61: 621.8060329 | CI61: 650.7697533 | CJ61: 0.8984219812 | CK61: 0.8985757772 | CL61: 0.9306489516 | CM61: 0.8543339432 | CN61: 0.9059886343 | CO61: 0.9828293604 | CP61: 0.9132753799 | CQ61: 0.9948367783 | CR61: 0.9180152964 | CS61: 3943 | CT61: 4022 | CU61: 4090 | CV61: 4101 | CW61: 4123 | CX61: 0.988855 | CY61: 0.998104 | CZ61: 0.974124 | DA61: 0.981261 | DB61: 0.972362 | DC61: RANDOLPH | DD61: 0.0111 | DE61: 671.91 | DF61: ALABAMA
A62: RUSSELL | B62: 1560 | C62: 6664 | D62: 19612841 | E62: 6455 | F62: 14882842 | G62: 1646 | H62: 4051961 | I62: 1519 | J62: 3019253 | K62: 6733 | L62: 20049641 | M62: 6527 | N62: 15540368 | O62: 1725 | P62: 4161420 | Q62: 1583 | R62: 3458229 | S62: 6761 | T62: 23925139 | U62: 6556 | V62: 17274851 | W62: 1830 | X62: 4486979 | Y62: 1677 | Z62: 3910216 | AA62: 6776 | AB62: 28382546 | AC62: 6584 | AD62: 19018776 | AE62: 1954 | AF62: 5158104 | AG62: 1787 | AH62: 4502074 | AI62: 6325 | AJ62: 25209252 | AK62: 6141 | AL62: 18382693 | AM62: 1847 | AN62: 5050916 | AO62: 1673 | AP62: 4514207 | AQ62: 237.31 | AR62: 187.09 | AS62: 424.4 | AT62: 23664802 | AU62: 17902095 | AV62: 8310 | AW62: 7974 | AX62: 238.54 | AY62: 195.22 | AZ62: 433.76 | BA62: 24211061 | BB62: 18998597 | BC62: 8458 | BD62: 8110 | BE62: 275.6 | BF62: 214.43 | BG62: 490.03 | BH62: 28412118 | BI62: 21185067 | BJ62: 8591 | BK62: 8233 | BL62: 320.17 | BM62: 234.15 | BN62: 554.32 | BO62: 33540650 | BP62: 23520850 | BQ62: 8730 | BR62: 8371 | BS62: 308.58 | BT62: 244.19 | BU62: 552.77 | BV62: 30260168 | BW62: 22896900 | BX62: 8172 | BY62: 7814 | BZ62: 8157 | CA62: 8302 | CB62: 8429 | CC62: 8568 | CD62: 8001 | CE62: 519.0879228 | CF62: 545.9862289 | CG62: 583.9473617 | CH62: 621.8060329 | CI62: 650.7697533 | CJ62: 0.8175878909 | CK62: 0.7944522719 | CL62: 0.8391681034 | CM62: 0.8914677097 | CN62: 0.8494094835 | CO62: 1.016462841 | CP62: 0.8248379166 | CQ62: 0.9948367783 | CR62: 0.829118841 | CS62: 7933 | CT62: 8092 | CU62: 8183 | CV62: 8071 | CW62: 7798 | CX62: 1.005061 | CY62: 1.021392 | CZ62: 1.014043 | DA62: 1.016555 | DB62: 1.025391 | DC62: RUSSELL | DD62: 0.0069 | DE62: 607.74 | DF62: ALABAMA
A63: ST. CLAIR | B63: 1570 | C63: 5679 | D63: 20499088 | E63: 5506 | F63: 14844891 | G63: 1574 | H63: 4192815 | I63: 1377 | J63: 3294098 | K63: 5708 | L63: 22963668 | M63: 5528 | N63: 15759065 | O63: 1624 | P63: 4477939 | Q63: 1416 | R63: 3618713 | S63: 5575 | T63: 24455265 | U63: 5375 | V63: 16934104 | W63: 1658 | X63: 4809768 | Y63: 1430 | Z63: 4270141 | AA63: 5587 | AB63: 26805263 | AC63: 5363 | AD63: 18157478 | AE63: 1749 | AF63: 5906752 | AG63: 1505 | AH63: 4824924 | AI63: 5394 | AJ63: 25052718 | AK63: 5129 | AL63: 17797198 | AM63: 1675 | AN63: 3893320 | AO63: 1421 | AP63: 4445917 | AQ63: 283.7 | AR63: 219.61 | AS63: 503.31 | AT63: 24691903 | AU63: 18138989 | AV63: 7253 | AW63: 6883 | AX63: 311.89 | AY63: 232.55 | AZ63: 544.44 | BA63: 27441607 | BB63: 19377778 | BC63: 7332 | BD63: 6944 | BE63: 337.17 | BF63: 259.67 | BG63: 596.84 | BH63: 29265033 | BI63: 21204245 | BJ63: 7233 | BK63: 6805 | BL63: 371.59 | BM63: 278.86 | BN63: 650.45 | BO63: 32712015 | BP63: 22982402 | BQ63: 7336 | BR63: 6868 | BS63: 341.23 | BT63: 282.99 | BU63: 624.22 | BV63: 28946038 | BW63: 22243115 | BX63: 7069 | BY63: 6550 | BZ63: 7084 | CA63: 7158 | CB63: 7040 | CC63: 7124 | CD63: 6822 | CE63: 519.0879228 | CF63: 545.9862289 | CG63: 583.9473617 | CH63: 621.8060329 | CI63: 650.7697533 | CJ63: 0.9696045273 | CK63: 0.9971680075 | CL63: 1.022078425 | CM63: 1.046065759 | CN63: 0.9592025396 | CO63: 0.9735720777 | CP63: 1.025937242 | CQ63: 0.9948367783 | CR63: 1.031261875 | CS63: 7065 | CT63: 7056 | CU63: 6787 | CV63: 6629 | CW63: 6351 | CX63: 0.982363 | CY63: 0.968952 | CZ63: 0.976636 | DA63: 0.972672 | DB63: 0.966591 | DC63: ST. | DD63: 0.0279 | DE63: 750.34 | DF63: ALABAMA
A64: SHELBY | B64: 1580 | C64: 8165 | D64: 28346748 | E64: 7788 | F64: 20179825 | G64: 1886 | H64: 5343509 | I64: 1621 | J64: 3973835 | K64: 8561 | L64: 33487835 | M64: 8154 | N64: 23587517 | O64: 1958 | P64: 6477507 | Q64: 1662 | R64: 4985078 | S64: 8577 | T64: 36001871 | U64: 8144 | V64: 26434257 | W64: 2016 | X64: 6112234 | Y64: 1699 | Z64: 5175683 | AA64: 8778 | AB64: 38055178 | AC64: 8337 | AD64: 28132030 | AE64: 2090 | AF64: 7236537 | AG64: 1765 | AH64: 5989330 | AI64: 8671 | AJ64: 37851034 | AK64: 8183 | AL64: 28312342 | AM64: 2059 | AN64: 6859268 | AO64: 1703 | AP64: 5697856 | AQ64: 279.33 | AR64: 213.92 | AS64: 493.25 | AT64: 33690257 | AU64: 24153660 | AV64: 10051 | AW64: 9409 | AX64: 316.61 | AY64: 242.57 | AZ64: 559.18 | BA64: 39965342 | BB64: 28572595 | BC64: 10519 | BD64: 9816 | BE64: 331.3 | BF64: 267.62 | BG64: 598.92 | BH64: 42114105 | BI64: 31609940 | BJ64: 10593 | BK64: 9843 | BL64: 347.29 | BM64: 281.47 | BN64: 628.76 | BO64: 45291715 | BP64: 34121360 | BQ64: 10868 | BR64: 10102 | BS64: 347.24 | BT64: 286.69 | BU64: 633.93 | BV64: 44710302 | BW64: 34010198 | BX64: 10730 | BY64: 9886 | BZ64: 9758 | CA64: 10204 | CB64: 10255 | CC64: 10521 | CD64: 10328 | CE64: 519.0879228 | CF64: 545.9862289 | CG64: 583.9473617 | CH64: 621.8060329 | CI64: 650.7697533 | CJ64: 0.9502243808 | CK64: 1.024165025 | CL64: 1.02564039 | CM64: 1.011183499 | CN64: 0.9741233314 | CO64: 0.9411039603 | CP64: 1.059465657 | CQ64: 0.9948367783 | CR64: 1.064964304 | CS64: 9767 | CT64: 10005 | CU64: 9826 | CV64: 9747 | CW64: 9584 | CX64: 0.943398 | CY64: 0.939154 | CZ64: 0.93441 | DA64: 0.940262 | DB64: 0.948521 | DC64: SHELBY | DD64: 0.0138 | DE64: 778.72 | DF64: ALABAMA
A65: SUMTER | B65: 1590 | C65: 1841 | D65: 5969278 | E65: 1844 | F65: 4233774 | G65: 504 | H65: 993731 | I65: 482 | J65: 893083 | K65: 1817 | L65: 7016228 | M65: 1815 | N65: 5158240 | O65: 561 | P65: 1211133 | Q65: 536 | R65: 1093347 | S65: 1827 | T65: 6257652 | U65: 1825 | V65: 5167171 | W65: 619 | X65: 1228460 | Y65: 592 | Z65: 1200835 | AA65: 1835 | AB65: 6994174 | AC65: 1849 | AD65: 4935440 | AE65: 684 | AF65: 1305345 | AG65: 650 | AH65: 1292913 | AI65: 1820 | AJ65: 8881111 | AK65: 1832 | AL65: 5271403 | AM65: 743 | AN65: 1980519 | AO65: 696 | AP65: 1500597 | AQ65: 247.44 | AR65: 183.68 | AS65: 431.12 | AT65: 6963009 | AU65: 5126857 | AV65: 2345 | AW65: 2326 | AX65: 288.32 | AY65: 221.59 | AZ65: 509.91 | BA65: 8227361 | BB65: 6251587 | BC65: 2378 | BD65: 2351 | BE65: 255.05 | BF65: 219.56 | BG65: 474.61 | BH65: 7486112 | BI65: 6368006 | BJ65: 2446 | BK65: 2417 | BL65: 274.56 | BM65: 207.69 | BN65: 482.25 | BO65: 8299519 | BP65: 6228353 | BQ65: 2519 | BR65: 2499 | BS65: 353.15 | BT65: 223.23 | BU65: 576.38 | BV65: 10861630 | BW65: 6772000 | BX65: 2563 | BY65: 2528 | BZ65: 2336 | CA65: 2366 | CB65: 2433 | CC65: 2510 | CD65: 2546 | CE65: 519.0879228 | CF65: 545.9862289 | CG65: 583.9473617 | CH65: 621.8060329 | CI65: 650.7697533 | CJ65: 0.8305336747 | CK65: 0.9339246541 | CL65: 0.8127616137 | CM65: 0.7755633984 | CN65: 0.8856895962 | CO65: 0.9647989219 | CP65: 0.8786230666 | CQ65: 0.9948367783 | CR65: 0.8831831369 | CS65: 2250 | CT65: 2304 | CU65: 2356 | CV65: 2415 | CW65: 2456 | CX65: 0.997589 | CY65: 0.97779 | CZ65: 0.950283 | DA65: 0.956659 | DB65: 0.944501 | DC65: SUMTER | DD65: 0.0118 | DE65: 646.26 | DF65: ALABAMA
A66: TALLADEGA | B66: 1600 | C66: 9882 | D66: 39734905 | E66: 9675 | F66: 25467198 | G66: 3935 | H66: 11001748 | I66: 3590 | J66: 7793189 | K66: 9925 | L66: 43003794 | M66: 9700 | N66: 26338003 | O66: 4132 | P66: 11556117 | Q66: 3765 | R66: 8882213 | S66: 9982 | T66: 46304071 | U66: 9756 | V66: 28817662 | W66: 4329 | X66: 13167499 | Y66: 3947 | Z66: 10076042 | AA66: 9609 | AB66: 45886498 | AC66: 9409 | AD66: 28988722 | AE66: 4275 | AF66: 12158699 | AG66: 3858 | AH66: 10788010 | AI66: 9291 | AJ66: 46716722 | AK66: 9079 | AL66: 30292612 | AM66: 4186 | AN66: 12610790 | AO66: 3742 | AP66: 11320478 | AQ66: 306 | AR66: 208.95 | AS66: 514.95 | AT66: 50736653 | AU66: 33260387 | AV66: 13817 | AW66: 13265 | AX66: 323.44 | AY66: 217.97 | AZ66: 541.41 | BA66: 54559911 | BB66: 35220216 | BC66: 14057 | BD66: 13465 | BE66: 346.3 | BF66: 236.53 | BG66: 582.83 | BH66: 59471570 | BI66: 38893704 | BJ66: 14311 | BK66: 13703 | BL66: 348.39 | BM66: 249.85 | BN66: 598.24 | BO66: 58045197 | BP66: 39776732 | BQ66: 13884 | BR66: 13267 | BS66: 366.84 | BT66: 270.47 | BU66: 637.31 | BV66: 59327512 | BW66: 41613090 | BX66: 13477 | BY66: 12821 | BZ66: 13565 | CA66: 13792 | CB66: 14037 | CC66: 13605 | CD66: 13164 | CE66: 519.0879228 | CF66: 545.9862289 | CG66: 583.9473617 | CH66: 621.8060329 | CI66: 650.7697533 | CJ66: 0.9920284742 | CK66: 0.991618417 | CL66: 0.9980865369 | CM66: 0.9621006686 | CN66: 0.9793171806 | CO66: 0.9770205361 | CP66: 1.0077887 | CQ66: 0.9948367783 | CR66: 1.013019142 | CS66: 13053 | CT66: 13340 | CU66: 13635 | CV66: 13221 | CW66: 12754 | CX66: 0.975585 | CY66: 0.970237 | CZ66: 0.973463 | DA66: 0.973245 | DB66: 0.993302 | DC66: TALLADEGA | DD66: 0.0196 | DE66: 739.23 | DF66: ALABAMA
A67: TALLAPOOSA | B67: 1610 | C67: 5747 | D67: 23448108 | E67: 5597 | F67: 14774983 | G67: 1500 | H67: 3258745 | I67: 1367 | J67: 3077652 | K67: 5760 | L67: 24321418 | M67: 5595 | N67: 15646011 | O67: 1649 | P67: 4184848 | Q67: 1502 | R67: 3662438 | S67: 5805 | T67: 27446351 | U67: 5622 | V67: 18149899 | W67: 1812 | X67: 5045895 | Y67: 1662 | Z67: 4647781 | AA67: 5831 | AB67: 23382712 | AC67: 5648 | AD67: 18955799 | AE67: 1951 | AF67: 5091118 | AG67: 1788 | AH67: 5596647 | AI67: 5905 | AJ67: 24534653 | AK67: 5712 | AL67: 21396140 | AM67: 2020 | AN67: 5366935 | AO67: 1842 | AP67: 6549037 | AQ67: 307.1 | AR67: 213.63 | AS67: 520.73 | AT67: 26706853 | AU67: 17852635 | AV67: 7247 | AW67: 6964 | AX67: 320.63 | AY67: 226.72 | AZ67: 547.35 | BA67: 28506266 | BB67: 19308449 | BC67: 7409 | BD67: 7097 | BE67: 355.48 | BF67: 260.82 | BG67: 616.3 | BH67: 32492246 | BI67: 22797680 | BJ67: 7617 | BK67: 7284 | BL67: 304.91 | BM67: 275.15 | BN67: 580.06 | BO67: 28473830 | BP67: 24552446 | BQ67: 7782 | BR67: 7436 | BS67: 314.42 | BT67: 308.28 | BU67: 622.7 | BV67: 29901588 | BW67: 27945177 | BX67: 7925 | BY67: 7554 | BZ67: 7118 | CA67: 7269 | CB67: 7467 | CC67: 7625 | CD67: 7748 | CE67: 519.0879228 | CF67: 545.9862289 | CG67: 583.9473617 | CH67: 621.8060329 | CI67: 650.7697533 | CJ67: 1.003163389 | CK67: 1.002497812 | CL67: 1.055403347 | CM67: 0.9328632553 | CN67: 0.956866844 | CO67: 1.015373008 | CP67: 0.975167669 | CQ67: 0.9948367783 | CR67: 0.9802288077 | CS67: 6894 | CT67: 7057 | CU67: 7237 | CV67: 7361 | CW67: 7479 | CX67: 1.014377 | CY67: 1.034725 | CZ67: 1.016609 | DA67: 1.012644 | DB67: 0.999521 | DC67: TALLAPOOSA | DD67: 0.0094 | DE67: 717.87 | DF67: ALABAMA
A68: TUSCALOOSA | B68: 1620 | C68: 17441 | D68: 65292183 | E68: 16942 | F68: 44826162 | G68: 4945 | H68: 13656168 | I68: 4482 | J68: 10147084 | K68: 17449 | L68: 68599683 | M68: 16910 | N68: 47638060 | O68: 5284 | P68: 15183243 | Q68: 4778 | R68: 11468752 | S68: 17518 | T68: 72689469 | U68: 16935 | V68: 52583971 | W68: 5712 | X68: 16309135 | Y68: 5177 | Z68: 14485379 | AA68: 17790 | AB68: 80667626 | AC68: 17207 | AD68: 55482207 | AE68: 6161 | AF68: 19965981 | AG68: 5590 | AH68: 16520546 | AI68: 17961 | AJ68: 88138401 | AK68: 17313 | AL68: 58250383 | AM68: 6535 | AN68: 23352514 | AO68: 5905 | AP68: 18372125 | AQ68: 293.89 | AR68: 213.83 | AS68: 507.72 | AT68: 78948351 | AU68: 54973246 | AV68: 22386 | AW68: 21424 | AX68: 307.13 | AY68: 227.11 | AZ68: 534.24 | BA68: 83782926 | BB68: 59106812 | BC68: 22733 | BD68: 21688 | BE68: 319.27 | BF68: 252.76 | BG68: 572.03 | BH68: 88998604 | BI68: 67069350 | BJ68: 23230 | BK68: 22112 | BL68: 350.14 | BM68: 263.2 | BN68: 613.34 | BO68: 100633607 | BP68: 72002753 | BQ68: 23951 | BR68: 22797 | BS68: 379.28 | BT68: 275.01 | BU68: 654.29 | BV68: 111490915 | BW68: 76622508 | BX68: 24496 | BY68: 23218 | BZ68: 21947 | CA68: 22265 | CB68: 22725 | CC68: 23429 | CD68: 23887 | CE68: 519.0879228 | CF68: 545.9862289 | CG68: 583.9473617 | CH68: 621.8060329 | CI68: 650.7697533 | CJ68: 0.9781001979 | CK68: 0.9784862176 | CL68: 0.9795917192 | CM68: 0.9863847688 | CN68: 1.005409358 | CO68: 0.9811592244 | CP68: 1.004520396 | CQ68: 0.9948367783 | CR68: 1.009733876 | CS68: 21250 | CT68: 21537 | CU68: 21988 | CV68: 22343 | CW68: 22809 | CX68: 0.969534 | CY68: 0.989797 | CZ68: 0.984903 | DA68: 0.984194 | DB68: 0.977252 | DC68: TUSCALOOSA | DD68: 0.0216 | DE68: 736.31 | DF68: ALABAMA
A69: WALKER | B69: 1630 | C69: 10219 | D69: 41723906 | E69: 10048 | F69: 29959600 | G69: 3486 | H69: 11963595 | I69: 3226 | J69: 9111131 | K69: 10218 | L69: 44952840 | M69: 10021 | N69: 32325024 | O69: 3635 | P69: 12572883 | Q69: 3352 | R69: 10217838 | S69: 9625 | T69: 46300900 | U69: 9419 | V69: 33798074 | W69: 3506 | X69: 12156415 | Y69: 3197 | Z69: 11051868 | AA69: 9423 | AB69: 47122708 | AC69: 9208 | AD69: 35242434 | AE69: 3563 | AF69: 12397171 | AG69: 3231 | AH69: 11458234 | AI69: 8976 | AJ69: 47400421 | AK69: 8727 | AL69: 35109075 | AM69: 3444 | AN69: 12548909 | AO69: 3101 | AP69: 11455541 | AQ69: 326.45 | AR69: 245.28 | AS69: 571.73 | AT69: 53687501 | AU69: 39070731 | AV69: 13705 | AW69: 13274 | AX69: 346.05 | AY69: 265.1 | AZ69: 611.15 | BA69: 57525723 | BB69: 42542862 | BC69: 13853 | BD69: 13373 | BE69: 370.99 | BF69: 296.25 | BG69: 667.24 | BH69: 58457315 | BI69: 44849942 | BJ69: 13131 | BK69: 12616 | BL69: 381.95 | BM69: 312.86 | BN69: 694.81 | BO69: 59519879 | BP69: 46700668 | BQ69: 12986 | BR69: 12439 | BS69: 402.24 | BT69: 328.07 | BU69: 730.31 | BV69: 59949330 | BW69: 46564616 | BX69: 12420 | BY69: 11828 | BZ69: 13508 | CA69: 13638 | CB69: 12899 | CC69: 12738 | CD69: 12138 | CE69: 519.0879228 | CF69: 545.9862289 | CG69: 583.9473617 | CH69: 621.8060329 | CI69: 650.7697533 | CJ69: 1.101412641 | CK69: 1.119350576 | CL69: 1.142637237 | CM69: 1.117406335 | CN69: 1.122224867 | CO69: 1.054646659 | CP69: 1.062541963 | CQ69: 0.9948367783 | CR69: 1.068056576 | CS69: 13150 | CT69: 13439 | CU69: 12484 | CV69: 12202 | CW69: 11534 | CX69: 1.055518 | CY69: 1.061232 | CZ69: 1.061083 | DA69: 1.057572 | DB69: 1.035919 | DC69: WALKER | DD69: 0.0256 | DE69: 777.74 | DF69: ALABAMA
A70: WASHINGTON | B70: 1640 | C70: 2106 | D70: 7453534 | E70: 2086 | F70: 4773906 | G70: 694 | H70: 1318500 | I70: 647 | J70: 1174088 | K70: 2178 | L70: 8746005 | M70: 2144 | N70: 5414170 | O70: 728 | P70: 1801637 | Q70: 680 | R70: 1581140 | S70: 2196 | T70: 10103946 | U70: 2161 | V70: 6101471 | W70: 782 | X70: 1694106 | Y70: 730 | Z70: 1663157 | AA70: 2210 | AB70: 9863126 | AC70: 2181 | AD70: 6253331 | AE70: 807 | AF70: 1926479 | AG70: 751 | AH70: 1899094 | AI70: 2132 | AJ70: 10499409 | AK70: 2100 | AL70: 6642243 | AM70: 773 | AN70: 1925557 | AO70: 714 | AP70: 1818197 | AQ70: 261.07 | AR70: 181.36 | AS70: 442.43 | AT70: 8772034 | AU70: 5947994 | AV70: 2800 | AW70: 2733 | AX70: 302.47 | AY70: 206.42 | AZ70: 508.89 | BA70: 10547642 | BB70: 6995310 | BC70: 2906 | BD70: 2824 | BE70: 330.14 | BF70: 223.82 | BG70: 553.96 | BH70: 11798052 | BI70: 7764628 | BJ70: 2978 | BK70: 2891 | BL70: 325.64 | BM70: 231.71 | BN70: 557.35 | BO70: 11789605 | BP70: 8152425 | BQ70: 3017 | BR70: 2932 | BS70: 356.42 | BT70: 250.55 | BU70: 606.97 | BV70: 12424966 | BW70: 8460440 | BX70: 2905 | BY70: 2814 | BZ70: 2769 | CA70: 2869 | CB70: 2939 | CC70: 2979 | CD70: 2862 | CE70: 519.0879228 | CF70: 545.9862289 | CG70: 583.9473617 | CH70: 621.8060329 | CI70: 650.7697533 | CJ70: =AS70/CE70 -> 0.8523218911 | CK70: =AZ70/CF70 -> 0.9320564751 | CL70: =BG70/CG70 -> 0.9486471492 | CM70: =BN70/CH70 -> 0.8963406119 | CN70: =BU70/CI70 -> 0.9326954686 | CO70: =(SUMPRODUCT(CS70,CX70)+SUMPRODUCT(CT70,CY70)+SUMPRODUCT(CU70,CZ70)+SUMPRODUCT(CV70,DA70)+SUMPRODUCT(CW70,DB70))/SUM(CS70:CW70) -> 0.9071066757 | CP70: 1.005848974 | CQ70: 0.9948367783 | CR70: =CP70/CQ70 -> 1.011069349 | CS70: 2705 | CT70: 2808 | CU70: 2876 | CV70: 2898 | CW70: 2783 | CX70: 0.921273 | CY70: 0.909854 | CZ70: 0.893191 | DA70: 0.901051 | DB70: 0.911252 | DC70: WASHINGTON | DD70: 0.011 | DE70: =ROUND(($DE$5*CR70*(1-0.35*DD70)),2) -> 740.04 | DF70: ALABAMA
A71: WILCOX | B71: 1650 | C71: 1702 | D71: 5289145 | E71: 1687 | F71: 4296428 | G71: 691 | H71: 1270998 | I71: 654 | J71: 1016908 | K71: 1680 | L71: 6021677 | M71: 1662 | N71: 4426502 | O71: 743 | P71: 1456175 | Q71: 702 | R71: 1165870 | S71: 1657 | T71: 5537838 | U71: 1630 | V71: 4265459 | W71: 778 | X71: 1513247 | Y71: 740 | Z71: 1289678 | AA71: 1628 | AB71: 6327841 | AC71: 1612 | AD71: 4547818 | AE71: 822 | AF71: 1890231 | AG71: 779 | AH71: 1575752 | AI71: 1576 | AJ71: 7469823 | AK71: 1561 | AL71: 4879129 | AM71: 857 | AN71: 2003057 | AO71: 811 | AP71: 2384358 | AQ71: 228.45 | AR71: 189.14 | AS71: 417.59 | AT71: 6560143 | AU71: 5313336 | AV71: 2393 | AW71: 2341 | AX71: 257.18 | AY71: 197.14 | AZ71: 454.32 | BA71: 7477852 | BB71: 5592372 | BC71: 2423 | BD71: 2364 | BE71: 241.31 | BF71: 195.33 | BG71: 436.64 | BH71: 7051085 | BI71: 5555137 | BJ71: 2435 | BK71: 2370 | BL71: 279.53 | BM71: 213.42 | BN71: 492.95 | BO71: 8218072 | BP71: 6123570 | BQ71: 2450 | BR71: 2391 | BS71: 324.46 | BT71: 255.18 | BU71: 579.64 | BV71: 9472880 | BW71: 7263487 | BX71: 2433 | BY71: 2372 | BZ71: 2369 | CA71: 2397 | CB71: 2406 | CC71: 2423 | CD71: 2404 | CE71: 519.0879228 | CF71: 545.9862289 | CG71: 583.9473617 | CH71: 621.8060329 | CI71: 650.7697533 | CJ71: 0.8044687262 | CK71: 0.8321088993 | CL71: 0.7477386296 | CM71: 0.7927713369 | CN71: 0.8906990485 | CO71: 0.9555613405 | CP71: 0.8513920495 | CQ71: 0.9948367783 | CR71: 0.8558107903 | CS71: 2248 | CT71: 2285 | CU71: 2311 | CV71: 2398 | CW71: 2342 | CX71: 0.981751 | CY71: 0.967222 | CZ71: 0.95138 | DA71: 0.932322 | DB71: 0.946967 | DC71: WILCOX | DD71: 0.0225 | DE71: 623.87 | DF71: ALABAMA
A72: WINSTON | B72: 1660 | C72: 3549 | D72: 14479900 | E72: 3478 | F72: 10244798 | G72: 1033 | H72: 4153071 | I72: 973 | J72: 2870861 | K72: 3580 | L72: 14489585 | M72: 3498 | N72: 10811080 | O72: 1109 | P72: 4112395 | Q72: 1037 | R72: 3276087 | S72: 3611 | T72: 16672432 | U72: 3520 | V72: 11792247 | W72: 1178 | X72: 4863937 | Y72: 1107 | Z72: 4054450 | AA72: 3618 | AB72: 19214972 | AC72: 3522 | AD72: 12511849 | AE72: 1214 | AF72: 4847827 | AG72: 1137 | AH72: 4231658 | AI72: 3615 | AJ72: 20125002 | AK72: 3512 | AL72: 12958155 | AM72: 1220 | AN72: 5323354 | AO72: 1141 | AP72: 4398141 | AQ72: 338.88 | AR72: 245.56 | AS72: 584.44 | AT72: 18632971 | AU72: 13115659 | AV72: 4582 | AW72: 4451 | AX72: 330.6 | AY72: 258.86 | AZ72: 589.46 | BA72: 18601980 | BB72: 14087167 | BC72: 4689 | BD72: 4535 | BE72: 374.75 | BF72: 285.4 | BG72: 660.15 | BH72: 21536369 | BI72: 15846697 | BJ72: 4789 | BK72: 4627 | BL72: 414.99 | BM72: 299.48 | BN72: 714.47 | BO72: 24062799 | BP72: 16743507 | BQ72: 4832 | BR72: 4659 | BS72: 438.61 | BT72: 310.84 | BU72: 749.45 | BV72: 25448356 | BW72: 17356296 | BX72: 4835 | BY72: 4653 | BZ72: 4522 | CA72: 4620 | CB72: 4716 | CC72: 4754 | CD72: 4748 | CE72: 519.0879228 | CF72: 545.9862289 | CG72: 583.9473617 | CH72: 621.8060329 | CI72: 650.7697533 | CJ72: 1.125897896 | CK72: 1.0796243 | CL72: 1.130495732 | CM72: 1.149023911 | CN72: 1.151636191 | CO72: 1.03545093 | CP72: 1.088738802 | CQ72: 0.9948367783 | CR72: 1.094389377 | CS72: 4416 | CT72: 4506 | CU72: 4608 | CV72: 4578 | CW72: 4630 | CX72: 1.027459 | CY72: 1.04437 | CZ72: 1.041607 | DA72: 1.019568 | DB72: 1.043971 | DC72: WINSTON | DD72: 0.0235 | DE72: 797.51 | DF72: ALABAMA
A73: ALEUTIANS EAST | B73: 2013 | C73: 173 | D73: 731296 | E73: 140 | F73: 501590 | G73: 22 | H73: 82118 | I73: 21 | J73: 52988 | K73: 183 | L73: 607626 | M73: 142 | N73: 632115 | O73: 22 | P73: 45794 | Q73: 20 | R73: 71956 | S73: 189 | T73: 597513 | U73: 144 | V73: 571886 | W73: 28 | X73: 14022 | Y73: 24 | Z73: 54908 | AA73: 188 | AB73: 722008 | AC73: 139 | AD73: 541593 | AE73: 33 | AF73: 123042 | AG73: 27 | AH73: 120586 | AI73: 196 | AJ73: 507386 | AK73: 140 | AL73: 450084 | AM73: 31 | AN73: 290031 | AO73: 28 | AP73: 76075 | AQ73: 347.61 | AR73: 287.05 | AS73: 634.66 | AT73: 813414 | AU73: 554578 | AV73: 195 | AW73: 161 | AX73: 265.62 | AY73: 362.18 | AZ73: 627.8 | BA73: 653420 | BB73: 704071 | BC73: 205 | BD73: 162 | BE73: 234.84 | BF73: 310.91 | BG73: 545.75 | BH73: 611535 | BI73: 626794 | BJ73: 217 | BK73: 168 | BL73: 318.65 | BM73: 332.42 | BN73: 651.07 | BO73: 845050 | BP73: 662179 | BQ73: 221 | BR73: 166 | BS73: 292.74 | BT73: 260.99 | BU73: 553.73 | BV73: 797417 | BW73: 526159 | BX73: 227 | BY73: 168 | BZ73: 179 | CA73: 186 | CB73: 195 | CC73: 196 | CD73: 199 | CE73: 519.0879228 | CF73: 545.9862289 | CG73: 583.9473617 | CH73: 621.8060329 | CI73: 650.7697533 | CJ73: =AS73/CE73 -> 1.222644512 | CK73: =AZ73/CF73 -> 1.149845851 | CL73: =BG73/CG73 -> 0.9345876628 | CM73: =BN73/CH73 -> 1.047062855 | CN73: =BU73/CI73 -> 0.8508846596 | CO73: =(SUMPRODUCT(CS73,CX73)+SUMPRODUCT(CT73,CY73)+SUMPRODUCT(CU73,CZ73)+SUMPRODUCT(CV73,DA73)+SUMPRODUCT(CW73,DB73))/SUM(CS73:CW73) -> 0.8532640952 | CP73: 1.220026852 | CQ73: 0.9948367783 | CR73: =CP73/CQ73 -> 1.226358815 | CS73: 151 | CT73: 158 | CU73: 172 | CV73: 175 | CW73: 174 | CX73: 0.797193 | CY73: 0.816481 | CZ73: 0.825591 | DA73: 0.872116 | DB73: 0.943719 | DC73: ALEUTIANS EAST | DD73: 0.0149 | DE73: =ROUND(($DE$5*CR73*(1-0.35*DD73)),2) -> 896.39 | DF73: ALASKA
A74: ALEUTIANS WEST | B74: 2016 | C74: 173 | D74: 731296 | E74: 140 | F74: 501590 | G74: 22 | H74: 82118 | I74: 21 | J74: 52988 | K74: 183 | L74: 607626 | M74: 142 | N74: 632115 | O74: 22 | P74: 45794 | Q74: 20 | R74: 71956 | S74: 189 | T74: 597513 | U74: 144 | V74: 571886 | W74: 28 | X74: 14022 | Y74: 24 | Z74: 54908 | AA74: 188 | AB74: 722008 | AC74: 139 | AD74: 541593 | AE74: 33 | AF74: 123042 | AG74: 27 | AH74: 120586 | AI74: 196 | AJ74: 507386 | AK74: 140 | AL74: 450084 | AM74: 31 | AN74: 290031 | AO74: 28 | AP74: 76075 | AQ74: 347.61 | AR74: 287.05 | AS74: 634.66 | AT74: 813414 | AU74: 554578 | AV74: 195 | AW74: 161 | AX74: 265.62 | AY74: 362.18 | AZ74: 627.8 | BA74: 653420 | BB74: 704071 | BC74: 205 | BD74: 162 | BE74: 234.84 | BF74: 310.91 | BG74: 545.75 | BH74: 611535 | BI74: 626794 | BJ74: 217 | BK74: 168 | BL74: 318.65 | BM74: 332.42 | BN74: 651.07 | BO74: 845050 | BP74: 662179 | BQ74: 221 | BR74: 166 | BS74: 292.74 | BT74: 260.99 | BU74: 553.73 | BV74: 797417 | BW74: 526159 | BX74: 227 | BY74: 168 | BZ74: 179 | CA74: 186 | CB74: 195 | CC74: 196 | CD74: 199 | CE74: 519.0879228 | CF74: 545.9862289 | CG74: 583.9473617 | CH74: 621.8060329 | CI74: 650.7697533 | CJ74: 1.222644512 | CK74: 1.149845851 | CL74: 0.9345876628 | CM74: 1.047062855 | CN74: 0.8508846596 | CO74: 0.8532640952 | CP74: 1.220026852 | CQ74: 0.9948367783 | CR74: 1.226358815 | CS74: 151 | CT74: 158 | CU74: 172 | CV74: 175 | CW74: 174 | CX74: 0.797193 | CY74: 0.816481 | CZ74: 0.825591 | DA74: 0.872116 | DB74: 0.943719 | DC74: ALEUTIANS WEST | DD74: 0.0149 | DE74: 896.39 | DF74: ALASKA
A75: ANCHORAGE | B75: 2020 | C75: 14735 | D75: 42671604 | E75: 13913 | F75: 31525757 | G75: 3380 | H75: 10746876 | I75: 3010 | J75: 7885749 | K75: 15233 | L75: 44225031 | M75: 14351 | N75: 36151507 | O75: 3614 | P75: 9369301 | Q75: 3192 | R75: 8854134 | S75: 15838 | T75: 49060737 | U75: 14834 | V75: 49041172 | W75: 3854 | X75: 11027641 | Y75: 3417 | Z75: 12868363 | AA75: 16460 | AB75: 52149699 | AC75: 15347 | AD75: 53019260 | AE75: 4070 | AF75: 11985956 | AG75: 3651 | AH75: 14283379 | AI75: 17170 | AJ75: 56262789 | AK75: 15896 | AL75: 44222709 | AM75: 4348 | AN75: 13639994 | AO75: 3886 | AP75: 12702037 | AQ75: 245.74 | AR75: 194.07 | AS75: 439.81 | AT75: 53418480 | AU75: 39411506 | AV75: 18115 | AW75: 16923 | AX75: 236.97 | AY75: 213.79 | AZ75: 450.76 | BA75: 53594332 | BB75: 45005641 | BC75: 18847 | BD75: 17543 | BE75: 254.28 | BF75: 282.68 | BG75: 536.96 | BH75: 60088378 | BI75: 61909535 | BJ75: 19692 | BK75: 18251 | BL75: 260.33 | BM75: 295.22 | BN75: 555.55 | BO75: 64135655 | BP75: 67302639 | BQ75: 20530 | BR75: 18998 | BS75: 270.71 | BT75: 239.8 | BU75: 510.51 | BV75: 69902783 | BW75: 56924746 | BX75: 21518 | BY75: 19782 | BZ75: 17571 | CA75: 18263 | CB75: 19042 | CC75: 19837 | CD75: 20691 | CE75: 519.0879228 | CF75: 545.9862289 | CG75: 583.9473617 | CH75: 621.8060329 | CI75: 650.7697533 | CJ75: 0.8472745766 | CK75: 0.8255885884 | CL75: 0.9195349362 | CM75: 0.8934458185 | CN75: 0.7844710014 | CO75: 0.8660018256 | CP75: 0.9862138381 | CQ75: 0.9948367783 | CR75: 0.9913323066 | CS75: 16502 | CT75: 17239 | CU75: 18158 | CV75: 18932 | CW75: 19745 | CX75: 0.864748 | CY75: 0.869981 | CZ75: 0.864918 | DA75: 0.859126 | DB75: 0.871165 | DC75: ANCHORAGE | DD75: 0.0073 | DE75: 726.54 | DF75: ALASKA
A76: ANGOON | B76: 2030 | C76: 63 | D76: 164957 | E76: 55 | F76: 163764 | G76: 13 | H76: 57804 | I76: 13 | J76: 36649 | K76: 66 | L76: 108786 | M76: 58 | N76: 153607 | O76: 14 | P76: 103431 | Q76: 14 | R76: 43051 | S76: 71 | T76: 196995 | U76: 63 | V76: 185650 | W76: 12 | X76: 29169 | Y76: 12 | Z76: 38759 | AA76: 68 | AB76: 303921 | AC76: 61 | AD76: 267917 | AE76: 11 | AF76: 12615 | AG76: 11 | AH76: 48684 | AI76: 68 | AJ76: 240554 | AK76: 59 | AL76: 164661 | AM76: 12 | AN76: 58714 | AO76: 12 | AP76: 41409 | AQ76: 244.26 | AR76: 245.6 | AS76: 489.86 | AT76: 222761 | AU76: 200413 | AV76: 76 | AW76: 68 | AX76: 221.06 | AY76: 227.61 | AZ76: 448.67 | BA76: 212217 | BB76: 196658 | BC76: 80 | BD76: 72 | BE76: 227.07 | BF76: 249.34 | BG76: 476.41 | BH76: 226164 | BI76: 224409 | BJ76: 83 | BK76: 75 | BL76: 333.9 | BM76: 366.44 | BN76: 700.34 | BO76: 316536 | BP76: 316601 | BQ76: 79 | BR76: 72 | BS76: 311.74 | BT76: 241.87 | BU76: 553.61 | BV76: 299268 | BW76: 206070 | BX76: 80 | BY76: 71 | BZ76: 72 | CA76: 76 | CB76: 79 | CC76: 76 | CD76: 76 | CE76: 519.0879228 | CF76: 545.9862289 | CG76: 583.9473617 | CH76: 621.8060329 | CI76: 650.7697533 | CJ76: 0.9436936952 | CK76: 0.821760653 | CL76: 0.8158440833 | CM76: 1.126299783 | CN76: 0.8507002626 | CO76: 0.8417118806 | CP76: 1.083101851 | CQ76: 0.9948367783 | CR76: 1.08872317 | CS76: 70 | CT76: 70 | CU76: 75 | CV76: 73 | CW76: 72 | CX76: 0.761883 | CY76: 0.881159 | CZ76: 0.755938 | DA76: 0.859683 | DB76: 0.952099 | DC76: ANGOON | DD76: 0.0015 | DE76: 799.54 | DF76: ALASKA
A77: BETHEL | B77: 2050 | C77: 615 | D77: 2514288 | E77: 555 | F77: 1545479 | G77: 98 | H77: 251717 | I77: 86 | J77: 195400 | K77: 617 | L77: 3134332 | M77: 552 | N77: 2009688 | O77: 106 | P77: 155844 | Q77: 97 | R77: 253672 | S77: 613 | T77: 2145868 | U77: 547 | V77: 1860048 | W77: 97 | X77: 230256 | Y77: 89 | Z77: 297994 | AA77: 609 | AB77: 2600133 | AC77: 540 | AD77: 2296378 | AE77: 93 | AF77: 315735 | AG77: 83 | AH77: 285370 | AI77: 632 | AJ77: 3372296 | AK77: 550 | AL77: 1776437 | AM77: 83 | AN77: 250378 | AO77: 75 | AP77: 198191 | AQ77: 323.28 | AR77: 226.32 | AS77: 549.6 | AT77: 2766005 | AU77: 1740879 | AV77: 713 | AW77: 641 | AX77: 379.23 | AY77: 290.62 | AZ77: 669.85 | BA77: 3290176 | BB77: 2263360 | BC77: 723 | BD77: 649 | BE77: 278.89 | BF77: 282.76 | BG77: 561.65 | BH77: 2376124 | BI77: 2158042 | BJ77: 710 | BK77: 636 | BL77: 346.14 | BM77: 345.34 | BN77: 691.48 | BO77: 2915868 | BP77: 2581748 | BQ77: 702 | BR77: 623 | BS77: 422.22 | BT77: 263.28 | BU77: 685.5 | BV77: 3622674 | BW77: 1974628 | BX77: 715 | BY77: 625 | BZ77: 680 | CA77: 690 | CB77: 677 | CC77: 666 | CD77: 672 | CE77: 519.0879228 | CF77: 545.9862289 | CG77: 583.9473617 | CH77: 621.8060329 | CI77: 650.7697533 | CJ77: 1.058780172 | CK77: 1.226862445 | CL77: 0.9618161444 | CM77: 1.112050967 | CN77: 1.053367949 | CO77: 0.9086071502 | CP77: 1.19146711 | CQ77: 0.9948367783 | CR77: 1.197650847 | CS77: 618 | CT77: 635 | CU77: 633 | CV77: 628 | CW77: 641 | CX77: 0.922053 | CY77: 0.899677 | CZ77: 0.922218 | DA77: 0.89527 | DB77: 0.904116 | DC77: BETHEL | DD77: 0 | DE77: 880 | DF77: ALASKA
A78: BRISTOL BAY BOROUGH | B78: 2060 | C78: 252 | D78: 704209 | E78: 226 | F78: 486203 | G78: 46 | H78: 155375 | I78: 41 | J78: 184364 | K78: 311 | L78: 817155 | M78: 277 | N78: 667191 | O78: 66 | P78: 168447 | Q78: 57 | R78: 140876 | S78: 389 | T78: 935906 | U78: 349 | V78: 1007521 | W78: 100 | X78: 137791 | Y78: 85 | Z78: 210339 | AA78: 454 | AB78: 1463640 | AC78: 415 | AD78: 1331327 | AE78: 115 | AF78: 614575 | AG78: 98 | AH78: 398260 | AI78: 512 | AJ78: 1645350 | AK78: 468 | AL78: 1291592 | AM78: 119 | AN78: 407872 | AO78: 101 | AP78: 208587 | AQ78: 240.38 | AR78: 209.29 | AS78: 449.67 | AT78: 859584 | AU78: 670567 | AV78: 298 | AW78: 267 | AX78: 217.86 | AY78: 201.61 | AZ78: 419.47 | BA78: 985602 | BB78: 808067 | BC78: 377 | BD78: 334 | BE78: 182.97 | BF78: 233.84 | BG78: 416.81 | BH78: 1073697 | BI78: 1217860 | BJ78: 489 | BK78: 434 | BL78: 304.37 | BM78: 280.96 | BN78: 585.33 | BO78: 2078215 | BP78: 1729587 | BQ78: 569 | BR78: 513 | BS78: 271.16 | BT78: 219.71 | BU78: 490.87 | BV78: 2053222 | BW78: 1500179 | BX78: 631 | BY78: 569 | BZ78: 284 | CA78: 358 | CB78: 464 | CC78: 544 | CD78: 601 | CE78: 519.0879228 | CF78: 545.9862289 | CG78: 583.9473617 | CH78: 621.8060329 | CI78: 650.7697533 | CJ78: 0.866269432 | CK78: 0.7682794506 | CL78: 0.7137800893 | CM78: 0.9413385671 | CN78: 0.7542913566 | CO78: 0.8210516244 | CP78: 0.9850681189 | CQ78: 0.9948367783 | CR78: 0.9901806411 | CS78: 309 | CT78: 370 | CU78: 447 | CV78: 514 | CW78: 559 | CX78: 0.832505 | CY78: 0.822058 | CZ78: 0.820951 | DA78: 0.80917 | DB78: 0.82506 | DC78: BRISTOL | DD78: 0.0049 | DE78: 726.31 | DF78: ALASKA
A79: DENALI | B79: 2068 | C79: 332 | D79: 1355179 | E79: 306 | F79: 751610 | G79: 50 | H79: 102006 | I79: 45 | J79: 89332 | K79: 349 | L79: 941824 | M79: 318 | N79: 668766 | O79: 46 | P79: 434155 | Q79: 43 | R79: 105610 | S79: 363 | T79: 1174738 | U79: 329 | V79: 819451 | W79: 47 | X79: 42829 | Y79: 41 | Z79: 68909 | AA79: 386 | AB79: 1418266 | AC79: 350 | AD79: 1163701 | AE79: 48 | AF79: 42445 | AG79: 43 | AH79: 76710 | AI79: 408 | AJ79: 963162 | AK79: 367 | AL79: 988096 | AM79: 47 | AN79: 216033 | AO79: 42 | AP79: 117375 | AQ79: 317.89 | AR79: 199.65 | AS79: 517.54 | AT79: 1457185 | AU79: 840942 | AV79: 382 | AW79: 351 | AX79: 290.29 | AY79: 178.76 | AZ79: 469.05 | BA79: 1375979 | BB79: 774376 | BC79: 395 | BD79: 361 | BE79: 247.47 | BF79: 200.08 | BG79: 447.55 | BH79: 1217567 | BI79: 888360 | BJ79: 410 | BK79: 370 | BL79: 280.47 | BM79: 263.02 | BN79: 543.49 | BO79: 1460711 | BP79: 1240411 | BQ79: 434 | BR79: 393 | BS79: 215.97 | BT79: 225.24 | BU79: 441.21 | BV79: 1179195 | BW79: 1105471 | BX79: 455 | BY79: 409 | BZ79: 368 | CA79: 380 | CB79: 392 | CC79: 415 | CD79: 433 | CE79: 519.0879228 | CF79: 545.9862289 | CG79: 583.9473617 | CH79: 621.8060329 | CI79: 650.7697533 | CJ79: =AS79/CE79 -> 0.997017995 | CK79: =AZ79/CF79 -> 0.8590876018 | CL79: =BG79/CG79 -> 0.7664218204 | CM79: =BN79/CH79 -> 0.8740507027 | CN79: =BU79/CI79 -> 0.6779817252 | CO79: =(SUMPRODUCT(CS79,CX79)+SUMPRODUCT(CT79,CY79)+SUMPRODUCT(CU79,CZ79)+SUMPRODUCT(CV79,DA79)+SUMPRODUCT(CW79,DB79))/SUM(CS79:CW79) -> 0.8080729272 | CP79: 1.033213638 | CQ79: 0.9948367783 | CR79: =CP79/CQ79 -> 1.038576037 | CS79: 341 | CT79: 354 | CU79: 376 | CV79: 398 | CW79: 412 | CX79: 0.787286 | CY79: 0.830074 | CZ79: 0.778229 | DA79: 0.808987 | DB79: 0.832727 | DC79: DENALI | DD79: 0.0017 | DE79: =ROUND(($DE$5*CR79*(1-0.35*DD79)),2) -> 762.66 | DF79: ALASKA
A80: DILLINGHAM | B80: 2070 | C80: 344 | D80: 1118281 | E80: 306 | F80: 828499 | G80: 40 | H80: 117695 | I80: 37 | J80: 109300 | K80: 344 | L80: 1063254 | M80: 304 | N80: 905285 | O80: 37 | P80: 115084 | Q80: 35 | R80: 92838 | S80: 351 | T80: 928802 | U80: 305 | V80: 971557 | W80: 37 | X80: 118875 | Y80: 36 | Z80: 145537 | AA80: 353 | AB80: 1025521 | AC80: 303 | AD80: 1065741 | AE80: 40 | AF80: 76326 | AG80: 39 | AH80: 141286 | AI80: 377 | AJ80: 2364615 | AK80: 317 | AL80: 930679 | AM80: 41 | AN80: 107388 | AO80: 40 | AP80: 118590 | AQ80: 268.22 | AR80: 227.84 | AS80: 496.06 | AT80: 1235976 | AU80: 937799 | AV80: 384 | AW80: 343 | AX80: 257.73 | AY80: 245.36 | AZ80: 503.09 | BA80: 1178338 | BB80: 998123 | BC80: 381 | BD80: 339 | BE80: 225.02 | BF80: 272.99 | BG80: 498.01 | BH80: 1047677 | BI80: 1117094 | BJ80: 388 | BK80: 341 | BL80: 233.64 | BM80: 294.11 | BN80: 527.75 | BO80: 1101847 | BP80: 1207027 | BQ80: 393 | BR80: 342 | BS80: 492.82 | BT80: 244.93 | BU80: 737.75 | BV80: 2472003 | BW80: 1049269 | BX80: 418 | BY80: 357 | BZ80: 365 | CA80: 362 | CB80: 367 | CC80: 370 | CD80: 389 | CE80: 519.0879228 | CF80: 545.9862289 | CG80: 583.9473617 | CH80: 621.8060329 | CI80: 650.7697533 | CJ80: 0.9556377219 | CK80: 0.9214334966 | CL80: 0.8528337187 | CM80: 0.8487373427 | CN80: 1.133657482 | CO80: 0.8823712779 | CP80: 1.068099083 | CQ80: 0.9948367783 | CR80: 1.073642537 | CS80: 330 | CT80: 332 | CU80: 338 | CV80: 347 | CW80: 355 | CX80: 0.826853 | CY80: 0.895748 | CZ80: 0.912009 | DA80: 0.866326 | DB80: 0.908935 | DC80: DILLINGHAM | DD80: 0.0014 | DE80: 788.49 | DF80: ALASKA
A81: FAIRBANKS | B81: 2090 | C81: 4088 | D81: 14044558 | E81: 3886 | F81: 10094422 | G81: 870 | H81: 2648850 | I81: 785 | J81: 1798829 | K81: 4214 | L81: 14218317 | M81: 4004 | N81: 10868044 | O81: 922 | P81: 2673526 | Q81: 825 | R81: 2042532 | S81: 4316 | T81: 13623068 | U81: 4085 | V81: 14023013 | W81: 945 | X81: 3151464 | Y81: 850 | Z81: 2479381 | AA81: 4437 | AB81: 15100708 | AC81: 4193 | AD81: 15048641 | AE81: 979 | AF81: 2086446 | AG81: 874 | AH81: 2348502 | AI81: 4572 | AJ81: 17505024 | AK81: 4305 | AL81: 12646606 | AM81: 997 | AN81: 3087290 | AO81: 888 | AP81: 2322035 | AQ81: 280.58 | AR81: 212.18 | AS81: 492.76 | AT81: 16693408 | AU81: 11893251 | AV81: 4958 | AW81: 4671 | AX81: 274.08 | AY81: 222.8 | AZ81: 496.88 | BA81: 16891843 | BB81: 12910576 | BC81: 5136 | BD81: 4829 | BE81: 265.71 | BF81: 278.66 | BG81: 544.37 | BH81: 16774532 | BI81: 16502394 | BJ81: 5261 | BK81: 4935 | BL81: 264.45 | BM81: 286.12 | BN81: 550.57 | BO81: 17187154 | BP81: 17397143 | BQ81: 5416 | BR81: 5067 | BS81: 308.14 | BT81: 240.21 | BU81: 548.35 | BV81: 20592314 | BW81: 14968641 | BX81: 5569 | BY81: 5193 | BZ81: 4827 | CA81: 4998 | CB81: 5114 | CC81: 5258 | CD81: 5390 | CE81: 519.0879228 | CF81: 545.9862289 | CG81: 583.9473617 | CH81: 621.8060329 | CI81: 650.7697533 | CJ81: 0.9492804174 | CK81: 0.9100595833 | CL81: 0.9322244361 | CM81: 0.8854368901 | CN81: 0.8426175268 | CO81: 0.8827416236 | CP81: 1.023995863 | CQ81: 0.9948367783 | CR81: 1.029310421 | CS81: 4552 | CT81: 4717 | CU81: 4881 | CV81: 5050 | CW81: 5236 | CX81: 0.890308 | CY81: 0.906217 | CZ81: 0.877591 | DA81: 0.868209 | DB81: 0.873833 | DC81: FAIRBANKS | DD81: 0.0092 | DE81: 753.87 | DF81: ALASKA
A82: HAINES | B82: 2100 | C82: 265 | D82: 935061 | E82: 253 | F82: 675651 | G82: 29 | H82: 85326 | I82: 28 | J82: 89205 | K82: 275 | L82: 782555 | M82: 262 | N82: 940189 | O82: 36 | P82: 188710 | Q82: 34 | R82: 150767 | S82: 285 | T82: 1321012 | U82: 273 | V82: 1246175 | W82: 40 | X82: 75029 | Y82: 38 | Z82: 137441 | AA82: 296 | AB82: 1038197 | AC82: 283 | AD82: 1354114 | AE82: 39 | AF82: 77378 | AG82: 34 | AH82: 187129 | AI82: 299 | AJ82: 1164082 | AK82: 285 | AL82: 1251849 | AM82: 49 | AN82: 186419 | AO82: 46 | AP82: 154106 | AQ82: 289.23 | AR82: 226.83 | AS82: 516.06 | AT82: 1020387 | AU82: 764856 | AV82: 294 | AW82: 281 | AX82: 260.25 | AY82: 307.14 | AZ82: 567.39 | BA82: 971265 | BB82: 1090956 | BC82: 311 | BD82: 296 | BE82: 357.96 | BF82: 370.74 | BG82: 728.7 | BH82: 1396041 | BI82: 1383616 | BJ82: 325 | BK82: 311 | BL82: 277.51 | BM82: 405.16 | BN82: 682.67 | BO82: 1115575 | BP82: 1541243 | BQ82: 335 | BR82: 317 | BS82: 323.4 | BT82: 353.97 | BU82: 677.37 | BV82: 1350501 | BW82: 1405955 | BX82: 348 | BY82: 331 | BZ82: 288 | CA82: 304 | CB82: 319 | CC82: 327 | CD82: 340 | CE82: 519.0879228 | CF82: 545.9862289 | CG82: 583.9473617 | CH82: 621.8060329 | CI82: 650.7697533 | CJ82: 0.9941668402 | CK82: 1.039202035 | CL82: 1.24788645 | CM82: 1.097882561 | CN82: 1.040875051 | CO82: 0.8604912068 | CP82: 1.259748593 | CQ82: 0.9948367783 | CR82: 1.266286712 | CS82: 290 | CT82: 307 | CU82: 310 | CV82: 328 | CW82: 327 | CX82: 0.815201 | CY82: 0.883113 | CZ82: 0.851152 | DA82: 0.903173 | DB82: 0.84546 | DC82: HAINES | DD82: 0.0087 | DE82: 927.6 | DF82: ALASKA
A83: HOONAH-ANGOON | B83: 2105 | C83: 238 | D83: 749888 | E83: 223 | F83: 376764 | G83: 43 | H83: 299662 | I83: 36 | J83: 85201 | K83: 253 | L83: 1083770 | M83: 238 | N83: 579828 | O83: 49 | P83: 186731 | Q83: 42 | R83: 111288 | S83: 262 | T83: 926474 | U83: 245 | V83: 748154 | W83: 44 | X83: 130547 | Y83: 39 | Z83: 121365 | AA83: 271 | AB83: 1079342 | AC83: 248 | AD83: 998648 | AE83: 46 | AF83: 217026 | AG83: 43 | AH83: 147732 | AI83: 284 | AJ83: 1236507 | AK83: 262 | AL83: 726687 | AM83: 48 | AN83: 133037 | AO83: 46 | AP83: 126973 | AQ83: 311.25 | AR83: 148.64 | AS83: 459.89 | AT83: 1049550 | AU83: 461965 | AV83: 281 | AW83: 259 | AX83: 350.58 | AY83: 205.69 | AZ83: 556.27 | BA83: 1270501 | BB83: 691116 | BC83: 302 | BD83: 280 | BE83: 287.86 | BF83: 255.14 | BG83: 543 | BH83: 1057021 | BI83: 869519 | BJ83: 306 | BK83: 284 | BL83: 340.79 | BM83: 328.29 | BN83: 669.08 | BO83: 1296368 | BP83: 1146380 | BQ83: 317 | BR83: 291 | BS83: 343.76 | BT83: 230.97 | BU83: 574.73 | BV83: 1369544 | BW83: 853660 | BX83: 332 | BY83: 308 | BZ83: 271 | CA83: 292 | CB83: 296 | CC83: 305 | CD83: 321 | CE83: 519.0879228 | CF83: 545.9862289 | CG83: 583.9473617 | CH83: 621.8060329 | CI83: 650.7697533 | CJ83: =AS83/CE83 -> 0.8859578114 | CK83: =AZ83/CF83 -> 1.018835221 | CL83: =BG83/CG83 -> 0.9298783342 | CM83: =BN83/CH83 -> 1.076026871 | CN83: =BU83/CI83 -> 0.8831541373 | CO83: =(SUMPRODUCT(CS83,CX83)+SUMPRODUCT(CT83,CY83)+SUMPRODUCT(CU83,CZ83)+SUMPRODUCT(CV83,DA83)+SUMPRODUCT(CW83,DB83))/SUM(CS83:CW83) -> 0.8232073392 | CP83: 1.164676782 | CQ83: 0.9948367783 | CR83: =CP83/CQ83 -> 1.170721477 | CS83: 246 | CT83: 268 | CU83: 284 | CV83: 298 | CW83: 313 | CX83: 0.808298 | CY83: 0.782454 | CZ83: 0.835161 | DA83: 0.761616 | DB83: 0.917613 | DC83: HOONAH-ANGOON | DD83: 0.0067 | DE83: =ROUND(($DE$5*CR83*(1-0.35*DD83)),2) -> 858.19 | DF83: ALASKA
A84: JUNEAU | B84: 2110 | C84: 2248 | D84: 7376457 | E84: 2124 | F84: 5167811 | G84: 455 | H84: 2655231 | I84: 416 | J84: 1274820 | K84: 2325 | L84: 7949761 | M84: 2189 | N84: 5764242 | O84: 462 | P84: 2335195 | Q84: 423 | R84: 1681145 | S84: 2424 | T84: 8610786 | U84: 2260 | V84: 7940063 | W84: 511 | X84: 2161403 | Y84: 463 | Z84: 1882849 | AA84: 2498 | AB84: 8181649 | AC84: 2324 | AD84: 8542060 | AE84: 534 | AF84: 2210727 | AG84: 490 | AH84: 2075004 | AI84: 2567 | AJ84: 8066954 | AK84: 2375 | AL84: 6952881 | AM84: 534 | AN84: 2288601 | AO84: 485 | AP84: 1786768 | AQ84: 309.28 | AR84: 211.37 | AS84: 520.65 | AT84: 10031688 | AU84: 6442631 | AV84: 2703 | AW84: 2540 | AX84: 307.53 | AY84: 237.54 | AZ84: 545.07 | BA84: 10284956 | BB84: 7445387 | BC84: 2787 | BD84: 2612 | BE84: 305.85 | BF84: 300.62 | BG84: 606.47 | BH84: 10772189 | BI84: 9822912 | BJ84: 2935 | BK84: 2723 | BL84: 285.63 | BM84: 314.41 | BN84: 600.04 | BO84: 10392376 | BP84: 10617064 | BQ84: 3032 | BR84: 2814 | BS84: 278.29 | BT84: 254.65 | BU84: 532.94 | BV84: 10355555 | BW84: 8739649 | BX84: 3101 | BY84: 2860 | BZ84: 2629 | CA84: 2709 | CB84: 2839 | CC84: 2933 | CD84: 2986 | CE84: 519.0879228 | CF84: 545.9862289 | CG84: 583.9473617 | CH84: 621.8060329 | CI84: 650.7697533 | CJ84: 1.003009273 | CK84: 0.9983218827 | CL84: 1.038569638 | CM84: 0.964995462 | CN84: 0.8189378768 | CO84: 0.928082908 | CP84: 1.039526553 | CQ84: 0.9948367783 | CR84: 1.044921716 | CS84: 2456 | CT84: 2570 | CU84: 2706 | CV84: 2802 | CW84: 2860 | CX84: 0.970637 | CY84: 0.948691 | CZ84: 0.923473 | DA84: 0.909045 | DB84: 0.896035 | DC84: JUNEAU | DD84: 0.0206 | DE84: 762.24 | DF84: ALASKA
A85: KENAI PENINSULA | B85: 2122 | C85: 3580 | D85: 12909220 | E85: 3444 | F85: 7354961 | G85: 770 | H85: 2921857 | I85: 703 | J85: 2022825 | K85: 3722 | L85: 12300785 | M85: 3583 | N85: 8385465 | O85: 849 | P85: 3219980 | Q85: 775 | R85: 2421415 | S85: 3884 | T85: 13880466 | U85: 3742 | V85: 12036217 | W85: 930 | X85: 3348505 | Y85: 844 | Z85: 3512560 | AA85: 4157 | AB85: 14413187 | AC85: 3990 | AD85: 13292892 | AE85: 1000 | AF85: 3429760 | AG85: 897 | AH85: 3655221 | AI85: 4405 | AJ85: 15786475 | AK85: 4210 | AL85: 12465401 | AM85: 1034 | AN85: 3402698 | AO85: 926 | AP85: 3171822 | AQ85: 303.28 | AR85: 188.45 | AS85: 491.73 | AT85: 15831077 | AU85: 9377786 | AV85: 4350 | AW85: 4147 | AX85: 282.96 | AY85: 206.65 | AZ85: 489.61 | BA85: 15520765 | BB85: 10806880 | BC85: 4571 | BD85: 4358 | BE85: 298.24 | BF85: 282.54 | BG85: 580.78 | BH85: 17228971 | BI85: 15548777 | BJ85: 4814 | BK85: 4586 | BL85: 288.33 | BM85: 289 | BN85: 577.33 | BO85: 17842947 | BP85: 16948113 | BQ85: 5157 | BR85: 4887 | BS85: 294.01 | BT85: 253.72 | BU85: 547.73 | BV85: 19189173 | BW85: 15637223 | BX85: 5439 | BY85: 5136 | BZ85: 4257 | CA85: 4476 | CB85: 4711 | CC85: 5035 | CD85: 5295 | CE85: 519.0879228 | CF85: 545.9862289 | CG85: 583.9473617 | CH85: 621.8060329 | CI85: 650.7697533 | CJ85: =AS85/CE85 -> 0.9472961678 | CK85: =AZ85/CF85 -> 0.8967442292 | CL85: =BG85/CG85 -> 0.9945759465 | CM85: =BN85/CH85 -> 0.9284728186 | CN85: =BU85/CI85 -> 0.8416648089 | CO85: =(SUMPRODUCT(CS85,CX85)+SUMPRODUCT(CT85,CY85)+SUMPRODUCT(CU85,CZ85)+SUMPRODUCT(CV85,DA85)+SUMPRODUCT(CW85,DB85))/SUM(CS85:CW85) -> 0.8577810568 | CP85: 1.074575834 | CQ85: 0.9948367783 | CR85: =CP85/CQ85 -> 1.080152903 | CS85: 4155 | CT85: 4372 | CU85: 4628 | CV85: 4809 | CW85: 5137 | CX85: 0.850875 | CY85: 0.851028 | CZ85: 0.848313 | DA85: 0.865983 | DB85: 0.869966 | DC85: KENAI PENINSULA | DD85: 0.0032 | DE85: =ROUND(($DE$5*CR85*(1-0.35*DD85)),2) -> 792.78 | DF85: ALASKA
A86: KETCHIKAN | B86: 2130 | C86: 1110 | D86: 3876632 | E86: 1059 | F86: 2395286 | G86: 177 | H86: 408601 | I86: 167 | J86: 367312 | K86: 1123 | L86: 4322069 | M86: 1063 | N86: 2726063 | O86: 213 | P86: 559728 | Q86: 196 | R86: 460268 | S86: 1172 | T86: 4222737 | U86: 1107 | V86: 3656749 | W86: 213 | X86: 910364 | Y86: 196 | Z86: 715452 | AA86: 1201 | AB86: 4734488 | AC86: 1138 | AD86: 3912803 | AE86: 232 | AF86: 1218887 | AG86: 212 | AH86: 802609 | AI86: 1258 | AJ86: 5373787 | AK86: 1196 | AL86: 3981181 | AM86: 247 | AN86: 962275 | AO86: 224 | AP86: 826487 | AQ86: 277.47 | AR86: 187.78 | AS86: 465.25 | AT86: 4285233 | AU86: 2762598 | AV86: 1287 | AW86: 1226 | AX86: 304.5 | AY86: 210.9 | AZ86: 515.4 | BA86: 4881797 | BB86: 3186331 | BC86: 1336 | BD86: 1259 | BE86: 308.85 | BF86: 279.62 | BG86: 588.47 | BH86: 5133101 | BI86: 4372201 | BJ86: 1385 | BK86: 1303 | BL86: 346.21 | BM86: 291.07 | BN86: 637.28 | BO86: 5953375 | BP86: 4715412 | BQ86: 1433 | BR86: 1350 | BS86: 350.83 | BT86: 282.14 | BU86: 632.97 | BV86: 6336062 | BW86: 4807668 | BX86: 1505 | BY86: 1420 | BZ86: 1259 | CA86: 1301 | CB86: 1348 | CC86: 1395 | CD86: 1464 | CE86: 519.0879228 | CF86: 545.9862289 | CG86: 583.9473617 | CH86: 621.8060329 | CI86: 650.7697533 | CJ86: 0.8962836151 | CK86: 0.9439798528 | CL86: 1.007744942 | CM86: 1.024885521 | CN86: 0.9726481552 | CO86: 0.9417537739 | CP86: 1.029046492 | CQ86: 0.9948367783 | CR86: 1.034387263 | CS86: 1193 | CT86: 1244 | CU86: 1303 | CV86: 1359 | CW86: 1393 | CX86: 0.905038 | CY86: 0.944008 | CZ86: 0.945874 | DA86: 0.941888 | DB86: 0.9672 | DC86: KETCHIKAN | DD86: 0.0443 | DE86: 748.25 | DF86: ALASKA
A87: KODIAK | B87: 2150 | C87: 368 | D87: 1148392 | E87: 333 | F87: 740347 | G87: 33 | H87: 73933 | I87: 31 | J87: 38436 | K87: 368 | L87: 1315089 | M87: 334 | N87: 789372 | O87: 31 | P87: 77469 | Q87: 26 | R87: 51726 | S87: 367 | T87: 1418626 | U87: 335 | V87: 1079684 | W87: 39 | X87: 50794 | Y87: 32 | Z87: 72532 | AA87: 389 | AB87: 1998872 | AC87: 349 | AD87: 1592977 | AE87: 44 | AF87: 47681 | AG87: 39 | AH87: 103776 | AI87: 388 | AJ87: 2663115 | AK87: 345 | AL87: 1131300 | AM87: 56 | AN87: 125333 | AO87: 49 | AP87: 119663 | AQ87: 254.02 | AR87: 178.29 | AS87: 432.31 | AT87: 1222325 | AU87: 778783 | AV87: 401 | AW87: 364 | AX87: 290.84 | AY87: 194.7 | AZ87: 485.54 | BA87: 1392558 | BB87: 841098 | BC87: 399 | BD87: 360 | BE87: 301.61 | BF87: 261.63 | BG87: 563.24 | BH87: 1469420 | BI87: 1152216 | BJ87: 406 | BK87: 367 | BL87: 393.87 | BM87: 364.42 | BN87: 758.29 | BO87: 2046553 | BP87: 1696753 | BQ87: 433 | BR87: 388 | BS87: 523.36 | BT87: 264.59 | BU87: 787.95 | BV87: 2788448 | BW87: 1250963 | BX87: 444 | BY87: 394 | BZ87: 384 | CA87: 382 | CB87: 388 | CC87: 413 | CD87: 420 | CE87: 519.0879228 | CF87: 545.9862289 | CG87: 583.9473617 | CH87: 621.8060329 | CI87: 650.7697533 | CJ87: 0.8328261572 | CK87: 0.8892898287 | CL87: 0.9645389926 | CM87: 1.219496048 | CN87: 1.2107969 | CO87: 0.8902099786 | CP87: 1.149604711 | CQ87: 0.9948367783 | CR87: 1.155571181 | CS87: 358 | CT87: 365 | CU87: 372 | CV87: 385 | CW87: 393 | CX87: 0.867217 | CY87: 0.887722 | CZ87: 0.93466 | DA87: 0.870604 | DB87: 0.890598 | DC87: KODIAK | DD87: 0.0078 | DE87: 846.76 | DF87: ALASKA
A88: LAKE AND PENINSULA | B88: 2164 | C88: 344 | D88: 1118281 | E88: 306 | F88: 828499 | G88: 40 | H88: 117695 | I88: 37 | J88: 109300 | K88: 344 | L88: 1063254 | M88: 304 | N88: 905285 | O88: 37 | P88: 115084 | Q88: 35 | R88: 92838 | S88: 351 | T88: 928802 | U88: 305 | V88: 971557 | W88: 37 | X88: 118875 | Y88: 36 | Z88: 145537 | AA88: 353 | AB88: 1025521 | AC88: 303 | AD88: 1065741 | AE88: 40 | AF88: 76326 | AG88: 39 | AH88: 141286 | AI88: 377 | AJ88: 2364615 | AK88: 317 | AL88: 930679 | AM88: 41 | AN88: 107388 | AO88: 40 | AP88: 118590 | AQ88: 268.22 | AR88: 227.84 | AS88: 496.06 | AT88: 1235976 | AU88: 937799 | AV88: 384 | AW88: 343 | AX88: 257.73 | AY88: 245.36 | AZ88: 503.09 | BA88: 1178338 | BB88: 998123 | BC88: 381 | BD88: 339 | BE88: 225.02 | BF88: 272.99 | BG88: 498.01 | BH88: 1047677 | BI88: 1117094 | BJ88: 388 | BK88: 341 | BL88: 233.64 | BM88: 294.11 | BN88: 527.75 | BO88: 1101847 | BP88: 1207027 | BQ88: 393 | BR88: 342 | BS88: 492.82 | BT88: 244.93 | BU88: 737.75 | BV88: 2472003 | BW88: 1049269 | BX88: 418 | BY88: 357 | BZ88: 365 | CA88: 362 | CB88: 367 | CC88: 370 | CD88: 389 | CE88: 519.0879228 | CF88: 545.9862289 | CG88: 583.9473617 | CH88: 621.8060329 | CI88: 650.7697533 | CJ88: =AS88/CE88 -> 0.9556377219 | CK88: =AZ88/CF88 -> 0.9214334966 | CL88: =BG88/CG88 -> 0.8528337187 | CM88: =BN88/CH88 -> 0.8487373427 | CN88: =BU88/CI88 -> 1.133657482 | CO88: =(SUMPRODUCT(CS88,CX88)+SUMPRODUCT(CT88,CY88)+SUMPRODUCT(CU88,CZ88)+SUMPRODUCT(CV88,DA88)+SUMPRODUCT(CW88,DB88))/SUM(CS88:CW88) -> 0.8823712779 | CP88: 1.068099083 | CQ88: 0.9948367783 | CR88: =CP88/CQ88 -> 1.073642537 | CS88: 330 | CT88: 332 | CU88: 338 | CV88: 347 | CW88: 355 | CX88: 0.826853 | CY88: 0.895748 | CZ88: 0.912009 | DA88: 0.866326 | DB88: 0.908935 | DC88: LAKE AND PENINSULA | DD88: 0.0014 | DE88: =ROUND(($DE$5*CR88*(1-0.35*DD88)),2) -> 788.49 | DF88: ALASKA
A89: MATANUSKA | B89: 2170 | C89: 3698 | D89: 10861512 | E89: 3536 | F89: 7858899 | G89: 891 | H89: 1528951 | I89: 801 | J89: 1720079 | K89: 3968 | L89: 12522441 | M89: 3782 | N89: 9779772 | O89: 977 | P89: 2368819 | Q89: 884 | R89: 2272997 | S89: 4239 | T89: 12568808 | U89: 4041 | V89: 14123355 | W89: 1080 | X89: 2755081 | Y89: 984 | Z89: 3638403 | AA89: 4528 | AB89: 15196535 | AC89: 4310 | AD89: 15457279 | AE89: 1159 | AF89: 2727779 | AG89: 1043 | AH89: 4232613 | AI89: 4776 | AJ89: 18120584 | AK89: 4499 | AL89: 13409980 | AM89: 1210 | AN89: 3171095 | AO89: 1079 | AP89: 3319395 | AQ89: 225 | AR89: 184.06 | AS89: 409.06 | AT89: 12390463 | AU89: 9578978 | AV89: 4589 | AW89: 4337 | AX89: 250.95 | AY89: 215.26 | AZ89: 466.21 | BA89: 14891260 | BB89: 12052769 | BC89: 4945 | BD89: 4666 | BE89: 240.08 | BF89: 294.56 | BG89: 534.64 | BH89: 15323889 | BI89: 17761758 | BJ89: 5319 | BK89: 5025 | BL89: 262.65 | BM89: 306.52 | BN89: 569.17 | BO89: 17924314 | BP89: 19689892 | BQ89: 5687 | BR89: 5353 | BS89: 296.41 | BT89: 249.93 | BU89: 546.34 | BV89: 21291679 | BW89: 16729375 | BX89: 5986 | BY89: 5578 | BZ89: 4474 | CA89: 4820 | CB89: 5186 | CC89: 5536 | CD89: 5792 | CE89: 519.0879228 | CF89: 545.9862289 | CG89: 583.9473617 | CH89: 621.8060329 | CI89: 650.7697533 | CJ89: 0.7880360572 | CK89: 0.8538860054 | CL89: 0.9155619754 | CM89: 0.9153497552 | CN89: 0.8395288768 | CO89: 0.8908590486 | CP89: 0.9681357958 | CQ89: 0.9948367783 | CR89: 0.9731604389 | CS89: 4435 | CT89: 4745 | CU89: 5051 | CV89: 5268 | CW89: 5570 | CX89: 0.868754 | CY89: 0.881769 | CZ89: 0.899753 | DA89: 0.906624 | DB89: 0.893228 | DC89: MATANUSKA-SUSITNA | DD89: 0.0077 | DE89: 713.12 | DF89: ALASKA
A90: NOME | B90: 2180 | C90: 483 | D90: 1622875 | E90: 430 | F90: 636018 | G90: 67 | H90: 118901 | I90: 60 | J90: 98696 | K90: 486 | L90: 1698638 | M90: 428 | N90: 822010 | O90: 67 | P90: 193223 | Q90: 61 | R90: 82890 | S90: 491 | T90: 2066292 | U90: 429 | V90: 1217203 | W90: 69 | X90: 151111 | Y90: 58 | Z90: 162529 | AA90: 505 | AB90: 1804360 | AC90: 438 | AD90: 1462474 | AE90: 74 | AF90: 161729 | AG90: 65 | AH90: 142558 | AI90: 529 | AJ90: 3171515 | AK90: 457 | AL90: 1545095 | AM90: 72 | AN90: 332336 | AO90: 63 | AP90: 196746 | AQ90: 263.91 | AR90: 124.95 | AS90: 388.86 | AT90: 1741776 | AU90: 734714 | AV90: 550 | AW90: 490 | AX90: 285.09 | AY90: 154.21 | AZ90: 439.3 | BA90: 1891861 | BB90: 904900 | BC90: 553 | BD90: 489 | BE90: 329.97 | BF90: 236.09 | BG90: 566.06 | BH90: 2217403 | BI90: 1379732 | BJ90: 560 | BK90: 487 | BL90: 282.97 | BM90: 265.91 | BN90: 548.88 | BO90: 1966089 | BP90: 1605032 | BQ90: 579 | BR90: 503 | BS90: 485.84 | BT90: 279.14 | BU90: 764.98 | BV90: 3503851 | BW90: 1741841 | BX90: 601 | BY90: 520 | BZ90: 523 | CA90: 524 | CB90: 527 | CC90: 545 | CD90: 562 | CE90: 519.0879228 | CF90: 545.9862289 | CG90: 583.9473617 | CH90: 621.8060329 | CI90: 650.7697533 | CJ90: 0.7491216477 | CK90: 0.804599048 | CL90: 0.969368195 | CM90: 0.8827190007 | CN90: 1.175500238 | CO90: 0.8216613133 | CP90: 1.115132976 | CQ90: 0.9948367783 | CR90: 1.120920538 | CS90: 489 | CT90: 490 | CU90: 492 | CV90: 498 | CW90: 533 | CX90: 0.757992 | CY90: 0.84473 | CZ90: 0.829275 | DA90: 0.841469 | DB90: 0.833332 | DC90: NOME | DD90: 0.0027 | DE90: 822.84 | DF90: ALASKA
A91: NORTH SLOPE | B91: 2185 | C91: 284 | D91: 902328 | E91: 246 | F91: 730677 | G91: 56 | H91: 305501 | I91: 49 | J91: 207388 | K91: 290 | L91: 1022960 | M91: 247 | N91: 804959 | O91: 53 | P91: 137576 | Q91: 48 | R91: 210770 | S91: 291 | T91: 1254721 | U91: 255 | V91: 851881 | W91: 59 | X91: 78750 | Y91: 51 | Z91: 171277 | AA91: 286 | AB91: 879482 | AC91: 250 | AD91: 759854 | AE91: 59 | AF91: 103525 | AG91: 53 | AH91: 245203 | AI91: 311 | AJ91: 1630437 | AK91: 268 | AL91: 1015141 | AM91: 61 | AN91: 122711 | AO91: 54 | AP91: 191112 | AQ91: 296.04 | AR91: 264.99 | AS91: 561.03 | AT91: 1207829 | AU91: 938065 | AV91: 340 | AW91: 295 | AX91: 281.96 | AY91: 286.93 | AZ91: 568.89 | BA91: 1160536 | BB91: 1015729 | BC91: 343 | BD91: 295 | BE91: 317.49 | BF91: 278.64 | BG91: 596.13 | BH91: 1333471 | BI91: 1023158 | BJ91: 350 | BK91: 306 | BL91: 237.44 | BM91: 276.42 | BN91: 513.86 | BO91: 983007 | BP91: 1005057 | BQ91: 345 | BR91: 303 | BS91: 392.73 | BT91: 312.18 | BU91: 704.91 | BV91: 1753148 | BW91: 1206253 | BX91: 372 | BY91: 322 | BZ91: 319 | CA91: 321 | CB91: 330 | CC91: 326 | CD91: 348 | CE91: 519.0879228 | CF91: 545.9862289 | CG91: 583.9473617 | CH91: 621.8060329 | CI91: 650.7697533 | CJ91: =AS91/CE91 -> 1.080799563 | CK91: =AZ91/CF91 -> 1.041949357 | CL91: =BG91/CG91 -> 1.020862562 | CM91: =BN91/CH91 -> 0.8263991869 | CN91: =BU91/CI91 -> 1.083194166 | CO91: =(SUMPRODUCT(CS91,CX91)+SUMPRODUCT(CT91,CY91)+SUMPRODUCT(CU91,CZ91)+SUMPRODUCT(CV91,DA91)+SUMPRODUCT(CW91,DB91))/SUM(CS91:CW91) -> 0.7822613618 | CP91: 1.291947955 | CQ91: 0.9948367783 | CR91: =CP91/CQ91 -> 1.29865319 | CS91: 279 | CT91: 289 | CU91: 308 | CV91: 307 | CW91: 318 | CX91: 0.750068 | CY91: 0.765931 | CZ91: 0.784642 | DA91: 0.773699 | DB91: 0.831308 | DC91: NORTH SLOPE | DD91: 0.0025 | DE91: =ROUND(($DE$5*CR91*(1-0.35*DD91)),2) -> 953.38 | DF91: ALASKA
A92: NORTHWEST ARTIC | B92: 2188 | C92: 330 | D92: 569846 | E92: 279 | F92: 719822 | G92: 53 | H92: 76754 | I92: 50 | J92: 117846 | K92: 343 | L92: 1024397 | M92: 282 | N92: 576614 | O92: 46 | P92: 57437 | Q92: 42 | R92: 82112 | S92: 344 | T92: 1159024 | U92: 282 | V92: 760964 | W92: 49 | X92: 138961 | Y92: 42 | Z92: 105828 | AA92: 350 | AB92: 1090671 | AC92: 282 | AD92: 1083708 | AE92: 49 | AF92: 218170 | AG92: 39 | AH92: 209160 | AI92: 363 | AJ92: 1872333 | AK92: 289 | AL92: 973528 | AM92: 51 | AN92: 282112 | AO92: 42 | AP92: 80314 | AQ92: 140.69 | AR92: 212.18 | AS92: 352.87 | AT92: 646600 | AU92: 837668 | AV92: 383 | AW92: 329 | AX92: 231.76 | AY92: 169.43 | AZ92: 401.19 | BA92: 1081834 | BB92: 658726 | BC92: 389 | BD92: 324 | BE92: 275.23 | BF92: 222.94 | BG92: 498.17 | BH92: 1297985 | BI92: 866792 | BJ92: 393 | BK92: 324 | BL92: 273.36 | BM92: 335.64 | BN92: 609 | BO92: 1308841 | BP92: 1292868 | BQ92: 399 | BR92: 321 | BS92: 433.66 | BT92: 265.32 | BU92: 698.98 | BV92: 2154445 | BW92: 1053842 | BX92: 414 | BY92: 331 | BZ92: 358 | CA92: 360 | CB92: 362 | CC92: 364 | CD92: 374 | CE92: 519.0879228 | CF92: 545.9862289 | CG92: 583.9473617 | CH92: 621.8060329 | CI92: 650.7697533 | CJ92: 0.6797884992 | CK92: 0.7347987527 | CL92: 0.853107716 | CM92: 0.9794051003 | CN92: 1.07408188 | CO92: 0.8483814111 | CP92: 1.018688503 | CQ92: 0.9948367783 | CR92: 1.023975516 | CS92: 314 | CT92: 319 | CU92: 325 | CV92: 324 | CW92: 326 | CX92: 0.852391 | CY92: 0.851088 | CZ92: 0.805437 | DA92: 0.899884 | DB92: 0.833497 | DC92: NORTHWEST ARTIC | DD92: 0.0011 | DE92: 752.1 | DF92: ALASKA
A93: PETERSBURG | B93: 2195 | C93: 607 | D93: 2691911 | E93: 578 | F93: 1837917 | G93: 84 | H93: 148079 | I93: 76 | J93: 265023 | K93: 618 | L93: 2887930 | M93: 589 | N93: 2347566 | O93: 93 | P93: 301292 | Q93: 82 | R93: 380059 | S93: 632 | T93: 2962600 | U93: 603 | V93: 2646129 | W93: 90 | X93: 358589 | Y93: 84 | Z93: 543130 | AA93: 641 | AB93: 3652047 | AC93: 611 | AD93: 2678566 | AE93: 93 | AF93: 491218 | AG93: 86 | AH93: 485497 | AI93: 672 | AJ93: 3512403 | AK93: 640 | AL93: 2685598 | AM93: 95 | AN93: 632311 | AO93: 85 | AP93: 363291 | AQ93: 342.5 | AR93: 267.96 | AS93: 610.46 | AT93: 2839990 | AU93: 2102940 | AV93: 691 | AW93: 654 | AX93: 373.8 | AY93: 338.75 | AZ93: 712.55 | BA93: 3189222 | BB93: 2727625 | BC93: 711 | BD93: 671 | BE93: 383.33 | BF93: 386.86 | BG93: 770.19 | BH93: 3321189 | BI93: 3189259 | BJ93: 722 | BK93: 687 | BL93: 470.4 | BM93: 378.3 | BN93: 848.7 | BO93: 4143265 | BP93: 3164063 | BQ93: 734 | BR93: 697 | BS93: 450.32 | BT93: 350.45 | BU93: 800.77 | BV93: 4144714 | BW93: 3048889 | BX93: 767 | BY93: 725 | BZ93: 674 | CA93: 693 | CB93: 706 | CC93: 717 | CD93: 747 | CE93: 519.0879228 | CF93: 545.9862289 | CG93: 583.9473617 | CH93: 621.8060329 | CI93: 650.7697533 | CJ93: =AS93/CE93 -> 1.176024279 | CK93: =AZ93/CF93 -> 1.305069546 | CL93: =BG93/CG93 -> 1.318937374 | CM93: =BN93/CH93 -> 1.364895088 | CN93: =BU93/CI93 -> 1.230496648 | CO93: =(SUMPRODUCT(CS93,CX93)+SUMPRODUCT(CT93,CY93)+SUMPRODUCT(CU93,CZ93)+SUMPRODUCT(CV93,DA93)+SUMPRODUCT(CW93,DB93))/SUM(CS93:CW93) -> 0.9659700233 | CP93: 1.324145218 | CQ93: 0.9948367783 | CR93: =CP93/CQ93 -> 1.331017557 | CS93: 642 | CT93: 675 | CU93: 685 | CV93: 708 | CW93: 720 | CX93: 0.969803 | CY93: 0.981488 | CZ93: 0.96923 | DA93: 0.979728 | DB93: 0.931374 | DC93: PETERSBURG | DD93: 0.048 | DE93: =ROUND(($DE$5*CR93*(1-0.35*DD93)),2) -> 961.56 | DF93: ALASKA
A94: PRINCE OF WALES-HYDER | B94: 2198 | C94: 161 | D94: 639674 | E94: 149 | F94: 346923 | G94: 28 | H94: 98767 | I94: 24 | J94: 62688 | K94: 168 | L94: 913092 | M94: 158 | N94: 459035 | O94: 32 | P94: 133355 | Q94: 28 | R94: 104236 | S94: 166 | T94: 579420 | U94: 152 | V94: 431323 | W94: 34 | X94: 120543 | Y94: 31 | Z94: 107670 | AA94: 169 | AB94: 515396 | AC94: 151 | AD94: 396152 | AE94: 35 | AF94: 57591 | AG94: 31 | AH94: 72662 | AI94: 175 | AJ94: 1028514 | AK94: 155 | AL94: 434464 | AM94: 39 | AN94: 66445 | AO94: 36 | AP94: 70633 | AQ94: 325.59 | AR94: 197.31 | AS94: 522.9 | AT94: 738441 | AU94: 409611 | AV94: 189 | AW94: 173 | AX94: 436.02 | AY94: 252.36 | AZ94: 688.38 | BA94: 1046447 | BB94: 563271 | BC94: 200 | BD94: 186 | BE94: 291.65 | BF94: 245.44 | BG94: 537.09 | BH94: 699963 | BI94: 538993 | BJ94: 200 | BK94: 183 | BL94: 234.06 | BM94: 214.66 | BN94: 448.72 | BO94: 572987 | BP94: 468814 | BQ94: 204 | BR94: 182 | BS94: 426.39 | BT94: 220.37 | BU94: 646.76 | BV94: 1094959 | BW94: 505097 | BX94: 214 | BY94: 191 | BZ94: 182 | CA94: 194 | CB94: 192 | CC94: 194 | CD94: 203 | CE94: 519.0879228 | CF94: 545.9862289 | CG94: 583.9473617 | CH94: 621.8060329 | CI94: 650.7697533 | CJ94: 1.007343799 | CK94: 1.26080103 | CL94: 0.919757559 | CM94: 0.7216398302 | CN94: 0.9938384456 | CO94: 0.8645368097 | CP94: 1.134337048 | CQ94: 0.9948367783 | CR94: 1.140224279 | CS94: 170 | CT94: 188 | CU94: 186 | CV94: 184 | CW94: 197 | CX94: 0.901239 | CY94: 0.897463 | CZ94: 0.786662 | DA94: 0.894796 | DB94: 0.846707 | DC94: PRINCE OF WALES-HYDER | DD94: 0.02 | DE94: 831.94 | DF94: ALASKA
A95: SITKA | B95: 2220 | C95: 693 | D95: 2664437 | E95: 630 | F95: 1981451 | G95: 83 | H95: 486686 | I95: 73 | J95: 350008 | K95: 738 | L95: 3812828 | M95: 667 | N95: 2360869 | O95: 85 | P95: 404750 | Q95: 76 | R95: 362273 | S95: 761 | T95: 3047569 | U95: 692 | V95: 3083174 | W95: 97 | X95: 475094 | Y95: 89 | Z95: 487692 | AA95: 790 | AB95: 4720480 | AC95: 721 | AD95: 3450504 | AE95: 98 | AF95: 274870 | AG95: 91 | AH95: 539748 | AI95: 824 | AJ95: 3792745 | AK95: 744 | AL95: 3439746 | AM95: 107 | AN95: 575695 | AO95: 101 | AP95: 486573 | AQ95: 338.39 | AR95: 276.37 | AS95: 614.76 | AT95: 3151123 | AU95: 2331459 | AV95: 776 | AW95: 703 | AX95: 427.05 | AY95: 305.42 | AZ95: 732.47 | BA95: 4217578 | BB95: 2723142 | BC95: 823 | BD95: 743 | BE95: 342.14 | BF95: 381.01 | BG95: 723.15 | BH95: 3522663 | BI95: 3570866 | BJ95: 858 | BK95: 781 | BL95: 468.78 | BM95: 409.51 | BN95: 878.29 | BO95: 4995350 | BP95: 3990252 | BQ95: 888 | BR95: 812 | BS95: 391.02 | BT95: 387.21 | BU95: 778.23 | BV95: 4368440 | BW95: 3926319 | BX95: 931 | BY95: 845 | BZ95: 743 | CA95: 787 | CB95: 823 | CC95: 854 | CD95: 890 | CE95: 519.0879228 | CF95: 545.9862289 | CG95: 583.9473617 | CH95: 621.8060329 | CI95: 650.7697533 | CJ95: 1.184308039 | CK95: 1.341553983 | CL95: 1.238382168 | CM95: 1.412482275 | CN95: 1.195860742 | CO95: 0.9382236176 | CP95: 1.35843675 | CQ95: 0.9948367783 | CR95: 1.365487062 | CS95: 693 | CT95: 753 | CU95: 793 | CV95: 816 | CW95: 860 | CX95: 0.942516 | CY95: 0.940747 | CZ95: 0.916128 | DA95: 0.936305 | DB95: 0.95475 | DC95: SITKA | DD95: 0.0134 | DE95: 998.61 | DF95: ALASKA
A96: SKAGWAY-YAKUTAT | B96: 2230 | C96: 238 | D96: 749888 | E96: 223 | F96: 376764 | G96: 43 | H96: 299662 | I96: 36 | J96: 85201 | K96: 253 | L96: 1083770 | M96: 238 | N96: 579828 | O96: 49 | P96: 186731 | Q96: 42 | R96: 111288 | S96: 262 | T96: 926474 | U96: 245 | V96: 748154 | W96: 44 | X96: 130547 | Y96: 39 | Z96: 121365 | AA96: 271 | AB96: 1079342 | AC96: 248 | AD96: 998648 | AE96: 46 | AF96: 217026 | AG96: 43 | AH96: 147732 | AI96: 284 | AJ96: 1236507 | AK96: 262 | AL96: 726687 | AM96: 48 | AN96: 133037 | AO96: 46 | AP96: 126973 | AQ96: 311.25 | AR96: 148.64 | AS96: 459.89 | AT96: 1049550 | AU96: 461965 | AV96: 281 | AW96: 259 | AX96: 350.58 | AY96: 205.69 | AZ96: 556.27 | BA96: 1270501 | BB96: 691116 | BC96: 302 | BD96: 280 | BE96: 287.86 | BF96: 255.14 | BG96: 543 | BH96: 1057021 | BI96: 869519 | BJ96: 306 | BK96: 284 | BL96: 340.79 | BM96: 328.29 | BN96: 669.08 | BO96: 1296368 | BP96: 1146380 | BQ96: 317 | BR96: 291 | BS96: 343.76 | BT96: 230.97 | BU96: 574.73 | BV96: 1369544 | BW96: 853660 | BX96: 332 | BY96: 308 | BZ96: 271 | CA96: 292 | CB96: 296 | CC96: 305 | CD96: 321 | CE96: 519.0879228 | CF96: 545.9862289 | CG96: 583.9473617 | CH96: 621.8060329 | CI96: 650.7697533 | CJ96: 0.8859578114 | CK96: 1.018835221 | CL96: 0.9298783342 | CM96: 1.076026871 | CN96: 0.8831541373 | CO96: 0.8232073392 | CP96: 1.164676782 | CQ96: 0.9948367783 | CR96: 1.170721477 | CS96: 246 | CT96: 268 | CU96: 284 | CV96: 298 | CW96: 313 | CX96: 0.808298 | CY96: 0.782454 | CZ96: 0.835161 | DA96: 0.761616 | DB96: 0.917613 | DC96: SKAGWAY-YAKUTAT | DD96: 0.0067 | DE96: 858.19 | DF96: ALASKA
A97: SOUTHEAST FAIRBANKS | B97: 2240 | C97: 420 | D97: 1358862 | E97: 402 | F97: 886487 | G97: 81 | H97: 152461 | I97: 72 | J97: 200257 | K97: 447 | L97: 1642187 | M97: 427 | N97: 1010730 | O97: 87 | P97: 209342 | Q97: 76 | R97: 160464 | S97: 451 | T97: 1132101 | U97: 430 | V97: 1301029 | W97: 75 | X97: 159617 | Y97: 67 | Z97: 220241 | AA97: 467 | AB97: 1262602 | AC97: 445 | AD97: 1317598 | AE97: 79 | AF97: 193725 | AG97: 71 | AH97: 353489 | AI97: 504 | AJ97: 1336511 | AK97: 473 | AL97: 1230182 | AM97: 80 | AN97: 141452 | AO97: 70 | AP97: 352630 | AQ97: 251.38 | AR97: 191.06 | AS97: 442.44 | AT97: 1511323 | AU97: 1086744 | AV97: 501 | AW97: 474 | AX97: 288.94 | AY97: 194.03 | AZ97: 482.97 | BA97: 1851529 | BB97: 1171194 | BC97: 534 | BD97: 503 | BE97: 204.64 | BF97: 255.08 | BG97: 459.72 | BH97: 1291718 | BI97: 1521270 | BJ97: 526 | BK97: 497 | BL97: 222.27 | BM97: 269.88 | BN97: 492.15 | BO97: 1456327 | BP97: 1671087 | BQ97: 546 | BR97: 516 | BS97: 210.9 | BT97: 242.91 | BU97: 453.81 | BV97: 1477963 | BW97: 1582812 | BX97: 584 | BY97: 543 | BZ97: 489 | CA97: 520 | CB97: 513 | CC97: 532 | CD97: 564 | CE97: 519.0879228 | CF97: 545.9862289 | CG97: 583.9473617 | CH97: 621.8060329 | CI97: 650.7697533 | CJ97: 0.8523411557 | CK97: 0.8845827503 | CL97: 0.78726274 | CM97: 0.7914847621 | CN97: 0.6973434117 | CO97: 0.8195178365 | CP97: 0.9793599702 | CQ97: 0.9948367783 | CR97: 0.984442867 | CS97: 445 | CT97: 473 | CU97: 490 | CV97: 521 | CW97: 554 | CX97: 0.847502 | CY97: 0.828921 | CZ97: 0.822413 | DA97: 0.806803 | DB97: 0.798408 | DC97: SOUTHEAST | DD97: 0.0011 | DE97: 723.06 | DF97: ALASKA
A98: VALDEZ-CORDOVA | B98: 2261 | C98: 447 | D98: 1612149 | E98: 417 | F98: 849081 | G98: 75 | H98: 187779 | I98: 72 | J98: 164956 | K98: 456 | L98: 1463704 | M98: 423 | N98: 877422 | O98: 88 | P98: 144255 | Q98: 84 | R98: 137611 | S98: 484 | T98: 1889407 | U98: 450 | V98: 1219015 | W98: 99 | X98: 421444 | Y98: 95 | Z98: 238828 | AA98: 524 | AB98: 3644251 | AC98: 482 | AD98: 1441368 | AE98: 112 | AF98: 341819 | AG98: 104 | AH98: 286524 | AI98: 562 | AJ98: 3112837 | AK98: 506 | AL98: 1285235 | AM98: 113 | AN98: 461739 | AO98: 107 | AP98: 376906 | AQ98: 287.34 | AR98: 172.81 | AS98: 460.15 | AT98: 1799928 | AU98: 1014037 | AV98: 522 | AW98: 489 | AX98: 246.32 | AY98: 166.84 | AZ98: 413.16 | BA98: 1607959 | BB98: 1015033 | BC98: 544 | BD98: 507 | BE98: 330.31 | BF98: 222.91 | BG98: 553.22 | BH98: 2310851 | BI98: 1457843 | BJ98: 583 | BK98: 545 | BL98: 522.28 | BM98: 245.72 | BN98: 768 | BO98: 3986070 | BP98: 1727892 | BQ98: 636 | BR98: 586 | BS98: 441.31 | BT98: 225.96 | BU98: 667.27 | BV98: 3574576 | BW98: 1662141 | BX98: 675 | BY98: 613 | BZ98: 507 | CA98: 527 | CB98: 566 | CC98: 613 | CD98: 645 | CE98: 519.0879228 | CF98: 545.9862289 | CG98: 583.9473617 | CH98: 621.8060329 | CI98: 650.7697533 | CJ98: =AS98/CE98 -> 0.88645869 | CK98: =AZ98/CF98 -> 0.7567223826 | CL98: =BG98/CG98 -> 0.9473799117 | CM98: =BN98/CH98 -> 1.235111851 | CN98: =BU98/CI98 -> 1.025354969 | CO98: =(SUMPRODUCT(CS98,CX98)+SUMPRODUCT(CT98,CY98)+SUMPRODUCT(CU98,CZ98)+SUMPRODUCT(CV98,DA98)+SUMPRODUCT(CW98,DB98))/SUM(CS98:CW98) -> 0.7948177957 | CP98: 1.220664114 | CQ98: 0.9948367783 | CR98: =CP98/CQ98 -> 1.226999384 | CS98: 476 | CT98: 508 | CU98: 544 | CV98: 578 | CW98: 616 | CX98: 0.822513 | CY98: 0.814396 | CZ98: 0.784458 | DA98: 0.780666 | DB98: 0.779699 | DC98: VALDEZ-CORDOVA | DD98: 0.016 | DE98: =ROUND(($DE$5*CR98*(1-0.35*DD98)),2) -> 896.51 | DF98: ALASKA
A99: WADE HAMPTON | B99: 2270 | C99: 374 | D99: 1375153 | E99: 342 | F99: 1137894 | G99: 47 | H99: 59866 | I99: 42 | J99: 70463 | K99: 378 | L99: 1409963 | M99: 349 | N99: 1283405 | O99: 48 | P99: 183572 | Q99: 43 | R99: 117395 | S99: 373 | T99: 1291187 | U99: 345 | V99: 1378409 | W99: 53 | X99: 77697 | Y99: 48 | Z99: 125847 | AA99: 375 | AB99: 2200201 | AC99: 344 | AD99: 1672801 | AE99: 58 | AF99: 43978 | AG99: 52 | AH99: 133894 | AI99: 392 | AJ99: 2088035 | AK99: 363 | AL99: 1448271 | AM99: 60 | AN99: 174914 | AO99: 52 | AP99: 131618 | AQ99: 284.05 | AR99: 262.23 | AS99: 546.28 | AT99: 1435019 | AU99: 1208357 | AV99: 421 | AW99: 384 | AX99: 311.72 | AY99: 297.79 | AZ99: 609.51 | BA99: 1593535 | BB99: 1400800 | BC99: 426 | BD99: 392 | BE99: 267.78 | BF99: 318.97 | BG99: 586.75 | BH99: 1368884 | BI99: 1504256 | BJ99: 426 | BK99: 393 | BL99: 431.91 | BM99: 380.2 | BN99: 812.11 | BO99: 2244179 | BP99: 1806695 | BQ99: 433 | BR99: 396 | BS99: 417.21 | BT99: 317.25 | BU99: 734.46 | BV99: 2262949 | BW99: 1579889 | BX99: 452 | BY99: 415 | BZ99: 404 | CA99: 411 | CB99: 411 | CC99: 416 | CD99: 434 | CE99: 519.0879228 | CF99: 545.9862289 | CG99: 583.9473617 | CH99: 621.8060329 | CI99: 650.7697533 | CJ99: 1.052384338 | CK99: 1.116346838 | CL99: 1.004799471 | CM99: 1.306050371 | CN99: 1.128601931 | CO99: 0.9355434758 | CP99: 1.198914448 | CQ99: 0.9948367783 | CR99: 1.205136836 | CS99: 386 | CT99: 390 | CU99: 395 | CV99: 397 | CW99: 414 | CX99: 0.903923 | CY99: 0.905006 | CZ99: 0.928314 | DA99: 0.959197 | DB99: 0.978008 | DC99: WADE | DD99: 0 | DE99: 885.5 | DF99: ALASKA
A100: WRANGELL | B100: 2275 | C100: 607 | D100: 2691911 | E100: 578 | F100: 1837917 | G100: 84 | H100: 148079 | I100: 76 | J100: 265023 | K100: 618 | L100: 2887930 | M100: 589 | N100: 2347566 | O100: 93 | P100: 301292 | Q100: 82 | R100: 380059 | S100: 632 | T100: 2962600 | U100: 603 | V100: 2646129 | W100: 90 | X100: 358589 | Y100: 84 | Z100: 543130 | AA100: 641 | AB100: 3652047 | AC100: 611 | AD100: 2678566 | AE100: 93 | AF100: 491218 | AG100: 86 | AH100: 485497 | AI100: 672 | AJ100: 3512403 | AK100: 640 | AL100: 2685598 | AM100: 95 | AN100: 632311 | AO100: 85 | AP100: 363291 | AQ100: 342.5 | AR100: 267.96 | AS100: 610.46 | AT100: 2839990 | AU100: 2102940 | AV100: 691 | AW100: 654 | AX100: 373.8 | AY100: 338.75 | AZ100: 712.55 | BA100: 3189222 | BB100: 2727625 | BC100: 711 | BD100: 671 | BE100: 383.33 | BF100: 386.86 | BG100: 770.19 | BH100: 3321189 | BI100: 3189259 | BJ100: 722 | BK100: 687 | BL100: 470.4 | BM100: 378.3 | BN100: 848.7 | BO100: 4143265 | BP100: 3164063 | BQ100: 734 | BR100: 697 | BS100: 450.32 | BT100: 350.45 | BU100: 800.77 | BV100: 4144714 | BW100: 3048889 | BX100: 767 | BY100: 725 | BZ100: 674 | CA100: 693 | CB100: 706 | CC100: 717 | CD100: 747 | CE100: 519.0879228 | CF100: 545.9862289 | CG100: 583.9473617 | CH100: 621.8060329 | CI100: 650.7697533 | CJ100: =AS100/CE100 -> 1.176024279 | CK100: =AZ100/CF100 -> 1.305069546 | CL100: =BG100/CG100 -> 1.318937374 | CM100: =BN100/CH100 -> 1.364895088 | CN100: =BU100/CI100 -> 1.230496648 | CO100: =(SUMPRODUCT(CS100,CX100)+SUMPRODUCT(CT100,CY100)+SUMPRODUCT(CU100,CZ100)+SUMPRODUCT(CV100,DA100)+SUMPRODUCT(CW100,DB100))/SUM(CS100:CW100) -> 0.9659700233 | CP100: 1.324145218 | CQ100: 0.9948367783 | CR100: =CP100/CQ100 -> 1.331017557 | CS100: 642 | CT100: 675 | CU100: 685 | CV100: 708 | CW100: 720 | CX100: 0.969803 | CY100: 0.981488 | CZ100: 0.96923 | DA100: 0.979728 | DB100: 0.931374 | DC100: WRANGELL | DD100: 0.048 | DE100: =ROUND(($DE$5*CR100*(1-0.35*DD100)),2) -> 961.56 | DF100: ALASKA
A101: YAKUTAT | B101: 2282 | C101: 238 | D101: 749888 | E101: 223 | F101: 376764 | G101: 43 | H101: 299662 | I101: 36 | J101: 85201 | K101: 253 | L101: 1083770 | M101: 238 | N101: 579828 | O101: 49 | P101: 186731 | Q101: 42 | R101: 111288 | S101: 262 | T101: 926474 | U101: 245 | V101: 748154 | W101: 44 | X101: 130547 | Y101: 39 | Z101: 121365 | AA101: 271 | AB101: 1079342 | AC101: 248 | AD101: 998648 | AE101: 46 | AF101: 217026 | AG101: 43 | AH101: 147732 | AI101: 284 | AJ101: 1236507 | AK101: 262 | AL101: 726687 | AM101: 48 | AN101: 133037 | AO101: 46 | AP101: 126973 | AQ101: 311.25 | AR101: 148.64 | AS101: 459.89 | AT101: 1049550 | AU101: 461965 | AV101: 281 | AW101: 259 | AX101: 350.58 | AY101: 205.69 | AZ101: 556.27 | BA101: 1270501 | BB101: 691116 | BC101: 302 | BD101: 280 | BE101: 287.86 | BF101: 255.14 | BG101: 543 | BH101: 1057021 | BI101: 869519 | BJ101: 306 | BK101: 284 | BL101: 340.79 | BM101: 328.29 | BN101: 669.08 | BO101: 1296368 | BP101: 1146380 | BQ101: 317 | BR101: 291 | BS101: 343.76 | BT101: 230.97 | BU101: 574.73 | BV101: 1369544 | BW101: 853660 | BX101: 332 | BY101: 308 | BZ101: 271 | CA101: 292 | CB101: 296 | CC101: 305 | CD101: 321 | CE101: 519.0879228 | CF101: 545.9862289 | CG101: 583.9473617 | CH101: 621.8060329 | CI101: 650.7697533 | CJ101: =AS101/CE101 -> 0.8859578114 | CK101: =AZ101/CF101 -> 1.018835221 | CL101: =BG101/CG101 -> 0.9298783342 | CM101: =BN101/CH101 -> 1.076026871 | CN101: =BU101/CI101 -> 0.8831541373 | CO101: =(SUMPRODUCT(CS101,CX101)+SUMPRODUCT(CT101,CY101)+SUMPRODUCT(CU101,CZ101)+SUMPRODUCT(CV101,DA101)+SUMPRODUCT(CW101,DB101))/SUM(CS101:CW101) -> 0.8232073392 | CP101: 1.164676782 | CQ101: 0.9948367783 | CR101: =CP101/CQ101 -> 1.170721477 | CS101: 246 | CT101: 268 | CU101: 284 | CV101: 298 | CW101: 313 | CX101: 0.808298 | CY101: 0.782454 | CZ101: 0.835161 | DA101: 0.761616 | DB101: 0.917613 | DC101: YAKUTAT | DD101: 0.0067 | DE101: =ROUND(($DE$5*CR101*(1-0.35*DD101)),2) -> 858.19 | DF101: ALASKA
A102: YUKON-KOYUKUK | B102: 2290 | C102: 332 | D102: 1355179 | E102: 306 | F102: 751610 | G102: 50 | H102: 102006 | I102: 45 | J102: 89332 | K102: 349 | L102: 941824 | M102: 318 | N102: 668766 | O102: 46 | P102: 434155 | Q102: 43 | R102: 105610 | S102: 363 | T102: 1174738 | U102: 329 | V102: 819451 | W102: 47 | X102: 42829 | Y102: 41 | Z102: 68909 | AA102: 386 | AB102: 1418266 | AC102: 350 | AD102: 1163701 | AE102: 48 | AF102: 42445 | AG102: 43 | AH102: 76710 | AI102: 408 | AJ102: 963162 | AK102: 367 | AL102: 988096 | AM102: 47 | AN102: 216033 | AO102: 42 | AP102: 117375 | AQ102: 317.89 | AR102: 199.65 | AS102: 517.54 | AT102: 1457185 | AU102: 840942 | AV102: 382 | AW102: 351 | AX102: 290.29 | AY102: 178.76 | AZ102: 469.05 | BA102: 1375979 | BB102: 774376 | BC102: 395 | BD102: 361 | BE102: 247.47 | BF102: 200.08 | BG102: 447.55 | BH102: 1217567 | BI102: 888360 | BJ102: 410 | BK102: 370 | BL102: 280.47 | BM102: 263.02 | BN102: 543.49 | BO102: 1460711 | BP102: 1240411 | BQ102: 434 | BR102: 393 | BS102: 215.97 | BT102: 225.24 | BU102: 441.21 | BV102: 1179195 | BW102: 1105471 | BX102: 455 | BY102: 409 | BZ102: 368 | CA102: 380 | CB102: 392 | CC102: 415 | CD102: 433 | CE102: 519.0879228 | CF102: 545.9862289 | CG102: 583.9473617 | CH102: 621.8060329 | CI102: 650.7697533 | CJ102: 0.997017995 | CK102: 0.8590876018 | CL102: 0.7664218204 | CM102: 0.8740507027 | CN102: 0.6779817252 | CO102: 0.8080729272 | CP102: 1.033213638 | CQ102: 0.9948367783 | CR102: 1.038576037 | CS102: 341 | CT102: 354 | CU102: 376 | CV102: 398 | CW102: 412 | CX102: 0.787286 | CY102: 0.830074 | CZ102: 0.778229 | DA102: 0.808987 | DB102: 0.832727 | DC102: YUKON-KOYUKUK | DD102: 0.0017 | DE102: 762.66 | DF102: ALASKA
A103: APACHE | B103: 3000 | C103: 5214 | D103: 15978604 | E103: 5012 | F103: 10583838 | G103: 1004 | H103: 2381786 | I103: 857 | J103: 1876435 | K103: 5446 | L103: 17014402 | M103: 5253 | N103: 12990702 | O103: 1084 | P103: 2994091 | Q103: 937 | R103: 2340342 | S103: 5604 | T103: 18768147 | U103: 5414 | V103: 13964563 | W103: 1156 | X103: 3481366 | Y103: 1000 | Z103: 2642643 | AA103: 5737 | AB103: 21320014 | AC103: 5670 | AD103: 15991025 | AE103: 1248 | AF103: 4026669 | AG103: 1098 | AH103: 3104139 | AI103: 5475 | AJ103: 20711816 | AK103: 5353 | AL103: 14633375 | AM103: 1220 | AN103: 3831252 | AO103: 1067 | AP103: 2850952 | AQ103: 246.07 | AR103: 176.92 | AS103: 422.99 | AT103: 18360390 | AU103: 12460273 | AV103: 6218 | AW103: 5869 | AX103: 255.34 | AY103: 206.4 | AZ103: 461.74 | BA103: 20008493 | BB103: 15331044 | BC103: 6530 | BD103: 6190 | BE103: 274.28 | BF103: 215.77 | BG103: 490.05 | BH103: 22249513 | BI103: 16607206 | BJ103: 6760 | BK103: 6414 | BL103: 302.39 | BM103: 235.12 | BN103: 537.51 | BO103: 25346683 | BP103: 19095164 | BQ103: 6985 | BR103: 6768 | BS103: 305.49 | BT103: 226.95 | BU103: 532.44 | BV103: 24543068 | BW103: 17484327 | BX103: 6695 | BY103: 6420 | BZ103: 6059 | CA103: 6378 | CB103: 6604 | CC103: 6887 | CD103: 6564 | CE103: 519.0879228 | CF103: 545.9862289 | CG103: 583.9473617 | CH103: 621.8060329 | CI103: 650.7697533 | CJ103: 0.8148715881 | CK103: 0.8456989857 | CL103: 0.839202353 | CM103: 0.8644335558 | CN103: 0.8181695559 | CO103: 0.9327782856 | CP103: 0.8967567326 | CQ103: 0.9948367783 | CR103: 0.901410917 | CS103: 5388 | CT103: 5745 | CU103: 6049 | CV103: 6269 | CW103: 6073 | CX103: 0.914533 | CY103: 0.941324 | CZ103: 0.935581 | DA103: 0.938978 | DB103: 0.93169 | DC103: APACHE | DD103: 0.0165 | DE103: 658.5 | DF103: ARIZONA
A104: COCHISE | B104: 3010 | C104: 15821 | D104: 37874964 | E104: 15199 | F104: 32343799 | G104: 2455 | H104: 4091466 | I104: 2145 | J104: 4342190 | K104: 16313 | L104: 42865293 | M104: 15727 | N104: 37419286 | O104: 2613 | P104: 5260395 | Q104: 2266 | R104: 5286945 | S104: 16762 | T104: 50966567 | U104: 16145 | V104: 43784762 | W104: 2737 | X104: 5963436 | Y104: 2381 | Z104: 5924579 | AA104: 16819 | AB104: 53492091 | AC104: 16201 | AD104: 47562983 | AE104: 2892 | AF104: 7602072 | AG104: 2530 | AH104: 6591444 | AI104: 15106 | AJ104: 50385760 | AK104: 14412 | AL104: 44407130 | AM104: 2491 | AN104: 6775933 | AO104: 2100 | AP104: 5777192 | AQ104: 191.35 | AR104: 176.27 | AS104: 367.62 | AT104: 41966430 | AU104: 36685989 | AV104: 18276 | AW104: 17344 | AX104: 211.9 | AY104: 197.79 | AZ104: 409.69 | BA104: 48125688 | BB104: 42706231 | BC104: 18926 | BD104: 17993 | BE104: 243.3 | BF104: 223.6 | BG104: 466.9 | BH104: 56930003 | BI104: 49709341 | BJ104: 19499 | BK104: 18526 | BL104: 258.29 | BM104: 240.93 | BN104: 499.22 | BO104: 61094163 | BP104: 54154427 | BQ104: 19711 | BR104: 18731 | BS104: 270.7 | BT104: 253.27 | BU104: 523.97 | BV104: 57161693 | BW104: 50184322 | BX104: 17597 | BY104: 16512 | BZ104: 17851 | CA104: 18508 | CB104: 19060 | CC104: 19268 | CD104: 17080 | CE104: 519.0879228 | CF104: 545.9862289 | CG104: 583.9473617 | CH104: 621.8060329 | CI104: 650.7697533 | CJ104: 0.708203724 | CK104: 0.7503669109 | CL104: 0.7995583688 | CM104: 0.8028548673 | CN104: 0.8051541999 | CO104: 0.8951009026 | CP104: 0.8638440783 | CQ104: 0.9948367783 | CR104: 0.8683274454 | CS104: 17068 | CT104: 17757 | CU104: 18308 | CV104: 18425 | CW104: 16666 | CX104: 0.870879 | CY104: 0.884684 | CZ104: 0.89447 | DA104: 0.908184 | DB104: 0.917235 | DC104: COCHISE | DD104: 0.0286 | DE104: 631.63 | DF104: ARIZONA
A105: COCONINO | B105: 3020 | C105: 11114 | D105: 30373237 | E105: 10855 | F105: 26199640 | G105: 1918 | H105: 4141848 | I105: 1675 | J105: 3857491 | K105: 11434 | L105: 33944838 | M105: 11136 | N105: 29277083 | O105: 2054 | P105: 5482338 | Q105: 1812 | R105: 4502949 | S105: 11756 | T105: 35104678 | U105: 11387 | V105: 31963252 | W105: 2164 | X105: 5687872 | Y105: 1908 | Z105: 5265220 | AA105: 12025 | AB105: 39856885 | AC105: 11679 | AD105: 35046956 | AE105: 2291 | AF105: 6398345 | AG105: 2036 | AH105: 5658433 | AI105: 11255 | AJ105: 41208494 | AK105: 10863 | AL105: 34962526 | AM105: 2028 | AN105: 6104729 | AO105: 1756 | AP105: 5045130 | AQ105: 220.71 | AR105: 199.9 | AS105: 420.61 | AT105: 34515085 | AU105: 30057131 | AV105: 13032 | AW105: 12530 | AX105: 243.59 | AY105: 217.41 | AZ105: 461 | BA105: 39427176 | BB105: 33780032 | BC105: 13488 | BD105: 12948 | BE105: 244.21 | BF105: 233.35 | BG105: 477.56 | BH105: 40792550 | BI105: 37228472 | BJ105: 13920 | BK105: 13295 | BL105: 269.25 | BM105: 247.33 | BN105: 516.58 | BO105: 46255230 | BP105: 40705389 | BQ105: 14316 | BR105: 13715 | BS105: 296.83 | BT105: 264.2 | BU105: 561.03 | BV105: 47313223 | BW105: 40007656 | BX105: 13283 | BY105: 12619 | BZ105: 12803 | CA105: 13246 | CB105: 13638 | CC105: 14044 | CD105: 12967 | CE105: 519.0879228 | CF105: 545.9862289 | CG105: 583.9473617 | CH105: 621.8060329 | CI105: 650.7697533 | CJ105: 0.810286623 | CK105: 0.8443436402 | CL105: 0.8178134389 | CM105: 0.8307735414 | CN105: 0.8621021447 | CO105: 0.8905066146 | CP105: 0.9354943174 | CQ105: 0.9948367783 | CR105: 0.9403495506 | CS105: 11915 | CT105: 12416 | CU105: 12990 | CV105: 13437 | CW105: 12647 | CX105: 0.891168 | CY105: 0.902165 | CZ105: 0.892955 | DA105: 0.888856 | DB105: 0.877677 | DC105: COCONINO | DD105: 0.0119 | DE105: 688.06 | DF105: ARIZONA
A106: GILA | B106: 3030 | C106: 9336 | D106: 28467871 | E106: 9106 | F106: 23312965 | G106: 1454 | H106: 4454977 | I106: 1281 | J106: 3598729 | K106: 9440 | L106: 33880410 | M106: 9192 | N106: 25849748 | O106: 1513 | P106: 4057528 | Q106: 1348 | R106: 3479050 | S106: 9603 | T106: 36973179 | U106: 9331 | V106: 27650440 | W106: 1655 | X106: 4779281 | Y106: 1472 | Z106: 4190259 | AA106: 9645 | AB106: 40189026 | AC106: 9362 | AD106: 29633105 | AE106: 1744 | AF106: 5770359 | AG106: 1556 | AH106: 5045228 | AI106: 8937 | AJ106: 41607402 | AK106: 8602 | AL106: 29185846 | AM106: 1710 | AN106: 6744659 | AO106: 1507 | AP106: 4924341 | AQ106: 254.27 | AR106: 215.91 | AS106: 470.18 | AT106: 32922848 | AU106: 26911694 | AV106: 10790 | AW106: 10387 | AX106: 288.64 | AY106: 231.88 | AZ106: 520.52 | BA106: 37937938 | BB106: 29328798 | BC106: 10953 | BD106: 10540 | BE106: 309.06 | BF106: 245.62 | BG106: 554.68 | BH106: 41752460 | BI106: 31840699 | BJ106: 11258 | BK106: 10803 | BL106: 336.28 | BM106: 264.69 | BN106: 600.97 | BO106: 45959385 | BP106: 34678333 | BQ106: 11389 | BR106: 10918 | BS106: 378.45 | BT106: 281.19 | BU106: 659.64 | BV106: 48352061 | BW106: 34110187 | BX106: 10647 | BY106: 10109 | BZ106: 10606 | CA106: 10768 | CB106: 11053 | CC106: 11176 | CD106: 10391 | CE106: 519.0879228 | CF106: 545.9862289 | CG106: 583.9473617 | CH106: 621.8060329 | CI106: 650.7697533 | CJ106: 0.9057810428 | CK106: 0.9533573787 | CL106: 0.9498801371 | CM106: 0.9664911053 | CN106: 1.013630392 | CO106: 0.9479759425 | CP106: 1.010392741 | CQ106: 0.9948367783 | CR106: 1.015636699 | CS106: 10052 | CT106: 10403 | CU106: 10738 | CV106: 10859 | CW106: 10548 | CX106: 0.934172 | CY106: 0.94744 | CZ106: 0.93914 | DA106: 0.953891 | DB106: 0.964565 | DC106: GILA | DD106: 0.0212 | DE106: 740.72 | DF106: ARIZONA
A107: GRAHAM | B107: 3040 | C107: 3552 | D107: 8090158 | E107: 3464 | F107: 6822582 | G107: 613 | H107: 1374468 | I107: 549 | J107: 1047840 | K107: 3654 | L107: 7911623 | M107: 3572 | N107: 7611866 | O107: 630 | P107: 933958 | Q107: 566 | R107: 1119878 | S107: 3718 | T107: 9709493 | U107: 3643 | V107: 8696545 | W107: 700 | X107: 1487886 | Y107: 625 | Z107: 1538689 | AA107: 3652 | AB107: 11737779 | AC107: 3559 | AD107: 9760593 | AE107: 721 | AF107: 1954147 | AG107: 642 | AH107: 1852891 | AI107: 2961 | AJ107: 9703234 | AK107: 2859 | AL107: 8235156 | AM107: 635 | AN107: 1091660 | AO107: 551 | AP107: 1443133 | AQ107: 189.37 | AR107: 163.44 | AS107: 352.81 | AT107: 9464626 | AU107: 7870422 | AV107: 4165 | AW107: 4013 | AX107: 172.07 | AY107: 175.84 | AZ107: 347.91 | BA107: 8845581 | BB107: 8731744 | BC107: 4284 | BD107: 4138 | BE107: 211.21 | BF107: 199.84 | BG107: 411.05 | BH107: 11197379 | BI107: 10235234 | BJ107: 4418 | BK107: 4268 | BL107: 260.92 | BM107: 230.37 | BN107: 491.29 | BO107: 13691926 | BP107: 11613484 | BQ107: 4373 | BR107: 4201 | BS107: 250.16 | BT107: 236.52 | BU107: 486.68 | BV107: 10794894 | BW107: 9678289 | BX107: 3596 | BY107: 3410 | BZ107: 4096 | CA107: 4219 | CB107: 4350 | CC107: 4295 | CD107: 3507 | CE107: 519.0879228 | CF107: 545.9862289 | CG107: 583.9473617 | CH107: 621.8060329 | CI107: 650.7697533 | CJ107: 0.6796729119 | CK107: 0.6372138739 | CL107: 0.7039161865 | CM107: 0.7901016941 | CN107: 0.7478528275 | CO107: 0.8776281173 | CP107: 0.8109944118 | CQ107: 0.9948367783 | CR107: 0.8152034881 | CS107: 3985 | CT107: 4130 | CU107: 4245 | CV107: 4126 | CW107: 3569 | CX107: 0.8772 | CY107: 0.872585 | CZ107: 0.868497 | DA107: 0.885546 | DB107: 0.885649 | DC107: GRAHAM | DD107: 0.0254 | DE107: 593.66 | DF107: ARIZONA
A108: GREENLEE | B108: 3050 | C108: 875 | D108: 2054552 | E108: 854 | F108: 1815672 | G108: 131 | H108: 121133 | I108: 117 | J108: 220817 | K108: 869 | L108: 1800715 | M108: 850 | N108: 1844218 | O108: 158 | P108: 203521 | Q108: 143 | R108: 189048 | S108: 869 | T108: 2192197 | U108: 850 | V108: 1992587 | W108: 187 | X108: 553526 | Y108: 169 | Z108: 387321 | AA108: 860 | AB108: 2457536 | AC108: 834 | AD108: 2288164 | AE108: 199 | AF108: 626258 | AG108: 178 | AH108: 474878 | AI108: 745 | AJ108: 2755723 | AK108: 719 | AL108: 2181899 | AM108: 174 | AN108: 335815 | AO108: 152 | AP108: 337343 | AQ108: 180.23 | AR108: 174.78 | AS108: 355.01 | AT108: 2175685 | AU108: 2036489 | AV108: 1006 | AW108: 971 | AX108: 162.63 | AY108: 170.63 | AZ108: 333.26 | BA108: 2004236 | BB108: 2033266 | BC108: 1027 | BD108: 993 | BE108: 216.68 | BF108: 194.63 | BG108: 411.31 | BH108: 2745723 | BI108: 2379908 | BJ108: 1056 | BK108: 1019 | BL108: 242.67 | BM108: 227.52 | BN108: 470.19 | BO108: 3083794 | BP108: 2763042 | BQ108: 1059 | BR108: 1012 | BS108: 280.34 | BT108: 241.03 | BU108: 521.37 | BV108: 3091538 | BW108: 2519242 | BX108: 919 | BY108: 871 | BZ108: 990 | CA108: 1012 | CB108: 1039 | CC108: 1038 | CD108: 896 | CE108: 519.0879228 | CF108: 545.9862289 | CG108: 583.9473617 | CH108: 621.8060329 | CI108: 650.7697533 | CJ108: 0.6839111149 | CK108: 0.6103816953 | CL108: 0.7043614321 | CM108: 0.7561682826 | CN108: 0.8011589312 | CO108: 0.8313372017 | CP108: 0.8554847416 | CQ108: 0.9948367783 | CR108: 0.8599247236 | CS108: 935 | CT108: 973 | CU108: 1011 | CV108: 990 | CW108: 909 | CX108: 0.81373 | CY108: 0.825358 | CZ108: 0.856546 | DA108: 0.849516 | DB108: 0.808012 | DC108: GREENLEE | DD108: 0.0228 | DE108: 626.8 | DF108: ARIZONA
A109: LA PAZ | B109: 3055 | C109: 17036 | D109: 53020345 | E109: 16641 | F109: 43850083 | G109: 2239 | H109: 5507791 | I109: 2018 | J109: 4514961 | K109: 17655 | L109: 60272243 | M109: 17255 | N109: 48605190 | O109: 2334 | P109: 6005035 | Q109: 2110 | R109: 5366284 | S109: 18322 | T109: 64676062 | U109: 17847 | V109: 53758424 | W109: 2474 | X109: 7158325 | Y109: 2242 | Z109: 6288834 | AA109: 18785 | AB109: 69295712 | AC109: 18308 | AD109: 56481950 | AE109: 2575 | AF109: 8009477 | AG109: 2330 | AH109: 6775039 | AI109: 17455 | AJ109: 64814968 | AK109: 16895 | AL109: 53341681 | AM109: 2323 | AN109: 6197253 | AO109: 2030 | AP109: 5733553 | AQ109: 253.04 | AR109: 216 | AS109: 469.04 | AT109: 58528136 | AU109: 48365044 | AV109: 19275 | AW109: 18659 | AX109: 276.31 | AY109: 232.26 | AZ109: 508.57 | BA109: 66277278 | BB109: 53971474 | BC109: 19989 | BD109: 19365 | BE109: 287.85 | BF109: 249.09 | BG109: 536.94 | BH109: 71834387 | BI109: 60047258 | BJ109: 20796 | BK109: 20089 | BL109: 301.6 | BM109: 255.42 | BN109: 557.02 | BO109: 77305189 | BP109: 63256989 | BQ109: 21360 | BR109: 20638 | BS109: 299.21 | BT109: 260.13 | BU109: 559.34 | BV109: 71012221 | BW109: 59075234 | BX109: 19778 | BY109: 18925 | BZ109: 18994 | CA109: 19709 | CB109: 20477 | CC109: 21033 | CD109: 19371 | CE109: 519.0879228 | CF109: 545.9862289 | CG109: 583.9473617 | CH109: 621.8060329 | CI109: 650.7697533 | CJ109: =AS109/CE109 -> 0.9035848831 | CK109: =AZ109/CF109 -> 0.9314703798 | CL109: =BG109/CG109 -> 0.9195006865 | CM109: =BN109/CH109 -> 0.8958098998 | CN109: =BU109/CI109 -> 0.8595052201 | CO109: =(SUMPRODUCT(CS109,CX109)+SUMPRODUCT(CT109,CY109)+SUMPRODUCT(CU109,CZ109)+SUMPRODUCT(CV109,DA109)+SUMPRODUCT(CW109,DB109))/SUM(CS109:CW109) -> 0.9791949864 | CP109: 0.9211385132 | CQ109: 0.9948367783 | CR109: =CP109/CQ109 -> 0.9259192395 | CS109: 21973 | CT109: 22742 | CU109: 23377 | CV109: 23730 | CW109: 22262 | CX109: 0.971213 | CY109: 0.966381 | CZ109: 0.979463 | DA109: 0.990177 | DB109: 0.988176 | DC109: LA PAZ | DD109: 0.0158 | DE109: =ROUND(($DE$5*CR109*(1-0.35*DD109)),2) -> 676.58 | DF109: ARIZONA
A110: MARICOPA | B110: 3060 | C110: 192106 | D110: 610238199 | E110: 182027 | F110: 483252024 | G110: 32167 | H110: 77137696 | I110: 25540 | J110: 54501626 | K110: 205013 | L110: 701198959 | M110: 194051 | N110: 557823388 | O110: 36352 | P110: 96031737 | Q110: 29025 | R110: 70278953 | S110: 215479 | T110: 821108171 | U110: 203364 | V110: 640282274 | W110: 40891 | X110: 120548414 | Y110: 32904 | Z110: 88947503 | AA110: 223288 | AB110: 935657100 | AC110: 210449 | AD110: 707947039 | AE110: 45061 | AF110: 144631009 | AG110: 36614 | AH110: 108895584 | AI110: 211753 | AJ110: 941059800 | AK110: 197656 | AL110: 695740739 | AM110: 36550 | AN110: 114736421 | AO110: 27617 | AP110: 81446643 | AQ110: 255.41 | AR110: 215.9 | AS110: 471.31 | AT110: 687375895 | AU110: 537753650 | AV110: 224273 | AW110: 207567 | AX110: 275.25 | AY110: 234.64 | AZ110: 509.89 | BA110: 797230696 | BB110: 628102341 | BC110: 241365 | BD110: 223076 | BE110: 306.09 | BF110: 257.2 | BG110: 563.29 | BH110: 941656585 | BI110: 729229777 | BJ110: 256370 | BK110: 236268 | BL110: 335.47 | BM110: 275.52 | BN110: 610.99 | BO110: 1080288109 | BP110: 816842623 | BQ110: 268349 | BR110: 247063 | BS110: 354.34 | BT110: 287.5 | BU110: 641.84 | BV110: 1055796221 | BW110: 777187382 | BX110: 248303 | BY110: 225273 | BZ110: 216653 | CA110: 233168 | CB110: 247298 | CC110: 258717 | CD110: 237327 | CE110: 519.0879228 | CF110: 545.9862289 | CG110: 583.9473617 | CH110: 621.8060329 | CI110: 650.7697533 | CJ110: 0.907957938 | CK110: 0.9338880232 | CL110: 0.9646246167 | CM110: 0.9826054552 | CN110: 0.9862781679 | CO110: 0.9447965792 | CP110: 1.010874575 | CQ110: 0.9948367783 | CR110: 1.016121033 | CS110: 214815 | CT110: 227215 | CU110: 235438 | CV110: 239288 | CW110: 221945 | CX110: 0.944158 | CY110: 0.948931 | CZ110: 0.948517 | DA110: 0.952501 | DB110: 0.928929 | DC110: MARICOPA | DD110: 0.0239 | DE110: 740.37 | DF110: ARIZONA
A111: MOHAVE | B111: 3070 | C111: 30263 | D111: 95552840 | E111: 29369 | F111: 78000008 | G111: 4965 | H111: 12423930 | I111: 4409 | J111: 10928842 | K111: 31467 | L111: 102881224 | M111: 30524 | N111: 84976922 | O111: 5289 | P111: 14468081 | Q111: 4692 | R111: 12585072 | S111: 32565 | T111: 113206235 | U111: 31550 | V111: 94654143 | W111: 5770 | X111: 16837380 | Y111: 5122 | Z111: 14393743 | AA111: 33282 | AB111: 121861811 | AC111: 32197 | AD111: 101430572 | AE111: 5926 | AF111: 18467362 | AG111: 5267 | AH111: 15410795 | AI111: 31297 | AJ111: 122129654 | AK111: 30101 | AL111: 99980835 | AM111: 5268 | AN111: 15543406 | AO111: 4563 | AP111: 13219584 | AQ111: 255.42 | AR111: 219.4 | AS111: 474.82 | AT111: 107976770 | AU111: 88928850 | AV111: 35228 | AW111: 33778 | AX111: 266.05 | AY111: 230.87 | AZ111: 496.92 | BA111: 117349305 | BB111: 97561994 | BC111: 36756 | BD111: 35216 | BE111: 282.69 | BF111: 247.8 | BG111: 530.49 | BH111: 130043615 | BI111: 109047886 | BJ111: 38335 | BK111: 36672 | BL111: 298.26 | BM111: 259.9 | BN111: 558.16 | BO111: 140329173 | BP111: 116841367 | BQ111: 39208 | BR111: 37464 | BS111: 313.76 | BT111: 272.14 | BU111: 585.9 | BV111: 137673060 | BW111: 113200419 | BX111: 36565 | BY111: 34664 | BZ111: 34567 | CA111: 36066 | CB111: 37584 | CC111: 38419 | CD111: 35659 | CE111: 519.0879228 | CF111: 545.9862289 | CG111: 583.9473617 | CH111: 621.8060329 | CI111: 650.7697533 | CJ111: 0.9147197983 | CK111: 0.9101328453 | CL111: 0.9084551704 | CM111: 0.8976432689 | CN111: 0.9003184261 | CO111: 0.9353168537 | CP111: 0.968927159 | CQ111: 0.9948367783 | CR111: 0.9739559093 | CS111: 33284 | CT111: 34834 | CU111: 36492 | CV111: 37502 | CW111: 34655 | CX111: 0.946213 | CY111: 0.943728 | CZ111: 0.934275 | DA111: 0.926688 | DB111: 0.926832 | DC111: MOHAVE | DD111: 0.0133 | DE111: 712.3 | DF111: ARIZONA
A112: NAVAJO | B112: 3080 | C112: 9242 | D112: 24900147 | E112: 8924 | F112: 20475574 | G112: 1867 | H112: 3181502 | I112: 1640 | J112: 3374391 | K112: 9648 | L112: 29067051 | M112: 9312 | N112: 23373368 | O112: 2027 | P112: 4675349 | Q112: 1793 | R112: 3887414 | S112: 10007 | T112: 33632089 | U112: 9659 | V112: 26473706 | W112: 2196 | X112: 5380335 | Y112: 1940 | Z112: 4661874 | AA112: 10430 | AB112: 36048123 | AC112: 10166 | AD112: 29896309 | AE112: 2325 | AF112: 6176837 | AG112: 2048 | AH112: 5708577 | AI112: 9745 | AJ112: 35535619 | AK112: 9420 | AL112: 27534276 | AM112: 2119 | AN112: 5972631 | AO112: 1836 | AP112: 5278682 | AQ112: 210.65 | AR112: 188.14 | AS112: 398.79 | AT112: 28081649 | AU112: 23849965 | AV112: 11109 | AW112: 10564 | AX112: 240.85 | AY112: 204.57 | AZ112: 445.42 | BA112: 33742400 | BB112: 27260782 | BC112: 11675 | BD112: 11105 | BE112: 266.41 | BF112: 223.69 | BG112: 490.1 | BH112: 39012424 | BI112: 31135580 | BJ112: 12203 | BK112: 11599 | BL112: 275.87 | BM112: 242.92 | BN112: 518.79 | BO112: 42224960 | BP112: 35604886 | BQ112: 12755 | BR112: 12214 | BS112: 291.56 | BT112: 242.93 | BU112: 534.49 | BV112: 41508250 | BW112: 32812958 | BX112: 11864 | BY112: 11256 | BZ112: 10860 | CA112: 11420 | CB112: 11930 | CC112: 12510 | CD112: 11574 | CE112: 519.0879228 | CF112: 545.9862289 | CG112: 583.9473617 | CH112: 621.8060329 | CI112: 650.7697533 | CJ112: 0.7682513549 | CK112: 0.8158081219 | CL112: 0.8392879772 | CM112: 0.8343277044 | CN112: 0.8213196715 | CO112: 0.8962275043 | CP112: 0.9102587926 | CQ112: 0.9948367783 | CR112: 0.914983053 | CS112: 10218 | CT112: 10771 | CU112: 11414 | CV112: 11813 | CW112: 11361 | CX112: 0.882943 | CY112: 0.885834 | CZ112: 0.895876 | DA112: 0.9056 | DB112: 0.908637 | DC112: NAVAJO | DD112: 0.0257 | DE112: 666.25 | DF112: ARIZONA
A113: PIMA | B113: 3090 | C113: 70437 | D113: 204993569 | E113: 66273 | F113: 162821448 | G113: 12623 | H113: 30620507 | I113: 10182 | J113: 21786551 | K113: 74113 | L113: 234836826 | M113: 69831 | N113: 187326985 | O113: 13702 | P113: 35939704 | Q113: 11121 | R113: 26607092 | S113: 76185 | T113: 262615751 | U113: 71621 | V113: 208903600 | W113: 14700 | X113: 41015828 | Y113: 11970 | Z113: 31232711 | AA113: 77209 | AB113: 268833451 | AC113: 72632 | AD113: 226238810 | AE113: 15502 | AF113: 49410847 | AG113: 12700 | AH113: 36649069 | AI113: 73908 | AJ113: 267178839 | AK113: 68859 | AL113: 221719734 | AM113: 12988 | AN113: 40911676 | AO113: 10085 | AP113: 29222371 | AQ113: 236.39 | AR113: 201.22 | AS113: 437.61 | AT113: 235614076 | AU113: 184607999 | AV113: 83060 | AW113: 76455 | AX113: 256.96 | AY113: 220.23 | AZ113: 477.19 | BA113: 270776530 | BB113: 213934077 | BC113: 87815 | BD113: 80952 | BE113: 278.4 | BF113: 239.4 | BG113: 517.8 | BH113: 303631579 | BI113: 240136311 | BJ113: 90885 | BK113: 83591 | BL113: 286.05 | BM113: 256.73 | BN113: 542.78 | BO113: 318244298 | BP113: 262887879 | BQ113: 92711 | BR113: 85332 | BS113: 295.46 | BT113: 264.89 | BU113: 560.35 | BV113: 308090515 | BW113: 250942105 | BX113: 86896 | BY113: 78944 | BZ113: 80047 | CA113: 84739 | CB113: 87593 | CC113: 89372 | CD113: 83106 | CE113: 519.0879228 | CF113: 545.9862289 | CG113: 583.9473617 | CH113: 621.8060329 | CI113: 650.7697533 | CJ113: 0.8430363736 | CK113: 0.8739964027 | CL113: 0.8867237596 | CM113: 0.8729088675 | CN113: 0.8610572283 | CO113: 0.9276598089 | CP113: 0.9351968448 | CQ113: 0.9948367783 | CR113: 0.9400505341 | CS113: 78543 | CT113: 81665 | CU113: 83201 | CV113: 82224 | CW113: 76901 | CX113: 0.928603 | CY113: 0.924288 | CZ113: 0.92449 | DA113: 0.937086 | DB113: 0.923628 | DC113: PIMA | DD113: 0.0318 | DE113: 683.03 | DF113: ARIZONA
A114: PINAL | B114: 3100 | C114: 14360 | D114: 47734087 | E114: 13768 | F114: 35140546 | G114: 3127 | H114: 8797901 | I114: 2598 | J114: 6251905 | K114: 15589 | L114: 55358250 | M114: 14952 | N114: 40210850 | O114: 3512 | P114: 9871496 | Q114: 2919 | R114: 7493706 | S114: 16617 | T114: 62333233 | U114: 15926 | V114: 49134544 | W114: 3872 | X114: 11352718 | Y114: 3211 | Z114: 9673519 | AA114: 17255 | AB114: 70122896 | AC114: 16435 | AD114: 53757869 | AE114: 4239 | AF114: 14254824 | AG114: 3510 | AH114: 11639714 | AI114: 16381 | AJ114: 72443440 | AK114: 15411 | AL114: 52672118 | AM114: 3812 | AN114: 12435677 | AO114: 2976 | AP114: 9699917 | AQ114: 269.4 | AR114: 210.76 | AS114: 480.16 | AT114: 56531988 | AU114: 41392451 | AV114: 17487 | AW114: 16366 | AX114: 284.58 | AY114: 222.45 | AZ114: 507.03 | BA114: 65229746 | BB114: 47704556 | BC114: 19101 | BD114: 17871 | BE114: 299.7 | BF114: 256.08 | BG114: 555.78 | BH114: 73685951 | BI114: 58808063 | BJ114: 20489 | BK114: 19137 | BL114: 327.14 | BM114: 273.24 | BN114: 600.38 | BO114: 84377720 | BP114: 65397583 | BQ114: 21494 | BR114: 19945 | BS114: 350.28 | BT114: 282.68 | BU114: 632.96 | BV114: 84879117 | BW114: 62372035 | BX114: 20193 | BY114: 18387 | BZ114: 16976 | CA114: 18550 | CB114: 19879 | CC114: 20793 | CD114: 19332 | CE114: 519.0879228 | CF114: 545.9862289 | CG114: 583.9473617 | CH114: 621.8060329 | CI114: 650.7697533 | CJ114: 0.9250070728 | CK114: 0.9286497958 | CL114: 0.9517638685 | CM114: 0.9655422563 | CN114: 0.9726327888 | CO114: 0.9176992836 | CP114: 1.033801784 | CQ114: 0.9948367783 | CR114: 1.039167235 | CS114: 17101 | CT114: 18381 | CU114: 19143 | CV114: 18669 | CW114: 17679 | CX114: 0.906347 | CY114: 0.91507 | CZ114: 0.912497 | DA114: 0.924815 | DB114: 0.929533 | DC114: PINAL | DD114: 0.0161 | DE114: 759.25 | DF114: ARIZONA
A115: SANTA CRUZ | B115: 3110 | C115: 2673 | D115: 5804132 | E115: 2692 | F115: 4951635 | G115: 366 | H115: 1000500 | I115: 320 | J115: 605968 | K115: 2868 | L115: 5888881 | M115: 2864 | N115: 6010636 | O115: 396 | P115: 578754 | Q115: 330 | R115: 712342 | S115: 3097 | T115: 7276165 | U115: 3063 | V115: 6707010 | W115: 422 | X115: 1053260 | Y115: 351 | Z115: 1029366 | AA115: 3200 | AB115: 7913616 | AC115: 3159 | AD115: 7003257 | AE115: 466 | AF115: 1109422 | AG115: 396 | AH115: 892381 | AI115: 2793 | AJ115: 7185879 | AK115: 2709 | AL115: 6588947 | AM115: 426 | AN115: 1050226 | AO115: 350 | AP115: 830418 | AQ115: 186.59 | AR115: 153.76 | AS115: 340.35 | AT115: 6804632 | AU115: 5557603 | AV115: 3039 | AW115: 3012 | AX115: 165.13 | AY115: 175.41 | AZ115: 340.54 | BA115: 6467635 | BB115: 6722978 | BC115: 3264 | BD115: 3194 | BE115: 197.25 | BF115: 188.84 | BG115: 386.09 | BH115: 8329425 | BI115: 7736376 | BJ115: 3519 | BK115: 3414 | BL115: 205.11 | BM115: 185.08 | BN115: 390.19 | BO115: 9023038 | BP115: 7895638 | BQ115: 3666 | BR115: 3555 | BS115: 213.22 | BT115: 202.12 | BU115: 415.34 | BV115: 8236105 | BW115: 7419365 | BX115: 3219 | BY115: 3059 | BZ115: 3027 | CA115: 3233 | CB115: 3472 | CC115: 3616 | CD115: 3143 | CE115: 519.0879228 | CF115: 545.9862289 | CG115: 583.9473617 | CH115: 621.8060329 | CI115: 650.7697533 | CJ115: 0.6556692712 | CK115: 0.6237153649 | CL115: 0.6611726079 | CM115: 0.6275107982 | CN115: 0.638228802 | CO115: 0.8465960075 | CP115: 0.7574561693 | CQ115: 0.9948367783 | CR115: 0.7613873811 | CS115: 2728 | CT115: 2943 | CU115: 3169 | CV115: 3209 | CW115: 2772 | CX115: 0.861618 | CY115: 0.856916 | CZ115: 0.853601 | DA115: 0.850482 | DB115: 0.808349 | DC115: SANTA | DD115: 0.0185 | DE115: 555.82 | DF115: ARIZONA
A116: YAVAPAI | B116: 3120 | C116: 32228 | D116: 73208273 | E116: 31136 | F116: 71422146 | G116: 4516 | H116: 8251127 | I116: 3872 | J116: 8445717 | K116: 33379 | L116: 80321204 | M116: 32235 | N116: 78617076 | O116: 4945 | P116: 9666969 | Q116: 4245 | R116: 9684616 | S116: 34877 | T116: 97930303 | U116: 33620 | V116: 90327189 | W116: 5507 | X116: 10890008 | Y116: 4736 | Z116: 11905502 | AA116: 35728 | AB116: 105473663 | AC116: 34391 | AD116: 98096588 | AE116: 5830 | AF116: 12884385 | AG116: 4996 | AH116: 13381516 | AI116: 32872 | AJ116: 106503925 | AK116: 31423 | AL116: 92783245 | AM116: 5295 | AN116: 12127861 | AO116: 4336 | AP116: 12362670 | AQ116: 184.75 | AR116: 190.12 | AS116: 374.87 | AT116: 81459400 | AU116: 79867863 | AV116: 36744 | AW116: 35008 | AX116: 195.67 | AY116: 201.71 | AZ116: 397.38 | BA116: 89988173 | BB116: 88301692 | BC116: 38324 | BD116: 36480 | BE116: 224.55 | BF116: 222.11 | BG116: 446.66 | BH116: 108820311 | BI116: 102232691 | BJ116: 40384 | BK116: 38356 | BL116: 237.34 | BM116: 235.86 | BN116: 473.2 | BO116: 118358048 | BP116: 111478104 | BQ116: 41558 | BR116: 39387 | BS116: 259.02 | BT116: 245.03 | BU116: 504.05 | BV116: 118631786 | BW116: 105145915 | BX116: 38167 | BY116: 35759 | BZ116: 35952 | CA116: 37498 | CB116: 39469 | CC116: 40576 | CD116: 37019 | CE116: 519.0879228 | CF116: 545.9862289 | CG116: 583.9473617 | CH116: 621.8060329 | CI116: 650.7697533 | CJ116: 0.7221705294 | CK116: 0.7278205547 | CL116: 0.7648977104 | CM116: 0.7610090205 | CN116: 0.7745442954 | CO116: 0.8896650431 | CP116: 0.8431132907 | CQ116: 0.9948367783 | CR116: 0.8474890646 | CS116: 35117 | CT116: 36555 | CU116: 38259 | CV116: 38998 | CW116: 36297 | CX116: 0.887492 | CY116: 0.888291 | CZ116: 0.879505 | DA116: 0.892212 | DB116: 0.901124 | DC116: YAVAPAI | DD116: 0.0141 | DE116: 619.64 | DF116: ARIZONA
A117: YUMA | B117: 3130 | C117: 17036 | D117: 53020345 | E117: 16641 | F117: 43850083 | G117: 2239 | H117: 5507791 | I117: 2018 | J117: 4514961 | K117: 17655 | L117: 60272243 | M117: 17255 | N117: 48605190 | O117: 2334 | P117: 6005035 | Q117: 2110 | R117: 5366284 | S117: 18322 | T117: 64676062 | U117: 17847 | V117: 53758424 | W117: 2474 | X117: 7158325 | Y117: 2242 | Z117: 6288834 | AA117: 18785 | AB117: 69295712 | AC117: 18308 | AD117: 56481950 | AE117: 2575 | AF117: 8009477 | AG117: 2330 | AH117: 6775039 | AI117: 17455 | AJ117: 64814968 | AK117: 16895 | AL117: 53341681 | AM117: 2323 | AN117: 6197253 | AO117: 2030 | AP117: 5733553 | AQ117: 253.04 | AR117: 216 | AS117: 469.04 | AT117: 58528136 | AU117: 48365044 | AV117: 19275 | AW117: 18659 | AX117: 276.31 | AY117: 232.26 | AZ117: 508.57 | BA117: 66277278 | BB117: 53971474 | BC117: 19989 | BD117: 19365 | BE117: 287.85 | BF117: 249.09 | BG117: 536.94 | BH117: 71834387 | BI117: 60047258 | BJ117: 20796 | BK117: 20089 | BL117: 301.6 | BM117: 255.42 | BN117: 557.02 | BO117: 77305189 | BP117: 63256989 | BQ117: 21360 | BR117: 20638 | BS117: 299.21 | BT117: 260.13 | BU117: 559.34 | BV117: 71012221 | BW117: 59075234 | BX117: 19778 | BY117: 18925 | BZ117: 18994 | CA117: 19709 | CB117: 20477 | CC117: 21033 | CD117: 19371 | CE117: 519.0879228 | CF117: 545.9862289 | CG117: 583.9473617 | CH117: 621.8060329 | CI117: 650.7697533 | CJ117: 0.9035848831 | CK117: 0.9314703798 | CL117: 0.9195006865 | CM117: 0.8958098998 | CN117: 0.8595052201 | CO117: 0.9791949864 | CP117: 0.9211385132 | CQ117: 0.9948367783 | CR117: 0.9259192395 | CS117: 21973 | CT117: 22742 | CU117: 23377 | CV117: 23730 | CW117: 22262 | CX117: 0.971213 | CY117: 0.966381 | CZ117: 0.979463 | DA117: 0.990177 | DB117: 0.988176 | DC117: YUMA | DD117: 0.0158 | DE117: 676.58 | DF117: ARIZONA
A118: ARKANSAS | B118: 4000 | C118: 3230 | D118: 10209219 | E118: 3130 | F118: 7705723 | G118: 598 | H118: 1738589 | I118: 556 | J118: 1588717 | K118: 3182 | L118: 10954688 | M118: 3086 | N118: 8160513 | O118: 626 | P118: 2447455 | Q118: 579 | R118: 1879967 | S118: 3141 | T118: 11540552 | U118: 3043 | V118: 8478924 | W118: 659 | X118: 2178740 | Y118: 609 | Z118: 1898140 | AA118: 3121 | AB118: 11914030 | AC118: 3009 | AD118: 8989171 | AE118: 683 | AF118: 2395009 | AG118: 627 | AH118: 2305266 | AI118: 3128 | AJ118: 12232460 | AK118: 3006 | AL118: 9784378 | AM118: 716 | AN118: 2344442 | AO118: 655 | AP118: 2301577 | AQ118: 260.1 | AR118: 210.13 | AS118: 470.23 | AT118: 11947808 | AU118: 9294440 | AV118: 3828 | AW118: 3686 | AX118: 293.29 | AY118: 228.3 | AZ118: 521.59 | BA118: 13402143 | BB118: 10040480 | BC118: 3808 | BD118: 3665 | BE118: 300.86 | BF118: 236.79 | BG118: 537.65 | BH118: 13719292 | BI118: 10377064 | BJ118: 3800 | BK118: 3652 | BL118: 313.46 | BM118: 258.86 | BN118: 572.32 | BO118: 14309039 | BP118: 11294437 | BQ118: 3804 | BR118: 3636 | BS118: 316.01 | BT118: 275.11 | BU118: 591.12 | BV118: 14576902 | BW118: 12085955 | BX118: 3844 | BY118: 3661 | BZ118: 3763 | CA118: 3744 | CB118: 3733 | CC118: 3728 | CD118: 3757 | CE118: 519.0879228 | CF118: 545.9862289 | CG118: 583.9473617 | CH118: 621.8060329 | CI118: 650.7697533 | CJ118: 0.9058773656 | CK118: 0.9553171351 | CL118: 0.9207165495 | CM118: 0.9204156437 | CN118: 0.9083396962 | CO118: 0.958327051 | CP118: 0.9622323372 | CQ118: 0.9948367783 | CR118: 0.9672263412 | CS118: 3634 | CT118: 3624 | CU118: 3636 | CV118: 3608 | CW118: 3630 | CX118: 0.939089 | CY118: 0.95765 | CZ118: 0.975748 | DA118: 0.949823 | DB118: 0.969265 | DC118: ARKANSAS | DD118: 0.0086 | DE118: 708.55 | DF118: ARKANSAS
A119: ASHLEY | B119: 4010 | C119: 3308 | D119: 11730203 | E119: 3239 | F119: 7967622 | G119: 821 | H119: 1981655 | I119: 754 | J119: 1783465 | K119: 3311 | L119: 12538049 | M119: 3238 | N119: 9390169 | O119: 843 | P119: 1736845 | Q119: 777 | R119: 2072467 | S119: 3275 | T119: 12114217 | U119: 3202 | V119: 9877708 | W119: 871 | X119: 2022656 | Y119: 806 | Z119: 1942689 | AA119: 3254 | AB119: 13352008 | AC119: 3178 | AD119: 11010201 | AE119: 906 | AF119: 2654372 | AG119: 842 | AH119: 2487043 | AI119: 3283 | AJ119: 14698475 | AK119: 3199 | AL119: 11318011 | AM119: 960 | AN119: 2263294 | AO119: 894 | AP119: 2909355 | AQ119: 276.74 | AR119: 203.5 | AS119: 480.24 | AT119: 13711858 | AU119: 9751087 | AV119: 4129 | AW119: 3993 | AX119: 286.37 | AY119: 237.91 | AZ119: 524.28 | BA119: 14274894 | BB119: 11462636 | BC119: 4154 | BD119: 4015 | BE119: 284.15 | BF119: 245.77 | BG119: 529.92 | BH119: 14136873 | BI119: 11820397 | BJ119: 4146 | BK119: 4008 | BL119: 320.64 | BM119: 279.79 | BN119: 600.43 | BO119: 16006380 | BP119: 13497244 | BQ119: 4160 | BR119: 4020 | BS119: 333.13 | BT119: 289.67 | BU119: 622.8 | BV119: 16961769 | BW119: 14227366 | BX119: 4243 | BY119: 4093 | BZ119: 4067 | CA119: 4092 | CB119: 4084 | CC119: 4097 | CD119: 4172 | CE119: 519.0879228 | CF119: 545.9862289 | CG119: 583.9473617 | CH119: 621.8060329 | CI119: 650.7697533 | CJ119: 0.9251611893 | CK119: 0.9602439993 | CL119: 0.907479055 | CM119: 0.9656226673 | CN119: 0.9570205082 | CO119: 0.9417575878 | CP119: 1.001431256 | CQ119: 0.9948367783 | CR119: 1.006628703 | CS119: 3879 | CT119: 3945 | CU119: 3991 | CV119: 4026 | CW119: 4074 | CX119: 0.950383 | CY119: 0.952675 | CZ119: 0.934929 | DA119: 0.926025 | DB119: 0.94521 | DC119: ASHLEY | DD119: 0.0121 | DE119: 736.51 | DF119: ARKANSAS
A120: BAXTER | B120: 4020 | C120: 9801 | D120: 28060424 | E120: 9637 | F120: 20090295 | G120: 1454 | H120: 3197197 | I120: 1327 | J120: 2640662 | K120: 9949 | L120: 29800214 | M120: 9790 | N120: 22123053 | O120: 1532 | P120: 3573574 | Q120: 1402 | R120: 3161250 | S120: 10077 | T120: 32308926 | U120: 9888 | V120: 25739600 | W120: 1661 | X120: 3974408 | Y120: 1535 | Z120: 4042731 | AA120: 10262 | AB120: 36193351 | AC120: 10082 | AD120: 28918855 | AE120: 1799 | AF120: 4004220 | AG120: 1665 | AH120: 4854216 | AI120: 9902 | AJ120: 35439786 | AK120: 9711 | AL120: 30888366 | AM120: 1748 | AN120: 4889718 | AO120: 1593 | AP120: 5561574 | AQ120: 231.44 | AR120: 172.77 | AS120: 404.21 | AT120: 31257621 | AU120: 22730957 | AV120: 11255 | AW120: 10964 | AX120: 242.24 | AY120: 188.26 | AZ120: 430.5 | BA120: 33373788 | BB120: 25284303 | BC120: 11481 | BD120: 11192 | BE120: 257.59 | BF120: 217.27 | BG120: 474.86 | BH120: 36283334 | BI120: 29782331 | BJ120: 11738 | BK120: 11423 | BL120: 277.74 | BM120: 239.59 | BN120: 517.33 | BO120: 40197571 | BP120: 33773071 | BQ120: 12061 | BR120: 11747 | BS120: 288.48 | BT120: 268.71 | BU120: 557.19 | BV120: 40329504 | BW120: 36449940 | BX120: 11650 | BY120: 11304 | BZ120: 11122 | CA120: 11351 | CB120: 11596 | CC120: 11919 | CD120: 11485 | CE120: 519.0879228 | CF120: 545.9862289 | CG120: 583.9473617 | CH120: 621.8060329 | CI120: 650.7697533 | CJ120: 0.778692746 | CK120: 0.7884814253 | CL120: 0.8131897344 | CM120: 0.8319797053 | CN120: 0.8562014402 | CO120: 0.9178294367 | CP120: 0.8865579788 | CQ120: 0.9948367783 | CR120: 0.8911592315 | CS120: 10911 | CT120: 11216 | CU120: 11432 | CV120: 11588 | CW120: 11049 | CX120: 0.906879 | CY120: 0.901371 | CZ120: 0.913529 | DA120: 0.91683 | DB120: 0.950848 | DC120: BAXTER | DD120: 0.0052 | DE120: 653.61 | DF120: ARKANSAS
A121: BENTON | B121: 4030 | C121: 21090 | D121: 51107383 | E121: 20441 | F121: 42251693 | G121: 3133 | H121: 5724541 | I121: 2763 | J121: 5256440 | K121: 21394 | L121: 55748327 | M121: 20713 | N121: 46609357 | O121: 3324 | P121: 6156397 | Q121: 2956 | R121: 5868553 | S121: 21692 | T121: 61546710 | U121: 20954 | V121: 51848277 | W121: 3541 | X121: 7523029 | Y121: 3134 | Z121: 6950730 | AA121: 21797 | AB121: 69042656 | AC121: 20995 | AD121: 55399921 | AE121: 3636 | AF121: 8364139 | AG121: 3219 | AH121: 7692745 | AI121: 20061 | AJ121: 66935259 | AK121: 19233 | AL121: 53253678 | AM121: 3450 | AN121: 9363400 | AO121: 2989 | AP121: 7735569 | AQ121: 195.52 | AR121: 170.62 | AS121: 366.14 | AT121: 56831924 | AU121: 47508133 | AV121: 24223 | AW121: 23204 | AX121: 208.7 | AY121: 184.76 | AZ121: 393.46 | BA121: 61904724 | BB121: 52477910 | BC121: 24718 | BD121: 23669 | BE121: 228.11 | BF121: 203.42 | BG121: 431.53 | BH121: 69069739 | BI121: 58799007 | BJ121: 25233 | BK121: 24088 | BL121: 253.63 | BM121: 217.14 | BN121: 470.77 | BO121: 77406795 | BP121: 63092666 | BQ121: 25433 | BR121: 24214 | BS121: 270.44 | BT121: 228.71 | BU121: 499.15 | BV121: 76298659 | BW121: 60989247 | BX121: 23511 | BY121: 22222 | BZ121: 23758 | CA121: 24248 | CB121: 24716 | CC121: 24881 | CD121: 22897 | CE121: 519.0879228 | CF121: 545.9862289 | CG121: 583.9473617 | CH121: 621.8060329 | CI121: 650.7697533 | CJ121: 0.7053525693 | CK121: 0.7206408865 | CL121: 0.7389878408 | CM121: 0.7571010494 | CN121: 0.7670147506 | CO121: 0.8800415614 | CP121: 0.838391562 | CQ121: 0.9948367783 | CR121: 0.8427428301 | CS121: 22719 | CT121: 23271 | CU121: 23914 | CV121: 24303 | CW121: 22171 | CX121: 0.885312 | CY121: 0.875823 | CZ121: 0.869176 | DA121: 0.868499 | DB121: 0.903441 | DC121: BENTON | DD121: 0.0065 | DE121: 617.81 | DF121: ARKANSAS
A122: BOONE | B122: 4040 | C122: 5795 | D122: 17943015 | E122: 5637 | F122: 11726113 | G122: 1506 | H122: 3117902 | I122: 1338 | J122: 2851331 | K122: 5869 | L122: 17783775 | M122: 5707 | N122: 13249594 | O122: 1582 | P122: 3330827 | Q122: 1413 | R122: 3040236 | S122: 6002 | T122: 19284798 | U122: 5831 | V122: 15186133 | W122: 1664 | X122: 3946698 | Y122: 1491 | Z122: 3999059 | AA122: 6143 | AB122: 20534125 | AC122: 5965 | AD122: 16659149 | AE122: 1717 | AF122: 4572828 | AG122: 1529 | AH122: 4244750 | AI122: 5918 | AJ122: 21841966 | AK122: 5704 | AL122: 16586359 | AM122: 1655 | AN122: 3691183 | AO122: 1458 | AP122: 4041117 | AQ122: 240.39 | AR122: 174.16 | AS122: 414.55 | AT122: 21060917 | AU122: 14577444 | AV122: 7301 | AW122: 6975 | AX122: 236.15 | AY122: 190.66 | AZ122: 426.81 | BA122: 21114602 | BB122: 16289830 | BC122: 7451 | BD122: 7120 | BE122: 252.54 | BF122: 218.35 | BG122: 470.89 | BH122: 23231496 | BI122: 19185192 | BJ122: 7666 | BK122: 7322 | BL122: 266.19 | BM122: 232.45 | BN122: 498.64 | BO122: 25106953 | BP122: 20903899 | BQ122: 7860 | BR122: 7494 | BS122: 280.97 | BT122: 240.01 | BU122: 520.98 | BV122: 25533149 | BW122: 20627476 | BX122: 7573 | BY122: 7162 | BZ122: 7152 | CA122: 7303 | CB122: 7511 | CC122: 7694 | CD122: 7377 | CE122: 519.0879228 | CF122: 545.9862289 | CG122: 583.9473617 | CH122: 621.8060329 | CI122: 650.7697533 | CJ122: =AS122/CE122 -> 0.7986123002 | CK122: =AZ122/CF122 -> 0.7817230131 | CL122: =BG122/CG122 -> 0.8063911764 | CM122: =BN122/CH122 -> 0.8019221005 | CN122: =BU122/CI122 -> 0.8005596409 | CO122: =(SUMPRODUCT(CS122,CX122)+SUMPRODUCT(CT122,CY122)+SUMPRODUCT(CU122,CZ122)+SUMPRODUCT(CV122,DA122)+SUMPRODUCT(CW122,DB122))/SUM(CS122:CW122) -> 0.9514524354 | CP122: 0.8385512681 | CQ122: 0.9948367783 | CR122: =CP122/CQ122 -> 0.842903365 | CS122: 6949 | CT122: 7145 | CU122: 7298 | CV122: 7464 | CW122: 7107 | CX122: 0.942483 | CY122: 0.958037 | CZ122: 0.942423 | DA122: 0.945863 | DB122: 0.968745 | DC122: BOONE | DD122: 0.0113 | DE122: =ROUND(($DE$5*CR122*(1-0.35*DD122)),2) -> 616.89 | DF122: ARKANSAS
A123: BRADLEY | B123: 4050 | C123: 1964 | D123: 6854853 | E123: 1918 | F123: 4863651 | G123: 428 | H123: 1224725 | I123: 404 | J123: 1073351 | K123: 1938 | L123: 7847891 | M123: 1893 | N123: 5120445 | O123: 441 | P123: 1918292 | Q123: 416 | R123: 1386724 | S123: 1915 | T123: 7446521 | U123: 1871 | V123: 5777059 | W123: 452 | X123: 1407603 | Y123: 425 | Z123: 1272409 | AA123: 1889 | AB123: 8613498 | AC123: 1846 | AD123: 6522922 | AE123: 465 | AF123: 1145643 | AG123: 438 | AH123: 1375534 | AI123: 1889 | AJ123: 8920044 | AK123: 1842 | AL123: 7471098 | AM123: 464 | AN123: 1815643 | AO123: 442 | AP123: 1492489 | AQ123: 281.48 | AR123: 213.07 | AS123: 494.55 | AT123: 8079578 | AU123: 5937002 | AV123: 2392 | AW123: 2322 | AX123: 342.1 | AY123: 234.85 | AZ123: 576.95 | BA123: 9766183 | BB123: 6507169 | BC123: 2379 | BD123: 2309 | BE123: 311.72 | BF123: 255.86 | BG123: 567.58 | BH123: 8854124 | BI123: 7049468 | BJ123: 2367 | BK123: 2296 | BL123: 345.48 | BM123: 288.18 | BN123: 633.66 | BO123: 9759141 | BP123: 7898456 | BQ123: 2354 | BR123: 2284 | BS123: 380.21 | BT123: 327.04 | BU123: 707.25 | BV123: 10735687 | BW123: 8963587 | BX123: 2353 | BY123: 2284 | BZ123: 2360 | CA123: 2348 | CB123: 2335 | CC123: 2322 | CD123: 2320 | CE123: 519.0879228 | CF123: 545.9862289 | CG123: 583.9473617 | CH123: 621.8060329 | CI123: 650.7697533 | CJ123: 0.9527287735 | CK123: 1.056711634 | CL123: 0.9719711693 | CM123: 1.01906377 | CN123: 1.086789908 | CO123: 0.9862828475 | CP123: 1.031603716 | CQ123: 0.9948367783 | CR123: 1.036957759 | CS123: 2267 | CT123: 2277 | CU123: 2280 | CV123: 2284 | CW123: 2288 | CX123: 0.988478 | CY123: 0.980248 | CZ123: 0.994946 | DA123: 0.980184 | DB123: 0.987569 | DC123: BRADLEY | DD123: 0.0096 | DE123: 759.37 | DF123: ARKANSAS
A124: CALHOUN | B124: 4060 | C124: 684 | D124: 3212529 | E124: 665 | F124: 1804327 | G124: 190 | H124: 322901 | I124: 177 | J124: 419835 | K124: 676 | L124: 2398544 | M124: 659 | N124: 1946093 | O124: 183 | P124: 385575 | Q124: 170 | R124: 458184 | S124: 673 | T124: 2483101 | U124: 654 | V124: 1957068 | W124: 191 | X124: 566816 | Y124: 175 | Z124: 607743 | AA124: 699 | AB124: 2677178 | AC124: 679 | AD124: 2323595 | AE124: 192 | AF124: 607557 | AG124: 174 | AH124: 694999 | AI124: 711 | AJ124: 2365727 | AK124: 692 | AL124: 2647867 | AM124: 189 | AN124: 470241 | AO124: 171 | AP124: 507445 | AQ124: 337.09 | AR124: 220.13 | AS124: 557.22 | AT124: 3535430 | AU124: 2224162 | AV124: 874 | AW124: 842 | AX124: 270.09 | AY124: 241.68 | AZ124: 511.77 | BA124: 2784119 | BB124: 2404277 | BC124: 859 | BD124: 829 | BE124: 294.17 | BF124: 257.82 | BG124: 551.99 | BH124: 3049917 | BI124: 2564811 | BJ124: 864 | BK124: 829 | BL124: 307.21 | BM124: 294.9 | BN124: 602.11 | BO124: 3284735 | BP124: 3018594 | BQ124: 891 | BR124: 853 | BS124: 262.59 | BT124: 304.68 | BU124: 567.27 | BV124: 2835968 | BW124: 3155312 | BX124: 900 | BY124: 863 | BZ124: 859 | CA124: 846 | CB124: 848 | CC124: 874 | CD124: 882 | CE124: 519.0879228 | CF124: 545.9862289 | CG124: 583.9473617 | CH124: 621.8060329 | CI124: 650.7697533 | CJ124: 1.073459766 | CK124: 0.9373313335 | CL124: 0.9452735575 | CM124: 0.9683244744 | CN124: 0.8716907895 | CO124: 1.00585981 | CP124: 0.9536279061 | CQ124: 0.9948367783 | CR124: 0.958577253 | CS124: 814 | CT124: 819 | CU124: 824 | CV124: 857 | CW124: 853 | CX124: 0.95735 | CY124: 1.028964 | CZ124: 1.003931 | DA124: 1.015344 | DB124: 1.022303 | DC124: CALHOUN | DD124: 0.0118 | DE124: 701.42 | DF124: ARKANSAS
A125: CARROLL | B125: 4070 | C125: 3736 | D125: 8883097 | E125: 3608 | F125: 6792991 | G125: 669 | H125: 874229 | I125: 603 | J125: 984204 | K125: 3809 | L125: 10005947 | M125: 3678 | N125: 7814322 | O125: 722 | P125: 1209548 | Q125: 662 | R125: 1283709 | S125: 3835 | T125: 9722295 | U125: 3706 | V125: 8113714 | W125: 783 | X125: 1597695 | Y125: 718 | Z125: 1505772 | AA125: 3946 | AB125: 10870856 | AC125: 3799 | AD125: 9480002 | AE125: 835 | AF125: 2033289 | AG125: 762 | AH125: 1812138 | AI125: 3818 | AJ125: 11190444 | AK125: 3666 | AL125: 9540738 | AM125: 820 | AN125: 1982913 | AO125: 731 | AP125: 2082438 | AQ125: 184.59 | AR125: 153.91 | AS125: 338.5 | AT125: 9757326 | AU125: 7777195 | AV125: 4405 | AW125: 4211 | AX125: 206.27 | AY125: 174.69 | AZ125: 380.96 | BA125: 11215495 | BB125: 9098031 | BC125: 4531 | BD125: 4340 | BE125: 204.27 | BF125: 181.2 | BG125: 385.47 | BH125: 11319990 | BI125: 9619486 | BJ125: 4618 | BK125: 4424 | BL125: 224.92 | BM125: 206.32 | BN125: 431.24 | BO125: 12904145 | BP125: 11292140 | BQ125: 4781 | BR125: 4561 | BS125: 236.69 | BT125: 220.29 | BU125: 456.98 | BV125: 13173357 | BW125: 11623176 | BX125: 4638 | BY125: 4397 | BZ125: 4317 | CA125: 4445 | CB125: 4530 | CC125: 4681 | CD125: 4523 | CE125: 519.0879228 | CF125: 545.9862289 | CG125: 583.9473617 | CH125: 621.8060329 | CI125: 650.7697533 | CJ125: 0.6521053277 | CK125: 0.6977465361 | CL125: 0.6601108683 | CM125: 0.6935281699 | CN125: 0.7022145662 | CO125: 0.8698223346 | CP125: 0.7830807126 | CQ125: 0.9948367783 | CR125: 0.7871449163 | CS125: 4171 | CT125: 4311 | CU125: 4433 | CV125: 4514 | CW125: 4339 | CX125: 0.875446 | CY125: 0.872188 | CZ125: 0.866651 | DA125: 0.872584 | DB125: 0.862433 | DC125: CARROLL | DD125: 0.0104 | DE125: 576.27 | DF125: ARKANSAS
A126: CHICOT | B126: 4080 | C126: 2049 | D126: 8582246 | E126: 1987 | F126: 5576048 | G126: 509 | H126: 1281833 | I126: 486 | J126: 1193865 | K126: 2054 | L126: 8115927 | M126: 1983 | N126: 5833585 | O126: 511 | P126: 1333158 | Q126: 493 | R126: 1330858 | S126: 2031 | T126: 8823880 | U126: 1963 | V126: 6060254 | W126: 531 | X126: 1215743 | Y126: 506 | Z126: 1222146 | AA126: 2034 | AB126: 9143414 | AC126: 1964 | AD126: 6345850 | AE126: 548 | AF126: 1812054 | AG126: 521 | AH126: 1398149 | AI126: 2037 | AJ126: 8719506 | AK126: 1961 | AL126: 6819675 | AM126: 556 | AN126: 1872559 | AO126: 527 | AP126: 1600018 | AQ126: 321.35 | AR126: 228.13 | AS126: 549.48 | AT126: 9864079 | AU126: 6769913 | AV126: 2558 | AW126: 2473 | AX126: 306.99 | AY126: 241.13 | AZ126: 548.12 | BA126: 9449085 | BB126: 7164443 | BC126: 2565 | BD126: 2476 | BE126: 326.56 | BF126: 245.79 | BG126: 572.35 | BH126: 10039623 | BI126: 7282400 | BJ126: 2562 | BK126: 2469 | BL126: 353.58 | BM126: 259.69 | BN126: 613.27 | BO126: 10955468 | BP126: 7743999 | BQ126: 2582 | BR126: 2485 | BS126: 340.41 | BT126: 282.01 | BU126: 622.42 | BV126: 10592065 | BW126: 8419693 | BX126: 2593 | BY126: 2488 | BZ126: 2519 | CA126: 2525 | CB126: 2520 | CC126: 2538 | CD126: 2543 | CE126: 519.0879228 | CF126: 545.9862289 | CG126: 583.9473617 | CH126: 621.8060329 | CI126: 650.7697533 | CJ126: 1.058548997 | CK126: 1.003908104 | CL126: 0.9801397138 | CM126: 0.9862721935 | CN126: 0.9564365843 | CO126: 0.9752981576 | CP126: 1.022314162 | CQ126: 0.9948367783 | CR126: 1.027619992 | CS126: 2421 | CT126: 2455 | CU126: 2445 | CV126: 2460 | CW126: 2481 | CX126: 0.991753 | CY126: 0.995173 | CZ126: 0.963333 | DA126: 0.941463 | DB126: 0.984915 | DC126: CHICOT | DD126: 0.01 | DE126: 752.42 | DF126: ARKANSAS
A127: CLARK | B127: 4090 | C127: 3352 | D127: 10447028 | E127: 3268 | F127: 7338526 | G127: 594 | H127: 1292503 | I127: 531 | J127: 1043511 | K127: 3306 | L127: 10784771 | M127: 3218 | N127: 7681622 | O127: 639 | P127: 1221702 | Q127: 580 | R127: 1253997 | S127: 3295 | T127: 11348294 | U127: 3196 | V127: 8160035 | W127: 654 | X127: 1991166 | Y127: 608 | Z127: 1564827 | AA127: 3318 | AB127: 10365117 | AC127: 3218 | AD127: 9047270 | AE127: 659 | AF127: 1590115 | AG127: 611 | AH127: 1829893 | AI127: 3155 | AJ127: 11920498 | AK127: 3042 | AL127: 9380264 | AM127: 640 | AN127: 1529225 | AO127: 585 | AP127: 1765402 | AQ127: 247.92 | AR127: 183.86 | AS127: 431.78 | AT127: 11739531 | AU127: 8382037 | AV127: 3946 | AW127: 3799 | AX127: 253.62 | AY127: 196.06 | AZ127: 449.68 | BA127: 12006473 | BB127: 8935619 | BC127: 3945 | BD127: 3798 | BE127: 281.49 | BF127: 213.04 | BG127: 494.53 | BH127: 13339460 | BI127: 9724862 | BJ127: 3949 | BK127: 3804 | BL127: 250.51 | BM127: 236.73 | BN127: 487.24 | BO127: 11955232 | BP127: 10877163 | BQ127: 3977 | BR127: 3829 | BS127: 295.34 | BT127: 256.08 | BU127: 551.42 | BV127: 13449723 | BW127: 11145666 | BX127: 3795 | BY127: 3627 | BZ127: 3879 | CA127: 3879 | CB127: 3884 | CC127: 3910 | CD127: 3715 | CE127: 519.0879228 | CF127: 545.9862289 | CG127: 583.9473617 | CH127: 621.8060329 | CI127: 650.7697533 | CJ127: 0.8318051356 | CK127: 0.8236105165 | CL127: 0.8468742774 | CM127: 0.783588409 | CN127: 0.8473350171 | CO127: 0.9051844579 | CP127: 0.9132311805 | CQ127: 0.9948367783 | CR127: 0.9179708676 | CS127: 3776 | CT127: 3786 | CU127: 3790 | CV127: 3808 | CW127: 3557 | CX127: 0.910081 | CY127: 0.885345 | CZ127: 0.906545 | DA127: 0.895349 | DB127: 0.930183 | DC127: CLARK | DD127: 0.006 | DE127: 673.08 | DF127: ARKANSAS
A128: CLAY | B128: 4100 | C128: 3260 | D128: 10897348 | E128: 3147 | F128: 7999506 | G128: 622 | H128: 1419141 | I128: 557 | J128: 1255872 | K128: 3219 | L128: 11569921 | M128: 3114 | N128: 8823884 | O128: 636 | P128: 1593578 | Q128: 569 | R128: 1478892 | S128: 3203 | T128: 12284202 | U128: 3100 | V128: 9449158 | W128: 677 | X128: 1704737 | Y128: 607 | Z128: 1707189 | AA128: 3164 | AB128: 12761706 | AC128: 3076 | AD128: 10051414 | AE128: 743 | AF128: 2120482 | AG128: 670 | AH128: 2026217 | AI128: 3068 | AJ128: 14355820 | AK128: 2970 | AL128: 9815342 | AM128: 738 | AN128: 1818329 | AO128: 662 | AP128: 2471092 | AQ128: 264.39 | AR128: 208.23 | AS128: 472.62 | AT128: 12316489 | AU128: 9255378 | AV128: 3882 | AW128: 3704 | AX128: 284.55 | AY128: 233.12 | AZ128: 517.67 | BA128: 13163499 | BB128: 10302776 | BC128: 3855 | BD128: 3683 | BE128: 300.45 | BF128: 250.79 | BG128: 551.24 | BH128: 13988939 | BI128: 11156347 | BJ128: 3880 | BK128: 3707 | BL128: 317.43 | BM128: 268.68 | BN128: 586.11 | BO128: 14882188 | BP128: 12077631 | BQ128: 3907 | BR128: 3746 | BS128: 354.14 | BT128: 281.9 | BU128: 636.04 | BV128: 16174149 | BW128: 12286434 | BX128: 3806 | BY128: 3632 | BZ128: 3801 | CA128: 3778 | CB128: 3802 | CC128: 3834 | CD128: 3723 | CE128: 519.0879228 | CF128: 545.9862289 | CG128: 583.9473617 | CH128: 621.8060329 | CI128: 650.7697533 | CJ128: 0.9104815952 | CK128: 0.9481374668 | CL128: 0.9439891951 | CM128: 0.9425929775 | CN128: 0.9773656456 | CO128: 0.9160161572 | CP128: 1.031109952 | CQ128: 0.9948367783 | CR128: 1.036461432 | CS128: 3643 | CT128: 3667 | CU128: 3691 | CV128: 3748 | CW128: 3553 | CX128: 0.906873 | CY128: 0.89845 | CZ128: 0.914718 | DA128: 0.908754 | DB128: 0.95253 | DC128: CLAY | DD128: 0.0086 | DE128: 759.27 | DF128: ARKANSAS
A129: CLEBURNE | B129: 4110 | C129: 4843 | D129: 13788238 | E129: 4743 | F129: 13466459 | G129: 797 | H129: 2012653 | I129: 735 | J129: 1939373 | K129: 4913 | L129: 15096487 | M129: 4808 | N129: 12578367 | O129: 853 | P129: 1891406 | Q129: 792 | R129: 2009713 | S129: 5033 | T129: 16792898 | U129: 4923 | V129: 13996653 | W129: 907 | X129: 2124697 | Y129: 847 | Z129: 2225374 | AA129: 5106 | AB129: 18153142 | AC129: 4990 | AD129: 15477112 | AE129: 966 | AF129: 2458182 | AG129: 901 | AH129: 2709238 | AI129: 5171 | AJ129: 18681425 | AK129: 5050 | AL129: 16290299 | AM129: 1004 | AN129: 2336611 | AO129: 930 | AP129: 2529102 | AQ129: 233.46 | AR129: 234.36 | AS129: 467.82 | AT129: 15800891 | AU129: 15405832 | AV129: 5640 | AW129: 5478 | AX129: 245.52 | AY129: 217.08 | AZ129: 462.6 | BA129: 16987893 | BB129: 14588080 | BC129: 5766 | BD129: 5600 | BE129: 265.4 | BF129: 234.29 | BG129: 499.69 | BH129: 18917595 | BI129: 16222027 | BJ129: 5940 | BK129: 5770 | BL129: 282.87 | BM129: 257.26 | BN129: 540.13 | BO129: 20611324 | BP129: 18186350 | BQ129: 6072 | BR129: 5891 | BS129: 283.64 | BT129: 262.25 | BU129: 545.89 | BV129: 21018036 | BW129: 18819401 | BX129: 6175 | BY129: 5980 | BZ129: 5566 | CA129: 5692 | CB129: 5863 | CC129: 5990 | CD129: 6082 | CE129: 519.0879228 | CF129: 545.9862289 | CG129: 583.9473617 | CH129: 621.8060329 | CI129: 650.7697533 | CJ129: 0.9012346068 | CK129: 0.847274117 | CL129: 0.8557106903 | CM129: 0.8686470884 | CN129: 0.838837388 | CO129: 0.9218746544 | CP129: 0.9354208558 | CQ129: 0.9948367783 | CR129: 0.9402757077 | CS129: 5482 | CT129: 5595 | CU129: 5766 | CV129: 5831 | CW129: 5952 | CX129: 0.919938 | CY129: 0.910458 | CZ129: 0.929254 | DA129: 0.919062 | DB129: 0.929997 | DC129: CLEBURNE | DD129: 0.0098 | DE129: 688.52 | DF129: ARKANSAS
A130: CLEVELAND | B130: 4120 | C130: 1131 | D130: 3582822 | E130: 1103 | F130: 2703401 | G130: 265 | H130: 583176 | I130: 250 | J130: 516121 | K130: 1147 | L130: 3610479 | M130: 1116 | N130: 2909331 | O130: 269 | P130: 713378 | Q130: 251 | R130: 644245 | S130: 1173 | T130: 3831542 | U130: 1139 | V130: 3528126 | W130: 290 | X130: 419548 | Y130: 268 | Z130: 550285 | AA130: 1206 | AB130: 4384473 | AC130: 1166 | AD130: 3630783 | AE130: 296 | AF130: 1070293 | AG130: 277 | AH130: 817397 | AI130: 1215 | AJ130: 4933713 | AK130: 1175 | AL130: 3990112 | AM130: 318 | AN130: 701789 | AO130: 300 | AP130: 713406 | AQ130: 248.69 | AR130: 198.3 | AS130: 446.99 | AT130: 4165998 | AU130: 3219522 | AV130: 1396 | AW130: 1353 | AX130: 254.46 | AY130: 216.63 | AZ130: 471.09 | BA130: 4323857 | BB130: 3553576 | BC130: 1416 | BD130: 1367 | BE130: 242.14 | BF130: 241.55 | BG130: 483.69 | BH130: 4251090 | BI130: 4078411 | BJ130: 1463 | BK130: 1407 | BL130: 302.64 | BM130: 256.88 | BN130: 559.52 | BO130: 5454766 | BP130: 4448180 | BQ130: 1502 | BR130: 1443 | BS130: 306.34 | BT130: 265.74 | BU130: 572.08 | BV130: 5635502 | BW130: 4703518 | BX130: 1533 | BY130: 1475 | BZ130: 1376 | CA130: 1394 | CB130: 1438 | CC130: 1475 | CD130: 1505 | CE130: 519.0879228 | CF130: 545.9862289 | CG130: 583.9473617 | CH130: 621.8060329 | CI130: 650.7697533 | CJ130: 0.8611065301 | CK130: 0.8628239597 | CL130: 0.8283109604 | CM130: 0.8998304462 | CN130: 0.8790820365 | CO130: 0.9586684045 | CP130: 0.9035770685 | CQ130: 0.9948367783 | CR130: 0.9082666506 | CS130: 1344 | CT130: 1373 | CU130: 1401 | CV130: 1438 | CW130: 1458 | CX130: 0.951136 | CY130: 0.959698 | CZ130: 0.956721 | DA130: 0.953787 | DB130: 0.971328 | DC130: CLEVELAND | DD130: 0.0091 | DE130: 665.24 | DF130: ARKANSAS
A131: COLUMBIA | B131: 4130 | C131: 3934 | D131: 14439712 | E131: 3862 | F131: 9145531 | G131: 869 | H131: 1574946 | I131: 821 | J131: 1400012 | K131: 3885 | L131: 13377522 | M131: 3811 | N131: 9660848 | O131: 899 | P131: 2301220 | Q131: 850 | R131: 1931037 | S131: 3891 | T131: 14415726 | U131: 3822 | V131: 10088629 | W131: 945 | X131: 2543386 | Y131: 887 | Z131: 1958440 | AA131: 3903 | AB131: 16577840 | AC131: 3824 | AD131: 10594389 | AE131: 987 | AF131: 2603408 | AG131: 922 | AH131: 1927959 | AI131: 3893 | AJ131: 17558916 | AK131: 3800 | AL131: 11567607 | AM131: 1026 | AN131: 3348029 | AO131: 955 | AP131: 2371550 | AQ131: 277.86 | AR131: 187.66 | AS131: 465.52 | AT131: 16014658 | AU131: 10545543 | AV131: 4803 | AW131: 4683 | AX131: 273.11 | AY131: 207.25 | AZ131: 480.36 | BA131: 15678742 | BB131: 11591885 | BC131: 4784 | BD131: 4661 | BE131: 292.24 | BF131: 213.19 | BG131: 505.43 | BH131: 16959112 | BI131: 12047069 | BJ131: 4836 | BK131: 4709 | BL131: 326.88 | BM131: 219.88 | BN131: 546.76 | BO131: 19181248 | BP131: 12522348 | BQ131: 4890 | BR131: 4746 | BS131: 354.19 | BT131: 244.29 | BU131: 598.48 | BV131: 20906945 | BW131: 13939157 | BX131: 4919 | BY131: 4755 | BZ131: 4748 | CA131: 4729 | CB131: 4779 | CC131: 4825 | CD131: 4841 | CE131: 519.0879228 | CF131: 545.9862289 | CG131: 583.9473617 | CH131: 621.8060329 | CI131: 650.7697533 | CJ131: 0.8968037582 | CK131: 0.8798024099 | CL131: 0.8655403434 | CM131: 0.8793095774 | CN131: 0.9196493798 | CO131: 0.9437889475 | CP131: 0.9411225848 | CQ131: 0.9948367783 | CR131: 0.9460070288 | CS131: 4608 | CT131: 4634 | CU131: 4695 | CV131: 4689 | CW131: 4738 | CX131: 0.934758 | CY131: 0.941691 | CZ131: 0.949401 | DA131: 0.934426 | DB131: 0.958329 | DC131: COLUMBIA | DD131: 0.0124 | DE131: 692.08 | DF131: ARKANSAS
A132: CONWAY | B132: 4140 | C132: 3639 | D132: 10255479 | E132: 3531 | F132: 8733711 | G132: 1069 | H132: 1887755 | I132: 981 | J132: 2286398 | K132: 3636 | L132: 12254587 | M132: 3527 | N132: 8743939 | O132: 1105 | P132: 2478990 | Q132: 1011 | R132: 2568646 | S132: 3609 | T132: 11368800 | U132: 3506 | V132: 9405865 | W132: 1130 | X132: 2567212 | Y132: 1042 | Z132: 3064939 | AA132: 3629 | AB132: 14617814 | AC132: 3519 | AD132: 10121413 | AE132: 1190 | AF132: 2362819 | AG132: 1100 | AH132: 3241715 | AI132: 3373 | AJ132: 11913305 | AK132: 3263 | AL132: 9733088 | AM132: 1138 | AN132: 1989689 | AO132: 1037 | AP132: 3044135 | AQ132: 214.94 | AR132: 203.53 | AS132: 418.47 | AT132: 12143234 | AU132: 11020109 | AV132: 4708 | AW132: 4512 | AX132: 258.97 | AY132: 207.74 | AZ132: 466.71 | BA132: 14733577 | BB132: 11312585 | BC132: 4741 | BD132: 4538 | BE132: 245.06 | BF132: 228.5 | BG132: 473.56 | BH132: 13936012 | BI132: 12470804 | BJ132: 4739 | BK132: 4548 | BL132: 293.64 | BM132: 241.09 | BN132: 534.73 | BO132: 16980633 | BP132: 13363128 | BQ132: 4819 | BR132: 4619 | BS132: 256.84 | BT132: 247.62 | BU132: 504.46 | BV132: 13902994 | BW132: 12777223 | BX132: 4511 | BY132: 4300 | BZ132: 4619 | CA132: 4650 | CB132: 4653 | CC132: 4729 | CD132: 4410 | CE132: 519.0879228 | CF132: 545.9862289 | CG132: 583.9473617 | CH132: 621.8060329 | CI132: 650.7697533 | CJ132: 0.8061640074 | CK132: 0.8548017794 | CL132: 0.8109635064 | CM132: 0.8599627082 | CN132: 0.7751743185 | CO132: 0.953304909 | CP132: 0.8616479955 | CQ132: 0.9948367783 | CR132: 0.8661199649 | CS132: 4468 | CT132: 4496 | CU132: 4534 | CV132: 4587 | CW132: 4228 | CX132: 0.964413 | CY132: 0.959191 | CZ132: 0.941965 | DA132: 0.944868 | DB132: 0.956621 | DC132: CONWAY | DD132: 0.0088 | DE132: 634.44 | DF132: ARKANSAS
A133: CRAIGHEAD | B133: 4150 | C133: 9434 | D133: 30752805 | E133: 9178 | F133: 21785498 | G133: 2231 | H133: 5497414 | I133: 2042 | J133: 4782225 | K133: 9591 | L133: 30416710 | M133: 9320 | N133: 23838567 | O133: 2352 | P133: 5860169 | Q133: 2158 | R133: 5329890 | S133: 9727 | T133: 34157323 | U133: 9427 | V133: 26619863 | W133: 2581 | X133: 6538754 | Y133: 2376 | Z133: 6421439 | AA133: 9942 | AB133: 38454831 | AC133: 9637 | AD133: 29729049 | AE133: 2798 | AF133: 7854101 | AG133: 2579 | AH133: 7632788 | AI133: 10092 | AJ133: 38546056 | AK133: 9739 | AL133: 30955812 | AM133: 3060 | AN133: 8487841 | AO133: 2804 | AP133: 8550777 | AQ133: 258.97 | AR133: 197.32 | AS133: 456.29 | AT133: 36250219 | AU133: 26567723 | AV133: 11665 | AW133: 11220 | AX133: 253.13 | AY133: 211.77 | AZ133: 464.9 | BA133: 36276879 | BB133: 29168457 | BC133: 11943 | BD133: 11478 | BE133: 275.54 | BF133: 233.28 | BG133: 508.82 | BH133: 40696077 | BI133: 33041302 | BJ133: 12308 | BK133: 11803 | BL133: 302.91 | BM133: 254.87 | BN133: 557.78 | BO133: 46308932 | BP133: 37361837 | BQ133: 12740 | BR133: 12216 | BS133: 298.01 | BT133: 262.47 | BU133: 560.48 | BV133: 47033897 | BW133: 39506589 | BX133: 13152 | BY133: 12543 | BZ133: 11462 | CA133: 11735 | CB133: 12080 | CC133: 12503 | CD133: 12862 | CE133: 519.0879228 | CF133: 545.9862289 | CG133: 583.9473617 | CH133: 621.8060329 | CI133: 650.7697533 | CJ133: 0.8790225701 | CK133: 0.8514866775 | CL133: 0.8713456612 | CM133: 0.8970321459 | CN133: 0.8612569917 | CO133: 0.9345188827 | CP133: 0.9331312887 | CQ133: 0.9948367783 | CR133: 0.9379742577 | CS133: 11382 | CT133: 11590 | CU133: 11816 | CV133: 11999 | CW133: 12389 | CX133: 0.931283 | CY133: 0.935044 | CZ133: 0.920886 | DA133: 0.92846 | DB133: 0.955871 | DC133: CRAIGHEAD | DD133: 0.0094 | DE133: 686.93 | DF133: ARKANSAS
A134: CRAWFORD | B134: 4160 | C134: 6132 | D134: 20691589 | E134: 5951 | F134: 12555885 | G134: 2203 | H134: 4717662 | I134: 2027 | J134: 4094165 | K134: 6252 | L134: 22312500 | M134: 6069 | N134: 14336610 | O134: 2319 | P134: 4985894 | Q134: 2143 | R134: 4768384 | S134: 6478 | T134: 23898078 | U134: 6269 | V134: 16076584 | W134: 2422 | X134: 6111488 | Y134: 2227 | Z134: 5711801 | AA134: 6639 | AB134: 25561668 | AC134: 6431 | AD134: 17856347 | AE134: 2539 | AF134: 6420520 | AG134: 2312 | AH134: 6219825 | AI134: 6245 | AJ134: 23817694 | AK134: 5982 | AL134: 17832135 | AM134: 2433 | AN134: 5939889 | AO134: 2185 | AP134: 6053296 | AQ134: 254.04 | AR134: 173.92 | AS134: 427.96 | AT134: 25409251 | AU134: 16650050 | AV134: 8335 | AW134: 7978 | AX134: 265.41 | AY134: 193.87 | AZ134: 459.28 | BA134: 27298394 | BB134: 19104994 | BC134: 8571 | BD134: 8212 | BE134: 280.99 | BF134: 213.71 | BG134: 494.7 | BH134: 30009566 | BI134: 21788385 | BJ134: 8900 | BK134: 8496 | BL134: 290.39 | BM134: 229.48 | BN134: 519.87 | BO134: 31982188 | BP134: 24076172 | BQ134: 9178 | BR134: 8743 | BS134: 285.76 | BT134: 243.72 | BU134: 529.48 | BV134: 29757583 | BW134: 23885431 | BX134: 8678 | BY134: 8167 | BZ134: 8172 | CA134: 8410 | CB134: 8718 | CC134: 8981 | CD134: 8434 | CE134: 519.0879228 | CF134: 545.9862289 | CG134: 583.9473617 | CH134: 621.8060329 | CI134: 650.7697533 | CJ134: 0.824446074 | CK134: 0.8411933775 | CL134: 0.8471653995 | CM134: 0.8360645804 | CN134: 0.8136210962 | CO134: 0.9492628776 | CP134: 0.8769942712 | CQ134: 0.9948367783 | CR134: 0.8815458881 | CS134: 8033 | CT134: 8241 | CU134: 8509 | CV134: 8640 | CW134: 8200 | CX134: 0.971276 | CY134: 0.937369 | CZ134: 0.939502 | DA134: 0.938435 | DB134: 0.961189 | DC134: CRAWFORD | DD134: 0.0058 | DE134: 646.42 | DF134: ARKANSAS
A135: CRITTENDEN | B135: 4170 | C135: 4624 | D135: 19110272 | E135: 4469 | F135: 10958858 | G135: 1358 | H135: 4421384 | I135: 1253 | J135: 2788584 | K135: 4595 | L135: 16259338 | M135: 4427 | N135: 11288258 | O135: 1440 | P135: 4111639 | Q135: 1333 | R135: 2980989 | S135: 4651 | T135: 19184156 | U135: 4468 | V135: 12069446 | W135: 1512 | X135: 3929668 | Y135: 1402 | Z135: 3258469 | AA135: 4714 | AB135: 19057477 | AC135: 4520 | AD135: 12770312 | AE135: 1636 | AF135: 5218598 | AG135: 1507 | AH135: 3966625 | AI135: 4745 | AJ135: 21419572 | AK135: 4515 | AL135: 13416329 | AM135: 1689 | AN135: 6635683 | AO135: 1551 | AP135: 4407465 | AQ135: 327.81 | AR135: 200.21 | AS135: 528.02 | AT135: 23531656 | AU135: 13747442 | AV135: 5982 | AW135: 5722 | AX135: 281.29 | AY135: 206.44 | AZ135: 487.73 | BA135: 20370977 | BB135: 14269247 | BC135: 6035 | BD135: 5760 | BE135: 312.53 | BF135: 217.6 | BG135: 530.13 | BH135: 23113824 | BI135: 15327915 | BJ135: 6163 | BK135: 5870 | BL135: 318.58 | BM135: 231.42 | BN135: 550 | BO135: 24276075 | BP135: 16736937 | BQ135: 6350 | BR135: 6027 | BS135: 363.37 | BT135: 244.86 | BU135: 608.23 | BV135: 28055255 | BW135: 17823794 | BX135: 6434 | BY135: 6066 | BZ135: 5863 | CA135: 5912 | CB135: 6031 | CC135: 6204 | CD135: 6259 | CE135: 519.0879228 | CF135: 545.9862289 | CG135: 583.9473617 | CH135: 621.8060329 | CI135: 650.7697533 | CJ135: 1.017207253 | CK135: 0.8933009189 | CL135: 0.9078386765 | CM135: 0.8845202055 | CN135: 0.9346316373 | CO135: 0.9674067558 | CP135: 0.958748461 | CQ135: 0.9948367783 | CR135: 0.9637243837 | CS135: 5684 | CT135: 5713 | CU135: 5875 | CV135: 5933 | CW135: 6063 | CX135: 0.95496 | CY135: 0.960028 | CZ135: 0.950408 | DA135: 0.976796 | DB135: 0.993312 | DC135: CRITTENDEN | DD135: 0.0138 | DE135: 704.7 | DF135: ARKANSAS
A136: CROSS | B136: 4180 | C136: 2418 | D136: 8598802 | E136: 2361 | F136: 5932023 | G136: 541 | H136: 1119391 | I136: 505 | J136: 989084 | K136: 2386 | L136: 8465311 | M136: 2330 | N136: 6405993 | O136: 585 | P136: 1102991 | Q136: 547 | R136: 1164545 | S136: 2387 | T136: 8196473 | U136: 2334 | V136: 7102547 | W136: 611 | X136: 1671753 | Y136: 581 | Z136: 1545598 | AA136: 2429 | AB136: 10310081 | AC136: 2367 | AD136: 7370927 | AE136: 650 | AF136: 2181543 | AG136: 609 | AH136: 1805928 | AI136: 2425 | AJ136: 10283085 | AK136: 2355 | AL136: 7892585 | AM136: 662 | AN136: 2128774 | AO136: 620 | AP136: 1944370 | AQ136: 273.69 | AR136: 201.24 | AS136: 474.93 | AT136: 9718193 | AU136: 6921107 | AV136: 2959 | AW136: 2866 | AX136: 268.38 | AY136: 219.28 | AZ136: 487.66 | BA136: 9568302 | BB136: 7570538 | BC136: 2971 | BD136: 2877 | BE136: 274.3 | BF136: 247.23 | BG136: 521.53 | BH136: 9868226 | BI136: 8648145 | BJ136: 2998 | BK136: 2915 | BL136: 338.09 | BM136: 256.97 | BN136: 595.06 | BO136: 12491624 | BP136: 9176855 | BQ136: 3079 | BR136: 2976 | BS136: 335.06 | BT136: 275.54 | BU136: 610.6 | BV136: 12411859 | BW136: 9836955 | BX136: 3087 | BY136: 2975 | BZ136: 2917 | CA136: 2929 | CB136: 2961 | CC136: 3032 | CD136: 3034 | CE136: 519.0879228 | CF136: 545.9862289 | CG136: 583.9473617 | CH136: 621.8060329 | CI136: 650.7697533 | CJ136: 0.9149317084 | CK136: 0.8931727105 | CL136: 0.8931113217 | CM136: 0.9569865336 | CN136: 0.9382734784 | CO136: 0.9517087212 | CP136: 0.965941711 | CQ136: 0.9948367783 | CR136: 0.9709549668 | CS136: 2835 | CT136: 2868 | CU136: 2925 | CV136: 2965 | CW136: 2983 | CX136: 0.981435 | CY136: 0.940783 | CZ136: 0.935802 | DA136: 0.935307 | DB136: 0.965862 | DC136: CROSS | DD136: 0.0127 | DE136: 710.26 | DF136: ARKANSAS
A137: DALLAS | B137: 4190 | C137: 1417 | D137: 4628563 | E137: 1383 | F137: 3658669 | G137: 308 | H137: 713621 | I137: 296 | J137: 764510 | K137: 1394 | L137: 5413892 | M137: 1360 | N137: 4161064 | O137: 309 | P137: 721293 | Q137: 293 | R137: 830523 | S137: 1355 | T137: 5187936 | U137: 1322 | V137: 4219244 | W137: 313 | X137: 802868 | Y137: 299 | Z137: 736176 | AA137: 1348 | AB137: 5901052 | AC137: 1317 | AD137: 4429350 | AE137: 325 | AF137: 605735 | AG137: 305 | AH137: 778399 | AI137: 1310 | AJ137: 5298672 | AK137: 1275 | AL137: 4539821 | AM137: 337 | AN137: 1086675 | AO137: 317 | AP137: 977732 | AQ137: 258.08 | AR137: 219.53 | AS137: 477.61 | AT137: 5342184 | AU137: 4423179 | AV137: 1725 | AW137: 1679 | AX137: 300.21 | AY137: 251.64 | AZ137: 551.85 | BA137: 6135185 | BB137: 4991587 | BC137: 1703 | BD137: 1653 | BE137: 299.3 | BF137: 254.75 | BG137: 554.05 | BH137: 5990804 | BI137: 4955420 | BJ137: 1668 | BK137: 1621 | BL137: 324.11 | BM137: 267.56 | BN137: 591.67 | BO137: 6506787 | BP137: 5207749 | BQ137: 1673 | BR137: 1622 | BS137: 323.08 | BT137: 288.82 | BU137: 611.9 | BV137: 6385347 | BW137: 5517553 | BX137: 1647 | BY137: 1592 | BZ137: 1704 | CA137: 1681 | CB137: 1647 | CC137: 1650 | CD137: 1621 | CE137: 519.0879228 | CF137: 545.9862289 | CG137: 583.9473617 | CH137: 621.8060329 | CI137: 650.7697533 | CJ137: 0.9200946103 | CK137: 1.010739778 | CL137: 0.9488012727 | CM137: 0.9515346727 | CN137: 0.9402711127 | CO137: 1.004071936 | CP137: 0.9504182472 | CQ137: 0.9948367783 | CR137: 0.9553509359 | CS137: 1644 | CT137: 1622 | CU137: 1614 | CV137: 1619 | CW137: 1594 | CX137: 0.990005 | CY137: 1.009604 | CZ137: 1.021319 | DA137: 1.018249 | DB137: 0.981088 | DC137: DALLAS | DD137: 0.0124 | DE137: 698.92 | DF137: ARKANSAS
A138: DESHA | B138: 4200 | C138: 1979 | D138: 7576811 | E138: 1907 | F138: 5175075 | G138: 429 | H138: 1216722 | I138: 404 | J138: 973821 | K138: 1969 | L138: 8235229 | M138: 1901 | N138: 5587106 | O138: 456 | P138: 1341946 | Q138: 431 | R138: 1189175 | S138: 1964 | T138: 9290078 | U138: 1900 | V138: 5950706 | W138: 473 | X138: 1434298 | Y138: 448 | Z138: 1191662 | AA138: 1951 | AB138: 9352190 | AC138: 1885 | AD138: 6493957 | AE138: 495 | AF138: 1386492 | AG138: 465 | AH138: 1328057 | AI138: 1932 | AJ138: 9526876 | AK138: 1855 | AL138: 6456542 | AM138: 524 | AN138: 1952736 | AO138: 493 | AP138: 1636490 | AQ138: 304.32 | AR138: 221.73 | AS138: 526.05 | AT138: 8793533 | AU138: 6148896 | AV138: 2408 | AW138: 2311 | AX138: 329.11 | AY138: 242.15 | AZ138: 571.26 | BA138: 9577175 | BB138: 6776281 | BC138: 2425 | BD138: 2332 | BE138: 366.72 | BF138: 253.49 | BG138: 620.21 | BH138: 10724376 | BI138: 7142368 | BJ138: 2437 | BK138: 2348 | BL138: 365.86 | BM138: 277.38 | BN138: 643.24 | BO138: 10738682 | BP138: 7822014 | BQ138: 2446 | BR138: 2350 | BS138: 389.51 | BT138: 287.23 | BU138: 676.74 | BV138: 11479612 | BW138: 8093032 | BX138: 2456 | BY138: 2348 | BZ138: 2364 | CA138: 2383 | CB138: 2397 | CC138: 2403 | CD138: 2405 | CE138: 519.0879228 | CF138: 545.9862289 | CG138: 583.9473617 | CH138: 621.8060329 | CI138: 650.7697533 | CJ138: 1.013412135 | CK138: 1.046290126 | CL138: 1.062099156 | CM138: 1.034470504 | CN138: 1.039906966 | CO138: 1.00322231 | CP138: 1.035897794 | CQ138: 0.9948367783 | CR138: 1.041274123 | CS138: 2245 | CT138: 2289 | CU138: 2341 | CV138: 2350 | CW138: 2352 | CX138: 1.034755 | CY138: 1.01979 | CZ138: 0.997552 | DA138: 0.96285 | DB138: 1.002982 | DC138: DESHA | DD138: 0.0175 | DE138: 760.41 | DF138: ARKANSAS
A139: DREW | B139: 4210 | C139: 2112 | D139: 8295165 | E139: 2055 | F139: 5406352 | G139: 484 | H139: 1021737 | I139: 460 | J139: 1007843 | K139: 2111 | L139: 8375501 | M139: 2056 | N139: 5769081 | O139: 507 | P139: 1468294 | Q139: 486 | R139: 1368345 | S139: 2115 | T139: 8778761 | U139: 2065 | V139: 6290483 | W139: 532 | X139: 1670695 | Y139: 508 | Z139: 1348178 | AA139: 2167 | AB139: 9971270 | AC139: 2114 | AD139: 7075407 | AE139: 591 | AF139: 1965555 | AG139: 557 | AH139: 1699784 | AI139: 2226 | AJ139: 9576939 | AK139: 2159 | AL139: 7584973 | AM139: 597 | AN139: 2251075 | AO139: 567 | AP139: 1814679 | AQ139: 299.08 | AR139: 212.53 | AS139: 511.61 | AT139: 9316902 | AU139: 6414195 | AV139: 2596 | AW139: 2515 | AX139: 313.34 | AY139: 233.98 | AZ139: 547.32 | BA139: 9843795 | BB139: 7137426 | BC139: 2618 | BD139: 2542 | BE139: 328.97 | BF139: 247.4 | BG139: 576.37 | BH139: 10449456 | BI139: 7638661 | BJ139: 2647 | BK139: 2573 | BL139: 360.67 | BM139: 273.78 | BN139: 634.45 | BO139: 11936825 | BP139: 8775191 | BQ139: 2758 | BR139: 2671 | BS139: 349.16 | BT139: 287.35 | BU139: 636.51 | BV139: 11828014 | BW139: 9399652 | BX139: 2823 | BY139: 2726 | BZ139: 2559 | CA139: 2584 | CB139: 2614 | CC139: 2719 | CD139: 2777 | CE139: 519.0879228 | CF139: 545.9862289 | CG139: 583.9473617 | CH139: 621.8060329 | CI139: 650.7697533 | CJ139: 0.9855941114 | CK139: 1.002442866 | CL139: 0.987023896 | CM139: 1.020334263 | CN139: 0.9780878672 | CO139: 0.9817567823 | CP139: 1.013180269 | CQ139: 0.9948367783 | CR139: 1.018438694 | CS139: 2518 | CT139: 2534 | CU139: 2585 | CV139: 2613 | CW139: 2708 | CX139: 0.967425 | CY139: 0.966958 | CZ139: 0.961147 | DA139: 0.97348 | DB139: 1.036591 | DC139: DREW | DD139: 0.0098 | DE139: 745.75 | DF139: ARKANSAS
A140: FAULKNER | B140: 4220 | C140: 8360 | D140: 25663077 | E140: 8082 | F140: 20010455 | G140: 1813 | H140: 4385830 | I140: 1595 | J140: 3768525 | K140: 8642 | L140: 26905948 | M140: 8361 | N140: 21855050 | O140: 1957 | P140: 4470087 | Q140: 1708 | R140: 4066060 | S140: 8884 | T140: 29622811 | U140: 8561 | V140: 24847445 | W140: 2121 | X140: 5267596 | Y140: 1872 | Z140: 5076183 | AA140: 9185 | AB140: 33318096 | AC140: 8840 | AD140: 26617958 | AE140: 2327 | AF140: 5531123 | AG140: 2060 | AH140: 5521040 | AI140: 9440 | AJ140: 33147333 | AK140: 9070 | AL140: 28445123 | AM140: 2503 | AN140: 5763108 | AO140: 2200 | AP140: 6240142 | AQ140: 246.15 | AR140: 204.77 | AS140: 450.92 | AT140: 30048907 | AU140: 23778980 | AV140: 10173 | AW140: 9677 | AX140: 246.69 | AY140: 214.53 | AZ140: 461.22 | BA140: 31376035 | BB140: 25921110 | BC140: 10599 | BD140: 10069 | BE140: 264.2 | BF140: 239.01 | BG140: 503.21 | BH140: 34890407 | BI140: 29923628 | BJ140: 11005 | BK140: 10433 | BL140: 281.22 | BM140: 245.71 | BN140: 526.93 | BO140: 38849219 | BP140: 32138998 | BQ140: 11512 | BR140: 10900 | BS140: 271.5 | BT140: 256.47 | BU140: 527.97 | BV140: 38910441 | BW140: 34685265 | BX140: 11943 | BY140: 11270 | BZ140: 9947 | CA140: 10361 | CB140: 10747 | CC140: 11235 | CD140: 11622 | CE140: 519.0879228 | CF140: 545.9862289 | CG140: 583.9473617 | CH140: 621.8060329 | CI140: 650.7697533 | CJ140: 0.8686775018 | CK140: 0.8447465807 | CL140: 0.8617386309 | CM140: 0.8474186034 | CN140: 0.8113007671 | CO140: 0.9272829514 | CP140: 0.9131801847 | CQ140: 0.9948367783 | CR140: 0.9179196071 | CS140: 9936 | CT140: 10198 | CU140: 10466 | CV140: 10673 | CW140: 11109 | CX140: 0.946515 | CY140: 0.92936 | CZ140: 0.928632 | DA140: 0.917298 | DB140: 0.916497 | DC140: FAULKNER | DD140: 0.0092 | DE140: 672.29 | DF140: ARKANSAS
A141: FRANKLIN | B141: 4230 | C141: 2449 | D141: 7158100 | E141: 2386 | F141: 5131689 | G141: 745 | H141: 1526048 | I141: 685 | J141: 1419071 | K141: 2482 | L141: 6103387 | M141: 2413 | N141: 5660638 | O141: 779 | P141: 1641910 | Q141: 716 | R141: 1751101 | S141: 2496 | T141: 7721440 | U141: 2428 | V141: 6019970 | W141: 796 | X141: 1897203 | Y141: 720 | Z141: 1857973 | AA141: 2531 | AB141: 8904831 | AC141: 2461 | AD141: 6629297 | AE141: 801 | AF141: 1499764 | AG141: 725 | AH141: 1657487 | AI141: 2455 | AJ141: 8541259 | AK141: 2370 | AL141: 6500965 | AM141: 773 | AN141: 1493219 | AO141: 686 | AP141: 1600165 | AQ141: 226.57 | AR141: 177.76 | AS141: 404.33 | AT141: 8684148 | AU141: 6550760 | AV141: 3194 | AW141: 3071 | AX141: 197.93 | AY141: 197.39 | AZ141: 395.32 | BA141: 7745297 | BB141: 7411739 | BC141: 3261 | BD141: 3129 | BE141: 243.49 | BF141: 208.54 | BG141: 452.03 | BH141: 9618643 | BI141: 7877943 | BJ141: 3292 | BK141: 3148 | BL141: 260.22 | BM141: 216.75 | BN141: 476.97 | BO141: 10404595 | BP141: 8286784 | BQ141: 3332 | BR141: 3186 | BS141: 259.05 | BT141: 220.91 | BU141: 479.96 | BV141: 10034478 | BW141: 8101130 | BX141: 3228 | BY141: 3056 | BZ141: 3138 | CA141: 3202 | CB141: 3227 | CC141: 3266 | CD141: 3146 | CE141: 519.0879228 | CF141: 545.9862289 | CG141: 583.9473617 | CH141: 621.8060329 | CI141: 650.7697533 | CJ141: 0.7789239207 | CK141: 0.7240475658 | CL141: 0.7740937448 | CM141: 0.7670720044 | CN141: 0.7375265946 | CO141: 0.9329980064 | CP141: 0.8106477837 | CQ141: 0.9948367783 | CR141: 0.814855061 | CS141: 3046 | CT141: 3074 | CU141: 3134 | CV141: 3177 | CW141: 3085 | CX141: 0.933094 | CY141: 0.92712 | CZ141: 0.926284 | DA141: 0.940641 | DB141: 0.93771 | DC141: FRANKLIN | DD141: 0.0053 | DE141: 597.62 | DF141: ARKANSAS
A142: FULTON | B142: 4240 | C142: 2261 | D142: 7725385 | E142: 2200 | F142: 4607700 | G142: 633 | H142: 1372066 | I142: 572 | J142: 930187 | K142: 2296 | L142: 7411294 | M142: 2230 | N142: 5121455 | O142: 666 | P142: 1217375 | Q142: 602 | R142: 1147124 | S142: 2296 | T142: 6731195 | U142: 2228 | V142: 5371061 | W142: 682 | X142: 1286980 | Y142: 618 | Z142: 1337854 | AA142: 2309 | AB142: 8214642 | AC142: 2240 | AD142: 6290352 | AE142: 719 | AF142: 1526154 | AG142: 654 | AH142: 1583487 | AI142: 2245 | AJ142: 7081597 | AK142: 2177 | AL142: 6501960 | AM142: 735 | AN142: 1295873 | AO142: 668 | AP142: 1752376 | AQ142: 261.96 | AR142: 166.48 | AS142: 428.44 | AT142: 9097451 | AU142: 5537887 | AV142: 2894 | AW142: 2772 | AX142: 242.76 | AY142: 184.46 | AZ142: 427.22 | BA142: 8628669 | BB142: 6268579 | BC142: 2962 | BD142: 2832 | BE142: 224.37 | BF142: 196.44 | BG142: 420.81 | BH142: 8018175 | BI142: 6708915 | BJ142: 2978 | BK142: 2846 | BL142: 268.08 | BM142: 226.73 | BN142: 494.81 | BO142: 9740796 | BP142: 7873839 | BQ142: 3028 | BR142: 2894 | BS142: 234.27 | BT142: 241.78 | BU142: 476.05 | BV142: 8377470 | BW142: 8254336 | BX142: 2980 | BY142: 2845 | BZ142: 2838 | CA142: 2904 | CB142: 2918 | CC142: 2967 | CD142: 2916 | CE142: 519.0879228 | CF142: 545.9862289 | CG142: 583.9473617 | CH142: 621.8060329 | CI142: 650.7697533 | CJ142: 0.8253707728 | CK142: 0.7824739478 | CL142: 0.7206300218 | CM142: 0.7957626234 | CN142: 0.7315183252 | CO142: 0.9577940815 | CP142: 0.8051324947 | CQ142: 0.9948367783 | CR142: 0.8093111476 | CS142: 2715 | CT142: 2777 | CU142: 2834 | CV142: 2868 | CW142: 2823 | CX142: 0.97405 | CY142: 0.966051 | CZ142: 0.955763 | DA142: 0.934192 | DB142: 0.960055 | DC142: FULTON | DD142: 0.0083 | DE142: 592.93 | DF142: ARKANSAS
A143: GARLAND | B143: 4250 | C143: 19954 | D143: 63484093 | E143: 19536 | F143: 48531754 | G143: 2669 | H143: 8270803 | I143: 2425 | J143: 6360697 | K143: 20029 | L143: 63661237 | M143: 19583 | N143: 52788909 | O143: 2866 | P143: 8941552 | Q143: 2629 | R143: 7249165 | S143: 20355 | T143: 66767708 | U143: 19859 | V143: 59178992 | W143: 3129 | X143: 9928721 | Y143: 2882 | Z143: 8543410 | AA143: 20721 | AB143: 71729907 | AC143: 20186 | AD143: 64328845 | AE143: 3368 | AF143: 11894140 | AG143: 3116 | AH143: 10345472 | AI143: 21113 | AJ143: 77389836 | AK143: 20518 | AL143: 68985485 | AM143: 3574 | AN143: 13852410 | AO143: 3273 | AP143: 11517754 | AQ143: 264.31 | AR143: 208.3 | AS143: 472.61 | AT143: 71754896 | AU143: 54892451 | AV143: 22623 | AW143: 21961 | AX143: 264.26 | AY143: 225.25 | AZ143: 489.51 | BA143: 72602789 | BB143: 60038074 | BC143: 22895 | BD143: 22212 | BE143: 272.16 | BF143: 248.17 | BG143: 520.33 | BH143: 76696429 | BI143: 67722402 | BJ143: 23484 | BK143: 22741 | BL143: 289.29 | BM143: 267.05 | BN143: 556.34 | BO143: 83624047 | BP143: 74674317 | BQ143: 24089 | BR143: 23302 | BS143: 308 | BT143: 281.98 | BU143: 589.98 | BV143: 91242246 | BW143: 80503239 | BX143: 24687 | BY143: 23791 | BZ143: 22321 | CA143: 22589 | CB143: 23149 | CC143: 23733 | CD143: 24260 | CE143: 519.0879228 | CF143: 545.9862289 | CG143: 583.9473617 | CH143: 621.8060329 | CI143: 650.7697533 | CJ143: 0.9104623307 | CK143: 0.8965610744 | CL143: 0.8910563419 | CM143: 0.8947163112 | CN143: 0.9065879246 | CO143: 0.9702722234 | CP143: 0.9274477562 | CQ143: 0.9948367783 | CR143: 0.9322612276 | CS143: 21784 | CT143: 22165 | CU143: 22696 | CV143: 22941 | CW143: 23623 | CX143: 0.980854 | CY143: 0.961219 | CZ143: 0.973097 | DA143: 0.964835 | DB143: 0.971575 | DC143: GARLAND | DD143: 0.0052 | DE143: 683.75 | DF143: ARKANSAS
A144: GRANT | B144: 4260 | C144: 1899 | D144: 6794683 | E144: 1823 | F144: 4833864 | G144: 424 | H144: 1038721 | I144: 371 | J144: 760542 | K144: 1943 | L144: 7512937 | M144: 1869 | N144: 5398514 | O144: 435 | P144: 1112977 | Q144: 384 | R144: 1011472 | S144: 1990 | T144: 8712176 | U144: 1916 | V144: 5931835 | W144: 447 | X144: 1015949 | Y144: 394 | Z144: 1066921 | AA144: 2032 | AB144: 7990692 | AC144: 1957 | AD144: 6409215 | AE144: 469 | AF144: 1113900 | AG144: 419 | AH144: 1129379 | AI144: 2070 | AJ144: 8292582 | AK144: 1997 | AL144: 6617597 | AM144: 505 | AN144: 1550936 | AO144: 449 | AP144: 1439676 | AQ144: 281.01 | AR144: 212.49 | AS144: 493.5 | AT144: 7833404 | AU144: 5594406 | AV144: 2323 | AW144: 2194 | AX144: 302.28 | AY144: 237.09 | AZ144: 539.37 | BA144: 8625914 | BB144: 6409986 | BC144: 2378 | BD144: 2253 | BE144: 332.65 | BF144: 252.48 | BG144: 585.13 | BH144: 9728125 | BI144: 6998756 | BJ144: 2437 | BK144: 2310 | BL144: 303.37 | BM144: 264.4 | BN144: 567.77 | BO144: 9104592 | BP144: 7538594 | BQ144: 2501 | BR144: 2376 | BS144: 318.56 | BT144: 274.51 | BU144: 593.07 | BV144: 9843518 | BW144: 8057273 | BX144: 2575 | BY144: 2446 | BZ144: 2264 | CA144: 2322 | CB144: 2380 | CC144: 2444 | CD144: 2514 | CE144: 519.0879228 | CF144: 545.9862289 | CG144: 583.9473617 | CH144: 621.8060329 | CI144: 650.7697533 | CJ144: 0.9507059948 | CK144: 0.987882059 | CL144: 1.002025248 | CM144: 0.9130982492 | CN144: 0.9113361477 | CO144: 0.9608868847 | CP144: 0.991802006 | CQ144: 0.9948367783 | CR144: 0.9969494772 | CS144: 2209 | CT144: 2253 | CU144: 2306 | CV144: 2326 | CW144: 2415 | CX144: 0.954651 | CY144: 0.96088 | CZ144: 0.948065 | DA144: 0.973767 | DB144: 0.966435 | DC144: GRANT | DD144: 0.015 | DE144: 728.68 | DF144: ARKANSAS
A145: GREENE | B145: 4270 | C145: 5051 | D145: 16324105 | E145: 4946 | F145: 10716444 | G145: 1260 | H145: 3737587 | I145: 1137 | J145: 2605643 | K145: 5104 | L145: 17737980 | M145: 4995 | N145: 12082015 | O145: 1361 | P145: 3757510 | Q145: 1219 | R145: 3106552 | S145: 5165 | T145: 19764100 | U145: 5050 | V145: 13438712 | W145: 1480 | X145: 4727585 | Y145: 1343 | Z145: 3824908 | AA145: 5268 | AB145: 20700787 | AC145: 5149 | AD145: 14539316 | AE145: 1587 | AF145: 4838620 | AG145: 1447 | AH145: 4305864 | AI145: 5109 | AJ145: 22418852 | AK145: 4972 | AL145: 14572301 | AM145: 1643 | AN145: 4499576 | AO145: 1494 | AP145: 4395622 | AQ145: 264.9 | AR145: 182.5 | AS145: 447.4 | AT145: 20061692 | AU145: 13322087 | AV145: 6311 | AW145: 6083 | AX145: 277.08 | AY145: 203.69 | AZ145: 480.77 | BA145: 21495490 | BB145: 15188567 | BC145: 6465 | BD145: 6214 | BE145: 307.14 | BF145: 225.03 | BG145: 532.17 | BH145: 24491685 | BI145: 17263620 | BJ145: 6645 | BK145: 6393 | BL145: 310.47 | BM145: 238.09 | BN145: 548.56 | BO145: 25539407 | BP145: 18845180 | BQ145: 6855 | BR145: 6596 | BS145: 332.23 | BT145: 244.46 | BU145: 576.69 | BV145: 26918428 | BW145: 18967923 | BX145: 6752 | BY145: 6466 | BZ145: 6207 | CA145: 6353 | CB145: 6531 | CC145: 6738 | CD145: 6616 | CE145: 519.0879228 | CF145: 545.9862289 | CG145: 583.9473617 | CH145: 621.8060329 | CI145: 650.7697533 | CJ145: 0.861896377 | CK145: 0.8805533446 | CL145: 0.911332142 | CM145: 0.8822043708 | CN145: 0.8861659552 | CO145: 0.9462534222 | CP145: 0.9346655106 | CQ145: 0.9948367783 | CR145: 0.9395164423 | CS145: 6168 | CT145: 6282 | CU145: 6420 | CV145: 6508 | CW145: 6331 | CX145: 0.927992 | CY145: 0.937563 | CZ145: 0.939454 | DA145: 0.943187 | DB145: 0.982715 | DC145: GREENE | DD145: 0.0073 | DE145: 688.56 | DF145: ARKANSAS
A146: HEMPSTEAD | B146: 4280 | C146: 2865 | D146: 9696507 | E146: 2772 | F146: 6187450 | G146: 614 | H146: 2008401 | I146: 587 | J146: 1188202 | K146: 2819 | L146: 10856124 | M146: 2719 | N146: 6958279 | O146: 642 | P146: 1547074 | Q146: 614 | R146: 1326979 | S146: 2797 | T146: 11025736 | U146: 2685 | V146: 6910621 | W146: 667 | X146: 2046497 | Y146: 635 | Z146: 1450237 | AA146: 2798 | AB146: 11049307 | AC146: 2693 | AD146: 7411491 | AE146: 696 | AF146: 1799440 | AG146: 657 | AH146: 1643479 | AI146: 2803 | AJ146: 13211637 | AK146: 2696 | AL146: 8000343 | AM146: 712 | AN146: 2588451 | AO146: 663 | AP146: 1776992 | AQ146: 280.37 | AR146: 182.98 | AS146: 463.35 | AT146: 11704908 | AU146: 7375652 | AV146: 3479 | AW146: 3359 | AX146: 298.64 | AY146: 207.15 | AZ146: 505.79 | BA146: 12403198 | BB146: 8285258 | BC146: 3461 | BD146: 3333 | BE146: 314.48 | BF146: 209.86 | BG146: 524.34 | BH146: 13072233 | BI146: 8360858 | BJ146: 3464 | BK146: 3320 | BL146: 306.45 | BM146: 225.25 | BN146: 531.7 | BO146: 12848747 | BP146: 9054970 | BQ146: 3494 | BR146: 3350 | BS146: 374.59 | BT146: 242.57 | BU146: 617.16 | BV146: 15800088 | BW146: 9777335 | BX146: 3515 | BY146: 3359 | BZ146: 3424 | CA146: 3404 | CB146: 3399 | CC146: 3429 | CD146: 3441 | CE146: 519.0879228 | CF146: 545.9862289 | CG146: 583.9473617 | CH146: 621.8060329 | CI146: 650.7697533 | CJ146: 0.8926233489 | CK146: 0.9263786763 | CL146: 0.8979233992 | CM146: 0.8550898059 | CN146: 0.9483538485 | CO146: 0.9544662181 | CP146: 0.9472035769 | CQ146: 0.9948367783 | CR146: 0.9521195814 | CS146: 3300 | CT146: 3295 | CU146: 3298 | CV146: 3337 | CW146: 3327 | CX146: 0.936417 | CY146: 0.949363 | CZ146: 0.944684 | DA146: 0.970523 | DB146: 0.971015 | DC146: HEMPSTEAD | DD146: 0.0078 | DE146: 697.68 | DF146: ARKANSAS
A147: HOT SPRING | B147: 4290 | C147: 4299 | D147: 15311288 | E147: 4201 | F147: 10703818 | G147: 929 | H147: 2250072 | I147: 841 | J147: 1762604 | K147: 4336 | L147: 17407722 | M147: 4235 | N147: 11331829 | O147: 993 | P147: 2525419 | Q147: 908 | R147: 2093932 | S147: 4344 | T147: 18278972 | U147: 4243 | V147: 12682830 | W147: 1073 | X147: 3003560 | Y147: 978 | Z147: 2370277 | AA147: 4347 | AB147: 19894123 | AC147: 4239 | AD147: 13334262 | AE147: 1158 | AF147: 3486429 | AG147: 1060 | AH147: 2629391 | AI147: 4384 | AJ147: 18699387 | AK147: 4258 | AL147: 14265215 | AM147: 1225 | AN147: 3706323 | AO147: 1112 | AP147: 3356563 | AQ147: 279.92 | AR147: 206.04 | AS147: 485.96 | AT147: 17561360 | AU147: 12466422 | AV147: 5228 | AW147: 5042 | AX147: 311.71 | AY147: 217.54 | AZ147: 529.25 | BA147: 19933141 | BB147: 13425761 | BC147: 5329 | BD147: 5143 | BE147: 327.4 | BF147: 240.27 | BG147: 567.67 | BH147: 21282532 | BI147: 15053107 | BJ147: 5417 | BK147: 5221 | BL147: 353.93 | BM147: 251.05 | BN147: 604.98 | BO147: 23380552 | BP147: 15963653 | BQ147: 5505 | BR147: 5299 | BS147: 332.88 | BT147: 273.46 | BU147: 606.34 | BV147: 22405710 | BW147: 17621778 | BX147: 5609 | BY147: 5370 | BZ147: 5143 | CA147: 5246 | CB147: 5329 | CC147: 5412 | CD147: 5495 | CE147: 519.0879228 | CF147: 545.9862289 | CG147: 583.9473617 | CH147: 621.8060329 | CI147: 650.7697533 | CJ147: 0.9361805172 | CK147: 0.969346793 | CL147: 0.9721252928 | CM147: 0.9729400617 | CN147: 0.9317273843 | CO147: 0.9764460674 | CP147: 0.9795359331 | CQ147: 0.9948367783 | CR147: 0.9846197431 | CS147: 5020 | CT147: 5110 | CU147: 5222 | CV147: 5272 | CW147: 5340 | CX147: 0.99724 | CY147: 0.9592 | CZ147: 0.971353 | DA147: 0.980289 | DB147: 0.974588 | DC147: HOT | DD147: 0.0044 | DE147: 722.35 | DF147: ARKANSAS
A148: HOWARD | B148: 4300 | C148: 2178 | D148: 8015205 | E148: 2127 | F148: 5330729 | G148: 450 | H148: 742140 | I148: 422 | J148: 791867 | K148: 2180 | L148: 7943080 | M148: 2122 | N148: 5814581 | O148: 461 | P148: 929637 | Q148: 431 | R148: 989171 | S148: 2159 | T148: 7976711 | U148: 2107 | V148: 5959083 | W148: 466 | X148: 942755 | Y148: 430 | Z148: 1121841 | AA148: 2120 | AB148: 8766728 | AC148: 2066 | AD148: 6443663 | AE148: 495 | AF148: 1212985 | AG148: 459 | AH148: 1135423 | AI148: 2129 | AJ148: 8703915 | AK148: 2063 | AL148: 6363720 | AM148: 524 | AN148: 895475 | AO148: 488 | AP148: 1305237 | AQ148: 277.69 | AR148: 200.16 | AS148: 477.85 | AT148: 8757345 | AU148: 6122596 | AV148: 2628 | AW148: 2549 | AX148: 279.97 | AY148: 222.08 | AZ148: 502.05 | BA148: 8872717 | BB148: 6803752 | BC148: 2641 | BD148: 2553 | BE148: 283.16 | BF148: 232.59 | BG148: 515.75 | BH148: 8919466 | BI148: 7080924 | BJ148: 2625 | BK148: 2537 | BL148: 318.03 | BM148: 250.13 | BN148: 568.16 | BO148: 9979713 | BP148: 7579086 | BQ148: 2615 | BR148: 2525 | BS148: 301.53 | BT148: 250.52 | BU148: 552.05 | BV148: 9599390 | BW148: 7668957 | BX148: 2653 | BY148: 2551 | BZ148: 2592 | CA148: 2602 | CB148: 2585 | CC148: 2574 | CD148: 2604 | CE148: 519.0879228 | CF148: 545.9862289 | CG148: 583.9473617 | CH148: 621.8060329 | CI148: 650.7697533 | CJ148: 0.9205569597 | CK148: 0.9195286866 | CL148: 0.8832131692 | CM148: 0.9137254545 | CN148: 0.8483031014 | CO148: 0.9768278111 | CP148: 0.9183455509 | CQ148: 0.9948367783 | CR148: 0.9231117817 | CS148: 2520 | CT148: 2525 | CU148: 2529 | CV148: 2503 | CW148: 2519 | CX148: 1.008779 | CY148: 1.002093 | CZ148: 0.985129 | DA148: 0.955064 | DB148: 0.93283 | DC148: HOWARD | DD148: 0.006 | DE148: 676.85 | DF148: ARKANSAS
A149: INDEPENDENCE | B149: 4310 | C149: 4876 | D149: 18163361 | E149: 4758 | F149: 11329028 | G149: 1331 | H149: 3555152 | I149: 1227 | J149: 2608849 | K149: 4881 | L149: 18832800 | M149: 4765 | N149: 12179589 | O149: 1382 | P149: 3670403 | Q149: 1271 | R149: 2968977 | S149: 4987 | T149: 19160698 | U149: 4855 | V149: 13306693 | W149: 1434 | X149: 4358325 | Y149: 1322 | Z149: 3664128 | AA149: 5101 | AB149: 20023358 | AC149: 4950 | AD149: 15241576 | AE149: 1524 | AF149: 4257469 | AG149: 1400 | AH149: 4108750 | AI149: 5129 | AJ149: 21823217 | AK149: 4961 | AL149: 16766883 | AM149: 1571 | AN149: 5222472 | AO149: 1443 | AP149: 4698218 | AQ149: 291.59 | AR149: 194.07 | AS149: 485.66 | AT149: 21718513 | AU149: 13937877 | AV149: 6207 | AW149: 5985 | AX149: 299.42 | AY149: 209.14 | AZ149: 508.56 | BA149: 22503203 | BB149: 15148566 | BC149: 6263 | BD149: 6036 | BE149: 305.24 | BF149: 228.95 | BG149: 534.19 | BH149: 23519023 | BI149: 16970821 | BJ149: 6421 | BK149: 6177 | BL149: 305.42 | BM149: 253.94 | BN149: 559.36 | BO149: 24280827 | BP149: 19350326 | BQ149: 6625 | BR149: 6350 | BS149: 336.39 | BT149: 279.32 | BU149: 615.71 | BV149: 27045689 | BW149: 21465101 | BX149: 6700 | BY149: 6404 | BZ149: 6106 | CA149: 6161 | CB149: 6311 | CC149: 6501 | CD149: 6559 | CE149: 519.0879228 | CF149: 545.9862289 | CG149: 583.9473617 | CH149: 621.8060329 | CI149: 650.7697533 | CJ149: 0.9356025804 | CK149: 0.9314520643 | CL149: 0.914791358 | CM149: 0.8995731312 | CN149: 0.9461257179 | CO149: 0.9667845095 | CP149: 0.957306371 | CQ149: 0.9948367783 | CR149: 0.9622748092 | CS149: 5980 | CT149: 6043 | CU149: 6166 | CV149: 6267 | CW149: 6389 | CX149: 0.947021 | CY149: 0.971066 | CZ149: 0.971023 | DA149: 0.964681 | DB149: 0.979206 | DC149: INDEPENDENCE | DD149: 0.0113 | DE149: 704.25 | DF149: ARKANSAS
A150: IZARD | B150: 4320 | C150: 2627 | D150: 7932670 | E150: 2556 | F150: 5444025 | G150: 631 | H150: 1130884 | I150: 585 | J150: 1149602 | K150: 2673 | L150: 8070197 | M150: 2599 | N150: 5852909 | O150: 641 | P150: 1608914 | Q150: 593 | R150: 1428832 | S150: 2641 | T150: 9701915 | U150: 2566 | V150: 6876033 | W150: 659 | X150: 1601961 | Y150: 622 | Z150: 1699565 | AA150: 2654 | AB150: 8975446 | AC150: 2576 | AD150: 7719525 | AE150: 692 | AF150: 1625090 | AG150: 652 | AH150: 1925429 | AI150: 2540 | AJ150: 8802658 | AK150: 2458 | AL150: 8026775 | AM150: 686 | AN150: 1272311 | AO150: 641 | AP150: 2134518 | AQ150: 231.83 | AR150: 174.93 | AS150: 406.76 | AT150: 9063554 | AU150: 6593627 | AV150: 3258 | AW150: 3141 | AX150: 243.39 | AY150: 190.1 | AZ150: 433.49 | BA150: 9679111 | BB150: 7281741 | BC150: 3314 | BD150: 3192 | BE150: 285.45 | BF150: 224.16 | BG150: 509.61 | BH150: 11303876 | BI150: 8575598 | BJ150: 3300 | BK150: 3188 | BL150: 264.01 | BM150: 248.99 | BN150: 513 | BO150: 10600536 | BP150: 9644954 | BQ150: 3346 | BR150: 3228 | BS150: 260.25 | BT150: 273.24 | BU150: 533.49 | BV150: 10074969 | BW150: 10161293 | BX150: 3226 | BY150: 3099 | BZ150: 3205 | CA150: 3259 | CB150: 3249 | CC150: 3293 | CD150: 3165 | CE150: 519.0879228 | CF150: 545.9862289 | CG150: 583.9473617 | CH150: 621.8060329 | CI150: 650.7697533 | CJ150: 0.7836052086 | CK150: 0.7939577539 | CL150: 0.8726985229 | CM150: 0.825016119 | CN150: 0.8197830298 | CO150: 0.9191891614 | CP150: 0.8910158662 | CQ150: 0.9948367783 | CR150: 0.8956402554 | CS150: 3067 | CT150: 3151 | CU150: 3189 | CV150: 3206 | CW150: 3061 | CX150: 0.916015 | CY150: 0.897189 | CZ150: 0.921121 | DA150: 0.919529 | DB150: 0.942648 | DC150: IZARD | DD150: 0.0085 | DE150: 656.13 | DF150: ARKANSAS
A151: JACKSON | B151: 4330 | C151: 3543 | D151: 17788863 | E151: 3441 | F151: 9477992 | G151: 882 | H151: 3668442 | I151: 829 | J151: 2243264 | K151: 3456 | L151: 18328733 | M151: 3356 | N151: 9929599 | O151: 871 | P151: 4115551 | Q151: 821 | R151: 2389729 | S151: 3369 | T151: 18189119 | U151: 3272 | V151: 10661689 | W151: 881 | X151: 4083540 | Y151: 828 | Z151: 2650768 | AA151: 3292 | AB151: 19614420 | AC151: 3197 | AD151: 10901670 | AE151: 900 | AF151: 3700212 | AG151: 846 | AH151: 2947258 | AI151: 3171 | AJ151: 17727107 | AK151: 3067 | AL151: 10639614 | AM151: 894 | AN151: 3587535 | AO151: 838 | AP151: 2909318 | AQ151: 404.09 | AR151: 228.75 | AS151: 632.84 | AT151: 21457305 | AU151: 11721256 | AV151: 4425 | AW151: 4270 | AX151: 432.25 | AY151: 245.78 | AZ151: 678.03 | BA151: 22444284 | BB151: 12319328 | BC151: 4327 | BD151: 4177 | BE151: 436.72 | BF151: 270.58 | BG151: 707.3 | BH151: 22272659 | BI151: 13312457 | BJ151: 4250 | BK151: 4100 | BL151: 463.47 | BM151: 285.45 | BN151: 748.92 | BO151: 23314632 | BP151: 13848928 | BQ151: 4192 | BR151: 4043 | BS151: 436.95 | BT151: 289.14 | BU151: 726.09 | BV151: 21314642 | BW151: 13548932 | BX151: 4065 | BY151: 3905 | BZ151: 4354 | CA151: 4260 | CB151: 4182 | CC151: 4125 | CD151: 3989 | CE151: 519.0879228 | CF151: 545.9862289 | CG151: 583.9473617 | CH151: 621.8060329 | CI151: 650.7697533 | CJ151: 1.219138362 | CK151: 1.241844508 | CL151: 1.211239311 | CM151: 1.204427041 | CN151: 1.115740239 | CO151: 1.090021493 | CP151: 1.099499321 | CQ151: 0.9948367783 | CR151: 1.105205744 | CS151: 4037 | CT151: 4026 | CU151: 4072 | CV151: 4082 | CW151: 3910 | CX151: 1.100993 | CY151: 1.09732 | CZ151: 1.110707 | DA151: 1.06721 | DB151: 1.073451 | DC151: JACKSON | DD151: 0.0087 | DE151: 809.6 | DF151: ARKANSAS
A152: JEFFERSON | B152: 4340 | C152: 10052 | D152: 27477621 | E152: 9615 | F152: 22823863 | G152: 2439 | H152: 5512504 | I152: 2212 | J152: 4957017 | K152: 10002 | L152: 31051758 | M152: 9576 | N152: 23574709 | O152: 2517 | P152: 6611161 | Q152: 2296 | R152: 5749895 | S152: 9872 | T152: 35728346 | U152: 9428 | V152: 26071711 | W152: 2670 | X152: 7219729 | Y152: 2428 | Z152: 6258052 | AA152: 9777 | AB152: 35518387 | AC152: 9334 | AD152: 26822224 | AE152: 2811 | AF152: 7757723 | AG152: 2540 | AH152: 6580273 | AI152: 9151 | AJ152: 35159225 | AK152: 8672 | AL152: 25537096 | AM152: 2826 | AN152: 7444094 | AO152: 2539 | AP152: 6996193 | AQ152: 220.09 | AR152: 195.74 | AS152: 415.83 | AT152: 32990125 | AU152: 27780880 | AV152: 12491 | AW152: 11827 | AX152: 250.71 | AY152: 205.84 | AZ152: 456.55 | BA152: 37662919 | BB152: 29324604 | BC152: 12519 | BD152: 11872 | BE152: 285.36 | BF152: 227.24 | BG152: 512.6 | BH152: 42948075 | BI152: 32329763 | BJ152: 12542 | BK152: 11856 | BL152: 286.49 | BM152: 234.42 | BN152: 520.91 | BO152: 43276110 | BP152: 33402497 | BQ152: 12588 | BR152: 11874 | BS152: 296.42 | BT152: 241.83 | BU152: 538.25 | BV152: 42603319 | BW152: 32533289 | BX152: 11977 | BY152: 11211 | BZ152: 12188 | CA152: 12229 | CB152: 12232 | CC152: 12265 | CD152: 11612 | CE152: 519.0879228 | CF152: 545.9862289 | CG152: 583.9473617 | CH152: 621.8060329 | CI152: 650.7697533 | CJ152: 0.8010781637 | CK152: 0.8361932514 | CL152: 0.8778188474 | CM152: 0.8377371277 | CN152: 0.8270974447 | CO152: 0.9735223341 | CP152: 0.858721919 | CQ152: 0.9948367783 | CR152: 0.863178702 | CS152: 11551 | CT152: 11693 | CU152: 11807 | CV152: 11867 | CW152: 11097 | CX152: 0.962273 | CY152: 0.98325 | CZ152: 0.969337 | DA152: 0.974938 | DB152: 0.977921 | DC152: JEFFERSON | DD152: 0.0136 | DE152: 631.22 | DF152: ARKANSAS
A153: JOHNSON | B153: 4350 | C153: 3075 | D153: 9507681 | E153: 2964 | F153: 6347811 | G153: 823 | H153: 1803955 | I153: 735 | J153: 1606136 | K153: 3072 | L153: 10428451 | M153: 2967 | N153: 7211482 | O153: 839 | P153: 1570311 | Q153: 750 | R153: 1792112 | S153: 3075 | T153: 10355774 | U153: 2965 | V153: 7513421 | W153: 904 | X153: 1897146 | Y153: 816 | Z153: 1905874 | AA153: 3146 | AB153: 11020859 | AC153: 3031 | AD153: 7673131 | AE153: 986 | AF153: 2524978 | AG153: 893 | AH153: 2258439 | AI153: 3050 | AJ153: 11168162 | AK153: 2925 | AL153: 7521125 | AM153: 994 | AN153: 2495340 | AO153: 889 | AP153: 2567575 | AQ153: 241.83 | AR153: 179.19 | AS153: 421.02 | AT153: 11311636 | AU153: 7953947 | AV153: 3898 | AW153: 3699 | AX153: 255.66 | AY153: 201.86 | AZ153: 457.52 | BA153: 11998762 | BB153: 9003594 | BC153: 3911 | BD153: 3717 | BE153: 256.62 | BF153: 207.6 | BG153: 464.22 | BH153: 12252920 | BI153: 9419295 | BJ153: 3979 | BK153: 3781 | BL153: 273.19 | BM153: 210.92 | BN153: 484.11 | BO153: 13545837 | BP153: 9931570 | BQ153: 4132 | BR153: 3924 | BS153: 281.56 | BT153: 220.43 | BU153: 501.99 | BV153: 13663502 | BW153: 10088700 | BX153: 4044 | BY153: 3814 | BZ153: 3807 | CA153: 3824 | CB153: 3890 | CC153: 4038 | CD153: 3934 | CE153: 519.0879228 | CF153: 545.9862289 | CG153: 583.9473617 | CH153: 621.8060329 | CI153: 650.7697533 | CJ153: 0.8110764699 | CK153: 0.837969853 | CL153: 0.794968914 | CM153: 0.7785546849 | CN153: 0.7713788133 | CO153: 0.9523571637 | CP153: 0.8387501848 | CQ153: 0.9948367783 | CR153: 0.8431033141 | CS153: 3704 | CT153: 3744 | CU153: 3799 | CV153: 3872 | CW153: 3775 | CX153: 0.950039 | CY153: 0.954913 | CZ153: 0.958056 | DA153: 0.949632 | DB153: 0.949157 | DC153: JOHNSON | DD153: 0.0064 | DE153: 618.1 | DF153: ARKANSAS
A154: LAFAYETTE | B154: 4360 | C154: 1233 | D154: 5183631 | E154: 1192 | F154: 3186840 | G154: 322 | H154: 839509 | I154: 304 | J154: 615907 | K154: 1230 | L154: 5400857 | M154: 1187 | N154: 3209892 | O154: 320 | P154: 767799 | Q154: 300 | R154: 617135 | S154: 1200 | T154: 5112007 | U154: 1156 | V154: 3327139 | W154: 323 | X154: 838692 | Y154: 305 | Z154: 594320 | AA154: 1195 | AB154: 5434401 | AC154: 1154 | AD154: 3567961 | AE154: 345 | AF154: 1189113 | AG154: 322 | AH154: 844175 | AI154: 1189 | AJ154: 5987896 | AK154: 1146 | AL154: 3648072 | AM154: 346 | AN154: 1275217 | AO154: 323 | AP154: 874942 | AQ154: 322.78 | AR154: 211.83 | AS154: 534.61 | AT154: 6023140 | AU154: 3802747 | AV154: 1555 | AW154: 1496 | AX154: 331.65 | AY154: 214.47 | AZ154: 546.12 | BA154: 6168656 | BB154: 3827027 | BC154: 1550 | BD154: 1487 | BE154: 325.6 | BF154: 223.67 | BG154: 549.27 | BH154: 5950699 | BI154: 3921459 | BJ154: 1523 | BK154: 1461 | BL154: 358.42 | BM154: 249.1 | BN154: 607.52 | BO154: 6623514 | BP154: 4412136 | BQ154: 1540 | BR154: 1476 | BS154: 394.31 | BT154: 256.58 | BU154: 650.89 | BV154: 7263113 | BW154: 4523014 | BX154: 1535 | BY154: 1469 | BZ154: 1528 | CA154: 1522 | CB154: 1495 | CC154: 1511 | CD154: 1504 | CE154: 519.0879228 | CF154: 545.9862289 | CG154: 583.9473617 | CH154: 621.8060329 | CI154: 650.7697533 | CJ154: 1.029902597 | CK154: 1.000245008 | CL154: 0.9406156034 | CM154: 0.9770249368 | CN154: 1.000184776 | CO154: 1.018333551 | CP154: 0.9717784352 | CQ154: 0.9948367783 | CR154: 0.9768219837 | CS154: 1451 | CT154: 1464 | CU154: 1459 | CV154: 1465 | CW154: 1479 | CX154: 1.040339 | CY154: 1.020944 | CZ154: 1.009271 | DA154: 0.999077 | DB154: 1.022175 | DC154: LAFAYETTE | DD154: 0.0083 | DE154: 715.65 | DF154: ARKANSAS
A155: LAWRENCE | B155: 4370 | C155: 3250 | D155: 10073814 | E155: 3177 | F155: 8257051 | G155: 809 | H155: 2119020 | I155: 751 | J155: 1864944 | K155: 3236 | L155: 10573044 | M155: 3165 | N155: 8606489 | O155: 832 | P155: 1850229 | Q155: 770 | R155: 2047325 | S155: 3196 | T155: 12231375 | U155: 3119 | V155: 9702458 | W155: 884 | X155: 2181710 | Y155: 822 | Z155: 2326749 | AA155: 3199 | AB155: 11113623 | AC155: 3133 | AD155: 9730287 | AE155: 931 | AF155: 2456206 | AG155: 865 | AH155: 2444040 | AI155: 3140 | AJ155: 11902852 | AK155: 3060 | AL155: 10091807 | AM155: 955 | AN155: 2318259 | AO155: 886 | AP155: 2710899 | AQ155: 250.33 | AR155: 214.74 | AS155: 465.07 | AT155: 12192834 | AU155: 10121995 | AV155: 4059 | AW155: 3928 | AX155: 254.49 | AY155: 225.62 | AZ155: 480.11 | BA155: 12423273 | BB155: 10653814 | BC155: 4068 | BD155: 3935 | BE155: 294.38 | BF155: 254.36 | BG155: 548.74 | BH155: 14413085 | BI155: 12029207 | BJ155: 4080 | BK155: 3941 | BL155: 273.81 | BM155: 253.76 | BN155: 527.57 | BO155: 13569829 | BP155: 12174327 | BQ155: 4130 | BR155: 3998 | BS155: 289.4 | BT155: 270.37 | BU155: 559.77 | BV155: 14221111 | BW155: 12802706 | BX155: 4095 | BY155: 3946 | BZ155: 3999 | CA155: 4008 | CB155: 4017 | CC155: 4070 | CD155: 4024 | CE155: 519.0879228 | CF155: 545.9862289 | CG155: 583.9473617 | CH155: 621.8060329 | CI155: 650.7697533 | CJ155: 0.8959368531 | CK155: 0.8793445229 | CL155: 0.9397079873 | CM155: 0.8484478633 | CN155: 0.8601659761 | CO155: 0.9379655174 | CP155: 0.9432336521 | CQ155: 0.9948367783 | CR155: 0.9481290526 | CS155: 3850 | CT155: 3882 | CU155: 3927 | CV155: 3978 | CW155: 3913 | CX155: 0.948817 | CY155: 0.946208 | CZ155: 0.933817 | DA155: 0.937089 | DB155: 0.924166 | DC155: LAWRENCE | DD155: 0.0076 | DE155: 694.8 | DF155: ARKANSAS
A156: LEE | B156: 4380 | C156: 1478 | D156: 4185858 | E156: 1432 | F156: 3194167 | G156: 362 | H156: 846006 | I156: 344 | J156: 600279 | K156: 1459 | L156: 4612201 | M156: 1413 | N156: 3216765 | O156: 370 | P156: 689588 | Q156: 350 | R156: 561789 | S156: 1432 | T156: 4787956 | U156: 1381 | V156: 3400644 | W156: 380 | X156: 995437 | Y156: 360 | Z156: 884189 | AA156: 1421 | AB156: 4837113 | AC156: 1366 | AD156: 3659959 | AE156: 393 | AF156: 1347043 | AG156: 366 | AH156: 999182 | AI156: 1242 | AJ156: 4425647 | AK156: 1177 | AL156: 3391417 | AM156: 375 | AN156: 956083 | AO156: 352 | AP156: 797259 | AQ156: 227.89 | AR156: 178.04 | AS156: 405.93 | AT156: 5031864 | AU156: 3794446 | AV156: 1840 | AW156: 1776 | AX156: 241.56 | AY156: 178.6 | AZ156: 420.16 | BA156: 5301789 | BB156: 3778554 | BC156: 1829 | BD156: 1763 | BE156: 265.98 | BF156: 205.09 | BG156: 471.07 | BH156: 5783393 | BI156: 4284833 | BJ156: 1812 | BK156: 1741 | BL156: 284.09 | BM156: 224.17 | BN156: 508.26 | BO156: 6184156 | BP156: 4659141 | BQ156: 1814 | BR156: 1732 | BS156: 277.35 | BT156: 228.29 | BU156: 505.64 | BV156: 5381730 | BW156: 4188676 | BX156: 1617 | BY156: 1529 | BZ156: 1811 | CA156: 1799 | CB156: 1780 | CC156: 1777 | CD156: 1575 | CE156: 519.0879228 | CF156: 545.9862289 | CG156: 583.9473617 | CH156: 621.8060329 | CI156: 650.7697533 | CJ156: 0.7820062502 | CK156: 0.7695432188 | CL156: 0.8066994234 | CM156: 0.817393163 | CN156: 0.7769875558 | CO156: 0.9570716904 | CP156: 0.82598402 | CQ156: 0.9948367783 | CR156: 0.8302708927 | CS156: 1709 | CT156: 1730 | CU156: 1719 | CV156: 1733 | CW156: 1504 | CX156: 0.948671 | CY156: 0.931332 | CZ156: 0.965806 | DA156: 0.950108 | DB156: 0.994266 | DC156: LEE | DD156: 0.0284 | DE156: 603.99 | DF156: ARKANSAS
A157: LINCOLN | B157: 4390 | C157: 1444 | D157: 4026633 | E157: 1367 | F157: 3288900 | G157: 365 | H157: 911719 | I157: 326 | J157: 847815 | K157: 1437 | L157: 4740264 | M157: 1363 | N157: 3452425 | O157: 367 | P157: 1037403 | Q157: 328 | R157: 818601 | S157: 1445 | T157: 6483832 | U157: 1369 | V157: 4188376 | W157: 386 | X157: 1031131 | Y157: 349 | Z157: 950936 | AA157: 1444 | AB157: 5390505 | AC157: 1374 | AD157: 4152210 | AE157: 392 | AF157: 980740 | AG157: 359 | AH157: 1032584 | AI157: 1426 | AJ157: 5103342 | AK157: 1346 | AL157: 4133290 | AM157: 398 | AN157: 1443125 | AO157: 369 | AP157: 1069492 | AQ157: 227.49 | AR157: 203.62 | AS157: 431.11 | AT157: 4938352 | AU157: 4136715 | AV157: 1809 | AW157: 1693 | AX157: 266.89 | AY157: 210.48 | AZ157: 477.37 | BA157: 5777667 | BB157: 4271026 | BC157: 1804 | BD157: 1691 | BE157: 342.02 | BF157: 249.29 | BG157: 591.31 | BH157: 7514963 | BI157: 5139312 | BJ157: 1831 | BK157: 1718 | BL157: 289.18 | BM157: 249.32 | BN157: 538.5 | BO157: 6371245 | BP157: 5184794 | BQ157: 1836 | BR157: 1733 | BS157: 299.09 | BT157: 252.81 | BU157: 551.9 | BV157: 6546467 | BW157: 5202782 | BX157: 1824 | BY157: 1715 | BZ157: 1756 | CA157: 1753 | CB157: 1780 | CC157: 1789 | CD157: 1772 | CE157: 519.0879228 | CF157: 545.9862289 | CG157: 583.9473617 | CH157: 621.8060329 | CI157: 650.7697533 | CJ157: 0.8305144101 | CK157: 0.8743260813 | CL157: 1.012608394 | CM157: 0.8660256921 | CN157: 0.8480726051 | CO157: 1.023270842 | CP157: 0.8661533194 | CQ157: 0.9948367783 | CR157: 0.8706486715 | CS157: 1690 | CT157: 1708 | CU157: 1728 | CV157: 1723 | CW157: 1689 | CX157: 0.999727 | CY157: 1.034236 | CZ157: 1.023452 | DA157: 1.022457 | DB157: 1.036385 | DC157: LINCOLN | DD157: 0.01 | DE157: 637.49 | DF157: ARKANSAS
A158: LITTLE RIVER | B158: 4400 | C158: 1918 | D158: 7025952 | E158: 1866 | F158: 4889857 | G158: 407 | H158: 1278573 | I158: 385 | J158: 1155257 | K158: 1945 | L158: 7534894 | M158: 1892 | N158: 5262497 | O158: 427 | P158: 1716272 | Q158: 403 | R158: 1678156 | S158: 1960 | T158: 9232254 | U158: 1906 | V158: 6365322 | W158: 450 | X158: 1242398 | Y158: 420 | Z158: 1831970 | AA158: 1974 | AB158: 9384425 | AC158: 1916 | AD158: 6565706 | AE158: 490 | AF158: 1594328 | AG158: 456 | AH158: 1642712 | AI158: 2003 | AJ158: 10187245 | AK158: 1942 | AL158: 7676919 | AM158: 512 | AN158: 1838376 | AO158: 468 | AP158: 1886477 | AQ158: 297.65 | AR158: 223.79 | AS158: 521.44 | AT158: 8304525 | AU158: 6045114 | AV158: 2325 | AW158: 2251 | AX158: 325.01 | AY158: 252.02 | AZ158: 577.03 | BA158: 9251166 | BB158: 6940653 | BC158: 2372 | BD158: 2295 | BE158: 362.19 | BF158: 293.68 | BG158: 655.87 | BH158: 10474652 | BI158: 8197292 | BJ158: 2410 | BK158: 2326 | BL158: 371.31 | BM158: 288.38 | BN158: 659.69 | BO158: 10978753 | BP158: 8208418 | BQ158: 2464 | BR158: 2372 | BS158: 398.46 | BT158: 330.68 | BU158: 729.14 | BV158: 12025621 | BW158: 9563396 | BX158: 2515 | BY158: 2410 | BZ158: 2291 | CA158: 2337 | CB158: 2372 | CC158: 2422 | CD158: 2465 | CE158: 519.0879228 | CF158: 545.9862289 | CG158: 583.9473617 | CH158: 621.8060329 | CI158: 650.7697533 | CJ158: 1.004531173 | CK158: 1.056858158 | CL158: 1.123166304 | CM158: 1.060925699 | CN158: 1.120426996 | CO158: 1.018110235 | CP158: 1.054091816 | CQ158: 0.9948367783 | CR158: 1.059562572 | CS158: 2212 | CT158: 2266 | CU158: 2324 | CV158: 2345 | CW158: 2397 | CX158: 0.976336 | CY158: 1.008338 | CZ158: 1.028305 | DA158: 1.03095 | DB158: 1.043453 | DC158: LITTLE | DD158: 0.0113 | DE158: 775.46 | DF158: ARKANSAS
A159: LOGAN | B159: 4410 | C159: 3435 | D159: 9567587 | E159: 3365 | F159: 7266346 | G159: 981 | H159: 1932786 | I159: 906 | J159: 1537510 | K159: 3493 | L159: 9595839 | M159: 3415 | N159: 7855686 | O159: 1016 | P159: 1900305 | Q159: 931 | R159: 1839767 | S159: 3506 | T159: 12055334 | U159: 3415 | V159: 8967025 | W159: 1047 | X159: 2353473 | Y159: 954 | Z159: 2245236 | AA159: 3531 | AB159: 12643887 | AC159: 3440 | AD159: 9575578 | AE159: 1077 | AF159: 2433645 | AG159: 974 | AH159: 2329077 | AI159: 3309 | AJ159: 11975962 | AK159: 3202 | AL159: 9178984 | AM159: 1022 | AN159: 2179538 | AO159: 911 | AP159: 2141407 | AQ159: 217.02 | AR159: 171.78 | AS159: 388.8 | AT159: 11500373 | AU159: 8803856 | AV159: 4416 | AW159: 4271 | AX159: 212.47 | AY159: 185.91 | AZ159: 398.38 | BA159: 11496144 | BB159: 9695453 | BC159: 4509 | BD159: 4346 | BE159: 263.72 | BF159: 213.86 | BG159: 477.58 | BH159: 14408807 | BI159: 11212261 | BJ159: 4553 | BK159: 4369 | BL159: 272.67 | BM159: 224.75 | BN159: 497.42 | BO159: 15077532 | BP159: 11904655 | BQ159: 4608 | BR159: 4414 | BS159: 272.37 | BT159: 229.36 | BU159: 501.73 | BV159: 14155500 | BW159: 11320391 | BX159: 4331 | BY159: 4113 | BZ159: 4350 | CA159: 4436 | CB159: 4470 | CC159: 4520 | CD159: 4227 | CE159: 519.0879228 | CF159: 545.9862289 | CG159: 583.9473617 | CH159: 621.8060329 | CI159: 650.7697533 | CJ159: 0.7490060603 | CK159: 0.7296521027 | CL159: 0.8178476885 | CM159: 0.7999600739 | CN159: 0.7709792864 | CO159: 0.9071932665 | CP159: 0.8526177067 | CQ159: 0.9948367783 | CR159: 0.8570428087 | CS159: 4224 | CT159: 4309 | CU159: 4363 | CV159: 4389 | CW159: 4193 | CX159: 0.899595 | CY159: 0.903832 | CZ159: 0.899323 | DA159: 0.910372 | DB159: 0.923164 | DC159: LOGAN | DD159: 0.0035 | DE159: 628.96 | DF159: ARKANSAS
A160: LONOKE | B160: 4420 | C160: 5518 | D160: 18900247 | E160: 5301 | F160: 13269666 | G160: 1316 | H160: 3341947 | I160: 1150 | J160: 3026326 | K160: 5720 | L160: 22134098 | M160: 5495 | N160: 15785660 | O160: 1411 | P160: 4313510 | Q160: 1249 | R160: 3600537 | S160: 5878 | T160: 22533046 | U160: 5653 | V160: 17197953 | W160: 1515 | X160: 4746757 | Y160: 1348 | Z160: 3875542 | AA160: 6092 | AB160: 24116873 | AC160: 5858 | AD160: 18383589 | AE160: 1672 | AF160: 4967759 | AG160: 1500 | AH160: 4414722 | AI160: 6263 | AJ160: 25740622 | AK160: 5985 | AL160: 19371966 | AM160: 1753 | AN160: 5159242 | AO160: 1550 | AP160: 4572546 | AQ160: 271.22 | AR160: 210.51 | AS160: 481.73 | AT160: 22242194 | AU160: 16295992 | AV160: 6834 | AW160: 6451 | AX160: 309.07 | AY160: 239.55 | AZ160: 548.62 | BA160: 26447608 | BB160: 19386197 | BC160: 7131 | BD160: 6744 | BE160: 307.5 | BF160: 250.84 | BG160: 558.34 | BH160: 27279803 | BI160: 21073495 | BJ160: 7393 | BK160: 7001 | BL160: 312.17 | BM160: 258.2 | BN160: 570.37 | BO160: 29084632 | BP160: 22798311 | BQ160: 7764 | BR160: 7358 | BS160: 321.23 | BT160: 264.81 | BU160: 586.04 | BV160: 30899864 | BW160: 23944512 | BX160: 8016 | BY160: 7535 | BZ160: 6659 | CA160: 6958 | CB160: 7216 | CC160: 7580 | CD160: 7787 | CE160: 519.0879228 | CF160: 545.9862289 | CG160: 583.9473617 | CH160: 621.8060329 | CI160: 650.7697533 | CJ160: 0.9280316086 | CK160: 1.004823878 | CL160: 0.9561478253 | CM160: 0.9172796175 | CN160: 0.9005335559 | CO160: 0.9907956429 | CP160: 0.9501084344 | CQ160: 0.9948367783 | CR160: 0.9550395151 | CS160: 6613 | CT160: 6836 | CU160: 7017 | CV160: 7199 | CW160: 7406 | CX160: 0.988313 | CY160: 0.988542 | CZ160: 1.001732 | DA160: 0.989745 | DB160: 0.985752 | DC160: LONOKE | DD160: 0.0122 | DE160: 698.74 | DF160: ARKANSAS
A161: MADISON | B161: 4430 | C161: 1892 | D161: 3851146 | E161: 1790 | F161: 2865528 | G161: 534 | H161: 1127661 | I161: 489 | J161: 740210 | K161: 1931 | L161: 4279663 | M161: 1833 | N161: 3365899 | O161: 550 | P161: 718511 | Q161: 500 | R161: 797885 | S161: 1977 | T161: 5209638 | U161: 1877 | V161: 3771728 | W161: 568 | X161: 999976 | Y161: 520 | Z161: 969751 | AA161: 2100 | AB161: 6140145 | AC161: 1987 | AD161: 4134242 | AE161: 647 | AF161: 1495615 | AG161: 590 | AH161: 1178068 | AI161: 2019 | AJ161: 6120092 | AK161: 1895 | AL161: 4629617 | AM161: 642 | AN161: 1346804 | AO161: 576 | AP161: 1142176 | AQ161: 171.02 | AR161: 131.85 | AS161: 302.87 | AT161: 4978807 | AU161: 3605738 | AV161: 2426 | AW161: 2279 | AX161: 167.88 | AY161: 148.73 | AZ161: 316.61 | BA161: 4998174 | BB161: 4163784 | BC161: 2481 | BD161: 2333 | BE161: 203.33 | BF161: 164.84 | BG161: 368.17 | BH161: 6209614 | BI161: 4741479 | BJ161: 2545 | BK161: 2397 | BL161: 231.64 | BM161: 171.79 | BN161: 403.43 | BO161: 7635760 | BP161: 5312310 | BQ161: 2747 | BR161: 2577 | BS161: 233.84 | BT161: 194.65 | BU161: 428.49 | BV161: 7466896 | BW161: 5771793 | BX161: 2661 | BY161: 2471 | BZ161: 2359 | CA161: 2415 | CB161: 2478 | CC161: 2670 | CD161: 2570 | CE161: 519.0879228 | CF161: 545.9862289 | CG161: 583.9473617 | CH161: 621.8060329 | CI161: 650.7697533 | CJ161: 0.5834657034 | CK161: 0.5798864206 | CL161: 0.6304849103 | CM161: 0.6488036118 | CN161: 0.6584356416 | CO161: 0.8731035706 | CP161: 0.710357028 | CQ161: 0.9948367783 | CR161: 0.7140437944 | CS161: 2337 | CT161: 2394 | CU161: 2461 | CV161: 2495 | CW161: 2395 | CX161: 0.882612 | CY161: 0.85715 | CZ161: 0.871906 | DA161: 0.870528 | DB161: 0.883686 | DC161: MADISON | DD161: 0.0106 | DE161: 522.71 | DF161: ARKANSAS
A162: MARION | B162: 4440 | C162: 2676 | D162: 6885393 | E162: 2609 | F162: 5577467 | G162: 689 | H162: 1323418 | I162: 632 | J162: 1416805 | K162: 2729 | L162: 7488528 | M162: 2651 | N162: 5996467 | O162: 728 | P162: 1550594 | Q162: 666 | R162: 1530983 | S162: 2801 | T162: 8188009 | U162: 2723 | V162: 7016556 | W162: 758 | X162: 1360740 | Y162: 690 | Z162: 1545266 | AA162: 2871 | AB162: 8731373 | AC162: 2783 | AD162: 7788941 | AE162: 799 | AF162: 1546510 | AG162: 731 | AH162: 1679375 | AI162: 2764 | AJ162: 9730630 | AK162: 2664 | AL162: 8529287 | AM162: 770 | AN162: 1712361 | AO162: 686 | AP162: 1835122 | AQ162: 203.29 | AR162: 179.84 | AS162: 383.13 | AT162: 8208811 | AU162: 6994272 | AV162: 3365 | AW162: 3241 | AX162: 217.89 | AY162: 189.11 | AZ162: 407 | BA162: 9039122 | BB162: 7527450 | BC162: 3457 | BD162: 3317 | BE162: 223.58 | BF162: 209.05 | BG162: 432.63 | BH162: 9548749 | BI162: 8561822 | BJ162: 3559 | BK162: 3413 | BL162: 233.38 | BM162: 224.54 | BN162: 457.92 | BO162: 10277883 | BP162: 9468316 | BQ162: 3670 | BR162: 3514 | BS162: 269.83 | BT162: 257.82 | BU162: 527.65 | BV162: 11442991 | BW162: 10364409 | BX162: 3534 | BY162: 3350 | BZ162: 3308 | CA162: 3394 | CB162: 3493 | CC162: 3599 | CD162: 3446 | CE162: 519.0879228 | CF162: 545.9862289 | CG162: 583.9473617 | CH162: 621.8060329 | CI162: 650.7697533 | CJ162: 0.7380830553 | CK162: 0.7454400467 | CL162: 0.7408715723 | CM162: 0.7364354409 | CN162: 0.8108090417 | CO162: 0.9067229975 | CP162: 0.8319275385 | CQ162: 0.9948367783 | CR162: 0.8362452582 | CS162: 3218 | CT162: 3305 | CU162: 3431 | CV162: 3476 | CW162: 3301 | CX162: 0.897408 | CY162: 0.904544 | CZ162: 0.905661 | DA162: 0.909953 | DB162: 0.915688 | DC162: MARION | DD162: 0.0064 | DE162: 613.07 | DF162: ARKANSAS
A163: MILLER | B163: 4450 | C163: 4951 | D163: 18335845 | E163: 4782 | F163: 12074266 | G163: 1096 | H163: 3112378 | I163: 1021 | J163: 2266479 | K163: 5051 | L163: 19918608 | M163: 4855 | N163: 13591866 | O163: 1205 | P163: 3475598 | Q163: 1118 | R163: 2893360 | S163: 5123 | T163: 22309181 | U163: 4924 | V163: 14842649 | W163: 1332 | X163: 3814471 | Y163: 1240 | Z163: 3215528 | AA163: 5281 | AB163: 24252515 | AC163: 5074 | AD163: 15829665 | AE163: 1439 | AF163: 4901856 | AG163: 1336 | AH163: 3678333 | AI163: 5402 | AJ163: 25378131 | AK163: 5181 | AL163: 16447080 | AM163: 1507 | AN163: 5066246 | AO163: 1390 | AP163: 4104623 | AQ163: 295.58 | AR163: 205.94 | AS163: 501.52 | AT163: 21448223 | AU163: 14340745 | AV163: 6047 | AW163: 5803 | AX163: 311.62 | AY163: 230 | AZ163: 541.62 | BA163: 23394206 | BB163: 16485226 | BC163: 6256 | BD163: 5973 | BE163: 337.25 | BF163: 244.13 | BG163: 581.38 | BH163: 26123652 | BI163: 18058177 | BJ163: 6455 | BK163: 6164 | BL163: 361.54 | BM163: 253.61 | BN163: 615.15 | BO163: 29154371 | BP163: 19507998 | BQ163: 6720 | BR163: 6410 | BS163: 367.21 | BT163: 260.64 | BU163: 627.85 | BV163: 30444377 | BW163: 20551703 | BX163: 6909 | BY163: 6571 | BZ163: 5936 | CA163: 6129 | CB163: 6324 | CC163: 6580 | CD163: 6748 | CE163: 519.0879228 | CF163: 545.9862289 | CG163: 583.9473617 | CH163: 621.8060329 | CI163: 650.7697533 | CJ163: 0.9661561712 | CK163: 0.992003042 | CL163: 0.9956034364 | CM163: 0.9892956444 | CN163: 0.9647805493 | CO163: 0.9880218231 | CP163: 0.9934677005 | CQ163: 0.9948367783 | CR163: 0.9986238167 | CS163: 5830 | CT163: 5979 | CU163: 6176 | CV163: 6306 | CW163: 6509 | CX163: 0.994751 | CY163: 0.97394 | CZ163: 0.988466 | DA163: 0.990581 | DB163: 0.992029 | DC163: MILLER | DD163: 0.009 | DE163: 731.45 | DF163: ARKANSAS
A164: MISSISSIPPI | B164: 4460 | C164: 5838 | D164: 20838771 | E164: 5698 | F164: 15611224 | G164: 1636 | H164: 4060583 | I164: 1517 | J164: 3363100 | K164: 5761 | L164: 19608975 | M164: 5631 | N164: 16846008 | O164: 1705 | P164: 4641022 | Q164: 1576 | R164: 4311817 | S164: 5685 | T164: 20154238 | U164: 5548 | V164: 17736723 | W164: 1844 | X164: 5083446 | Y164: 1707 | Z164: 4604877 | AA164: 5599 | AB164: 22081804 | AC164: 5458 | AD164: 18155611 | AE164: 2029 | AF164: 5414346 | AG164: 1888 | AH164: 5415308 | AI164: 5531 | AJ164: 23741033 | AK164: 5382 | AL164: 18098171 | AM164: 2085 | AN164: 6536585 | AO164: 1936 | AP164: 5971911 | AQ164: 277.62 | AR164: 219.15 | AS164: 496.77 | AT164: 24899354 | AU164: 18974324 | AV164: 7474 | AW164: 7215 | AX164: 270.67 | AY164: 244.64 | AZ164: 515.31 | BA164: 24249997 | BB164: 21157825 | BC164: 7466 | BD164: 7207 | BE164: 279.34 | BF164: 256.62 | BG164: 535.96 | BH164: 25237684 | BI164: 22341600 | BJ164: 7529 | BK164: 7255 | BL164: 300.39 | BM164: 267.39 | BN164: 567.78 | BO164: 27496150 | BP164: 23570919 | BQ164: 7628 | BR164: 7346 | BS164: 331.29 | BT164: 274.1 | BU164: 605.39 | BV164: 30277618 | BW164: 24070082 | BX164: 7616 | BY164: 7318 | BZ164: 7356 | CA164: 7350 | CB164: 7405 | CC164: 7500 | CD164: 7474 | CE164: 519.0879228 | CF164: 545.9862289 | CG164: 583.9473617 | CH164: 621.8060329 | CI164: 650.7697533 | CJ164: 0.9570055056 | CK164: 0.9438150135 | CL164: 0.9178224531 | CM164: 0.9131143314 | CN164: 0.9302675746 | CO164: 1.006661842 | CP164: 0.9262345477 | CQ164: 0.9948367783 | CR164: 0.9310417225 | CS164: 7027 | CT164: 7088 | CU164: 7192 | CV164: 7311 | CW164: 7322 | CX164: 1.028286 | CY164: 1.027836 | CZ164: 1.004054 | DA164: 0.994129 | DB164: 0.980487 | DC164: MISSISSIPPI | DD164: 0.0168 | DE164: 680.08 | DF164: ARKANSAS
A165: MONROE | B165: 4470 | C165: 1574 | D165: 4884176 | E165: 1527 | F165: 3642276 | G165: 346 | H165: 1229716 | I165: 329 | J165: 873096 | K165: 1578 | L165: 5592876 | M165: 1527 | N165: 4159632 | O165: 342 | P165: 927293 | Q165: 325 | R165: 885755 | S165: 1556 | T165: 5470122 | U165: 1515 | V165: 4385301 | W165: 345 | X165: 1111225 | Y165: 322 | Z165: 1007268 | AA165: 1556 | AB165: 6276838 | AC165: 1505 | AD165: 4850822 | AE165: 347 | AF165: 1088055 | AG165: 326 | AH165: 926274 | AI165: 1537 | AJ165: 6899795 | AK165: 1486 | AL165: 5021751 | AM165: 365 | AN165: 1470904 | AO165: 335 | AP165: 1047022 | AQ165: 265.36 | AR165: 202.74 | AS165: 468.1 | AT165: 6113892 | AU165: 4515372 | AV165: 1920 | AW165: 1856 | AX165: 282.99 | AY165: 227.02 | AZ165: 510.01 | BA165: 6520169 | BB165: 5045387 | BC165: 1920 | BD165: 1852 | BE165: 288.5 | BF165: 244.63 | BG165: 533.13 | BH165: 6581347 | BI165: 5392569 | BJ165: 1901 | BK165: 1837 | BL165: 322.51 | BM165: 262.93 | BN165: 585.44 | BO165: 7364893 | BP165: 5777096 | BQ165: 1903 | BR165: 1831 | BS165: 366.75 | BT165: 277.72 | BU165: 644.47 | BV165: 8370699 | BW165: 6068773 | BX165: 1902 | BY165: 1821 | BZ165: 1891 | CA165: 1890 | CB165: 1872 | CC165: 1870 | CD165: 1863 | CE165: 519.0879228 | CF165: 545.9862289 | CG165: 583.9473617 | CH165: 621.8060329 | CI165: 650.7697533 | CJ165: 0.9017740145 | CK165: 0.9341078089 | CL165: 0.9129761258 | CM165: 0.9415154711 | CN165: 0.9903195359 | CO165: 1.001311796 | CP165: 0.9349121776 | CQ165: 0.9948367783 | CR165: 0.9397643895 | CS165: 1791 | CT165: 1819 | CU165: 1826 | CV165: 1815 | CW165: 1828 | CX165: 0.998945 | CY165: 0.980032 | CZ165: 1.0008 | DA165: 1.011191 | DB165: 1.015508 | DC165: MONROE | DD165: 0.0089 | DE165: 688.36 | DF165: ARKANSAS
A166: MONTGOMERY | B166: 4480 | C166: 1531 | D166: 4623053 | E166: 1492 | F166: 3135164 | G166: 263 | H166: 339236 | I166: 250 | J166: 419716 | K166: 1563 | L166: 3853217 | M166: 1524 | N166: 3465337 | O166: 263 | P166: 595905 | Q166: 249 | R166: 630026 | S166: 1561 | T166: 4440289 | U166: 1516 | V166: 3808962 | W166: 298 | X166: 574859 | Y166: 274 | Z166: 717915 | AA166: 1575 | AB166: 4562010 | AC166: 1527 | AD166: 4236887 | AE166: 323 | AF166: 808484 | AG166: 300 | AH166: 802037 | AI166: 1582 | AJ166: 5095272 | AK166: 1528 | AL166: 4152333 | AM166: 349 | AN166: 777411 | AO166: 322 | AP166: 853324 | AQ166: 230.5 | AR166: 170.06 | AS166: 400.56 | AT166: 4962289 | AU166: 3554880 | AV166: 1794 | AW166: 1742 | AX166: 203.04 | AY166: 192.49 | AZ166: 395.53 | BA166: 4449122 | BB166: 4095363 | BC166: 1826 | BD166: 1773 | BE166: 224.81 | BF166: 210.75 | BG166: 435.56 | BH166: 5015148 | BI166: 4526877 | BJ166: 1859 | BK166: 1790 | BL166: 235.8 | BM166: 229.84 | BN166: 465.64 | BO166: 5370494 | BP166: 5038924 | BQ166: 1898 | BR166: 1827 | BS166: 253.44 | BT166: 225.48 | BU166: 478.92 | BV166: 5872683 | BW166: 5005657 | BX166: 1931 | BY166: 1850 | BZ166: 1770 | CA166: 1802 | CB166: 1828 | CC166: 1866 | CD166: 1892 | CE166: 519.0879228 | CF166: 545.9862289 | CG166: 583.9473617 | CH166: 621.8060329 | CI166: 650.7697533 | CJ166: 0.7716611819 | CK166: 0.7244321909 | CL166: 0.7458891478 | CM166: 0.7488508882 | CN166: 0.7359284872 | CO166: 0.9082603777 | CP166: 0.8206373387 | CQ166: 0.9948367783 | CR166: 0.824896462 | CS166: 1744 | CT166: 1779 | CU166: 1795 | CV166: 1817 | CW166: 1822 | CX166: 0.906627 | CY166: 0.901743 | CZ166: 0.901873 | DA166: 0.915003 | DB166: 0.915756 | DC166: MONTGOMERY | DD166: 0.0054 | DE166: 604.96 | DF166: ARKANSAS
A167: NEVADA | B167: 4490 | C167: 1485 | D167: 6107999 | E167: 1451 | F167: 3392138 | G167: 368 | H167: 827147 | I167: 346 | J167: 618724 | K167: 1465 | L167: 6598247 | M167: 1431 | N167: 3772043 | O167: 388 | P167: 1107426 | Q167: 366 | R167: 737327 | S167: 1459 | T167: 6100415 | U167: 1424 | V167: 3858449 | W167: 411 | X167: 1091516 | Y167: 382 | Z167: 863704 | AA167: 1443 | AB167: 6702446 | AC167: 1406 | AD167: 3944203 | AE167: 423 | AF167: 1587638 | AG167: 391 | AH167: 985253 | AI167: 1436 | AJ167: 6329433 | AK167: 1395 | AL167: 4251354 | AM167: 445 | AN167: 1689438 | AO167: 412 | AP167: 1111385 | AQ167: 311.89 | AR167: 186 | AS167: 497.89 | AT167: 6935146 | AU167: 4010862 | AV167: 1853 | AW167: 1797 | AX167: 346.54 | AY167: 209.12 | AZ167: 555.66 | BA167: 7705673 | BB167: 4509370 | BC167: 1853 | BD167: 1797 | BE167: 320.5 | BF167: 217.89 | BG167: 538.39 | BH167: 7191931 | BI167: 4722153 | BJ167: 1870 | BK167: 1806 | BL167: 370.23 | BM167: 228.6 | BN167: 598.83 | BO167: 8290084 | BP167: 4929456 | BQ167: 1866 | BR167: 1797 | BS167: 355.26 | BT167: 247.31 | BU167: 602.57 | BV167: 8018871 | BW167: 5362739 | BX167: 1881 | BY167: 1807 | BZ167: 1827 | CA167: 1828 | CB167: 1841 | CC167: 1835 | CD167: 1846 | CE167: 519.0879228 | CF167: 545.9862289 | CG167: 583.9473617 | CH167: 621.8060329 | CI167: 650.7697533 | CJ167: 0.9591631362 | CK167: 1.017717976 | CL167: 0.9219837871 | CM167: 0.9630495176 | CN167: 0.9259342448 | CO167: 1.016459946 | CP167: 0.9420634192 | CQ167: 0.9948367783 | CR167: 0.9469527462 | CS167: 1767 | CT167: 1777 | CU167: 1791 | CV167: 1787 | CW167: 1807 | CX167: 1.006966 | CY167: 0.981816 | CZ167: 1.027783 | DA167: 0.997426 | DB167: 1.067413 | DC167: NEVADA | DD167: 0.0136 | DE167: 692.48 | DF167: ARKANSAS
A168: NEWTON | B168: 4500 | C168: 1161 | D168: 3178176 | E168: 1124 | F168: 2353548 | G168: 434 | H168: 776625 | I168: 398 | J168: 618899 | K168: 1184 | L168: 3090253 | M168: 1143 | N168: 2395715 | O168: 450 | P168: 665941 | Q168: 412 | R168: 706524 | S168: 1199 | T168: 3147325 | U168: 1160 | V168: 2881343 | W168: 479 | X168: 594966 | Y168: 441 | Z168: 856302 | AA168: 1240 | AB168: 3125847 | AC168: 1207 | AD168: 3163568 | AE168: 502 | AF168: 1301640 | AG168: 456 | AH168: 1075294 | AI168: 1208 | AJ168: 4318586 | AK168: 1166 | AL168: 3097468 | AM168: 475 | AN168: 946010 | AO168: 428 | AP168: 1001888 | AQ168: 206.62 | AR168: 162.75 | AS168: 369.37 | AT168: 3954801 | AU168: 2972447 | AV168: 1595 | AW168: 1522 | AX168: 191.56 | AY168: 166.25 | AZ168: 357.81 | BA168: 3756194 | BB168: 3102239 | BC168: 1634 | BD168: 1555 | BE168: 185.85 | BF168: 194.55 | BG168: 380.4 | BH168: 3742291 | BI168: 3737645 | BJ168: 1678 | BK168: 1601 | BL168: 211.8 | BM168: 212.41 | BN168: 424.21 | BO168: 4427487 | BP168: 4238862 | BQ168: 1742 | BR168: 1663 | BS168: 260.68 | BT168: 214.31 | BU168: 474.99 | BV168: 5264596 | BW168: 4099356 | BX168: 1683 | BY168: 1594 | BZ168: 1562 | CA168: 1599 | CB168: 1643 | CC168: 1706 | CD168: 1641 | CE168: 519.0879228 | CF168: 545.9862289 | CG168: 583.9473617 | CH168: 621.8060329 | CI168: 650.7697533 | CJ168: 0.7115750219 | CK168: 0.6553461993 | CL168: 0.6514285789 | CM168: 0.6822223934 | CN168: 0.7298894849 | CO168: 0.9081506402 | CP168: 0.7554829621 | CQ168: 0.9948367783 | CR168: 0.759403933 | CS168: 1515 | CT168: 1551 | CU168: 1617 | CV168: 1644 | CW168: 1580 | CX168: 0.916799 | CY168: 0.932296 | CZ168: 0.909447 | DA168: 0.892963 | DB168: 0.890632 | DC168: NEWTON | DD168: 0.0225 | DE168: 553.59 | DF168: ARKANSAS
A169: OUACHITA | B169: 4510 | C169: 4619 | D169: 14745201 | E169: 4514 | F169: 10141902 | G169: 1126 | H169: 2355728 | I169: 1052 | J169: 2061279 | K169: 4524 | L169: 16234018 | M169: 4430 | N169: 11061237 | O169: 1162 | P169: 2666422 | Q169: 1083 | R169: 2297731 | S169: 4417 | T169: 16429669 | U169: 4330 | V169: 11911862 | W169: 1243 | X169: 3332104 | Y169: 1167 | Z169: 2687075 | AA169: 4377 | AB169: 16870295 | AC169: 4300 | AD169: 12845274 | AE169: 1304 | AF169: 3116550 | AG169: 1227 | AH169: 2982802 | AI169: 4074 | AJ169: 17458912 | AK169: 3974 | AL169: 12140956 | AM169: 1240 | AN169: 3023692 | AO169: 1143 | AP169: 2774794 | AQ169: 248.06 | AR169: 182.7 | AS169: 430.76 | AT169: 17100929 | AU169: 12203181 | AV169: 5745 | AW169: 5566 | AX169: 277 | AY169: 201.93 | AZ169: 478.93 | BA169: 18900440 | BB169: 13358968 | BC169: 5686 | BD169: 5513 | BE169: 290.96 | BF169: 221.32 | BG169: 512.28 | BH169: 19761773 | BI169: 14598937 | BJ169: 5660 | BK169: 5497 | BL169: 293.18 | BM169: 238.65 | BN169: 531.83 | BO169: 19986845 | BP169: 15828076 | BQ169: 5681 | BR169: 5527 | BS169: 321.21 | BT169: 242.91 | BU169: 564.12 | BV169: 20482604 | BW169: 14915750 | BX169: 5314 | BY169: 5117 | BZ169: 5663 | CA169: 5608 | CB169: 5586 | CC169: 5611 | CD169: 5220 | CE169: 519.0879228 | CF169: 545.9862289 | CG169: 583.9473617 | CH169: 621.8060329 | CI169: 650.7697533 | CJ169: 0.8298401506 | CK169: 0.8771832963 | CL169: 0.8772708528 | CM169: 0.8552988744 | CN169: 0.8668503679 | CO169: 0.9885758768 | CP169: 0.871241883 | CQ169: 0.9948367783 | CR169: 0.8757636449 | CS169: 5430 | CT169: 5425 | CU169: 5472 | CV169: 5505 | CW169: 5050 | CX169: 0.996006 | CY169: 0.978524 | CZ169: 0.991525 | DA169: 0.991398 | DB169: 0.985113 | DC169: OUACHITA | DD169: 0.008 | DE169: 641.68 | DF169: ARKANSAS
A170: PERRY | B170: 4520 | C170: 1509 | D170: 4703142 | E170: 1445 | F170: 3583241 | G170: 442 | H170: 952471 | I170: 410 | J170: 1065295 | K170: 1536 | L170: 4485850 | M170: 1483 | N170: 3572912 | O170: 441 | P170: 1050162 | Q170: 406 | R170: 1069090 | S170: 1535 | T170: 4898182 | U170: 1486 | V170: 3999289 | W170: 461 | X170: 909280 | Y170: 420 | Z170: 1084238 | AA170: 1543 | AB170: 6354726 | AC170: 1494 | AD170: 4337292 | AE170: 472 | AF170: 1335201 | AG170: 427 | AH170: 1274144 | AI170: 1490 | AJ170: 5585611 | AK170: 1424 | AL170: 4378819 | AM170: 464 | AN170: 1066455 | AO170: 413 | AP170: 1252802 | AQ170: 241.57 | AR170: 208.83 | AS170: 450.4 | AT170: 5655613 | AU170: 4648536 | AV170: 1951 | AW170: 1855 | AX170: 233.35 | AY170: 204.78 | AZ170: 438.13 | BA170: 5536012 | BB170: 4642002 | BC170: 1977 | BD170: 1889 | BE170: 242.46 | BF170: 222.26 | BG170: 464.72 | BH170: 5807462 | BI170: 5083527 | BJ170: 1996 | BK170: 1906 | BL170: 318.03 | BM170: 243.43 | BN170: 561.46 | BO170: 7689927 | BP170: 5611436 | BQ170: 2015 | BR170: 1921 | BS170: 283.69 | BT170: 255.47 | BU170: 539.16 | BV170: 6652066 | BW170: 5631621 | BX170: 1954 | BY170: 1837 | BZ170: 1907 | CA170: 1938 | CB170: 1955 | CC170: 1972 | CD170: 1898 | CE170: 519.0879228 | CF170: 545.9862289 | CG170: 583.9473617 | CH170: 621.8060329 | CI170: 650.7697533 | CJ170: 0.8676757448 | CK170: 0.8024561368 | CL170: 0.7958251556 | CM170: 0.9029503902 | CN170: 0.8284957887 | CO170: 0.939593827 | CP170: 0.8934505731 | CQ170: 0.9948367783 | CR170: 0.8980875985 | CS170: 1842 | CT170: 1866 | CU170: 1908 | CV170: 1922 | CW170: 1792 | CX170: 0.936495 | CY170: 0.95598 | CZ170: 0.913009 | DA170: 0.934822 | DB170: 0.95914 | DC170: PERRY | DD170: 0.0089 | DE170: 657.83 | DF170: ARKANSAS
A171: PHILLIPS | B171: 4530 | C171: 3493 | D171: 12032601 | E171: 3356 | F171: 7207255 | G171: 904 | H171: 2287559 | I171: 861 | J171: 1513116 | K171: 3452 | L171: 12342544 | M171: 3308 | N171: 7948240 | O171: 879 | P171: 2443299 | Q171: 834 | R171: 1794265 | S171: 3417 | T171: 14707692 | U171: 3261 | V171: 8959813 | W171: 901 | X171: 2831945 | Y171: 850 | Z171: 1987160 | AA171: 3354 | AB171: 16415908 | AC171: 3200 | AD171: 9104864 | AE171: 959 | AF171: 2406260 | AG171: 904 | AH171: 2051300 | AI171: 3068 | AJ171: 13542320 | AK171: 2918 | AL171: 8235951 | AM171: 937 | AN171: 3020667 | AO171: 888 | AP171: 2169728 | AQ171: 271.4 | AR171: 172.33 | AS171: 443.73 | AT171: 14320160 | AU171: 8720371 | AV171: 4397 | AW171: 4217 | AX171: 284.5 | AY171: 196.01 | AZ171: 480.51 | BA171: 14785843 | BB171: 9742505 | BC171: 4331 | BD171: 4142 | BE171: 338.5 | BF171: 221.9 | BG171: 560.4 | BH171: 17539637 | BI171: 10946973 | BJ171: 4318 | BK171: 4111 | BL171: 363.67 | BM171: 226.53 | BN171: 590.2 | BO171: 18822168 | BP171: 11156164 | BQ171: 4313 | BR171: 4104 | BS171: 344.63 | BT171: 227.83 | BU171: 572.46 | BV171: 16562987 | BW171: 10405679 | BX171: 4005 | BY171: 3806 | BZ171: 4315 | CA171: 4246 | CB171: 4225 | CC171: 4218 | CD171: 3910 | CE171: 519.0879228 | CF171: 545.9862289 | CG171: 583.9473617 | CH171: 621.8060329 | CI171: 650.7697533 | CJ171: 0.8548262838 | CK171: 0.8800771421 | CL171: 0.9596755405 | CM171: 0.9491705914 | CN171: 0.8796659604 | CO171: 0.9989448321 | CP171: 0.9056387045 | CQ171: 0.9948367783 | CR171: 0.9103389865 | CS171: 4085 | CT171: 4070 | CU171: 4087 | CV171: 4077 | CW171: 3744 | CX171: 0.998871 | CY171: 1.007315 | CZ171: 0.992722 | DA171: 1.00386 | DB171: 0.991367 | DC171: PHILLIPS | DD171: 0.0273 | DE171: 662.5 | DF171: ARKANSAS
